{"text_format":"1","workbook":"xlsx","n_sheets":17,"sheets":["Notes","Summary","Region (Geography) Q1","Trusts Q1","Sites Q1","Region (Geography) Q2","Trusts Q2","Sites Q2","Region (Geography) Q3","Trusts Q3","Sites Q3","Region (Geography) Q4","Trusts Q4","BSQ1","BSQ2","BSQ3","BSQ4"],"not_rendered":{"charts":0,"images":0,"macros":1,"external_links":1,"defined_names":15,"comments":0,"pivot_tables":0},"unopened":[],"bounds":{"document_bytes":16777216,"sheet_cells":100000,"rows_first":2000,"rows_last":500,"rows_between":2000,"halvings":0,"cell_chars":16384,"cell_head_chars":4096},"cells_cut":0,"cells_raw":0,"read":"whole","date_system":"1900"}

{"sheet":"Notes","index":0,"n_rows":2,"n_cols":1,"rows_kept":2,"cut":false,"hidden":false,"merged":[[1,8,3,14]]}
[]
["Maternity Friends and Family Test (FFT) Data - April 2017"]

{"sheet":"Summary","index":1,"n_rows":13,"n_cols":12,"rows_kept":13,"cut":false,"hidden":false,"merged":[[6,1,7,1],[6,4,6,5],[6,6,6,7],[6,8,6,9],[6,10,6,11]]}
[]
[]
[]
[]
[]
[]
[null,"FFT","Number of organisations submitting","Total responses to date","Responses",null,"Response Rate",null,"Score (% recommend)",null,"Score (% not recommend)"]
[null,null,"2017-04-01","2017-04-01","2017-04-01","2017-03-27","2017-04-01","2017-03-27","2017-04-01","2017-03-27","2017-04-01","2017-03-27"]
[null,"Maternity Total","NA",1599599,34367,38723,"NA","NA",0.96162015887333785,0.9608501407432275,1.364681234905578E-2,1.3273764945897788E-2]
[null,"Antenatal",134,313295,6239,7232,"NA","NA",0.96650104183362717,0.96363384955752207,1.6509055938451676E-2,1.2859513274336282E-2]
[null,"Birth",134,501728,11580,12344,0.23873827440470055,0.2435050204170201,0.9635578583765112,0.96791963707064166,1.0449050086355785E-2,1.2394685677252106E-2]
[null,"Postnatal Ward",134,536554,11535,13327,"NA","NA",0.95058517555266575,0.94477376753958131,1.8638925010836586E-2,1.7033090718091094E-2]
[null,"Postnatal Community",134,248022,5013,5820,"NA","NA",0.97646120087771793,0.97920962199312711,5.9844404548174742E-3,7.0446735395189005E-3]

{"sheet":"Region (Geography) Q1","index":2,"n_rows":26,"n_cols":11,"rows_kept":26,"cut":false,"hidden":false,"merged":[[8,0,9,0],[8,1,9,1],[8,2,9,2],[8,3,9,3],[8,4,9,4],[8,5,8,10]]}
[]
[]
[]
[]
[]
[null,"   Sort data by:           "]
[]
[]
["Region (Geo) Code","Region (Geography)","Total Responses","Percentage Recommended","Percentage Not  Recommended","Breakdown of Responses"]
[null,null,null,null,null,"Extremely Likely","Likely","Neither","Unlikely","Extremely Unlikely","Don't Know"]
[null,"England",6239,0.96650104183362717,1.6509055938451676E-2,4767,1263,79,43,60,27]
[null,"Selection (excluding suppressed data)",{"$f":"SUBTOTAL(9,C13:C38)","v":6239},{"$f":"IFERROR((F12+G12)/SUM(F12:K12), \"-\")","v":0.96650104183362717},{"$f":"IFERROR((I12+J12)/SUM(F12:K12), \"-\")","v":1.6509055938451676E-2},{"$f":"SUBTOTAL(9,F13:F38)","v":4767},{"$f":"SUBTOTAL(9,G13:G38)","v":1263},79,43,60,27]
["Q72","NHS England Yorkshire & Humber",963,0.97611630321910692,1.0384215991692628E-2,730,210,10,4,6,3]
["Q74","NHS England Cumbria & North East",257,0.9688715953307393,2.3346303501945526E-2,212,37,1,1,5,1]
["Q75","NHS England Cheshire & Merseyside",110,0.97272727272727277,0,93,14,2,0,0,1]
["Q83","NHS England Greater Manchester",383,0.97389033942558745,1.5665796344647518E-2,308,65,4,1,5,0]
["Q84","NHS England Lancashire",207,0.96135265700483097,1.932367149758454E-2,160,39,3,1,3,1]
["Q76","NHS England North Midlands",373,0.97855227882037532,2.6809651474530832E-3,291,74,5,0,1,2]
["Q77","NHS England West Midlands",453,0.92494481236203085,5.0772626931567331E-2,338,81,8,10,13,3]
["Q78","NHS England Central Midlands",397,0.97984886649874059,7.556675062972292E-3,289,100,5,2,1,0]
["Q79","NHS England East",823,0.9842041312272175,3.6452004860267314E-3,654,156,7,0,3,3]
["Q80","NHS England South West",330,0.97575757575757571,6.0606060606060606E-3,254,68,4,1,1,2]
["Q81","NHS England South East",281,0.96441281138790036,1.7793594306049824E-2,212,59,4,3,2,1]
["Q82","NHS England South Central",206,0.96601941747572817,1.9417475728155338E-2,161,38,3,3,1,0]
["Q70","NHS England Wessex",464,0.97413793103448276,1.0775862068965518E-2,366,86,7,3,2,0]
["Q71","NHS England London",992,0.94254032258064513,3.125E-2,699,236,16,14,17,10]

{"sheet":"Trusts Q1","index":3,"n_rows":146,"n_cols":19,"rows_kept":146,"cut":false,"hidden":false,"merged":[[8,6,8,11],[8,12,8,18],[8,0,9,0],[8,1,9,1],[8,2,9,2],[8,3,9,3],[8,4,9,4],[8,5,9,5]]}
[]
[]
[]
[]
[]
[null,"   Sort data by:           "]
[]
[]
["Region (Geo) Code","Trust Code","Trust Name","Total Responses","Percentage Recommended","Percentage Not  Recommended","Breakdown of Responses",null,null,null,null,null,"Mode of Collection"]
[null,null,null,null,null,null,"Extremely Likely","Likely","Neither","Unlikely","Extremely Unlikely","Don't Know","SMS/Text / Smartphone App","Electronic tablet/kiosk at point of discharge","Paper / postcard at point of discharge","Paper survey sent to the patients home","Telephone survey once patient is home","Online survey once patient is home","Other"]
[null,null,"England",6239,0.96650104183362717,1.6509055938451676E-2,4767,1263,79,43,60,27,257,783,4806,252,1,90,50]
[null,null,"Selection (excluding suppressed data)",{"$f":"SUBTOTAL(9,D13:D299)","v":6239},{"$f":"IFERROR((G12+H12)/SUM(G12:L12), \"-\")","v":0.96653671215074721},{"$f":"IFERROR((J12+K12)/SUM(G12:L12), \"-\")","v":1.6244314489928524E-2},{"$f":"SUBTOTAL(9,G13:G299)","v":4702},{"$f":"SUBTOTAL(9,H13:H299)","v":1248},79,43,57,27,257,782,4726,252,1,88,50]
["Q70","RBD","DORSET COUNTY HOSPITAL NHS FOUNDATION TRUST",20,0.95,0.05,14,5,0,0,1,0,20,0,0,0,0,0,0]
["Q70","RN5","HAMPSHIRE HOSPITALS NHS FOUNDATION TRUST",49,1,0,42,7,0,0,0,0,1,0,48,0,0,0,0]
["Q70","R1F","ISLE OF WIGHT NHS TRUST",0,"NA","NA",0,0,0,0,0,0,0,0,0,0,0,0,0]
["Q70","RD3","POOLE HOSPITAL NHS FOUNDATION TRUST",45,0.88888888888888884,4.4444444444444446E-2,27,13,3,1,1,0,45,0,0,0,0,0,0]
["Q70","RHU","PORTSMOUTH HOSPITALS NHS TRUST",50,1,0,41,9,0,0,0,0,0,0,50,0,0,0,0]
["Q70","RDZ","THE ROYAL BOURNEMOUTH AND CHRISTCHURCH HOSPITALS NHS FOUNDATION TRUST",140,0.98571428571428577,0,117,21,2,0,0,0,0,0,140,0,0,0,0]
["Q70","RHM","UNIVERSITY HOSPITAL SOUTHAMPTON NHS FOUNDATION TRUST",160,0.97499999999999998,1.2500000000000001E-2,125,31,2,2,0,0,0,0,157,0,0,3,0]
["Q71","RF4","BARKING, HAVERING AND REDBRIDGE UNIVERSITY HOSPITALS NHS TRUST",198,0.98989898989898994,0,165,31,2,0,0,0,0,0,198,0,0,0,0]
["Q71","R1H","BARTS HEALTH NHS TRUST",52,0.86538461538461542,7.6923076923076927E-2,31,14,0,3,1,3,0,0,50,0,0,2,0]
["Q71","RQM","CHELSEA AND WESTMINSTER HOSPITAL NHS FOUNDATION TRUST",86,0.88372093023255816,0.10465116279069768,53,23,1,3,6,0,85,0,0,0,1,0,0]
["Q71","RJ6","CROYDON HEALTH SERVICES NHS TRUST",42,0.97619047619047616,2.3809523809523808E-2,35,6,0,0,1,0,0,0,42,0,0,0,0]
["Q71","RVR","EPSOM AND ST HELIER UNIVERSITY HOSPITALS NHS TRUST",10,1,0,"*","*","*","*","*","*","*","*","*","*","*","*","*"]
["Q71","RJ1","GUY'S AND ST THOMAS' NHS FOUNDATION TRUST",4,"*","*","*","*","*","*","*","*","*","*","*","*","*","*","*"]
["Q71","RQX","HOMERTON UNIVERSITY HOSPITAL NHS FOUNDATION TRUST",70,0.88571428571428568,7.1428571428571425E-2,46,16,3,2,3,0,0,28,41,0,0,1,0]
["Q71","RYJ","IMPERIAL COLLEGE HEALTHCARE NHS TRUST",76,0.93421052631578949,2.6315789473684209E-2,40,31,2,0,2,1,2,42,32,0,0,0,0]
["Q71","RJZ","KING'S COLLEGE HOSPITAL NHS FOUNDATION TRUST",32,0.875,6.25E-2,25,3,2,1,1,0,0,30,2,0,0,0,0]
["Q71","RAX","KINGSTON HOSPITAL NHS FOUNDATION TRUST",54,0.98148148148148151,0,37,16,1,0,0,0,0,54,0,0,0,0,0]
["Q71","RJ2","LEWISHAM AND GREENWICH NHS TRUST",108,0.95370370370370372,1.8518518518518517E-2,69,34,2,1,1,1,0,0,108,0,0,0,0]
["Q71","R1K","LONDON NORTH WEST HEALTHCARE NHS TRUST",38,0.94736842105263153,2.6315789473684209E-2,32,4,0,1,0,1,0,6,32,0,0,0,0]
["Q71","RAP","NORTH MIDDLESEX UNIVERSITY HOSPITAL NHS TRUST",33,0.96969696969696972,0,22,10,0,0,0,1,0,33,0,0,0,0,0]
["Q71","RAL","ROYAL FREE LONDON NHS FOUNDATION TRUST",17,0.94117647058823528,5.8823529411764705E-2,11,5,0,1,0,0,0,0,17,0,0,0,0]
["Q71","RJ7","ST GEORGE'S UNIVERSITY HOSPITALS NHS FOUNDATION TRUST",0,"NA","NA",0,0,0,0,0,0,0,0,0,0,0,0,0]
["Q71","RAS","THE HILLINGDON HOSPITALS NHS FOUNDATION TRUST",103,0.95145631067961167,0,69,29,2,0,0,3,0,0,103,0,0,0,0]
["Q71","RKE","THE WHITTINGTON HOSPITAL NHS TRUST",24,1,0,21,3,0,0,0,0,0,13,11,0,0,0,0]
["Q71","RRV","UNIVERSITY COLLEGE LONDON HOSPITALS NHS FOUNDATION TRUST",45,0.88888888888888884,8.8888888888888892E-2,31,9,1,2,2,0,0,0,43,0,0,2,0]
["Q72","RCF","AIREDALE NHS FOUNDATION TRUST",9,1,0,7,2,0,0,0,0,0,1,8,0,0,0,0]
["Q72","RFF","BARNSLEY HOSPITAL NHS FOUNDATION TRUST",57,1,0,48,9,0,0,0,0,0,0,57,0,0,0,0]
["Q72","RAE","BRADFORD TEACHING HOSPITALS NHS FOUNDATION TRUST",12,1,0,9,3,0,0,0,0,0,0,12,0,0,0,0]
["Q72","RWY","CALDERDALE AND HUDDERSFIELD NHS FOUNDATION TRUST",188,0.97340425531914898,5.3191489361702126E-3,139,44,4,0,1,0,6,182,0,0,0,0,0]
["Q72","RP5","DONCASTER AND BASSETLAW TEACHING HOSPITALS NHS FOUNDATION TRUST",133,0.97744360902255634,1.5037593984962405E-2,102,28,1,0,2,0,0,0,133,0,0,0,0]
["Q72","RCD","HARROGATE AND DISTRICT NHS FOUNDATION TRUST",22,1,0,21,1,0,0,0,0,0,0,22,0,0,0,0]
["Q72","RWA","HULL AND EAST YORKSHIRE HOSPITALS NHS TRUST",44,0.97727272727272729,0,28,15,1,0,0,0,0,0,44,0,0,0,0]
["Q72","RR8","LEEDS TEACHING HOSPITALS NHS TRUST",21,0.95238095238095233,0,14,6,0,0,0,1,0,0,21,0,0,0,0]
["Q72","RXF","MID YORKSHIRE HOSPITALS NHS TRUST",127,0.96850393700787396,2.3622047244094488E-2,95,28,1,1,2,0,0,0,126,0,0,1,0]
["Q72","RJL","NORTHERN LINCOLNSHIRE AND GOOLE NHS FOUNDATION TRUST",52,0.94230769230769229,3.8461538461538464E-2,39,10,1,1,1,0,0,0,0,52,0,0,0]
["Q72","RHQ","SHEFFIELD TEACHING HOSPITALS NHS FOUNDATION TRUST",85,0.96470588235294119,2.3529411764705882E-2,55,27,0,2,0,1,0,0,85,0,0,0,0]
["Q72","RFR","THE ROTHERHAM NHS FOUNDATION TRUST",89,1,0,75,14,0,0,0,0,0,0,89,0,0,0,0]
["Q72","RCB","YORK TEACHING HOSPITAL NHS FOUNDATION TRUST",124,0.97580645161290325,0,98,23,2,0,0,1,0,0,124,0,0,0,0]
["Q74","RLN","CITY HOSPITALS SUNDERLAND NHS FOUNDATION TRUST",10,0.8,0.2,"*","*","*","*","*","*","*","*","*","*","*","*","*"]
["Q74","RXP","COUNTY DURHAM AND DARLINGTON NHS FOUNDATION TRUST",21,1,0,15,6,0,0,0,0,0,0,21,0,0,0,0]
["Q74","RR7","GATESHEAD HEALTH NHS FOUNDATION TRUST",1,"*","*","*","*","*","*","*","*","*","*","*","*","*","*","*"]
["Q74","RNL","NORTH CUMBRIA UNIVERSITY HOSPITALS NHS TRUST",25,0.92,0.08,23,0,0,0,2,0,0,0,25,0,0,0,0]
["Q74","RVW","NORTH TEES AND HARTLEPOOL NHS FOUNDATION TRUST",23,1,0,21,2,0,0,0,0,0,0,23,0,0,0,0]
["Q74","RTF","NORTHUMBRIA HEALTHCARE NHS FOUNDATION TRUST",108,0.98148148148148151,1.8518518518518517E-2,96,10,0,1,1,0,0,0,108,0,0,0,0]
["Q74","RTR","SOUTH TEES HOSPITALS NHS FOUNDATION TRUST",13,0.92307692307692313,0,12,0,1,0,0,0,0,0,13,0,0,0,0]
["Q74","RE9","SOUTH TYNESIDE NHS FOUNDATION TRUST",36,0.97222222222222221,0,22,13,0,0,0,1,0,0,36,0,0,0,0]
["Q74","RTD","THE NEWCASTLE UPON TYNE HOSPITALS NHS FOUNDATION TRUST",0,"NA","NA",0,0,0,0,0,0,0,0,0,0,0,0,0]
["Q74","RTX","UNIVERSITY HOSPITALS OF MORECAMBE BAY NHS FOUNDATION TRUST",20,1,0,17,3,0,0,0,0,0,0,20,0,0,0,0]
["Q75","RJR","COUNTESS OF CHESTER HOSPITAL NHS FOUNDATION TRUST",11,1,0,10,1,0,0,0,0,11,0,0,0,0,0,0]
["Q75","RJN","EAST CHESHIRE NHS TRUST",11,1,0,10,1,0,0,0,0,0,0,11,0,0,0,0]
["Q75","REP","LIVERPOOL WOMEN'S NHS FOUNDATION TRUST",1,"*","*","*","*","*","*","*","*","*","*","*","*","*","*","*"]
["Q75","RBT","MID CHESHIRE HOSPITALS NHS FOUNDATION TRUST",31,0.967741935483871,0,22,8,0,0,0,1,0,0,31,0,0,0,0]
["Q75","RVY","SOUTHPORT AND ORMSKIRK HOSPITAL NHS TRUST",1,"*","*","*","*","*","*","*","*","*","*","*","*","*","*","*"]
["Q75","RBN","ST HELENS AND KNOWSLEY HOSPITAL SERVICES NHS TRUST",9,0.88888888888888884,0,7,1,1,0,0,0,0,0,9,0,0,0,0]
["Q75","RWW","WARRINGTON AND HALTON HOSPITALS NHS FOUNDATION TRUST",45,0.97777777777777775,0,41,3,1,0,0,0,0,0,45,0,0,0,0]
["Q75","RBL","WIRRAL UNIVERSITY TEACHING HOSPITAL NHS FOUNDATION TRUST",1,"*","*","*","*","*","*","*","*","*","*","*","*","*","*","*"]
["Q76","RJF","BURTON HOSPITALS NHS FOUNDATION TRUST",8,1,0,7,1,0,0,0,0,0,0,8,0,0,0,0]
["Q76","RFS","CHESTERFIELD ROYAL HOSPITAL NHS FOUNDATION TRUST",48,1,0,38,10,0,0,0,0,0,0,48,0,0,0,0]
["Q76","RTG","DERBY TEACHING HOSPITALS NHS FOUNDATION TRUST",60,0.96666666666666667,1.6666666666666666E-2,43,15,0,0,1,1,2,0,58,0,0,0,0]
["Q76","RX1","NOTTINGHAM UNIVERSITY HOSPITALS NHS TRUST",151,0.99337748344370858,0,133,17,1,0,0,0,0,0,151,0,0,0,0]
["Q76","RK5","SHERWOOD FOREST HOSPITALS NHS FOUNDATION TRUST",66,0.9242424242424242,0,37,24,4,0,0,1,0,0,66,0,0,0,0]
["Q76","RXW","SHREWSBURY AND TELFORD HOSPITAL NHS TRUST",6,1,0,5,1,0,0,0,0,0,0,6,0,0,0,0]
["Q76","RJE","UNIVERSITY HOSPITALS OF NORTH MIDLANDS NHS TRUST",34,1,0,28,6,0,0,0,0,0,0,34,0,0,0,0]
["Q77","RQ3","BIRMINGHAM WOMEN'S AND CHILDREN'S NHS FOUNDATION TRUST",118,0.81355932203389836,0.11864406779661017,73,23,5,8,6,3,0,0,118,0,0,0,0]
["Q77","RLT","GEORGE ELIOT HOSPITAL NHS TRUST",33,0.96969696969696972,3.0303030303030304E-2,28,4,0,0,1,0,18,0,15,0,0,0,0]
["Q77","RR1","HEART OF ENGLAND NHS FOUNDATION TRUST",12,1,0,11,1,0,0,0,0,0,0,12,0,0,0,0]
["Q77","RXK","SANDWELL AND WEST BIRMINGHAM HOSPITALS NHS TRUST",8,0.875,0,3,4,1,0,0,0,0,8,0,0,0,0,0]
["Q77","RJC","SOUTH WARWICKSHIRE NHS FOUNDATION TRUST",13,1,0,6,7,0,0,0,0,0,0,13,0,0,0,0]
["Q77","RNA","THE DUDLEY GROUP NHS FOUNDATION TRUST",48,1,0,44,4,0,0,0,0,0,0,48,0,0,0,0]
["Q77","RL4","THE ROYAL WOLVERHAMPTON NHS TRUST",22,1,0,20,2,0,0,0,0,0,0,22,0,0,0,0]
["Q77","RKB","UNIVERSITY HOSPITALS COVENTRY AND WARWICKSHIRE NHS TRUST",67,0.95522388059701491,4.4776119402985072E-2,50,14,0,2,1,0,1,0,66,0,0,0,0]
["Q77","RBK","WALSALL HEALTHCARE NHS TRUST",15,0.66666666666666663,0.26666666666666666,8,2,1,0,4,0,15,0,0,0,0,0,0]
["Q77","RWP","WORCESTERSHIRE ACUTE HOSPITALS NHS TRUST",96,0.97916666666666663,1.0416666666666666E-2,76,18,1,0,1,0,0,0,96,0,0,0,0]
["Q77","RLQ","WYE VALLEY NHS TRUST",21,1,0,19,2,0,0,0,0,0,0,21,0,0,0,0]
["Q78","RC1","BEDFORD HOSPITAL NHS TRUST",0,"NA","NA",0,0,0,0,0,0,0,0,0,0,0,0,0]
["Q78","RWH","EAST AND NORTH HERTFORDSHIRE NHS TRUST",27,0.92592592592592593,0,17,8,2,0,0,0,0,27,0,0,0,0,0]
["Q78","RNQ","KETTERING GENERAL HOSPITAL NHS FOUNDATION TRUST",21,1,0,16,5,0,0,0,0,0,0,21,0,0,0,0]
["Q78","RC9","LUTON AND DUNSTABLE UNIVERSITY HOSPITAL NHS FOUNDATION TRUST",63,0.98412698412698407,0,41,21,1,0,0,0,0,55,8,0,0,0,0]
["Q78","RD8","MILTON KEYNES UNIVERSITY HOSPITAL NHS FOUNDATION TRUST",39,0.94871794871794868,0,20,17,2,0,0,0,0,0,38,0,0,1,0]
["Q78","RNS","NORTHAMPTON GENERAL HOSPITAL NHS TRUST",70,1,0,57,13,0,0,0,0,0,0,0,0,0,70,0]
["Q78","RWD","UNITED LINCOLNSHIRE HOSPITALS NHS TRUST",23,1,0,20,3,0,0,0,0,0,0,23,0,0,0,0]
["Q78","RWE","UNIVERSITY HOSPITALS OF LEICESTER NHS TRUST",135,0.98518518518518516,1.4814814814814815E-2,106,27,0,2,0,0,0,36,99,0,0,0,0]
["Q78","RWG","WEST HERTFORDSHIRE HOSPITALS NHS TRUST",19,0.94736842105263153,5.2631578947368418E-2,12,6,0,0,1,0,0,0,19,0,0,0,0]
["Q79","RDD","BASILDON AND THURROCK UNIVERSITY HOSPITALS NHS FOUNDATION TRUST",83,1,0,70,13,0,0,0,0,0,0,83,0,0,0,0]
["Q79","RGT","CAMBRIDGE UNIVERSITY HOSPITALS NHS FOUNDATION TRUST",37,0.97297297297297303,0,18,18,0,0,0,1,0,36,1,0,0,0,0]
["Q79","RDE","COLCHESTER HOSPITAL UNIVERSITY NHS FOUNDATION TRUST",0,"NA","NA",0,0,0,0,0,0,0,0,0,0,0,0,0]
["Q79","RGQ","IPSWICH HOSPITAL NHS TRUST",95,0.97894736842105268,1.0526315789473684E-2,82,11,1,0,1,0,0,94,0,0,0,1,0]
["Q79","RGP","JAMES PAGET UNIVERSITY HOSPITALS NHS FOUNDATION TRUST",40,1,0,39,1,0,0,0,0,0,0,40,0,0,0,0]
["Q79","RQ8","MID ESSEX HOSPITAL SERVICES NHS TRUST",0,"NA","NA",0,0,0,0,0,0,0,0,0,0,0,0,0]
["Q79","RM1","NORFOLK AND NORWICH UNIVERSITY HOSPITALS NHS FOUNDATION TRUST",31,1,0,"*","*","*","*","*","*","*","*","*","*","*","*","*"]
["Q79","RGN","NORTH WEST ANGLIA NHS FOUNDATION TRUST",266,0.98496240601503759,0,218,44,3,0,0,1,0,0,266,0,0,0,0]
["Q79","RAJ","SOUTHEND UNIVERSITY HOSPITAL NHS FOUNDATION TRUST",3,"*","*","*","*","*","*","*","*","*","*","*","*","*","*","*"]
["Q79","RQW","THE PRINCESS ALEXANDRA HOSPITAL NHS TRUST",50,1,0,38,12,0,0,0,0,0,0,0,0,0,0,50]
["Q79","RCX","THE QUEEN ELIZABETH HOSPITAL, KING'S LYNN, NHS FOUNDATION TRUST",185,0.97297297297297303,1.0810810810810811E-2,139,41,2,0,2,1,0,0,185,0,0,0,0]
["Q79","RGR","WEST SUFFOLK NHS FOUNDATION TRUST",33,0.96969696969696972,0,22,10,1,0,0,0,0,33,0,0,0,0,0]
["Q80","RVJ","NORTH BRISTOL NHS TRUST",8,1,0,"*","*","*","*","*","*","*","*","*","*","*","*","*"]
["Q80","RBZ","NORTHERN DEVON HEALTHCARE NHS TRUST",1,"*","*","*","*","*","*","*","*","*","*","*","*","*","*","*"]
["Q80","RK9","PLYMOUTH HOSPITALS NHS TRUST",93,0.989247311827957,0,69,23,0,0,0,1,0,0,93,0,0,0,0]
["Q80","REF","ROYAL CORNWALL HOSPITALS NHS TRUST",21,0.95238095238095233,0,15,5,1,0,0,0,0,0,21,0,0,0,0]
["Q80","RH8","ROYAL DEVON AND EXETER NHS FOUNDATION TRUST",0,"NA","NA",0,0,0,0,0,0,0,0,0,0,0,0,0]
["Q80","RBA","TAUNTON AND SOMERSET NHS FOUNDATION TRUST",10,0.8,0.1,8,0,1,0,1,0,0,0,10,0,0,0,0]
["Q80","RA9","TORBAY AND SOUTH DEVON NHS FOUNDATION TRUST",12,1,0,11,1,0,0,0,0,0,0,12,0,0,0,0]
["Q80","RA7","UNIVERSITY HOSPITALS BRISTOL NHS FOUNDATION TRUST",75,0.96,0,62,10,2,0,0,1,0,0,75,0,0,0,0]
["Q80","RA3","WESTON AREA HEALTH NHS TRUST",11,1,0,9,2,0,0,0,0,0,0,11,0,0,0,0]
["Q80","RA4","YEOVIL DISTRICT HOSPITAL NHS FOUNDATION TRUST",99,0.98989898989898994,1.0101010101010102E-2,74,24,0,1,0,0,0,0,99,0,0,0,0]
["Q81","RTK","ASHFORD AND ST PETER'S HOSPITALS NHS FOUNDATION TRUST",0,"NA","NA",0,0,0,0,0,0,0,0,0,0,0,0,0]
["Q81","RXH","BRIGHTON AND SUSSEX UNIVERSITY HOSPITALS NHS TRUST",5,1,0,5,0,0,0,0,0,0,0,5,0,0,0,0]
["Q81","RN7","DARTFORD AND GRAVESHAM NHS TRUST",1,"*","*","*","*","*","*","*","*","*","*","*","*","*","*","*"]
["Q81","RVV","EAST KENT HOSPITALS UNIVERSITY NHS FOUNDATION TRUST",5,1,0,3,2,0,0,0,0,0,0,0,5,0,0,0]
["Q81","RXC","EAST SUSSEX HEALTHCARE NHS TRUST",9,0.88888888888888884,0,7,1,1,0,0,0,0,8,0,0,0,1,0]
["Q81","RDU","FRIMLEY HEALTH NHS FOUNDATION TRUST",124,0.95161290322580649,3.2258064516129031E-2,98,20,2,2,2,0,0,0,122,0,0,2,0]
["Q81","RWF","MAIDSTONE AND TUNBRIDGE WELLS NHS TRUST",18,0.94444444444444442,0,13,4,0,0,0,1,0,0,16,0,0,2,0]
["Q81","RPA","MEDWAY NHS FOUNDATION TRUST",53,1,0,48,5,0,0,0,0,0,0,0,53,0,0,0]
["Q81","RA2","ROYAL SURREY COUNTY HOSPITAL NHS FOUNDATION TRUST",44,0.95454545454545459,2.2727272727272728E-2,23,19,1,1,0,0,2,0,42,0,0,0,0]
["Q81","RTP","SURREY AND SUSSEX HEALTHCARE NHS TRUST",20,1,0,13,7,0,0,0,0,0,0,20,0,0,0,0]
["Q81","RYR","WESTERN SUSSEX HOSPITALS NHS FOUNDATION TRUST",2,"*","*","*","*","*","*","*","*","*","*","*","*","*","*","*"]
["Q82","RXQ","BUCKINGHAMSHIRE HEALTHCARE NHS TRUST",28,1,0,25,3,0,0,0,0,0,0,28,0,0,0,0]
["Q82","RTE","GLOUCESTERSHIRE HOSPITALS NHS FOUNDATION TRUST",0,"NA","NA",0,0,0,0,0,0,0,0,0,0,0,0,0]
["Q82","RN3","GREAT WESTERN HOSPITALS NHS FOUNDATION TRUST",7,0.8571428571428571,0.14285714285714285,"*","*","*","*","*","*","*","*","*","*","*","*","*"]
["Q82","RTH","OXFORD UNIVERSITY HOSPITALS NHS FOUNDATION TRUST",91,0.96703296703296704,1.098901098901099E-2,63,25,2,1,0,0,0,0,91,0,0,0,0]
["Q82","RHW","ROYAL BERKSHIRE NHS FOUNDATION TRUST",54,0.94444444444444442,3.7037037037037035E-2,45,6,1,2,0,0,0,0,52,0,0,2,0]
["Q82","RD1","ROYAL UNITED HOSPITALS BATH NHS FOUNDATION TRUST",24,1,0,20,4,0,0,0,0,0,0,24,0,0,0,0]
["Q82","RNZ","SALISBURY NHS FOUNDATION TRUST",2,"*","*","*","*","*","*","*","*","*","*","*","*","*","*","*"]
["Q83","RMC","BOLTON NHS FOUNDATION TRUST",142,0.9859154929577465,7.0422535211267607E-3,111,29,1,0,1,0,0,0,0,142,0,0,0]
["Q83","RY2","BRIDGEWATER COMMUNITY HEALTHCARE NHS FOUNDATION TRUST",14,1,0,13,1,0,0,0,0,0,0,14,0,0,0,0]
["Q83","RW3","CENTRAL MANCHESTER UNIVERSITY HOSPITALS NHS FOUNDATION TRUST",101,0.99009900990099009,9.9009900990099011E-3,88,12,0,1,0,0,0,28,73,0,0,0,0]
["Q83","RW6","PENNINE ACUTE HOSPITALS NHS TRUST",20,0.9,0.1,16,2,0,0,2,0,0,0,20,0,0,0,0]
["Q83","RWJ","STOCKPORT NHS FOUNDATION TRUST",75,0.96,1.3333333333333334E-2,54,18,2,0,1,0,0,0,75,0,0,0,0]
["Q83","RMP","TAMESIDE AND GLOSSOP INTEGRATED CARE NHS FOUNDATION TRUST",20,0.95,0,16,3,1,0,0,0,0,0,20,0,0,0,0]
["Q83","RM2","UNIVERSITY HOSPITAL OF SOUTH MANCHESTER NHS FOUNDATION TRUST",5,0.8,0.2,4,0,0,0,1,0,0,0,5,0,0,0,0]
["Q83","RRF","WRIGHTINGTON, WIGAN AND LEIGH NHS FOUNDATION TRUST",6,1,0,6,0,0,0,0,0,2,0,4,0,0,0,0]
["Q84","RXL","BLACKPOOL TEACHING HOSPITALS NHS FOUNDATION TRUST",77,0.96103896103896103,1.2987012987012988E-2,48,26,1,1,0,1,0,68,9,0,0,0,0]
["Q84","RXR","EAST LANCASHIRE HOSPITALS NHS TRUST",83,0.98795180722891562,1.2048192771084338E-2,74,8,0,0,1,0,0,0,83,0,0,0,0]
["Q84","RXN","LANCASHIRE TEACHING HOSPITALS NHS FOUNDATION TRUST",47,0.91489361702127658,4.2553191489361701E-2,38,5,2,0,2,0,47,0,0,0,0,0,0]

{"sheet":"Sites Q1","index":4,"n_rows":223,"n_cols":14,"rows_kept":223,"cut":false,"hidden":false,"merged":[[8,6,9,6],[8,7,9,7],[8,8,8,13],[8,0,9,0],[8,1,9,1],[8,2,9,2],[8,3,9,3],[8,4,9,4],[8,5,9,5]]}
[]
[]
[]
[]
[]
[null,"   Sort data by:           "]
[]
[]
["Region (Geo) Code","Trust Code","Trust Name","Site Code","Site Name","Total Responses","Percentage Recommended","Percentage Not  Recommended","Breakdown of Responses"]
[null,null,null,null,null,null,null,null,"Extremely Likely","Likely","Neither","Unlikely","Extremely Unlikely","Don't Know"]
[null,null,null,null,"England",6239,0.96650104183362717,1.6509055938451676E-2,4767,1263,79,43,60,27]
[null,null,null,null,"Selection (excluding suppressed data)",{"$f":"SUBTOTAL(9,F13:F298)","v":6239},{"$f":"IFERROR((I12+J12)/SUM(I12:N12), \"-\")","v":0.9674355495251018},{"$f":"IFERROR((L12+M12)/SUM(I12:N12), \"-\")","v":1.6112618724559023E-2},{"$f":"SUBTOTAL(9,I13:I298)","v":4521},{"$f":"SUBTOTAL(9,J13:J298)","v":1183},74,41,54,23]
["Q70","RBD","DORSET COUNTY HOSPITAL NHS FOUNDATION TRUST","RBD01","Dorset County Hospital - RBD01",20,0.95,0.05,14,5,0,0,1,0]
["Q70","RN5","HAMPSHIRE HOSPITALS NHS FOUNDATION TRUST","RN542","Andover War Memorial Hospital - RN542",27,1,0,23,4,0,0,0,0]
["Q70","RN5","HAMPSHIRE HOSPITALS NHS FOUNDATION TRUST","RN506","Basingstoke and North Hampshire Hospital - RN506",14,1,0,14,0,0,0,0,0]
["Q70","RN5","HAMPSHIRE HOSPITALS NHS FOUNDATION TRUST","RN541","Royal Hampshire County Hospital - RN541",8,1,0,5,3,0,0,0,0]
["Q70","R1F","ISLE OF WIGHT NHS TRUST","R1F01","St Mary's Hospital - R1F01",0,"NA","NA",0,0,0,0,0,0]
["Q70","RD3","POOLE HOSPITAL NHS FOUNDATION TRUST","RD304","Poole General Hospital NHS Trust HQ - RD304",45,0.88888888888888884,4.4444444444444446E-2,27,13,3,1,1,0]
["Q70","RHU","PORTSMOUTH HOSPITALS NHS TRUST","RHU10","Gosport War Memorial Hospital - RHU10",20,1,0,17,3,0,0,0,0]
["Q70","RHU","PORTSMOUTH HOSPITALS NHS TRUST","RHU04","Petersfield Community Hospital - RHU04",4,"*","*","*","*","*","*","*","*"]
["Q70","RHU","PORTSMOUTH HOSPITALS NHS TRUST","RHU03","Queen Alexandra Hospital - RHU03",5,1,0,"*","*","*","*","*","*"]
["Q70","RHU","PORTSMOUTH HOSPITALS NHS TRUST","RHU02","St Mary's Hospital - RHU02",21,1,0,19,2,0,0,0,0]
["Q70","RDZ","THE ROYAL BOURNEMOUTH AND CHRISTCHURCH HOSPITALS NHS FOUNDATION TRUST","RDZ20","Royal Bournemouth General Hospital - RDZ20",140,0.98571428571428577,0,117,21,2,0,0,0]
["Q70","RHM","UNIVERSITY HOSPITAL SOUTHAMPTON NHS FOUNDATION TRUST","RHM12","Princess Anne Hospital - RHM12",160,0.97499999999999998,1.2500000000000001E-2,125,31,2,2,0,0]
["Q71","RF4","BARKING, HAVERING AND REDBRIDGE UNIVERSITY HOSPITALS NHS TRUST","RF4QH","Queen's Hospital - RF4QH",198,0.98989898989898994,0,165,31,2,0,0,0]
["Q71","R1H","BARTS HEALTH NHS TRUST","R1HNH","Newham General Hospital - R1HNH",23,1,0,22,1,0,0,0,0]
["Q71","R1H","BARTS HEALTH NHS TRUST","R1H12","The Royal London Hospital - R1H12",29,0.75862068965517238,0.13793103448275862,9,13,0,3,1,3]
["Q71","R1H","BARTS HEALTH NHS TRUST","R1HKH","Whipps Cross University Hospital - R1HKH",0,"NA","NA",0,0,0,0,0,0]
["Q71","RQM","CHELSEA AND WESTMINSTER HOSPITAL NHS FOUNDATION TRUST","RQM01","Chelsea and Westminster Hospital - RQM01",48,0.89583333333333337,0.10416666666666667,30,13,0,2,3,0]
["Q71","RQM","CHELSEA AND WESTMINSTER HOSPITAL NHS FOUNDATION TRUST","RQM91","West Middlesex University Hospital - RQM91",38,0.86842105263157898,0.10526315789473684,23,10,1,1,3,0]
["Q71","RJ6","CROYDON HEALTH SERVICES NHS TRUST","RJ611","Croydon University Hospital - RJ611",42,0.97619047619047616,2.3809523809523808E-2,35,6,0,0,1,0]
["Q71","RVR","EPSOM AND ST HELIER UNIVERSITY HOSPITALS NHS TRUST","RVR50","Epsom Hospital - RVR50",2,"*","*","*","*","*","*","*","*"]
["Q71","RVR","EPSOM AND ST HELIER UNIVERSITY HOSPITALS NHS TRUST","RVRXXX","Non-hospital site - RVRXXX",2,"*","*","*","*","*","*","*","*"]
["Q71","RVR","EPSOM AND ST HELIER UNIVERSITY HOSPITALS NHS TRUST","RVR05","St Helier Hospital - RVR05",6,1,0,4,2,0,0,0,0]
["Q71","RJ1","GUY'S AND ST THOMAS' NHS FOUNDATION TRUST","RJ122","St Thomas' Hospital - RJ122",4,"*","*","*","*","*","*","*","*"]
["Q71","RQX","HOMERTON UNIVERSITY HOSPITAL NHS FOUNDATION TRUST","RQXM1","Homerton University Hospital - RQXM1",70,0.88571428571428568,7.1428571428571425E-2,46,16,3,2,3,0]
["Q71","RYJ","IMPERIAL COLLEGE HEALTHCARE NHS TRUST","RYJ04","Queen Charlotte's Hospital - RYJ04",32,0.9375,3.125E-2,18,12,1,0,1,0]
["Q71","RYJ","IMPERIAL COLLEGE HEALTHCARE NHS TRUST","RYJ01","St Mary's Hospital (HQ) - RYJ01",44,0.93181818181818177,2.2727272727272728E-2,22,19,1,0,1,1]
["Q71","RJZ","KING'S COLLEGE HOSPITAL NHS FOUNDATION TRUST","RJZ01","King's College Hospital (Denmark Hill) - RJZ01",27,0.85185185185185186,7.407407407407407E-2,20,3,2,1,1,0]
["Q71","RJZ","KING'S COLLEGE HOSPITAL NHS FOUNDATION TRUST","RJZ30","Princess Royal University Hospital - RJZ30",5,1,0,5,0,0,0,0,0]
["Q71","RAX","KINGSTON HOSPITAL NHS FOUNDATION TRUST","RAX01","Kingston Hospital - RAX01",43,1,0,29,14,0,0,0,0]
["Q71","RAX","KINGSTON HOSPITAL NHS FOUNDATION TRUST","RAXXXX","Non-hospital site - RAXXXX",11,0.90909090909090906,0,8,2,1,0,0,0]
["Q71","RJ2","LEWISHAM AND GREENWICH NHS TRUST","RJ2XXX","Non-hospital site - RJ2XXX",77,0.97402597402597402,1.2987012987012988E-2,52,23,1,1,0,0]
["Q71","RJ2","LEWISHAM AND GREENWICH NHS TRUST","RJ231","Queen Elizabeth Hospital - RJ231",3,"*","*","*","*","*","*","*","*"]
["Q71","RJ2","LEWISHAM AND GREENWICH NHS TRUST","RJ224","University Hospital Lewisham - RJ224",28,0.9285714285714286,3.5714285714285712E-2,"*","*","*","*","*","*"]
["Q71","R1K","LONDON NORTH WEST HEALTHCARE NHS TRUST","R1K02","Central Middlesex Hospital - R1K02",6,0.83333333333333337,0.16666666666666666,3,2,0,1,0,0]
["Q71","R1K","LONDON NORTH WEST HEALTHCARE NHS TRUST","R1K04","Ealing Hospital - R1K04",0,"NA","NA",0,0,0,0,0,0]
["Q71","R1K","LONDON NORTH WEST HEALTHCARE NHS TRUST","R1KXXX","Non-hospital site - R1KXXX",17,0.94117647058823528,0,16,0,0,0,0,1]
["Q71","R1K","LONDON NORTH WEST HEALTHCARE NHS TRUST","R1K01","Northwick Park Hospital - R1K01",15,1,0,13,2,0,0,0,0]
["Q71","RAP","NORTH MIDDLESEX UNIVERSITY HOSPITAL NHS TRUST","RAPNM","North Middlesex Hospital - RAPNM",33,0.96969696969696972,0,22,10,0,0,0,1]
["Q71","RAL","ROYAL FREE LONDON NHS FOUNDATION TRUST","RAL26","Barnet Hospital - RAL26",9,1,0,4,5,0,0,0,0]
["Q71","RAL","ROYAL FREE LONDON NHS FOUNDATION TRUST","RAL01","Royal Free Hospital - RAL01",8,0.875,0.125,7,0,0,1,0,0]
["Q71","RJ7","ST GEORGE'S UNIVERSITY HOSPITALS NHS FOUNDATION TRUST","RJ701","St George's Hospital (Tooting) - RJ701",0,"NA","NA",0,0,0,0,0,0]
["Q71","RAS","THE HILLINGDON HOSPITALS NHS FOUNDATION TRUST","RAS01","Hillingdon Hospital - RAS01",103,0.95145631067961167,0,69,29,2,0,0,3]
["Q71","RKE","THE WHITTINGTON HOSPITAL NHS TRUST","RKEXXX","Non-hospital site - RKEXXX",23,1,0,"*","*","*","*","*","*"]
["Q71","RKE","THE WHITTINGTON HOSPITAL NHS TRUST","RKEQ4","The Whittington Hospital - RKEQ4",1,"*","*","*","*","*","*","*","*"]
["Q71","RRV","UNIVERSITY COLLEGE LONDON HOSPITALS NHS FOUNDATION TRUST","RRV03","University College Hospital - RRV03",45,0.88888888888888884,8.8888888888888892E-2,31,9,1,2,2,0]
["Q72","RCF","AIREDALE NHS FOUNDATION TRUST","RCF22","Airedale General Hospital - RCF22",9,1,0,7,2,0,0,0,0]
["Q72","RFF","BARNSLEY HOSPITAL NHS FOUNDATION TRUST","RFFAA","Barnsley Hospital NHS Foundation Trust HQ - RFFAA",57,1,0,48,9,0,0,0,0]
["Q72","RAE","BRADFORD TEACHING HOSPITALS NHS FOUNDATION TRUST","RAE01","Bradford Royal Infirmary - RAE01",12,1,0,9,3,0,0,0,0]
["Q72","RAE","BRADFORD TEACHING HOSPITALS NHS FOUNDATION TRUST","RAEXXX","Non-hospital site - RAEXXX",0,"NA","NA",0,0,0,0,0,0]
["Q72","RWY","CALDERDALE AND HUDDERSFIELD NHS FOUNDATION TRUST","RWYXXX","Non-hospital site - RWYXXX",188,0.97340425531914898,5.3191489361702126E-3,139,44,4,0,1,0]
["Q72","RP5","DONCASTER AND BASSETLAW TEACHING HOSPITALS NHS FOUNDATION TRUST","RP5BA","Bassetlaw Hospital - RP5BA",97,0.98969072164948457,1.0309278350515464E-2,75,21,0,0,1,0]
["Q72","RP5","DONCASTER AND BASSETLAW TEACHING HOSPITALS NHS FOUNDATION TRUST","RP5DR","Doncaster Royal Infirmary - RP5DR",5,1,0,2,3,0,0,0,0]
["Q72","RP5","DONCASTER AND BASSETLAW TEACHING HOSPITALS NHS FOUNDATION TRUST","RP5XXX","Non-hospital site - RP5XXX",31,0.93548387096774188,3.2258064516129031E-2,25,4,1,0,1,0]
["Q72","RCD","HARROGATE AND DISTRICT NHS FOUNDATION TRUST","RCD01","Harrogate District Hospital - RCD01",8,1,0,8,0,0,0,0,0]
["Q72","RCD","HARROGATE AND DISTRICT NHS FOUNDATION TRUST","RCDXXX","Non-hospital site - RCDXXX",14,1,0,13,1,0,0,0,0]
["Q72","RWA","HULL AND EAST YORKSHIRE HOSPITALS NHS TRUST","RWA01","Hull Royal Infirmary - RWA01",44,0.97727272727272729,0,28,15,1,0,0,0]
["Q72","RR8","LEEDS TEACHING HOSPITALS NHS TRUST","RR801","Leeds General Infirmary - RR801",2,"*","*","*","*","*","*","*","*"]
["Q72","RR8","LEEDS TEACHING HOSPITALS NHS TRUST","RR8XXX","Non-Hospital Site - RR8XXX",19,0.94736842105263153,0,"*","*","*","*","*","*"]
["Q72","RR8","LEEDS TEACHING HOSPITALS NHS TRUST","RR813","St James's University Hospital - RR813",0,"NA","NA",0,0,0,0,0,0]
["Q72","RXF","MID YORKSHIRE HOSPITALS NHS TRUST","RXF10","Dewsbury and District Hospital - RXF10",7,0.7142857142857143,0.2857142857142857,4,1,0,1,1,0]
["Q72","RXF","MID YORKSHIRE HOSPITALS NHS TRUST","RXFXXX","Non-hospital site - RXFXXX",85,1,0,68,17,0,0,0,0]
["Q72","RXF","MID YORKSHIRE HOSPITALS NHS TRUST","RXF05","Pinderfields General Hospital - RXF05",14,0.9285714285714286,0,10,3,1,0,0,0]
["Q72","RXF","MID YORKSHIRE HOSPITALS NHS TRUST","RXF03","Pontefract General Infirmary - RXF03",21,0.95238095238095233,4.7619047619047616E-2,13,7,0,0,1,0]
["Q72","RJL","NORTHERN LINCOLNSHIRE AND GOOLE NHS FOUNDATION TRUST","RJL30","Diana, Princess Of Wales Hospital - RJL30",3,"*","*","*","*","*","*","*","*"]
["Q72","RJL","NORTHERN LINCOLNSHIRE AND GOOLE NHS FOUNDATION TRUST","RJL32","Scunthorpe General Hospital - RJL32",49,0.97959183673469385,2.0408163265306121E-2,"*","*","*","*","*","*"]
["Q72","RHQ","SHEFFIELD TEACHING HOSPITALS NHS FOUNDATION TRUST","RHQHH","Royal Hallamshire Hospital - RHQHH",85,0.96470588235294119,2.3529411764705882E-2,55,27,0,2,0,1]
["Q72","RFR","THE ROTHERHAM NHS FOUNDATION TRUST","RFRPA","Rotherham District General Hospital - RFRPA",89,1,0,75,14,0,0,0,0]
["Q72","RCB","YORK TEACHING HOSPITAL NHS FOUNDATION TRUST","RCBCA","Scarborough General Hospital - RCBCA",81,0.98765432098765427,0,62,18,1,0,0,0]
["Q72","RCB","YORK TEACHING HOSPITAL NHS FOUNDATION TRUST","RCB55","York Hospital - RCB55",43,0.95348837209302328,0,36,5,1,0,0,1]
["Q74","RLN","CITY HOSPITALS SUNDERLAND NHS FOUNDATION TRUST","RLNGL","Sunderland Royal Hospital - RLNGL",10,0.8,0.2,"*","*","*","*","*","*"]
["Q74","RXP","COUNTY DURHAM AND DARLINGTON NHS FOUNDATION TRUST","RXPCP","University Hospital Of North Durham - RXPCP",21,1,0,15,6,0,0,0,0]
["Q74","RR7","GATESHEAD HEALTH NHS FOUNDATION TRUST","RR7EN","Queen Elizabeth Hospital - RR7EN",1,"*","*","*","*","*","*","*","*"]
["Q74","RNL","NORTH CUMBRIA UNIVERSITY HOSPITALS NHS TRUST","RNLXXX","Non-hospital site - RNLXXX",25,0.92,0.08,23,0,0,0,2,0]
["Q74","RVW","NORTH TEES AND HARTLEPOOL NHS FOUNDATION TRUST","RVWXXX","Non-hospital site - RVWXXX",23,1,0,21,2,0,0,0,0]
["Q74","RTF","NORTHUMBRIA HEALTHCARE NHS FOUNDATION TRUST","RTFXXX","Non-hospital site - RTFXXX",108,0.98148148148148151,1.8518518518518517E-2,96,10,0,1,1,0]
["Q74","RTR","SOUTH TEES HOSPITALS NHS FOUNDATION TRUST","RTRXXX","Non-hospital site - RTRXXX",13,0.92307692307692313,0,12,0,1,0,0,0]
["Q74","RE9","SOUTH TYNESIDE NHS FOUNDATION TRUST","RE9GA","South Tyneside District Hospital - RE9GA",36,0.97222222222222221,0,22,13,0,0,0,1]
["Q74","RTD","THE NEWCASTLE UPON TYNE HOSPITALS NHS FOUNDATION TRUST","RTD02","The Royal Victoria Infirmary - RTD02",0,"NA","NA",0,0,0,0,0,0]
["Q74","RTX","UNIVERSITY HOSPITALS OF MORECAMBE BAY NHS FOUNDATION TRUST","RTXBU","Furness General Hospital - RTXBU",8,1,0,7,1,0,0,0,0]
["Q74","RTX","UNIVERSITY HOSPITALS OF MORECAMBE BAY NHS FOUNDATION TRUST","RTX02","Royal Lancaster Infirmary - RTX02",12,1,0,10,2,0,0,0,0]
["Q75","RJR","COUNTESS OF CHESTER HOSPITAL NHS FOUNDATION TRUST","RJR05","Countess Of Chester Hospital - RJR05",11,1,0,10,1,0,0,0,0]
["Q75","RJR","COUNTESS OF CHESTER HOSPITAL NHS FOUNDATION TRUST","RJRXXX","Non-hospital site - RJRXXX",0,"NA","NA",0,0,0,0,0,0]
["Q75","RJN","EAST CHESHIRE NHS TRUST","RJN71","Macclesfield District General Hospital - RJN71",11,1,0,10,1,0,0,0,0]
["Q75","REP","LIVERPOOL WOMEN'S NHS FOUNDATION TRUST","REP01","Liverpool Womens Hospital - REP01",1,"*","*","*","*","*","*","*","*"]
["Q75","RBT","MID CHESHIRE HOSPITALS NHS FOUNDATION TRUST","RBT20","Leighton Hospital - RBT20",31,0.967741935483871,0,22,8,0,0,0,1]
["Q75","RVY","SOUTHPORT AND ORMSKIRK HOSPITAL NHS TRUST","RVYXXX","Non-hospital site - RVYXXX",1,"*","*","*","*","*","*","*","*"]
["Q75","RBN","ST HELENS AND KNOWSLEY HOSPITAL SERVICES NHS TRUST","RBN01","Whiston Hospital - RBN01",9,0.88888888888888884,0,7,1,1,0,0,0]
["Q75","RWW","WARRINGTON AND HALTON HOSPITALS NHS FOUNDATION TRUST","RWWWH","Warrington Hospital - RWWWH",45,0.97777777777777775,0,41,3,1,0,0,0]
["Q75","RBL","WIRRAL UNIVERSITY TEACHING HOSPITAL NHS FOUNDATION TRUST","RBL14","Arrowe Park Hospital - RBL14",1,"*","*","*","*","*","*","*","*"]
["Q76","RJF","BURTON HOSPITALS NHS FOUNDATION TRUST","RJF02","Queen's Hospital, Burton Upon Trent - RJF02",8,1,0,7,1,0,0,0,0]
["Q76","RFS","CHESTERFIELD ROYAL HOSPITAL NHS FOUNDATION TRUST","RFSDA","Chesterfield Royal Hospital - RFSDA",48,1,0,38,10,0,0,0,0]
["Q76","RTG","DERBY TEACHING HOSPITALS NHS FOUNDATION TRUST","RTGFG","Royal Derby Hospital - RTGFG",60,0.96666666666666667,1.6666666666666666E-2,43,15,0,0,1,1]
["Q76","RX1","NOTTINGHAM UNIVERSITY HOSPITALS NHS TRUST","RX1XXX","Non-hospital site - RX1XXX",151,0.99337748344370858,0,133,17,1,0,0,0]
["Q76","RK5","SHERWOOD FOREST HOSPITALS NHS FOUNDATION TRUST","RK5BC","King's Mill Hospital - RK5BC",66,0.9242424242424242,0,37,24,4,0,0,1]
["Q76","RXW","SHREWSBURY AND TELFORD HOSPITAL NHS TRUST","RXWXXX","Non-hospital site - RXWXXX",6,1,0,5,1,0,0,0,0]
["Q76","RJE","UNIVERSITY HOSPITALS OF NORTH MIDLANDS NHS TRUST","RJE09","County Hospital - RJE09",13,1,0,12,1,0,0,0,0]
["Q76","RJE","UNIVERSITY HOSPITALS OF NORTH MIDLANDS NHS TRUST","RJE01","Royal Stoke University Hospital - RJE01",21,1,0,16,5,0,0,0,0]
["Q77","RQ3","BIRMINGHAM WOMEN'S AND CHILDREN'S NHS FOUNDATION TRUST","RQ370","Birmingham Women's Hospital - RQ370",118,0.81355932203389836,0.11864406779661017,73,23,5,8,6,3]
["Q77","RLT","GEORGE ELIOT HOSPITAL NHS TRUST","RLT01","George Eliot Hospital - Acute Services - RLT01",33,0.96969696969696972,3.0303030303030304E-2,28,4,0,0,1,0]
["Q77","RR1","HEART OF ENGLAND NHS FOUNDATION TRUST","RR105","Good Hope Hospital - RR105",12,1,0,11,1,0,0,0,0]
["Q77","RR1","HEART OF ENGLAND NHS FOUNDATION TRUST","RR101","Heartlands Hospital - RR101",0,"NA","NA",0,0,0,0,0,0]
["Q77","RR1","HEART OF ENGLAND NHS FOUNDATION TRUST","RR109","Solihull Hospital - RR109",0,"NA","NA",0,0,0,0,0,0]
["Q77","RXK","SANDWELL AND WEST BIRMINGHAM HOSPITALS NHS TRUST","RXK02","City Hospital - RXK02",8,0.875,0,3,4,1,0,0,0]
["Q77","RXK","SANDWELL AND WEST BIRMINGHAM HOSPITALS NHS TRUST","RXK01","Sandwell General Hospital - RXK01",0,"NA","NA",0,0,0,0,0,0]
["Q77","RJC","SOUTH WARWICKSHIRE NHS FOUNDATION TRUST","RJCXXX","Non-hospital site - RJCXXX",13,1,0,6,7,0,0,0,0]
["Q77","RNA","THE DUDLEY GROUP NHS FOUNDATION TRUST","RNAXXX","Non-hospital site - RNAXXX",28,1,0,28,0,0,0,0,0]
["Q77","RNA","THE DUDLEY GROUP NHS FOUNDATION TRUST","RNA01","Russells Hall Hospital - RNA01",20,1,0,16,4,0,0,0,0]
["Q77","RL4","THE ROYAL WOLVERHAMPTON NHS TRUST","RL403","New Cross Hospital - RL403",22,1,0,20,2,0,0,0,0]
["Q77","RKB","UNIVERSITY HOSPITALS COVENTRY AND WARWICKSHIRE NHS TRUST","RKB03","Hospital Of St Cross - RKB03",0,"NA","NA",0,0,0,0,0,0]
["Q77","RKB","UNIVERSITY HOSPITALS COVENTRY AND WARWICKSHIRE NHS TRUST","RKBXXX","Non-hospital site - RKBXXX",47,0.95744680851063835,4.2553191489361701E-2,35,10,0,2,0,0]
["Q77","RKB","UNIVERSITY HOSPITALS COVENTRY AND WARWICKSHIRE NHS TRUST","RKB01","University Hospital (Coventry) - RKB01",20,0.95,0.05,15,4,0,0,1,0]
["Q77","RBK","WALSALL HEALTHCARE NHS TRUST","RBK02","Manor Hospital - RBK02",15,0.66666666666666663,0.26666666666666666,8,2,1,0,4,0]
["Q77","RWP","WORCESTERSHIRE ACUTE HOSPITALS NHS TRUST","RWP01","Alexandra Hospital - RWP01",40,1,0,31,9,0,0,0,0]
["Q77","RWP","WORCESTERSHIRE ACUTE HOSPITALS NHS TRUST","RWP31","Kidderminster Hospital - RWP31",21,0.95238095238095233,0,17,3,1,0,0,0]
["Q77","RWP","WORCESTERSHIRE ACUTE HOSPITALS NHS TRUST","RWP50","Worcestershire Royal Hospital - RWP50",35,0.97142857142857142,2.8571428571428571E-2,28,6,0,0,1,0]
["Q77","RLQ","WYE VALLEY NHS TRUST","RLQ01","Hereford County Hospital - RLQ01",21,1,0,19,2,0,0,0,0]
["Q78","RC1","BEDFORD HOSPITAL NHS TRUST","RC110","Bedford Hospital South Wing - RC110",0,"NA","NA",0,0,0,0,0,0]
["Q78","RWH","EAST AND NORTH HERTFORDSHIRE NHS TRUST","RWH01","Lister Hospital - RWH01",27,0.92592592592592593,0,17,8,2,0,0,0]
["Q78","RWH","EAST AND NORTH HERTFORDSHIRE NHS TRUST","RWHXXX","Non-hospital site - RWHXXX",0,"NA","NA",0,0,0,0,0,0]
["Q78","RNQ","KETTERING GENERAL HOSPITAL NHS FOUNDATION TRUST","RNQ51","Kettering General Hospital - RNQ51",21,1,0,16,5,0,0,0,0]
["Q78","RC9","LUTON AND DUNSTABLE UNIVERSITY HOSPITAL NHS FOUNDATION TRUST","RC971","Luton and Dunstable Hospital - RC971",63,0.98412698412698407,0,41,21,1,0,0,0]
["Q78","RD8","MILTON KEYNES UNIVERSITY HOSPITAL NHS FOUNDATION TRUST","RD816","Milton Keynes Hospital - RD816",39,0.94871794871794868,0,20,17,2,0,0,0]
["Q78","RNS","NORTHAMPTON GENERAL HOSPITAL NHS TRUST","RNS01","Northampton General Hospital (Acute) - RNS01",70,1,0,57,13,0,0,0,0]
["Q78","RWD","UNITED LINCOLNSHIRE HOSPITALS NHS TRUST","RWDLP","Grantham and District Hospital - RWDLP",0,"NA","NA",0,0,0,0,0,0]
["Q78","RWD","UNITED LINCOLNSHIRE HOSPITALS NHS TRUST","RWDDA","Lincoln County Hospital - RWDDA",23,1,0,20,3,0,0,0,0]
["Q78","RWD","UNITED LINCOLNSHIRE HOSPITALS NHS TRUST","RWDXXX","Non-hospital site - RWDXXX",0,"NA","NA",0,0,0,0,0,0]
["Q78","RWD","UNITED LINCOLNSHIRE HOSPITALS NHS TRUST","RWDLA","Pilgrim Hospital - RWDLA",0,"NA","NA",0,0,0,0,0,0]
["Q78","RWE","UNIVERSITY HOSPITALS OF LEICESTER NHS TRUST","RWEAK","Leicester General Hospital - RWEAK",6,1,0,3,3,0,0,0,0]
["Q78","RWE","UNIVERSITY HOSPITALS OF LEICESTER NHS TRUST","RWEAA","Leicester Royal Infirmary - RWEAA",20,0.95,0.05,15,4,0,1,0,0]
["Q78","RWE","UNIVERSITY HOSPITALS OF LEICESTER NHS TRUST","RWEXXX","Non-hospital site - RWEXXX",109,0.99082568807339455,9.1743119266055051E-3,88,20,0,1,0,0]
["Q78","RWG","WEST HERTFORDSHIRE HOSPITALS NHS TRUST","RWG02","Watford General Hospital - RWG02",19,0.94736842105263153,5.2631578947368418E-2,12,6,0,0,1,0]
["Q79","RDD","BASILDON AND THURROCK UNIVERSITY HOSPITALS NHS FOUNDATION TRUST","RDDH0","Basildon University Hospital - RDDH0",83,1,0,70,13,0,0,0,0]
["Q79","RGT","CAMBRIDGE UNIVERSITY HOSPITALS NHS FOUNDATION TRUST","RGT32","Rosie Hospital - RGT32",37,0.97297297297297303,0,18,18,0,0,0,1]
["Q79","RDE","COLCHESTER HOSPITAL UNIVERSITY NHS FOUNDATION TRUST","RDEE4","Colchester General Hospital - RDEE4",0,"NA","NA",0,0,0,0,0,0]
["Q79","RGQ","IPSWICH HOSPITAL NHS TRUST","RGQ02","The Ipswich Hospital NHS Trust - RGQ02",95,0.97894736842105268,1.0526315789473684E-2,82,11,1,0,1,0]
["Q79","RGP","JAMES PAGET UNIVERSITY HOSPITALS NHS FOUNDATION TRUST","RGP75","James Paget University Hospital - RGP75",40,1,0,39,1,0,0,0,0]
["Q79","RQ8","MID ESSEX HOSPITAL SERVICES NHS TRUST","RQ8L0","Broomfield Hospital - RQ8L0",0,"NA","NA",0,0,0,0,0,0]
["Q79","RM1","NORFOLK AND NORWICH UNIVERSITY HOSPITALS NHS FOUNDATION TRUST","RM102","Norfolk and Norwich University Hospital - RM102",31,1,0,"*","*","*","*","*","*"]
["Q79","RGN","NORTH WEST ANGLIA NHS FOUNDATION TRUST","RGN90","Hinchingbrooke Hospital - RGN90",11,1,0,9,2,0,0,0,0]
["Q79","RGN","NORTH WEST ANGLIA NHS FOUNDATION TRUST","RGN80","Peterborough City Hospital - RGN80",255,0.98431372549019602,0,209,42,3,0,0,1]
["Q79","RAJ","SOUTHEND UNIVERSITY HOSPITAL NHS FOUNDATION TRUST","RAJ01","Southend Hospital - RAJ01",3,"*","*","*","*","*","*","*","*"]
["Q79","RQW","THE PRINCESS ALEXANDRA HOSPITAL NHS TRUST","RQWG0","Princess Alexandra Hospital - RQWG0",50,1,0,38,12,0,0,0,0]
["Q79","RCX","THE QUEEN ELIZABETH HOSPITAL, KING'S LYNN, NHS FOUNDATION TRUST","RCXXXX","Non-hospital site - RCXXXX",37,1,0,32,5,0,0,0,0]
["Q79","RCX","THE QUEEN ELIZABETH HOSPITAL, KING'S LYNN, NHS FOUNDATION TRUST","RCX66","North Cambridgeshire Hospital - RCX66",10,1,0,7,3,0,0,0,0]
["Q79","RCX","THE QUEEN ELIZABETH HOSPITAL, KING'S LYNN, NHS FOUNDATION TRUST","RCX70","The Queen Elizabeth Hospital - RCX70",138,0.96376811594202894,1.4492753623188406E-2,100,33,2,0,2,1]
["Q79","RGR","WEST SUFFOLK NHS FOUNDATION TRUST","RGR50","West Suffolk Hospital - RGR50",33,0.96969696969696972,0,22,10,1,0,0,0]
["Q80","RVJ","NORTH BRISTOL NHS TRUST","RVJ01","Southmead Hospital - RVJ01",8,1,0,"*","*","*","*","*","*"]
["Q80","RBZ","NORTHERN DEVON HEALTHCARE NHS TRUST","RBZ12","North Devon District Hospital - RBZ12",1,"*","*","*","*","*","*","*","*"]
["Q80","RK9","PLYMOUTH HOSPITALS NHS TRUST","RK950","Derriford Hospital - RK950",10,1,0,7,3,0,0,0,0]
["Q80","RK9","PLYMOUTH HOSPITALS NHS TRUST","RK9XXX","Non-hospital site - RK9XXX",83,0.98795180722891562,0,62,20,0,0,0,1]
["Q80","REF","ROYAL CORNWALL HOSPITALS NHS TRUST","REF12","Royal Cornwall Hospital (Treliske) - REF12",21,0.95238095238095233,0,15,5,1,0,0,0]
["Q80","RH8","ROYAL DEVON AND EXETER NHS FOUNDATION TRUST","RH854","Honiton Hospital - RH 854",0,"NA","NA",0,0,0,0,0,0]
["Q80","RH8","ROYAL DEVON AND EXETER NHS FOUNDATION TRUST","RH833","Okehampton Community Hospital - RH833",0,"NA","NA",0,0,0,0,0,0]
["Q80","RH8","ROYAL DEVON AND EXETER NHS FOUNDATION TRUST","RH801","Royal Devon and Exeter Hospital (Wonford) - RH801",0,"NA","NA",0,0,0,0,0,0]
["Q80","RH8","ROYAL DEVON AND EXETER NHS FOUNDATION TRUST","RH853","Tiverton and District Hospital - RH853",0,"NA","NA",0,0,0,0,0,0]
["Q80","RBA","TAUNTON AND SOMERSET NHS FOUNDATION TRUST","RBAC3","Bridgwater Hospital - RBAC3",0,"NA","NA",0,0,0,0,0,0]
["Q80","RBA","TAUNTON AND SOMERSET NHS FOUNDATION TRUST","RBA11","Musgrove Park Hospital - RBA11",6,0.66666666666666663,0.16666666666666666,"*","*","*","*","*","*"]
["Q80","RBA","TAUNTON AND SOMERSET NHS FOUNDATION TRUST","RBAXXX","Non-hospital site - RBAXXX",4,"*","*","*","*","*","*","*","*"]
["Q80","RA9","TORBAY AND SOUTH DEVON NHS FOUNDATION TRUST","RA901","Torbay Hospital - RA901",12,1,0,11,1,0,0,0,0]
["Q80","RA7","UNIVERSITY HOSPITALS BRISTOL NHS FOUNDATION TRUST","RA707","St Michael's Hospital - RA707",75,0.96,0,62,10,2,0,0,1]
["Q80","RA3","WESTON AREA HEALTH NHS TRUST","RA301","Weston General Hospital - RA301",11,1,0,9,2,0,0,0,0]
["Q80","RA4","YEOVIL DISTRICT HOSPITAL NHS FOUNDATION TRUST","RA430","Yeovil District Hospital - RA430",99,0.98989898989898994,1.0101010101010102E-2,74,24,0,1,0,0]
["Q81","RTK","ASHFORD AND ST PETER'S HOSPITALS NHS FOUNDATION TRUST","RTK01","St Peter's Hospital - RTK01",0,"NA","NA",0,0,0,0,0,0]
["Q81","RXH","BRIGHTON AND SUSSEX UNIVERSITY HOSPITALS NHS TRUST","RXH01","Royal Sussex County Hospital - RXH01",5,1,0,5,0,0,0,0,0]
["Q81","RN7","DARTFORD AND GRAVESHAM NHS TRUST","RN707","Darent Valley Hospital - RN707",1,"*","*","*","*","*","*","*","*"]
["Q81","RVV","EAST KENT HOSPITALS UNIVERSITY NHS FOUNDATION TRUST","RVVXXX","Non-hospital site - RVVXXX",5,1,0,3,2,0,0,0,0]
["Q81","RXC","EAST SUSSEX HEALTHCARE NHS TRUST","RXC01","Conquest Hospital - RXC01",1,"*","*","*","*","*","*","*","*"]
["Q81","RXC","EAST SUSSEX HEALTHCARE NHS TRUST","RXC14","Crowborough Birthing Centre - RXC14",0,"NA","NA",0,0,0,0,0,0]
["Q81","RXC","EAST SUSSEX HEALTHCARE NHS TRUST","RXC02","Eastbourne District General Hospital - RXC02",8,1,0,"*","*","*","*","*","*"]
["Q81","RXC","EAST SUSSEX HEALTHCARE NHS TRUST","RXCXXX","Non-hospital site - RXCXXX",0,"NA","NA",0,0,0,0,0,0]
["Q81","RDU","FRIMLEY HEALTH NHS FOUNDATION TRUST","RDU01","Frimley Park Hospital - RDU01",68,1,0,57,11,0,0,0,0]
["Q81","RDU","FRIMLEY HEALTH NHS FOUNDATION TRUST","RDUXXX","Non-hospital site - RDUXXX",13,0.92307692307692313,7.6923076923076927E-2,11,1,0,0,1,0]
["Q81","RDU","FRIMLEY HEALTH NHS FOUNDATION TRUST","RDU50","Wexham Park Hospital - RDU50",43,0.88372093023255816,6.9767441860465115E-2,30,8,2,2,1,0]
["Q81","RWF","MAIDSTONE AND TUNBRIDGE WELLS NHS TRUST","RWF03","Maidstone District General Hospital - RWF03",0,"NA","NA",0,0,0,0,0,0]
["Q81","RWF","MAIDSTONE AND TUNBRIDGE WELLS NHS TRUST","RWFXXX","Non-hospital site - RWFXXX",3,"*","*","*","*","*","*","*","*"]
["Q81","RWF","MAIDSTONE AND TUNBRIDGE WELLS NHS TRUST","RWFTW","The Tunbridge Wells Hospital - RWFTW",15,0.93333333333333335,0,"*","*","*","*","*","*"]
["Q81","RPA","MEDWAY NHS FOUNDATION TRUST","RPA02","Medway Maritime Hospital - RPA02",53,1,0,48,5,0,0,0,0]
["Q81","RA2","ROYAL SURREY COUNTY HOSPITAL NHS FOUNDATION TRUST","RA201","Royal Surrey County Hospital - RA201",44,0.95454545454545459,2.2727272727272728E-2,23,19,1,1,0,0]
["Q81","RTP","SURREY AND SUSSEX HEALTHCARE NHS TRUST","RTP04","East Surrey Hospital - RTP04",20,1,0,13,7,0,0,0,0]
["Q81","RYR","WESTERN SUSSEX HOSPITALS NHS FOUNDATION TRUST","RYR16","St Richard's Hospital - RYR16",1,"*","*","*","*","*","*","*","*"]
["Q81","RYR","WESTERN SUSSEX HOSPITALS NHS FOUNDATION TRUST","RYR18","Worthing Hospital - RYR18",1,"*","*","*","*","*","*","*","*"]
["Q82","RXQ","BUCKINGHAMSHIRE HEALTHCARE NHS TRUST","RXQ02","Stoke Mandeville Hospital - RXQ02",28,1,0,25,3,0,0,0,0]
["Q82","RTE","GLOUCESTERSHIRE HOSPITALS NHS FOUNDATION TRUST","RTE01","Cheltenham General Hospital - RTE01",0,"NA","NA",0,0,0,0,0,0]
["Q82","RTE","GLOUCESTERSHIRE HOSPITALS NHS FOUNDATION TRUST","RTE03","Gloucestershire Royal Hospital - RTE03",0,"NA","NA",0,0,0,0,0,0]
["Q82","RTE","GLOUCESTERSHIRE HOSPITALS NHS FOUNDATION TRUST","RTEXXX","Non-hospital site - RTEXXX",0,"NA","NA",0,0,0,0,0,0]
["Q82","RN3","GREAT WESTERN HOSPITALS NHS FOUNDATION TRUST","RN3XXX","Non-hospital site - RN3XXX",5,1,0,"*","*","*","*","*","*"]
["Q82","RN3","GREAT WESTERN HOSPITALS NHS FOUNDATION TRUST","RN325","The Great Western Hospital - RN325",2,"*","*","*","*","*","*","*","*"]
["Q82","RTH","OXFORD UNIVERSITY HOSPITALS NHS FOUNDATION TRUST","RTH08","John Radcliffe Hospital - RTH08",91,0.96703296703296704,1.098901098901099E-2,63,25,2,1,0,0]
["Q82","RHW","ROYAL BERKSHIRE NHS FOUNDATION TRUST","RHW01","Royal Berkshire Hospital - RHW01",54,0.94444444444444442,3.7037037037037035E-2,45,6,1,2,0,0]
["Q82","RD1","ROYAL UNITED HOSPITALS BATH NHS FOUNDATION TRUST","RD102","Chippenham Community Hospital -RD102",8,1,0,7,1,0,0,0,0]
["Q82","RD1","ROYAL UNITED HOSPITALS BATH NHS FOUNDATION TRUST","RD121","Frome Community Hospital  - RD121",6,1,0,"*","*","*","*","*","*"]
["Q82","RD1","ROYAL UNITED HOSPITALS BATH NHS FOUNDATION TRUST","RD129","Paulton Memorial Hospital  - RD129",0,"NA","NA",0,0,0,0,0,0]
["Q82","RD1","ROYAL UNITED HOSPITALS BATH NHS FOUNDATION TRUST","RD130","Princess Anne Wing RUH  - RD130",1,"*","*","*","*","*","*","*","*"]
["Q82","RD1","ROYAL UNITED HOSPITALS BATH NHS FOUNDATION TRUST","RD167","Shepton Mallet Community Hospital  - RD167",0,"NA","NA",0,0,0,0,0,0]
["Q82","RD1","ROYAL UNITED HOSPITALS BATH NHS FOUNDATION TRUST","RD108","Trowbridge Community Hospital  - RD108",9,1,0,7,2,0,0,0,0]
["Q82","RNZ","SALISBURY NHS FOUNDATION TRUST","RNZ02","Salisbury District Hospital - RNZ02",2,"*","*","*","*","*","*","*","*"]
["Q83","RMC","BOLTON NHS FOUNDATION TRUST","RMC01","Royal Bolton Hospital - RMC01",142,0.9859154929577465,7.0422535211267607E-3,111,29,1,0,1,0]
["Q83","RY2","BRIDGEWATER COMMUNITY HEALTHCARE NHS FOUNDATION TRUST","RY28P","Health Care Resource Centre - RY28P",5,1,0,5,0,0,0,0,0]
["Q83","RY2","BRIDGEWATER COMMUNITY HEALTHCARE NHS FOUNDATION TRUST","RY2XXX","Non-hospital site - RY2XXX",9,1,0,8,1,0,0,0,0]
["Q83","RW3","CENTRAL MANCHESTER UNIVERSITY HOSPITALS NHS FOUNDATION TRUST","RW3SM","St Mary's Hospital - RW3SM",101,0.99009900990099009,9.9009900990099011E-3,88,12,0,1,0,0]
["Q83","RW6","PENNINE ACUTE HOSPITALS NHS TRUST","RW601","Fairfield General Hospital - RW601",4,"*","*","*","*","*","*","*","*"]
["Q83","RW6","PENNINE ACUTE HOSPITALS NHS TRUST","RW604","Rochdale Infirmary - RW604",4,"*","*","*","*","*","*","*","*"]
["Q83","RW6","PENNINE ACUTE HOSPITALS NHS TRUST","RW603","Royal Oldham Hospital - RW603",12,0.83333333333333337,0.16666666666666666,9,1,0,0,2,0]
["Q83","RWJ","STOCKPORT NHS FOUNDATION TRUST","RWJ09","Stepping Hill Hospital - RWJ09",75,0.96,1.3333333333333334E-2,54,18,2,0,1,0]
["Q83","RMP","TAMESIDE AND GLOSSOP INTEGRATED CARE NHS FOUNDATION TRUST","RMP01","Tameside General Hospital - RMP01",20,0.95,0,16,3,1,0,0,0]
["Q83","RM2","UNIVERSITY HOSPITAL OF SOUTH MANCHESTER NHS FOUNDATION TRUST","RM202","Wythenshawe Hospital - RM202",5,0.8,0.2,4,0,0,0,1,0]
["Q83","RRF","WRIGHTINGTON, WIGAN AND LEIGH NHS FOUNDATION TRUST","RRF02","Royal Albert Edward Infirmary - RRF02",6,1,0,6,0,0,0,0,0]
["Q84","RXL","BLACKPOOL TEACHING HOSPITALS NHS FOUNDATION TRUST","RXL01","Blackpool Victoria Hospital - RXL01",2,"*","*","*","*","*","*","*","*"]
["Q84","RXL","BLACKPOOL TEACHING HOSPITALS NHS FOUNDATION TRUST","RXLXXX","Non-hospital site - RXLXXX",75,0.96,1.3333333333333334E-2,"*","*","*","*","*","*"]
["Q84","RXR","EAST LANCASHIRE HOSPITALS NHS TRUST","RXR20","Royal Blackburn Hospital - RXR20",83,0.98795180722891562,1.2048192771084338E-2,74,8,0,0,1,0]
["Q84","RXN","LANCASHIRE TEACHING HOSPITALS NHS FOUNDATION TRUST","RXN02","Royal Preston Hospital - RXN02",47,0.91489361702127658,4.2553191489361701E-2,38,5,2,0,2,0]

{"sheet":"Region (Geography) Q2","index":5,"n_rows":26,"n_cols":13,"rows_kept":26,"cut":false,"hidden":false,"merged":[[8,6,9,6],[8,7,8,12],[8,0,9,0],[8,1,9,1],[8,2,9,2],[8,3,9,3],[8,4,9,4],[8,5,9,5]]}
[]
[]
[]
[]
[]
[null,"   Sort data by:           "]
[]
[]
["Region (Geo) Code","Region (Geography)","Total Responses","Total Eligible","Response Rate","Percentage Recommended","Percentage Not  Recommended","Breakdown of Responses"]
[null,null,null,null,null,null,null,"Extremely Likely","Likely","Neither","Unlikely","Extremely Unlikely","Don't Know"]
[null,"England",11580,48505,0.23873827440470055,0.9635578583765112,1.0449050086355785E-2,9423,1735,152,56,65,149]
[null,"Selection (excluding suppressed data)",{"$f":"SUBTOTAL(9,C13:C40)","v":11580},{"$f":"SUBTOTAL(9,D13:D40)","v":48505},{"$f":"IFERROR(C12/D12, \"NA\")","v":0.23873827440470055},{"$f":"IFERROR((H12+I12)/SUM(H12:M12), \"-\")","v":0.9635578583765112},{"$f":"IFERROR((K12+L12)/SUM(H12:M12), \"-\")","v":1.0449050086355785E-2},{"$f":"SUBTOTAL(9,H13:H40)","v":9423},{"$f":"SUBTOTAL(9,I13:I40)","v":1735},152,56,65,149]
["Q72","NHS England Yorkshire & Humber",1415,4999,0.28305661132226445,0.94699646643109536,8.4805653710247342E-3,1145,195,17,6,6,46]
["Q74","NHS England Cumbria & North East",439,2051,0.21404193076548025,0.97722095671981779,4.5558086560364463E-3,382,47,5,2,0,3]
["Q75","NHS England Cheshire & Merseyside",339,2256,0.15026595744680851,0.98525073746312686,2.9498525073746312E-3,288,46,2,0,1,2]
["Q83","NHS England Greater Manchester",551,3085,0.17860615883306322,0.9637023593466425,1.8148820326678767E-2,460,71,8,2,8,2]
["Q84","NHS England Lancashire",292,936,0.31196581196581197,0.98630136986301364,6.8493150684931503E-3,247,41,2,0,2,0]
["Q76","NHS England North Midlands",690,2699,0.25565024082993704,0.97971014492753628,1.4492753623188406E-3,568,108,9,0,1,4]
["Q77","NHS England West Midlands",592,3816,0.15513626834381553,0.96621621621621623,8.4459459459459464E-3,506,66,8,1,4,7]
["Q78","NHS England Central Midlands",952,3350,0.28417910447761197,0.9464285714285714,1.7857142857142856E-2,717,184,20,7,10,14]
["Q79","NHS England East",939,3589,0.26163276678740599,0.9659211927582535,8.5197018104366355E-3,798,109,10,4,4,14]
["Q80","NHS England South West",400,2598,0.15396458814472672,0.98,7.4999999999999997E-3,350,42,2,2,1,3]
["Q81","NHS England South East",1484,4481,0.33117607676857846,0.97371967654986524,6.0646900269541778E-3,1269,176,8,7,2,22]
["Q82","NHS England South Central",691,2677,0.2581247665296974,0.97395079594790157,8.6830680173661367E-3,574,99,8,5,1,4]
["Q70","NHS England Wessex",595,1943,0.30622748327328875,0.97647058823529409,1.0084033613445379E-2,507,74,6,3,3,2]
["Q71","NHS England London",2201,10025,0.21955112219451373,0.94911403907314862,1.7719218537028625E-2,1612,477,47,17,22,26]

{"sheet":"Trusts Q2","index":6,"n_rows":146,"n_cols":21,"rows_kept":146,"cut":false,"hidden":false,"merged":[[8,6,9,6],[8,7,9,7],[8,8,8,13],[8,14,8,20],[8,0,9,0],[8,1,9,1],[8,2,9,2],[8,3,9,3],[8,4,9,4],[8,5,9,5]]}
[]
[]
[]
[]
[]
[null,"   Sort data by:           "]
[]
[]
["Region (Geo) Code","Trust Code","Trust Name","Total Responses","Total Eligible","Response Rate","Percentage Recommended","Percentage Not  Recommended","Breakdown of Responses",null,null,null,null,null,"Mode of Collection"]
[null,null,null,null,null,null,null,null,"Extremely Likely","Likely","Neither","Unlikely","Extremely Unlikely","Don't Know","SMS/Text / Smartphone App","Electronic tablet/kiosk at point of discharge","Paper / postcard at point of discharge","Paper survey sent to the patients home","Telephone survey once patient is home","Online survey once patient is home","Other"]
[null,null,"England",11580,48505,0.23873827440470055,0.9635578583765112,1.0449050086355785E-2,9423,1735,152,56,65,149,1094,2628,6935,562,8,177,176]
[null,null,"Selection (excluding suppressed data)",{"$f":"SUBTOTAL(9,D13:D299)","v":11580},{"$f":"SUBTOTAL(9,E13:E299)","v":48505},{"$f":"IFERROR(D12/E12, \"NA\")","v":0.23873827440470055},{"$f":"IFERROR((I12+J12)/SUM(I12:N12), \"-\")","v":0.96343056160208973},{"$f":"IFERROR((L12+M12)/SUM(I12:N12), \"-\")","v":1.0535481062255115E-2},{"$f":"SUBTOTAL(9,I13:I299)","v":9335},{"$f":"SUBTOTAL(9,J13:J299)","v":1730},151,56,65,148,1094,2617,6851,562,8,177,176]
["Q70","RBD","DORSET COUNTY HOSPITAL NHS FOUNDATION TRUST",49,156,0.3141025641025641,0.89795918367346939,6.1224489795918366E-2,40,4,1,1,2,1,49,0,0,0,0,0,0]
["Q70","RN5","HAMPSHIRE HOSPITALS NHS FOUNDATION TRUST",147,412,0.35679611650485438,0.98639455782312924,0,133,12,2,0,0,0,0,0,147,0,0,0,0]
["Q70","R1F","ISLE OF WIGHT NHS TRUST",14,92,0.15217391304347827,1,0,14,0,0,0,0,0,0,0,14,0,0,0,0]
["Q70","RD3","POOLE HOSPITAL NHS FOUNDATION TRUST",126,340,0.37058823529411766,0.97619047619047616,7.9365079365079361E-3,98,25,2,0,1,0,126,0,0,0,0,0,0]
["Q70","RHU","PORTSMOUTH HOSPITALS NHS TRUST",89,439,0.20273348519362186,0.9887640449438202,0,76,12,0,0,0,1,0,0,89,0,0,0,0]
["Q70","RDZ","THE ROYAL BOURNEMOUTH AND CHRISTCHURCH HOSPITALS NHS FOUNDATION TRUST",11,35,0.31428571428571428,1,0,11,0,0,0,0,0,0,0,11,0,0,0,0]
["Q70","RHM","UNIVERSITY HOSPITAL SOUTHAMPTON NHS FOUNDATION TRUST",159,469,0.33901918976545842,0.98113207547169812,1.2578616352201259E-2,135,21,1,2,0,0,0,0,156,0,0,3,0]
["Q71","RF4","BARKING, HAVERING AND REDBRIDGE UNIVERSITY HOSPITALS NHS TRUST",165,651,0.25345622119815669,0.96969696969696972,0,137,23,0,0,0,5,0,0,164,0,0,1,0]
["Q71","R1H","BARTS HEALTH NHS TRUST",228,1345,0.16951672862453532,0.98245614035087714,8.771929824561403E-3,178,46,1,0,2,1,0,54,166,0,0,8,0]
["Q71","RQM","CHELSEA AND WESTMINSTER HOSPITAL NHS FOUNDATION TRUST",148,823,0.17982989064398541,0.96621621621621623,2.0270270270270271E-2,124,19,2,2,1,0,126,0,22,0,0,0,0]
["Q71","RJ6","CROYDON HEALTH SERVICES NHS TRUST",79,323,0.24458204334365324,0.98734177215189878,1.2658227848101266E-2,66,12,0,1,0,0,0,0,79,0,0,0,0]
["Q71","RVR","EPSOM AND ST HELIER UNIVERSITY HOSPITALS NHS TRUST",50,425,0.11764705882352941,0.98,0.02,48,1,0,0,1,0,25,0,25,0,0,0,0]
["Q71","RJ1","GUY'S AND ST THOMAS' NHS FOUNDATION TRUST",42,490,8.5714285714285715E-2,0.97619047619047616,2.3809523809523808E-2,32,9,0,1,0,0,0,0,42,0,0,0,0]
["Q71","RQX","HOMERTON UNIVERSITY HOSPITAL NHS FOUNDATION TRUST",44,422,0.10426540284360189,1,0,40,4,0,0,0,0,0,44,0,0,0,0,0]
["Q71","RYJ","IMPERIAL COLLEGE HEALTHCARE NHS TRUST",250,747,0.33467202141900937,0.96399999999999997,8.0000000000000002E-3,176,65,6,0,2,1,0,212,38,0,0,0,0]
["Q71","RJZ","KING'S COLLEGE HOSPITAL NHS FOUNDATION TRUST",4,607,6.5897858319604614E-3,"*","*","*","*","*","*","*","*","*","*","*","*","*","*","*"]
["Q71","RAX","KINGSTON HOSPITAL NHS FOUNDATION TRUST",60,448,0.13392857142857142,0.96666666666666667,0,47,11,2,0,0,0,0,60,0,0,0,0,0]
["Q71","RJ2","LEWISHAM AND GREENWICH NHS TRUST",260,630,0.41269841269841268,0.95,7.6923076923076927E-3,185,62,9,0,2,2,0,0,260,0,0,0,0]
["Q71","R1K","LONDON NORTH WEST HEALTHCARE NHS TRUST",241,450,0.53555555555555556,0.86721991701244816,4.9792531120331947E-2,105,104,14,10,2,6,0,53,188,0,0,0,0]
["Q71","RAP","NORTH MIDDLESEX UNIVERSITY HOSPITAL NHS TRUST",154,371,0.41509433962264153,0.82467532467532467,7.1428571428571425E-2,104,23,6,2,9,10,0,154,0,0,0,0,0]
["Q71","RAL","ROYAL FREE LONDON NHS FOUNDATION TRUST",142,732,0.19398907103825136,0.971830985915493,1.4084507042253521E-2,97,41,2,0,2,0,0,0,142,0,0,0,0]
["Q71","RJ7","ST GEORGE'S UNIVERSITY HOSPITALS NHS FOUNDATION TRUST",9,400,2.2499999999999999E-2,0.88888888888888884,0,"*","*","*","*","*","*","*","*","*","*","*","*","*"]
["Q71","RAS","THE HILLINGDON HOSPITALS NHS FOUNDATION TRUST",96,350,0.2742857142857143,0.98958333333333337,0,77,18,1,0,0,0,0,0,95,0,0,1,0]
["Q71","RKE","THE WHITTINGTON HOSPITAL NHS TRUST",115,298,0.38590604026845637,0.95652173913043481,8.6956521739130436E-3,85,25,4,1,0,0,0,115,0,0,0,0,0]
["Q71","RRV","UNIVERSITY COLLEGE LONDON HOSPITALS NHS FOUNDATION TRUST",114,513,0.22222222222222221,0.99122807017543857,8.771929824561403E-3,100,13,0,0,1,0,0,0,114,0,0,0,0]
["Q72","RCF","AIREDALE NHS FOUNDATION TRUST",44,190,0.23157894736842105,0.97727272727272729,0,40,3,1,0,0,0,0,1,42,0,0,1,0]
["Q72","RFF","BARNSLEY HOSPITAL NHS FOUNDATION TRUST",52,246,0.21138211382113822,0.96153846153846156,0,45,5,2,0,0,0,0,0,52,0,0,0,0]
["Q72","RAE","BRADFORD TEACHING HOSPITALS NHS FOUNDATION TRUST",77,483,0.15942028985507245,1,0,72,5,0,0,0,0,0,4,73,0,0,0,0]
["Q72","RWY","CALDERDALE AND HUDDERSFIELD NHS FOUNDATION TRUST",233,451,0.51662971175166295,0.79399141630901282,0,149,36,5,0,0,43,0,233,0,0,0,0,0]
["Q72","RP5","DONCASTER AND BASSETLAW TEACHING HOSPITALS NHS FOUNDATION TRUST",203,403,0.50372208436724564,0.99507389162561577,0,158,44,1,0,0,0,0,0,203,0,0,0,0]
["Q72","RCD","HARROGATE AND DISTRICT NHS FOUNDATION TRUST",20,135,0.14814814814814814,1,0,19,1,0,0,0,0,0,0,20,0,0,0,0]
["Q72","RWA","HULL AND EAST YORKSHIRE HOSPITALS NHS TRUST",29,434,6.6820276497695855E-2,0.96551724137931039,0,24,4,0,0,0,1,0,0,29,0,0,0,0]
["Q72","RR8","LEEDS TEACHING HOSPITALS NHS TRUST",249,772,0.32253886010362692,0.94377510040160639,3.614457831325301E-2,204,31,4,4,5,1,163,0,86,0,0,0,0]
["Q72","RXF","MID YORKSHIRE HOSPITALS NHS TRUST",177,428,0.4135514018691589,0.98305084745762716,5.6497175141242938E-3,148,26,1,1,0,1,0,0,176,0,0,1,0]
["Q72","RJL","NORTHERN LINCOLNSHIRE AND GOOLE NHS FOUNDATION TRUST",38,337,0.11275964391691394,1,0,35,3,0,0,0,0,0,0,0,38,0,0,0]
["Q72","RHQ","SHEFFIELD TEACHING HOSPITALS NHS FOUNDATION TRUST",135,562,0.2402135231316726,0.97777777777777775,7.4074074074074077E-3,114,18,2,1,0,0,0,0,133,0,0,2,0]
["Q72","RFR","THE ROTHERHAM NHS FOUNDATION TRUST",61,206,0.29611650485436891,0.98360655737704916,1.6393442622950821E-2,55,5,0,0,1,0,0,0,61,0,0,0,0]
["Q72","RCB","YORK TEACHING HOSPITAL NHS FOUNDATION TRUST",97,352,0.27556818181818182,0.98969072164948457,0,82,14,1,0,0,0,0,0,97,0,0,0,0]
["Q74","RLN","CITY HOSPITALS SUNDERLAND NHS FOUNDATION TRUST",42,223,0.18834080717488788,1,0,40,2,0,0,0,0,0,0,42,0,0,0,0]
["Q74","RXP","COUNTY DURHAM AND DARLINGTON NHS FOUNDATION TRUST",33,176,0.1875,1,0,30,3,0,0,0,0,0,0,33,0,0,0,0]
["Q74","RR7","GATESHEAD HEALTH NHS FOUNDATION TRUST",44,126,0.34920634920634919,0.93181818181818177,2.2727272727272728E-2,35,6,2,1,0,0,0,13,31,0,0,0,0]
["Q74","RNL","NORTH CUMBRIA UNIVERSITY HOSPITALS NHS TRUST",62,202,0.30693069306930693,0.9838709677419355,0,48,13,1,0,0,0,0,0,62,0,0,0,0]
["Q74","RVW","NORTH TEES AND HARTLEPOOL NHS FOUNDATION TRUST",17,209,8.1339712918660281E-2,0.94117647058823528,5.8823529411764705E-2,13,3,0,1,0,0,0,0,17,0,0,0,0]
["Q74","RTF","NORTHUMBRIA HEALTHCARE NHS FOUNDATION TRUST",31,179,0.17318435754189945,1,0,29,2,0,0,0,0,0,0,31,0,0,0,0]
["Q74","RTR","SOUTH TEES HOSPITALS NHS FOUNDATION TRUST",21,341,6.1583577712609971E-2,1,0,21,0,0,0,0,0,0,0,21,0,0,0,0]
["Q74","RE9","SOUTH TYNESIDE NHS FOUNDATION TRUST",21,92,0.22826086956521738,0.90476190476190477,0,19,0,0,0,0,2,0,0,21,0,0,0,0]
["Q74","RTD","THE NEWCASTLE UPON TYNE HOSPITALS NHS FOUNDATION TRUST",157,492,0.31910569105691056,0.98726114649681529,0,138,17,1,0,0,1,0,0,157,0,0,0,0]
["Q74","RTX","UNIVERSITY HOSPITALS OF MORECAMBE BAY NHS FOUNDATION TRUST",11,11,1,0.90909090909090906,0,9,1,1,0,0,0,0,0,11,0,0,0,0]
["Q75","RJR","COUNTESS OF CHESTER HOSPITAL NHS FOUNDATION TRUST",42,231,0.18181818181818182,0.95238095238095233,0,32,8,2,0,0,0,28,0,0,14,0,0,0]
["Q75","RJN","EAST CHESHIRE NHS TRUST",11,135,8.1481481481481488E-2,1,0,"*","*","*","*","*","*","*","*","*","*","*","*","*"]
["Q75","REP","LIVERPOOL WOMEN'S NHS FOUNDATION TRUST",1,675,1.4814814814814814E-3,"*","*","*","*","*","*","*","*","*","*","*","*","*","*","*"]
["Q75","RBT","MID CHESHIRE HOSPITALS NHS FOUNDATION TRUST",16,227,7.0484581497797363E-2,1,0,14,2,0,0,0,0,0,0,16,0,0,0,0]
["Q75","RVY","SOUTHPORT AND ORMSKIRK HOSPITAL NHS TRUST",22,207,0.10628019323671498,1,0,16,6,0,0,0,0,0,10,12,0,0,0,0]
["Q75","RBN","ST HELENS AND KNOWSLEY HOSPITAL SERVICES NHS TRUST",39,327,0.11926605504587157,0.97435897435897434,0,33,5,0,0,0,1,0,0,39,0,0,0,0]
["Q75","RWW","WARRINGTON AND HALTON HOSPITALS NHS FOUNDATION TRUST",54,210,0.25714285714285712,0.96296296296296291,1.8518518518518517E-2,50,2,0,0,1,1,0,0,54,0,0,0,0]
["Q75","RBL","WIRRAL UNIVERSITY TEACHING HOSPITAL NHS FOUNDATION TRUST",154,244,0.63114754098360659,1,0,132,22,0,0,0,0,0,0,154,0,0,0,0]
["Q76","RJF","BURTON HOSPITALS NHS FOUNDATION TRUST",94,233,0.40343347639484978,0.98936170212765961,0,87,6,1,0,0,0,0,0,94,0,0,0,0]
["Q76","RFS","CHESTERFIELD ROYAL HOSPITAL NHS FOUNDATION TRUST",39,203,0.19211822660098521,0.84615384615384615,0,25,8,3,0,0,3,0,39,0,0,0,0,0]
["Q76","RTG","DERBY TEACHING HOSPITALS NHS FOUNDATION TRUST",243,440,0.55227272727272725,0.97530864197530864,4.11522633744856E-3,178,59,4,0,1,1,0,0,243,0,0,0,0]
["Q76","RX1","NOTTINGHAM UNIVERSITY HOSPITALS NHS TRUST",142,677,0.20974889217134415,1,0,119,23,0,0,0,0,0,0,3,0,0,139,0]
["Q76","RK5","SHERWOOD FOREST HOSPITALS NHS FOUNDATION TRUST",71,283,0.25088339222614842,0.9859154929577465,0,61,9,1,0,0,0,0,5,66,0,0,0,0]
["Q76","RXW","SHREWSBURY AND TELFORD HOSPITAL NHS TRUST",49,363,0.13498622589531681,1,0,48,1,0,0,0,0,0,0,49,0,0,0,0]
["Q76","RJE","UNIVERSITY HOSPITALS OF NORTH MIDLANDS NHS TRUST",52,500,0.104,1,0,50,2,0,0,0,0,0,0,52,0,0,0,0]
["Q77","RQ3","BIRMINGHAM WOMEN'S AND CHILDREN'S NHS FOUNDATION TRUST",1,647,1.5455950540958269E-3,"*","*","*","*","*","*","*","*","*","*","*","*","*","*","*"]
["Q77","RLT","GEORGE ELIOT HOSPITAL NHS TRUST",76,161,0.47204968944099379,0.97368421052631582,1.3157894736842105E-2,68,6,1,0,1,0,64,0,12,0,0,0,0]
["Q77","RR1","HEART OF ENGLAND NHS FOUNDATION TRUST",21,517,4.0618955512572531E-2,0.95238095238095233,0,"*","*","*","*","*","*","*","*","*","*","*","*","*"]
["Q77","RXK","SANDWELL AND WEST BIRMINGHAM HOSPITALS NHS TRUST",50,460,0.10869565217391304,0.82,0.04,18,23,4,1,1,3,0,50,0,0,0,0,0]
["Q77","RJC","SOUTH WARWICKSHIRE NHS FOUNDATION TRUST",28,226,0.12389380530973451,0.9642857142857143,0,22,5,0,0,0,1,0,0,28,0,0,0,0]
["Q77","RNA","THE DUDLEY GROUP NHS FOUNDATION TRUST",124,378,0.32804232804232802,0.99193548387096775,0,113,10,0,0,0,1,0,0,124,0,0,0,0]
["Q77","RL4","THE ROYAL WOLVERHAMPTON NHS TRUST",49,370,0.13243243243243244,1,0,49,0,0,0,0,0,0,0,48,0,0,1,0]
["Q77","RKB","UNIVERSITY HOSPITALS COVENTRY AND WARWICKSHIRE NHS TRUST",67,500,0.13400000000000001,0.9850746268656716,1.4925373134328358E-2,58,8,0,0,1,0,2,0,65,0,0,0,0]
["Q77","RBK","WALSALL HEALTHCARE NHS TRUST",22,226,9.7345132743362831E-2,0.95454545454545459,4.5454545454545456E-2,20,1,0,0,1,0,13,0,9,0,0,0,0]
["Q77","RWP","WORCESTERSHIRE ACUTE HOSPITALS NHS TRUST",88,201,0.43781094527363185,1,0,85,3,0,0,0,0,0,0,88,0,0,0,0]
["Q77","RLQ","WYE VALLEY NHS TRUST",66,130,0.50769230769230766,0.93939393939393945,0,52,10,2,0,0,2,0,66,0,0,0,0,0]
["Q78","RC1","BEDFORD HOSPITAL NHS TRUST",38,73,0.52054794520547942,0.97368421052631582,2.6315789473684209E-2,32,5,0,0,1,0,38,0,0,0,0,0,0]
["Q78","RWH","EAST AND NORTH HERTFORDSHIRE NHS TRUST",214,413,0.51815980629539948,0.98130841121495327,0,160,50,3,0,0,1,0,214,0,0,0,0,0]
["Q78","RNQ","KETTERING GENERAL HOSPITAL NHS FOUNDATION TRUST",43,292,0.14726027397260275,1,0,39,4,0,0,0,0,0,0,43,0,0,0,0]
["Q78","RC9","LUTON AND DUNSTABLE UNIVERSITY HOSPITAL NHS FOUNDATION TRUST",33,408,8.0882352941176475E-2,0.93939393939393945,0,20,11,2,0,0,0,0,11,22,0,0,0,0]
["Q78","RD8","MILTON KEYNES UNIVERSITY HOSPITAL NHS FOUNDATION TRUST",7,262,2.6717557251908396E-2,1,0,7,0,0,0,0,0,0,0,7,0,0,0,0]
["Q78","RNS","NORTHAMPTON GENERAL HOSPITAL NHS TRUST",23,358,6.4245810055865923E-2,1,0,22,1,0,0,0,0,0,0,18,0,0,5,0]
["Q78","RWD","UNITED LINCOLNSHIRE HOSPITALS NHS TRUST",15,438,3.4246575342465752E-2,1,0,12,3,0,0,0,0,0,0,15,0,0,0,0]
["Q78","RWE","UNIVERSITY HOSPITALS OF LEICESTER NHS TRUST",472,726,0.65013774104683197,0.92161016949152541,3.1779661016949151E-2,346,89,9,7,8,13,0,472,0,0,0,0,0]
["Q78","RWG","WEST HERTFORDSHIRE HOSPITALS NHS TRUST",107,380,0.28157894736842104,0.93457943925233644,9.3457943925233638E-3,79,21,6,0,1,0,0,0,106,0,0,1,0]
["Q79","RDD","BASILDON AND THURROCK UNIVERSITY HOSPITALS NHS FOUNDATION TRUST",19,147,0.12925170068027211,0.94736842105263153,0,15,3,1,0,0,0,0,0,19,0,0,0,0]
["Q79","RGT","CAMBRIDGE UNIVERSITY HOSPITALS NHS FOUNDATION TRUST",289,440,0.65681818181818186,0.96539792387543255,1.0380622837370242E-2,233,46,5,1,2,2,0,288,1,0,0,0,0]
["Q79","RDE","COLCHESTER HOSPITAL UNIVERSITY NHS FOUNDATION TRUST",39,272,0.14338235294117646,0.94871794871794868,0,30,7,2,0,0,0,0,0,39,0,0,0,0]
["Q79","RGQ","IPSWICH HOSPITAL NHS TRUST",108,294,0.36734693877551022,0.98148148148148151,1.8518518518518517E-2,91,15,0,1,1,0,0,108,0,0,0,0,0]
["Q79","RGP","JAMES PAGET UNIVERSITY HOSPITALS NHS FOUNDATION TRUST",26,171,0.15204678362573099,1,0,26,0,0,0,0,0,0,0,26,0,0,0,0]
["Q79","RQ8","MID ESSEX HOSPITAL SERVICES NHS TRUST",32,269,0.11895910780669144,0.90625,9.375E-2,26,3,0,2,1,0,28,0,0,0,4,0,0]
["Q79","RM1","NORFOLK AND NORWICH UNIVERSITY HOSPITALS NHS FOUNDATION TRUST",30,473,6.3424947145877375E-2,1,0,30,0,0,0,0,0,0,28,2,0,0,0,0]
["Q79","RGN","NORTH WEST ANGLIA NHS FOUNDATION TRUST",149,555,0.26846846846846845,0.97986577181208057,0,135,11,1,0,0,2,0,0,148,0,0,1,0]
["Q79","RAJ","SOUTHEND UNIVERSITY HOSPITAL NHS FOUNDATION TRUST",10,249,4.0160642570281124E-2,0.9,0,9,0,1,0,0,0,1,0,9,0,0,0,0]
["Q79","RQW","THE PRINCESS ALEXANDRA HOSPITAL NHS TRUST",176,305,0.57704918032786889,0.94886363636363635,0,148,19,0,0,0,9,0,0,0,0,0,0,176]
["Q79","RCX","THE QUEEN ELIZABETH HOSPITAL, KING'S LYNN, NHS FOUNDATION TRUST",30,179,0.16759776536312848,0.96666666666666667,0,26,3,0,0,0,1,0,0,29,0,0,1,0]
["Q79","RGR","WEST SUFFOLK NHS FOUNDATION TRUST",31,235,0.13191489361702127,1,0,29,2,0,0,0,0,0,0,31,0,0,0,0]
["Q80","RVJ","NORTH BRISTOL NHS TRUST",83,528,0.1571969696969697,0.96385542168674698,2.4096385542168676E-2,75,5,1,1,1,0,81,0,2,0,0,0,0]
["Q80","RBZ","NORTHERN DEVON HEALTHCARE NHS TRUST",3,118,2.5423728813559324E-2,"*","*","*","*","*","*","*","*","*","*","*","*","*","*","*"]
["Q80","RK9","PLYMOUTH HOSPITALS NHS TRUST",131,328,0.39939024390243905,0.99236641221374045,0,117,13,0,0,0,1,0,67,63,0,0,1,0]
["Q80","REF","ROYAL CORNWALL HOSPITALS NHS TRUST",47,321,0.14641744548286603,1,0,40,7,0,0,0,0,0,0,47,0,0,0,0]
["Q80","RH8","ROYAL DEVON AND EXETER NHS FOUNDATION TRUST",1,324,3.0864197530864196E-3,"*","*","*","*","*","*","*","*","*","*","*","*","*","*","*"]
["Q80","RBA","TAUNTON AND SOMERSET NHS FOUNDATION TRUST",19,268,7.0895522388059698E-2,0.94736842105263153,5.2631578947368418E-2,16,2,0,1,0,0,0,0,19,0,0,0,0]
["Q80","RA9","TORBAY AND SOUTH DEVON NHS FOUNDATION TRUST",10,170,5.8823529411764705E-2,1,0,9,1,0,0,0,0,0,0,10,0,0,0,0]
["Q80","RA7","UNIVERSITY HOSPITALS BRISTOL NHS FOUNDATION TRUST",96,411,0.23357664233576642,0.96875,0,81,12,1,0,0,2,0,0,96,0,0,0,0]
["Q80","RA3","WESTON AREA HEALTH NHS TRUST",7,19,0.36842105263157893,1,0,6,1,0,0,0,0,0,0,7,0,0,0,0]
["Q80","RA4","YEOVIL DISTRICT HOSPITAL NHS FOUNDATION TRUST",3,111,2.7027027027027029E-2,"*","*","*","*","*","*","*","*","*","*","*","*","*","*","*"]
["Q81","RTK","ASHFORD AND ST PETER'S HOSPITALS NHS FOUNDATION TRUST",22,332,6.6265060240963861E-2,0.95454545454545459,0,19,2,0,0,0,1,0,0,22,0,0,0,0]
["Q81","RXH","BRIGHTON AND SUSSEX UNIVERSITY HOSPITALS NHS TRUST",95,425,0.22352941176470589,0.96842105263157896,1.0526315789473684E-2,80,12,2,0,1,0,95,0,0,0,0,0,0]
["Q81","RN7","DARTFORD AND GRAVESHAM NHS TRUST",89,333,0.26726726726726729,1,0,73,16,0,0,0,0,0,0,89,0,0,0,0]
["Q81","RVV","EAST KENT HOSPITALS UNIVERSITY NHS FOUNDATION TRUST",358,590,0.60677966101694913,0.97765363128491622,1.11731843575419E-2,314,36,0,4,0,4,0,0,0,358,0,0,0]
["Q81","RXC","EAST SUSSEX HEALTHCARE NHS TRUST",113,261,0.43295019157088122,0.98230088495575218,8.8495575221238937E-3,83,28,0,0,1,1,0,112,0,0,0,1,0]
["Q81","RDU","FRIMLEY HEALTH NHS FOUNDATION TRUST",204,766,0.26631853785900783,0.97549019607843135,4.9019607843137254E-3,180,19,3,1,0,1,0,0,203,0,0,1,0]
["Q81","RWF","MAIDSTONE AND TUNBRIDGE WELLS NHS TRUST",204,456,0.44736842105263158,0.92647058823529416,0,172,17,2,0,0,13,0,0,200,0,0,4,0]
["Q81","RPA","MEDWAY NHS FOUNDATION TRUST",111,274,0.4051094890510949,1,0,102,9,0,0,0,0,0,0,0,111,0,0,0]
["Q81","RA2","ROYAL SURREY COUNTY HOSPITAL NHS FOUNDATION TRUST",23,263,8.7452471482889732E-2,1,0,23,0,0,0,0,0,10,0,13,0,0,0,0]
["Q81","RTP","SURREY AND SUSSEX HEALTHCARE NHS TRUST",92,377,0.24403183023872679,0.96739130434782605,1.0869565217391304E-2,72,17,1,1,0,1,0,0,89,0,0,3,0]
["Q81","RYR","WESTERN SUSSEX HOSPITALS NHS FOUNDATION TRUST",173,404,0.42821782178217821,0.98843930635838151,5.7803468208092483E-3,151,20,0,1,0,1,0,0,172,0,0,1,0]
["Q82","RXQ","BUCKINGHAMSHIRE HEALTHCARE NHS TRUST",233,519,0.44894026974951828,0.97424892703862664,4.2918454935622317E-3,185,42,5,1,0,0,0,0,233,0,0,0,0]
["Q82","RTE","GLOUCESTERSHIRE HOSPITALS NHS FOUNDATION TRUST",73,287,0.25435540069686413,0.9452054794520548,4.1095890410958902E-2,60,9,1,2,1,0,70,0,0,0,3,0,0]
["Q82","RN3","GREAT WESTERN HOSPITALS NHS FOUNDATION TRUST",37,361,0.10249307479224377,1,0,"*","*","*","*","*","*","*","*","*","*","*","*","*"]
["Q82","RTH","OXFORD UNIVERSITY HOSPITALS NHS FOUNDATION TRUST",108,560,0.19285714285714287,0.9907407407407407,0,94,13,1,0,0,0,0,0,107,0,0,1,0]
["Q82","RHW","ROYAL BERKSHIRE NHS FOUNDATION TRUST",168,400,0.42,0.95833333333333337,1.1904761904761904E-2,131,30,1,2,0,4,0,88,80,0,0,0,0]
["Q82","RD1","ROYAL UNITED HOSPITALS BATH NHS FOUNDATION TRUST",68,359,0.1894150417827298,1,0,65,3,0,0,0,0,0,0,68,0,0,0,0]
["Q82","RNZ","SALISBURY NHS FOUNDATION TRUST",4,191,2.0942408376963352E-2,"*","*","*","*","*","*","*","*","*","*","*","*","*","*","*"]
["Q83","RMC","BOLTON NHS FOUNDATION TRUST",93,558,0.16666666666666666,0.92473118279569888,6.4516129032258063E-2,81,5,1,1,5,0,52,0,0,41,0,0,0]
["Q83","RY2","BRIDGEWATER COMMUNITY HEALTHCARE NHS FOUNDATION TRUST",0,0,"NA","NA","NA",0,0,0,0,0,0,0,0,0,0,0,0,0]
["Q83","RW3","CENTRAL MANCHESTER UNIVERSITY HOSPITALS NHS FOUNDATION TRUST",20,755,2.6490066225165563E-2,1,0,15,5,0,0,0,0,0,4,16,0,0,0,0]
["Q83","RW6","PENNINE ACUTE HOSPITALS NHS TRUST",99,741,0.13360323886639677,0.89898989898989901,4.0404040404040407E-2,79,10,4,1,3,2,27,0,72,0,0,0,0]
["Q83","RWJ","STOCKPORT NHS FOUNDATION TRUST",150,277,0.54151624548736466,1,0,129,21,0,0,0,0,0,0,150,0,0,0,0]
["Q83","RMP","TAMESIDE AND GLOSSOP INTEGRATED CARE NHS FOUNDATION TRUST",71,198,0.35858585858585856,0.9859154929577465,0,49,21,1,0,0,0,0,64,7,0,0,0,0]
["Q83","RM2","UNIVERSITY HOSPITAL OF SOUTH MANCHESTER NHS FOUNDATION TRUST",47,350,0.13428571428571429,1,0,47,0,0,0,0,0,0,0,47,0,0,0,0]
["Q83","RRF","WRIGHTINGTON, WIGAN AND LEIGH NHS FOUNDATION TRUST",71,206,0.3446601941747573,0.971830985915493,0,60,9,2,0,0,0,0,0,71,0,0,0,0]
["Q84","RXL","BLACKPOOL TEACHING HOSPITALS NHS FOUNDATION TRUST",91,255,0.35686274509803922,1,0,71,20,0,0,0,0,0,48,43,0,0,0,0]
["Q84","RXR","EAST LANCASHIRE HOSPITALS NHS TRUST",152,428,0.35514018691588783,0.98026315789473684,6.5789473684210523E-3,132,17,2,0,1,0,48,0,104,0,0,0,0]
["Q84","RXN","LANCASHIRE TEACHING HOSPITALS NHS FOUNDATION TRUST",49,253,0.19367588932806323,0.97959183673469385,2.0408163265306121E-2,44,4,0,0,1,0,48,0,0,0,1,0,0]

{"sheet":"Sites Q2","index":7,"n_rows":258,"n_cols":16,"rows_kept":258,"cut":false,"hidden":false,"merged":[[8,6,9,6],[8,7,9,7],[8,8,9,8],[8,9,9,9],[8,10,8,15],[8,0,9,0],[8,1,9,1],[8,2,9,2],[8,3,9,3],[8,4,9,4],[8,5,9,5]]}
[]
[]
[]
[]
[]
[null,"   Sort data by:           "]
[]
[]
["Region (Geo) Code","Trust Code","Trust Name","Site Code","Site Name","Total Responses","Total Eligible","Response Rate","Percentage Recommended","Percentage Not  Recommended","Breakdown of Responses"]
[null,null,null,null,null,null,null,null,null,null,"Extremely Likely","Likely","Neither","Unlikely","Extremely Unlikely","Don't Know"]
[null,null,null,null,"England",11580,48505,0.23873827440470055,0.9635578583765112,1.0449050086355785E-2,9423,1735,152,56,65,149]
[null,null,null,null,"Selection (excluding suppressed data)",{"$f":"SUBTOTAL(9,F13:F298)","v":11580},{"$f":"SUBTOTAL(9,G13:G298)","v":48505},{"$f":"IFERROR(F12/G12, \"NA\")","v":0.23873827440470055},{"$f":"IFERROR((K12+L12)/SUM(K12:P12), \"-\")","v":0.95984856032679089},{"$f":"IFERROR((N12+O12)/SUM(K12:P12), \"-\")","v":1.1656869582544586E-2},{"$f":"SUBTOTAL(9,K13:K298)","v":8139},{"$f":"SUBTOTAL(9,L13:L298)","v":1495},141,54,63,145]
["Q70","RBD","DORSET COUNTY HOSPITAL NHS FOUNDATION TRUST","RBD01","Dorset County Hospital - RBD01",49,156,0.3141025641025641,0.89795918367346939,6.1224489795918366E-2,40,4,1,1,2,1]
["Q70","RN5","HAMPSHIRE HOSPITALS NHS FOUNDATION TRUST","RN542","Andover War Memorial Hospital - RN542",12,14,0.8571428571428571,1,0,11,1,0,0,0,0]
["Q70","RN5","HAMPSHIRE HOSPITALS NHS FOUNDATION TRUST","RN506","Basingstoke and North Hampshire Hospital - RN506",88,208,0.42307692307692307,0.98863636363636365,0,82,5,1,0,0,0]
["Q70","RN5","HAMPSHIRE HOSPITALS NHS FOUNDATION TRUST","RN541","Royal Hampshire County Hospital - RN541",47,190,0.24736842105263157,0.97872340425531912,0,40,6,1,0,0,0]
["Q70","R1F","ISLE OF WIGHT NHS TRUST","R1F01","St Mary's Hospital - R1F01",14,92,0.15217391304347827,1,0,14,0,0,0,0,0]
["Q70","RD3","POOLE HOSPITAL NHS FOUNDATION TRUST","RD304","Poole General Hospital NHS Trust HQ - RD304",126,340,0.37058823529411766,0.97619047619047616,7.9365079365079361E-3,98,25,2,0,1,0]
["Q70","RHU","PORTSMOUTH HOSPITALS NHS TRUST","RHU10","Gosport War Memorial Hospital - RHU10",1,1,1,"*","*","*","*","*","*","*","*"]
["Q70","RHU","PORTSMOUTH HOSPITALS NHS TRUST","RHU04","Petersfield Community Hospital - RHU04",0,0,"NA","NA","NA",0,0,0,0,0,0]
["Q70","RHU","PORTSMOUTH HOSPITALS NHS TRUST","RHU03","Queen Alexandra Hospital - RHU03",88,436,0.20183486238532111,0.98863636363636365,0,"*","*","*","*","*","*"]
["Q70","RHU","PORTSMOUTH HOSPITALS NHS TRUST","RHU02","St Mary's Hospital - RHU02",0,2,0,"NA","NA",0,0,0,0,0,0]
["Q70","RDZ","THE ROYAL BOURNEMOUTH AND CHRISTCHURCH HOSPITALS NHS FOUNDATION TRUST","RDZ20","Royal Bournemouth General Hospital - RDZ20",11,35,0.31428571428571428,1,0,11,0,0,0,0,0]
["Q70","RHM","UNIVERSITY HOSPITAL SOUTHAMPTON NHS FOUNDATION TRUST","RHM12","Princess Anne Hospital - RHM12",159,469,0.33901918976545842,0.98113207547169812,1.2578616352201259E-2,135,21,1,2,0,0]
["Q71","RF4","BARKING, HAVERING AND REDBRIDGE UNIVERSITY HOSPITALS NHS TRUST","RF4QH","Queen's Hospital - RF4QH",165,651,0.25345622119815669,0.96969696969696972,0,137,23,0,0,0,5]
["Q71","R1H","BARTS HEALTH NHS TRUST","R1HNH","Newham General Hospital - R1HNH",131,530,0.24716981132075472,0.99236641221374045,0,99,31,1,0,0,0]
["Q71","R1H","BARTS HEALTH NHS TRUST","R1H12","The Royal London Hospital - R1H12",60,424,0.14150943396226415,0.95,3.3333333333333333E-2,48,9,0,0,2,1]
["Q71","R1H","BARTS HEALTH NHS TRUST","R1HKH","Whipps Cross University Hospital - R1HKH",37,391,9.4629156010230184E-2,1,0,31,6,0,0,0,0]
["Q71","RQM","CHELSEA AND WESTMINSTER HOSPITAL NHS FOUNDATION TRUST","RQM01","Chelsea and Westminster Hospital - RQM01",61,400,0.1525,0.95081967213114749,1.6393442622950821E-2,47,11,2,0,1,0]
["Q71","RQM","CHELSEA AND WESTMINSTER HOSPITAL NHS FOUNDATION TRUST","RQM91","West Middlesex University Hospital - RQM91",87,423,0.20567375886524822,0.97701149425287359,2.2988505747126436E-2,77,8,0,2,0,0]
["Q71","RJ6","CROYDON HEALTH SERVICES NHS TRUST","RJ611","Croydon University Hospital - RJ611",79,323,0.24458204334365324,0.98734177215189878,1.2658227848101266E-2,66,12,0,1,0,0]
["Q71","RVR","EPSOM AND ST HELIER UNIVERSITY HOSPITALS NHS TRUST","RVR50","Epsom Hospital - RVR50",9,181,4.9723756906077346E-2,1,0,9,0,0,0,0,0]
["Q71","RVR","EPSOM AND ST HELIER UNIVERSITY HOSPITALS NHS TRUST","RVRXXX","Non-hospital site - RVRXXX",0,9,0,"NA","NA",0,0,0,0,0,0]
["Q71","RVR","EPSOM AND ST HELIER UNIVERSITY HOSPITALS NHS TRUST","RVR05","St Helier Hospital - RVR05",41,235,0.17446808510638298,0.97560975609756095,2.4390243902439025E-2,39,1,0,0,1,0]
["Q71","RJ1","GUY'S AND ST THOMAS' NHS FOUNDATION TRUST","RJ1XXX","Non-hospital site - RJ1XXX",1,15,6.6666666666666666E-2,"*","*","*","*","*","*","*","*"]
["Q71","RJ1","GUY'S AND ST THOMAS' NHS FOUNDATION TRUST","RJ122","St Thomas' Hospital - RJ122",41,475,8.6315789473684207E-2,0.97560975609756095,2.4390243902439025E-2,"*","*","*","*","*","*"]
["Q71","RQX","HOMERTON UNIVERSITY HOSPITAL NHS FOUNDATION TRUST","RQXM1","Homerton University Hospital - RQXM1",44,422,0.10426540284360189,1,0,40,4,0,0,0,0]
["Q71","RYJ","IMPERIAL COLLEGE HEALTHCARE NHS TRUST","RYJ04","Queen Charlotte's Hospital - RYJ04",85,476,0.17857142857142858,1,0,74,11,0,0,0,0]
["Q71","RYJ","IMPERIAL COLLEGE HEALTHCARE NHS TRUST","RYJ01","St Mary's Hospital (HQ) - RYJ01",165,271,0.60885608856088558,0.94545454545454544,1.2121212121212121E-2,102,54,6,0,2,1]
["Q71","RJZ","KING'S COLLEGE HOSPITAL NHS FOUNDATION TRUST","RJZ01","King's College Hospital (Denmark Hill) - RJZ01",3,504,5.9523809523809521E-3,"*","*","*","*","*","*","*","*"]
["Q71","RJZ","KING'S COLLEGE HOSPITAL NHS FOUNDATION TRUST","RJZ30","Princess Royal University Hospital - RJZ30",1,103,9.7087378640776691E-3,"*","*","*","*","*","*","*","*"]
["Q71","RAX","KINGSTON HOSPITAL NHS FOUNDATION TRUST","RAX01","Kingston Hospital - RAX01",60,448,0.13392857142857142,0.96666666666666667,0,47,11,2,0,0,0]
["Q71","RJ2","LEWISHAM AND GREENWICH NHS TRUST","RJ2XXX","Non-hospital site - RJ2XXX",1,12,8.3333333333333329E-2,"*","*","*","*","*","*","*","*"]
["Q71","RJ2","LEWISHAM AND GREENWICH NHS TRUST","RJ231","Queen Elizabeth Hospital - RJ231",90,344,0.26162790697674421,0.97777777777777775,0,"*","*","*","*","*","*"]
["Q71","RJ2","LEWISHAM AND GREENWICH NHS TRUST","RJ224","University Hospital Lewisham - RJ224",169,274,0.61678832116788318,0.9349112426035503,1.1834319526627219E-2,118,40,7,0,2,2]
["Q71","R1K","LONDON NORTH WEST HEALTHCARE NHS TRUST","R1K04","Ealing Hospital - R1K04",0,0,"NA","NA","NA",0,0,0,0,0,0]
["Q71","R1K","LONDON NORTH WEST HEALTHCARE NHS TRUST","R1KXXX","Non-hospital site - R1KXXX",0,5,0,"NA","NA",0,0,0,0,0,0]
["Q71","R1K","LONDON NORTH WEST HEALTHCARE NHS TRUST","R1K01","Northwick Park Hospital - R1K01",241,445,0.54157303370786514,0.86721991701244816,4.9792531120331947E-2,105,104,14,10,2,6]
["Q71","RAP","NORTH MIDDLESEX UNIVERSITY HOSPITAL NHS TRUST","RAPNM","North Middlesex Hospital - RAPNM",154,371,0.41509433962264153,0.82467532467532467,7.1428571428571425E-2,104,23,6,2,9,10]
["Q71","RAL","ROYAL FREE LONDON NHS FOUNDATION TRUST","RAL26","Barnet Hospital - RAL26",89,467,0.19057815845824411,0.97752808988764039,1.1235955056179775E-2,64,23,1,0,1,0]
["Q71","RAL","ROYAL FREE LONDON NHS FOUNDATION TRUST","RAL01","Royal Free Hospital - RAL01",53,265,0.2,0.96226415094339623,1.8867924528301886E-2,33,18,1,0,1,0]
["Q71","RJ7","ST GEORGE'S UNIVERSITY HOSPITALS NHS FOUNDATION TRUST","RJ701","St George's Hospital (Tooting) - RJ701",9,400,2.2499999999999999E-2,0.88888888888888884,0,"*","*","*","*","*","*"]
["Q71","RAS","THE HILLINGDON HOSPITALS NHS FOUNDATION TRUST","RAS01","Hillingdon Hospital - RAS01",94,348,0.27011494252873564,0.98936170212765961,0,"*","*","*","*","*","*"]
["Q71","RAS","THE HILLINGDON HOSPITALS NHS FOUNDATION TRUST","RASXXX","Non-hospital site - RASXXX",2,2,1,"*","*","*","*","*","*","*","*"]
["Q71","RKE","THE WHITTINGTON HOSPITAL NHS TRUST","RKEXXX","Non-hospital site - RKEXXX",0,7,0,"NA","NA",0,0,0,0,0,0]
["Q71","RKE","THE WHITTINGTON HOSPITAL NHS TRUST","RKEQ4","The Whittington Hospital - RKEQ4",115,291,0.3951890034364261,0.95652173913043481,8.6956521739130436E-3,85,25,4,1,0,0]
["Q71","RRV","UNIVERSITY COLLEGE LONDON HOSPITALS NHS FOUNDATION TRUST","RRV03","University College Hospital - RRV03",114,513,0.22222222222222221,0.99122807017543857,8.771929824561403E-3,100,13,0,0,1,0]
["Q72","RCF","AIREDALE NHS FOUNDATION TRUST","RCF22","Airedale General Hospital - RCF22",44,190,0.23157894736842105,0.97727272727272729,0,40,3,1,0,0,0]
["Q72","RFF","BARNSLEY HOSPITAL NHS FOUNDATION TRUST","RFFAA","Barnsley Hospital NHS Foundation Trust HQ - RFFAA",52,246,0.21138211382113822,0.96153846153846156,0,45,5,2,0,0,0]
["Q72","RAE","BRADFORD TEACHING HOSPITALS NHS FOUNDATION TRUST","RAE01","Bradford Royal Infirmary - RAE01",77,483,0.15942028985507245,1,0,72,5,0,0,0,0]
["Q72","RWY","CALDERDALE AND HUDDERSFIELD NHS FOUNDATION TRUST","RWY02","Calderdale Royal Hospital - RWY02",213,427,0.49882903981264637,0.77464788732394363,0,130,35,5,0,0,43]
["Q72","RWY","CALDERDALE AND HUDDERSFIELD NHS FOUNDATION TRUST","RWY01","Huddersfield Royal Infirmary - RWY01",20,24,0.83333333333333337,1,0,19,1,0,0,0,0]
["Q72","RWY","CALDERDALE AND HUDDERSFIELD NHS FOUNDATION TRUST","RWYXXX","Non-hospital site - RWYXXX",0,0,"NA","NA","NA",0,0,0,0,0,0]
["Q72","RP5","DONCASTER AND BASSETLAW TEACHING HOSPITALS NHS FOUNDATION TRUST","RP5BA","Bassetlaw Hospital - RP5BA",123,135,0.91111111111111109,1,0,84,39,0,0,0,0]
["Q72","RP5","DONCASTER AND BASSETLAW TEACHING HOSPITALS NHS FOUNDATION TRUST","RP5DR","Doncaster Royal Infirmary - RP5DR",80,265,0.30188679245283018,0.98750000000000004,0,74,5,1,0,0,0]
["Q72","RP5","DONCASTER AND BASSETLAW TEACHING HOSPITALS NHS FOUNDATION TRUST","RP5XXX","Non-hospital site - RP5XXX",0,3,0,"NA","NA",0,0,0,0,0,0]
["Q72","RCD","HARROGATE AND DISTRICT NHS FOUNDATION TRUST","RCD01","Harrogate District Hospital - RCD01",20,135,0.14814814814814814,1,0,19,1,0,0,0,0]
["Q72","RWA","HULL AND EAST YORKSHIRE HOSPITALS NHS TRUST","RWA01","Hull Royal Infirmary - RWA01",29,434,6.6820276497695855E-2,0.96551724137931039,0,24,4,0,0,0,1]
["Q72","RR8","LEEDS TEACHING HOSPITALS NHS TRUST","RR801","Leeds General Infirmary - RR801",155,391,0.39641943734015345,0.95483870967741935,2.5806451612903226E-2,133,15,3,1,3,0]
["Q72","RR8","LEEDS TEACHING HOSPITALS NHS TRUST","RR8XXX","Non-Hospital Site - RR8XXX",0,10,0,"NA","NA",0,0,0,0,0,0]
["Q72","RR8","LEEDS TEACHING HOSPITALS NHS TRUST","RR813","St James's University Hospital - RR813",94,371,0.25336927223719674,0.92553191489361697,5.3191489361702128E-2,71,16,1,3,2,1]
["Q72","RXF","MID YORKSHIRE HOSPITALS NHS TRUST","RXF10","Dewsbury and District Hospital - RXF10",14,16,0.875,1,0,14,0,0,0,0,0]
["Q72","RXF","MID YORKSHIRE HOSPITALS NHS TRUST","RXFXXX","Non-hospital site - RXFXXX",0,4,0,"NA","NA",0,0,0,0,0,0]
["Q72","RXF","MID YORKSHIRE HOSPITALS NHS TRUST","RXF05","Pinderfields General Hospital - RXF05",148,389,0.38046272493573263,0.97972972972972971,6.7567567567567571E-3,119,26,1,1,0,1]
["Q72","RXF","MID YORKSHIRE HOSPITALS NHS TRUST","RXF03","Pontefract General Infirmary - RXF03",15,19,0.78947368421052633,1,0,15,0,0,0,0,0]
["Q72","RJL","NORTHERN LINCOLNSHIRE AND GOOLE NHS FOUNDATION TRUST","RJL30","Diana, Princess Of Wales Hospital - RJL30",35,205,0.17073170731707318,1,0,"*","*","*","*","*","*"]
["Q72","RJL","NORTHERN LINCOLNSHIRE AND GOOLE NHS FOUNDATION TRUST","RJL32","Scunthorpe General Hospital - RJL32",3,132,2.2727272727272728E-2,"*","*","*","*","*","*","*","*"]
["Q72","RHQ","SHEFFIELD TEACHING HOSPITALS NHS FOUNDATION TRUST","RHQHH","Royal Hallamshire Hospital - RHQHH",135,562,0.2402135231316726,0.97777777777777775,7.4074074074074077E-3,114,18,2,1,0,0]
["Q72","RFR","THE ROTHERHAM NHS FOUNDATION TRUST","RFRPA","Rotherham District General Hospital - RFRPA",61,206,0.29611650485436891,0.98360655737704916,1.6393442622950821E-2,55,5,0,0,1,0]
["Q72","RCB","YORK TEACHING HOSPITAL NHS FOUNDATION TRUST","RCBCA","Scarborough General Hospital - RCBCA",28,112,0.25,1,0,23,5,0,0,0,0]
["Q72","RCB","YORK TEACHING HOSPITAL NHS FOUNDATION TRUST","RCB55","York Hospital - RCB55",69,240,0.28749999999999998,0.98550724637681164,0,59,9,1,0,0,0]
["Q74","RLN","CITY HOSPITALS SUNDERLAND NHS FOUNDATION TRUST","RLNGL","Sunderland Royal Hospital - RLNGL",42,223,0.18834080717488788,1,0,40,2,0,0,0,0]
["Q74","RXP","COUNTY DURHAM AND DARLINGTON NHS FOUNDATION TRUST","RXPDA","Darlington Memorial Hospital - RXPDA",32,171,0.1871345029239766,1,0,"*","*","*","*","*","*"]
["Q74","RXP","COUNTY DURHAM AND DARLINGTON NHS FOUNDATION TRUST","RXPXXX","Non-hospital site - RXPXXX",1,5,0.2,"*","*","*","*","*","*","*","*"]
["Q74","RR7","GATESHEAD HEALTH NHS FOUNDATION TRUST","RR7EN","Queen Elizabeth Hospital - RR7EN",44,126,0.34920634920634919,0.93181818181818177,2.2727272727272728E-2,35,6,2,1,0,0]
["Q74","RNL","NORTH CUMBRIA UNIVERSITY HOSPITALS NHS TRUST","RNLAY","Cumberland Infirmary - RNLAY",15,115,0.13043478260869565,1,0,12,3,0,0,0,0]
["Q74","RNL","NORTH CUMBRIA UNIVERSITY HOSPITALS NHS TRUST","RNLXXX","Non-hospital site - RNLXXX",0,1,0,"NA","NA",0,0,0,0,0,0]
["Q74","RNL","NORTH CUMBRIA UNIVERSITY HOSPITALS NHS TRUST","RNLBE","Penrith Hospital - RNLBE",0,0,"NA","NA","NA",0,0,0,0,0,0]
["Q74","RNL","NORTH CUMBRIA UNIVERSITY HOSPITALS NHS TRUST","RNLBX","West Cumberland Hospital - RNLBX",47,86,0.54651162790697672,0.97872340425531912,0,36,10,1,0,0,0]
["Q74","RVW","NORTH TEES AND HARTLEPOOL NHS FOUNDATION TRUST","RVWAE","University Hospital Of North Tees - RVWAE",17,209,8.1339712918660281E-2,0.94117647058823528,5.8823529411764705E-2,13,3,0,1,0,0]
["Q74","RTF","NORTHUMBRIA HEALTHCARE NHS FOUNDATION TRUST","RTFDJ","Alnwick Infirmary - RTFDJ",0,2,0,"NA","NA",0,0,0,0,0,0]
["Q74","RTF","NORTHUMBRIA HEALTHCARE NHS FOUNDATION TRUST","RTFDH","Berwick Infirmary - RTFDH",0,0,"NA","NA","NA",0,0,0,0,0,0]
["Q74","RTF","NORTHUMBRIA HEALTHCARE NHS FOUNDATION TRUST","RTFDR","Hexham General Hospital - RTFDR",1,4,0.25,"*","*","*","*","*","*","*","*"]
["Q74","RTF","NORTHUMBRIA HEALTHCARE NHS FOUNDATION TRUST","RTFXXX","Non-hospital site - RTFXXX",0,1,0,"NA","NA",0,0,0,0,0,0]
["Q74","RTF","NORTHUMBRIA HEALTHCARE NHS FOUNDATION TRUST","RTF86","The Northumbria - RTF86",30,172,0.1744186046511628,1,0,"*","*","*","*","*","*"]
["Q74","RTR","SOUTH TEES HOSPITALS NHS FOUNDATION TRUST","RTR45","Friarage Hospital Site - RTR45",6,21,0.2857142857142857,1,0,6,0,0,0,0,0]
["Q74","RTR","SOUTH TEES HOSPITALS NHS FOUNDATION TRUST","RTRAT","The James Cook University Hospital - RTRAT",15,320,4.6875E-2,1,0,15,0,0,0,0,0]
["Q74","RE9","SOUTH TYNESIDE NHS FOUNDATION TRUST","RE9GA","South Tyneside District Hospital - RE9GA",21,92,0.22826086956521738,0.90476190476190477,0,19,0,0,0,0,2]
["Q74","RTD","THE NEWCASTLE UPON TYNE HOSPITALS NHS FOUNDATION TRUST","RTD02","The Royal Victoria Infirmary - RTD02",157,492,0.31910569105691056,0.98726114649681529,0,138,17,1,0,0,1]
["Q74","RTX","UNIVERSITY HOSPITALS OF MORECAMBE BAY NHS FOUNDATION TRUST","RTXBU","Furness General Hospital - RTXBU",11,11,1,0.90909090909090906,0,9,1,1,0,0,0]
["Q75","RJR","COUNTESS OF CHESTER HOSPITAL NHS FOUNDATION TRUST","RJR05","Countess Of Chester Hospital - RJR05",42,231,0.18181818181818182,0.95238095238095233,0,32,8,2,0,0,0]
["Q75","RJN","EAST CHESHIRE NHS TRUST","RJN71","Macclesfield District General Hospital - RJN71",11,135,8.1481481481481488E-2,1,0,"*","*","*","*","*","*"]
["Q75","REP","LIVERPOOL WOMEN'S NHS FOUNDATION TRUST","REP01","Liverpool Womens Hospital - REP01",1,675,1.4814814814814814E-3,"*","*","*","*","*","*","*","*"]
["Q75","RBT","MID CHESHIRE HOSPITALS NHS FOUNDATION TRUST","RBT20","Leighton Hospital - RBT20",16,227,7.0484581497797363E-2,1,0,14,2,0,0,0,0]
["Q75","RVY","SOUTHPORT AND ORMSKIRK HOSPITAL NHS TRUST","RVY02","Ormskirk and District General Hospital - RVY02",22,207,0.10628019323671498,1,0,16,6,0,0,0,0]
["Q75","RBN","ST HELENS AND KNOWSLEY HOSPITAL SERVICES NHS TRUST","RBN01","Whiston Hospital - RBN01",39,327,0.11926605504587157,0.97435897435897434,0,33,5,0,0,0,1]
["Q75","RWW","WARRINGTON AND HALTON HOSPITALS NHS FOUNDATION TRUST","RWWWH","Warrington Hospital - RWWWH",54,210,0.25714285714285712,0.96296296296296291,1.8518518518518517E-2,50,2,0,0,1,1]
["Q75","RBL","WIRRAL UNIVERSITY TEACHING HOSPITAL NHS FOUNDATION TRUST","RBL14","Arrowe Park Hospital - RBL14",154,244,0.63114754098360659,1,0,132,22,0,0,0,0]
["Q76","RJF","BURTON HOSPITALS NHS FOUNDATION TRUST","RJF02","Queen's Hospital, Burton Upon Trent - RJF02",94,233,0.40343347639484978,0.98936170212765961,0,87,6,1,0,0,0]
["Q76","RFS","CHESTERFIELD ROYAL HOSPITAL NHS FOUNDATION TRUST","RFSDA","Chesterfield Royal Hospital - RFSDA",39,203,0.19211822660098521,0.84615384615384615,0,25,8,3,0,0,3]
["Q76","RTG","DERBY TEACHING HOSPITALS NHS FOUNDATION TRUST","RTGFG","Royal Derby Hospital - RTGFG",243,440,0.55227272727272725,0.97530864197530864,4.11522633744856E-3,178,59,4,0,1,1]
["Q76","RX1","NOTTINGHAM UNIVERSITY HOSPITALS NHS TRUST","RX1XXX","Non-hospital site - RX1XXX",3,14,0.21428571428571427,"*","*","*","*","*","*","*","*"]
["Q76","RX1","NOTTINGHAM UNIVERSITY HOSPITALS NHS TRUST","RX1CC","Nottingham University Hospitals NHS Trust - City Campus - RX1CC",94,385,0.24415584415584415,1,0,78,16,0,0,0,0]
["Q76","RX1","NOTTINGHAM UNIVERSITY HOSPITALS NHS TRUST","RX1RA","Nottingham University Hospitals NHS Trust - Queen's Medical Centre Campus - RX1RA",45,278,0.16187050359712229,1,0,"*","*","*","*","*","*"]
["Q76","RK5","SHERWOOD FOREST HOSPITALS NHS FOUNDATION TRUST","RK5BC","King's Mill Hospital - RK5BC",71,274,0.25912408759124089,0.9859154929577465,0,61,9,1,0,0,0]
["Q76","RK5","SHERWOOD FOREST HOSPITALS NHS FOUNDATION TRUST","RK5XXX","Non-hospital site - RK5XXX",0,9,0,"NA","NA",0,0,0,0,0,0]
["Q76","RXW","SHREWSBURY AND TELFORD HOSPITAL NHS TRUST","RXWMB","Bridgnorth Hospital (Maternity) - RXWMB",3,7,0.42857142857142855,"*","*","*","*","*","*","*","*"]
["Q76","RXW","SHREWSBURY AND TELFORD HOSPITAL NHS TRUST","RXWML","Ludlow Hospital (Maternity) - RXWML",2,3,0.66666666666666663,"*","*","*","*","*","*","*","*"]
["Q76","RXW","SHREWSBURY AND TELFORD HOSPITAL NHS TRUST","RXWXXX","Non-hospital site - RXWXXX",0,2,0,"NA","NA",0,0,0,0,0,0]
["Q76","RXW","SHREWSBURY AND TELFORD HOSPITAL NHS TRUST","RXWMJ","Robert Jones & Agnes Hunt Orthopaedic & District Hospital - RXWMJ",2,4,0.5,"*","*","*","*","*","*","*","*"]
["Q76","RXW","SHREWSBURY AND TELFORD HOSPITAL NHS TRUST","RXWAS","Royal Shrewsbury Hospital - RXWAS",5,8,0.625,1,0,5,0,0,0,0,0]
["Q76","RXW","SHREWSBURY AND TELFORD HOSPITAL NHS TRUST","RXWAT","The Princess Royal Hospital - RXWAT",37,339,0.10914454277286136,1,0,36,1,0,0,0,0]
["Q76","RJE","UNIVERSITY HOSPITALS OF NORTH MIDLANDS NHS TRUST","RJE09","County Hospital - RJE09",2,5,0.4,"*","*","*","*","*","*","*","*"]
["Q76","RJE","UNIVERSITY HOSPITALS OF NORTH MIDLANDS NHS TRUST","RJEXXX","Non-hospital site - RJEXXX",0,1,0,"NA","NA",0,0,0,0,0,0]
["Q76","RJE","UNIVERSITY HOSPITALS OF NORTH MIDLANDS NHS TRUST","RJE01","Royal Stoke University Hospital - RJE01",50,494,0.10121457489878542,1,0,"*","*","*","*","*","*"]
["Q77","RQ3","BIRMINGHAM WOMEN'S AND CHILDREN'S NHS FOUNDATION TRUST","RQ370","Birmingham Women's Hospital - RQ370",1,647,1.5455950540958269E-3,"*","*","*","*","*","*","*","*"]
["Q77","RLT","GEORGE ELIOT HOSPITAL NHS TRUST","RLT01","George Eliot Hospital - Acute Services - RLT01",76,161,0.47204968944099379,0.97368421052631582,1.3157894736842105E-2,68,6,1,0,1,0]
["Q77","RR1","HEART OF ENGLAND NHS FOUNDATION TRUST","RR105","Good Hope Hospital - RR105",14,35,0.4,0.9285714285714286,0,13,0,1,0,0,0]
["Q77","RR1","HEART OF ENGLAND NHS FOUNDATION TRUST","RR101","Heartlands Hospital - RR101",1,470,2.1276595744680851E-3,"*","*","*","*","*","*","*","*"]
["Q77","RR1","HEART OF ENGLAND NHS FOUNDATION TRUST","RR109","Solihull Hospital - RR109",6,12,0.5,1,0,"*","*","*","*","*","*"]
["Q77","RXK","SANDWELL AND WEST BIRMINGHAM HOSPITALS NHS TRUST","RXK02","City Hospital - RXK02",50,460,0.10869565217391304,0.82,0.04,18,23,4,1,1,3]
["Q77","RJC","SOUTH WARWICKSHIRE NHS FOUNDATION TRUST","RJCXXX","Non-hospital site - RJCXXX",0,3,0,"NA","NA",0,0,0,0,0,0]
["Q77","RJC","SOUTH WARWICKSHIRE NHS FOUNDATION TRUST","RJC02","Warwick Hospital - RJC02",28,223,0.12556053811659193,0.9642857142857143,0,22,5,0,0,0,1]
["Q77","RNA","THE DUDLEY GROUP NHS FOUNDATION TRUST","RNA01","Russells Hall Hospital - RNA01",124,378,0.32804232804232802,0.99193548387096775,0,113,10,0,0,0,1]
["Q77","RL4","THE ROYAL WOLVERHAMPTON NHS TRUST","RL403","New Cross Hospital - RL403",49,370,0.13243243243243244,1,0,49,0,0,0,0,0]
["Q77","RKB","UNIVERSITY HOSPITALS COVENTRY AND WARWICKSHIRE NHS TRUST","RKB03","Hospital Of St Cross - RKB03",0,0,"NA","NA","NA",0,0,0,0,0,0]
["Q77","RKB","UNIVERSITY HOSPITALS COVENTRY AND WARWICKSHIRE NHS TRUST","RKBXXX","Non-hospital site - RKBXXX",1,3,0.33333333333333331,"*","*","*","*","*","*","*","*"]
["Q77","RKB","UNIVERSITY HOSPITALS COVENTRY AND WARWICKSHIRE NHS TRUST","RKB01","University Hospital (Coventry) - RKB01",66,497,0.13279678068410464,0.98484848484848486,1.5151515151515152E-2,"*","*","*","*","*","*"]
["Q77","RBK","WALSALL HEALTHCARE NHS TRUST","RBK02","Manor Hospital - RBK02",22,226,9.7345132743362831E-2,0.95454545454545459,4.5454545454545456E-2,20,1,0,0,1,0]
["Q77","RWP","WORCESTERSHIRE ACUTE HOSPITALS NHS TRUST","RWP50","Worcestershire Royal Hospital - RWP50",88,201,0.43781094527363185,1,0,85,3,0,0,0,0]
["Q77","RLQ","WYE VALLEY NHS TRUST","RLQ01","Hereford County Hospital - RLQ01",66,130,0.50769230769230766,0.93939393939393945,0,52,10,2,0,0,2]
["Q78","RC1","BEDFORD HOSPITAL NHS TRUST","RC110","Bedford Hospital South Wing - RC110",38,73,0.52054794520547942,0.97368421052631582,2.6315789473684209E-2,32,5,0,0,1,0]
["Q78","RWH","EAST AND NORTH HERTFORDSHIRE NHS TRUST","RWH01","Lister Hospital - RWH01",211,397,0.53148614609571787,0.98104265402843605,0,"*","*","*","*","*","*"]
["Q78","RWH","EAST AND NORTH HERTFORDSHIRE NHS TRUST","RWHXXX","Non-hospital site - RWHXXX",3,16,0.1875,"*","*","*","*","*","*","*","*"]
["Q78","RNQ","KETTERING GENERAL HOSPITAL NHS FOUNDATION TRUST","RNQ51","Kettering General Hospital - RNQ51",43,292,0.14726027397260275,1,0,39,4,0,0,0,0]
["Q78","RC9","LUTON AND DUNSTABLE UNIVERSITY HOSPITAL NHS FOUNDATION TRUST","RC971","Luton and Dunstable Hospital - RC971",33,408,8.0882352941176475E-2,0.93939393939393945,0,20,11,2,0,0,0]
["Q78","RD8","MILTON KEYNES UNIVERSITY HOSPITAL NHS FOUNDATION TRUST","RD816","Milton Keynes Hospital - RD816",7,262,2.6717557251908396E-2,1,0,7,0,0,0,0,0]
["Q78","RNS","NORTHAMPTON GENERAL HOSPITAL NHS TRUST","RNS01","Northampton General Hospital (Acute) - RNS01",23,358,6.4245810055865923E-2,1,0,22,1,0,0,0,0]
["Q78","RWD","UNITED LINCOLNSHIRE HOSPITALS NHS TRUST","RWDLP","Grantham and District Hospital - RWDLP",0,8,0,"NA","NA",0,0,0,0,0,0]
["Q78","RWD","UNITED LINCOLNSHIRE HOSPITALS NHS TRUST","RWDDA","Lincoln County Hospital - RWDDA",7,276,2.5362318840579712E-2,1,0,5,2,0,0,0,0]
["Q78","RWD","UNITED LINCOLNSHIRE HOSPITALS NHS TRUST","RWDXXX","Non-hospital site - RWDXXX",0,0,"NA","NA","NA",0,0,0,0,0,0]
["Q78","RWD","UNITED LINCOLNSHIRE HOSPITALS NHS TRUST","RWDLA","Pilgrim Hospital - RWDLA",8,154,5.1948051948051951E-2,1,0,7,1,0,0,0,0]
["Q78","RWE","UNIVERSITY HOSPITALS OF LEICESTER NHS TRUST","RWEAK","Leicester General Hospital - RWEAK",180,269,0.66914498141263945,0.96111111111111114,1.1111111111111112E-2,138,35,1,1,1,4]
["Q78","RWE","UNIVERSITY HOSPITALS OF LEICESTER NHS TRUST","RWEAA","Leicester Royal Infirmary - RWEAA",271,430,0.63023255813953494,0.89667896678966785,4.797047970479705E-2,195,48,8,6,7,7]
["Q78","RWE","UNIVERSITY HOSPITALS OF LEICESTER NHS TRUST","RWEXXX","Non-hospital site - RWEXXX",15,19,0.78947368421052633,0.8666666666666667,0,9,4,0,0,0,2]
["Q78","RWE","UNIVERSITY HOSPITALS OF LEICESTER NHS TRUST","RWE10","St Mary's Hospital - RWE10",6,8,0.75,1,0,4,2,0,0,0,0]
["Q78","RWG","WEST HERTFORDSHIRE HOSPITALS NHS TRUST","RWG02","Watford General Hospital - RWG02",107,380,0.28157894736842104,0.93457943925233644,9.3457943925233638E-3,79,21,6,0,1,0]
["Q79","RDD","BASILDON AND THURROCK UNIVERSITY HOSPITALS NHS FOUNDATION TRUST","RDDH0","Basildon University Hospital - RDDH0",19,147,0.12925170068027211,0.94736842105263153,0,15,3,1,0,0,0]
["Q79","RGT","CAMBRIDGE UNIVERSITY HOSPITALS NHS FOUNDATION TRUST","RGT32","Rosie Hospital - RGT32",289,440,0.65681818181818186,0.96539792387543255,1.0380622837370242E-2,233,46,5,1,2,2]
["Q79","RDE","COLCHESTER HOSPITAL UNIVERSITY NHS FOUNDATION TRUST","RDEE2","Clacton and District Hospital - RDEE2",0,6,0,"NA","NA",0,0,0,0,0,0]
["Q79","RDE","COLCHESTER HOSPITAL UNIVERSITY NHS FOUNDATION TRUST","RDEE4","Colchester General Hospital - RDEE4",39,260,0.15,0.94871794871794868,0,30,7,2,0,0,0]
["Q79","RDE","COLCHESTER HOSPITAL UNIVERSITY NHS FOUNDATION TRUST","RDEEE","Harwich Maternity - RDEEE",0,0,"NA","NA","NA",0,0,0,0,0,0]
["Q79","RDE","COLCHESTER HOSPITAL UNIVERSITY NHS FOUNDATION TRUST","RDEXXX","Non-hospital site - RDEXXX",0,6,0,"NA","NA",0,0,0,0,0,0]
["Q79","RGQ","IPSWICH HOSPITAL NHS TRUST","RGQ02","The Ipswich Hospital NHS Trust - RGQ02",108,294,0.36734693877551022,0.98148148148148151,1.8518518518518517E-2,91,15,0,1,1,0]
["Q79","RGP","JAMES PAGET UNIVERSITY HOSPITALS NHS FOUNDATION TRUST","RGP75","James Paget University Hospital - RGP75",26,171,0.15204678362573099,1,0,26,0,0,0,0,0]
["Q79","RQ8","MID ESSEX HOSPITAL SERVICES NHS TRUST","RQ8L0","Broomfield Hospital - RQ8L0",32,269,0.11895910780669144,0.90625,9.375E-2,26,3,0,2,1,0]
["Q79","RM1","NORFOLK AND NORWICH UNIVERSITY HOSPITALS NHS FOUNDATION TRUST","RM102","Norfolk and Norwich University Hospital - RM102",30,473,6.3424947145877375E-2,1,0,30,0,0,0,0,0]
["Q79","RGN","NORTH WEST ANGLIA NHS FOUNDATION TRUST","RGN90","Hinchingbrooke Hospital - RGN90",54,169,0.31952662721893493,1,0,50,4,0,0,0,0]
["Q79","RGN","NORTH WEST ANGLIA NHS FOUNDATION TRUST","RGN80","Peterborough City Hospital - RGN80",95,386,0.24611398963730569,0.96842105263157896,0,85,7,1,0,0,2]
["Q79","RAJ","SOUTHEND UNIVERSITY HOSPITAL NHS FOUNDATION TRUST","RAJ01","Southend Hospital - RAJ01",10,249,4.0160642570281124E-2,0.9,0,9,0,1,0,0,0]
["Q79","RQW","THE PRINCESS ALEXANDRA HOSPITAL NHS TRUST","RQWG0","Princess Alexandra Hospital - RQWG0",176,305,0.57704918032786889,0.94886363636363635,0,148,19,0,0,0,9]
["Q79","RCX","THE QUEEN ELIZABETH HOSPITAL, KING'S LYNN, NHS FOUNDATION TRUST","RCXXXX","Non-hospital site - RCXXXX",1,4,0.25,"*","*","*","*","*","*","*","*"]
["Q79","RCX","THE QUEEN ELIZABETH HOSPITAL, KING'S LYNN, NHS FOUNDATION TRUST","RCX70","The Queen Elizabeth Hospital - RCX70",29,175,0.1657142857142857,0.96551724137931039,0,"*","*","*","*","*","*"]
["Q79","RGR","WEST SUFFOLK NHS FOUNDATION TRUST","RGR50","West Suffolk Hospital - RGR50",31,235,0.13191489361702127,1,0,29,2,0,0,0,0]
["Q80","RVJ","NORTH BRISTOL NHS TRUST","RVJ21","Cossham Hospital - RVJ21",7,35,0.2,1,0,"*","*","*","*","*","*"]
["Q80","RVJ","NORTH BRISTOL NHS TRUST","RVJXXX","Non-hospital site - RVJXXX",2,10,0.2,"*","*","*","*","*","*","*","*"]
["Q80","RVJ","NORTH BRISTOL NHS TRUST","RVJ01","Southmead Hospital - RVJ01",74,483,0.15320910973084886,0.95945945945945943,2.7027027027027029E-2,66,5,1,1,1,0]
["Q80","RBZ","NORTHERN DEVON HEALTHCARE NHS TRUST","RBZ12","North Devon District Hospital - RBZ12",3,118,2.5423728813559324E-2,"*","*","*","*","*","*","*","*"]
["Q80","RK9","PLYMOUTH HOSPITALS NHS TRUST","RK950","Derriford Hospital - RK950",123,316,0.38924050632911394,0.99186991869918695,0,109,13,0,0,0,1]
["Q80","RK9","PLYMOUTH HOSPITALS NHS TRUST","RK9XXX","Non-hospital site - RK9XXX",8,12,0.66666666666666663,1,0,8,0,0,0,0,0]
["Q80","REF","ROYAL CORNWALL HOSPITALS NHS TRUST","REFXXX","Non-hospital site - REFXXX",1,41,2.4390243902439025E-2,"*","*","*","*","*","*","*","*"]
["Q80","REF","ROYAL CORNWALL HOSPITALS NHS TRUST","REF12","Royal Cornwall Hospital (Treliske) - REF12",46,280,0.16428571428571428,1,0,"*","*","*","*","*","*"]
["Q80","RH8","ROYAL DEVON AND EXETER NHS FOUNDATION TRUST","RH854","Honiton Hospital - RH 854",0,4,0,"NA","NA",0,0,0,0,0,0]
["Q80","RH8","ROYAL DEVON AND EXETER NHS FOUNDATION TRUST","RH833","Okehampton Community Hospital - RH833",0,3,0,"NA","NA",0,0,0,0,0,0]
["Q80","RH8","ROYAL DEVON AND EXETER NHS FOUNDATION TRUST","RH801","Royal Devon and Exeter Hospital (Wonford) - RH801",1,309,3.2362459546925568E-3,"*","*","*","*","*","*","*","*"]
["Q80","RH8","ROYAL DEVON AND EXETER NHS FOUNDATION TRUST","RH853","Tiverton and District Hospital - RH853",0,8,0,"NA","NA",0,0,0,0,0,0]
["Q80","RBA","TAUNTON AND SOMERSET NHS FOUNDATION TRUST","RBAC3","Bridgwater Hospital - RBAC3",0,0,"NA","NA","NA",0,0,0,0,0,0]
["Q80","RBA","TAUNTON AND SOMERSET NHS FOUNDATION TRUST","RBA11","Musgrove Park Hospital - RBA11",19,259,7.3359073359073365E-2,0.94736842105263153,5.2631578947368418E-2,16,2,0,1,0,0]
["Q80","RBA","TAUNTON AND SOMERSET NHS FOUNDATION TRUST","RBAXXX","Non-hospital site - RBAXXX",0,9,0,"NA","NA",0,0,0,0,0,0]
["Q80","RA9","TORBAY AND SOUTH DEVON NHS FOUNDATION TRUST","RA957","Newton Abbot Community Hospital - RA957",1,7,0.14285714285714285,"*","*","*","*","*","*","*","*"]
["Q80","RA9","TORBAY AND SOUTH DEVON NHS FOUNDATION TRUST","RA9XXX","Non-hospital site - RA9XXX",0,7,0,"NA","NA",0,0,0,0,0,0]
["Q80","RA9","TORBAY AND SOUTH DEVON NHS FOUNDATION TRUST","RA901","Torbay Hospital - RA901",9,156,5.7692307692307696E-2,1,0,"*","*","*","*","*","*"]
["Q80","RA7","UNIVERSITY HOSPITALS BRISTOL NHS FOUNDATION TRUST","RA707","St Michael's Hospital - RA707",96,411,0.23357664233576642,0.96875,0,81,12,1,0,0,2]
["Q80","RA3","WESTON AREA HEALTH NHS TRUST","RA301","Weston General Hospital - RA301",7,19,0.36842105263157893,1,0,6,1,0,0,0,0]
["Q80","RA4","YEOVIL DISTRICT HOSPITAL NHS FOUNDATION TRUST","RA430","Yeovil District Hospital - RA430",3,111,2.7027027027027029E-2,"*","*","*","*","*","*","*","*"]
["Q81","RTK","ASHFORD AND ST PETER'S HOSPITALS NHS FOUNDATION TRUST","RTK01","St Peter's Hospital - RTK01",22,332,6.6265060240963861E-2,0.95454545454545459,0,19,2,0,0,0,1]
["Q81","RXH","BRIGHTON AND SUSSEX UNIVERSITY HOSPITALS NHS TRUST","RXHXXX","Non-hospital site - RXHXXX",0,16,0,"NA","NA",0,0,0,0,0,0]
["Q81","RXH","BRIGHTON AND SUSSEX UNIVERSITY HOSPITALS NHS TRUST","RXH09","Princess Royal Hospital - RXH09",41,167,0.24550898203592814,0.97560975609756095,2.4390243902439025E-2,36,4,0,0,1,0]
["Q81","RXH","BRIGHTON AND SUSSEX UNIVERSITY HOSPITALS NHS TRUST","RXH01","Royal Sussex County Hospital - RXH01",54,242,0.2231404958677686,0.96296296296296291,0,44,8,2,0,0,0]
["Q81","RN7","DARTFORD AND GRAVESHAM NHS TRUST","RN707","Darent Valley Hospital - RN707",89,333,0.26726726726726729,1,0,73,16,0,0,0,0]
["Q81","RVV","EAST KENT HOSPITALS UNIVERSITY NHS FOUNDATION TRUST","RVVXXX","Non-hospital site - RVVXXX",179,23,7.7826086956521738,0.97765363128491622,1.11731843575419E-2,157,18,0,2,0,2]
["Q81","RVV","EAST KENT HOSPITALS UNIVERSITY NHS FOUNDATION TRUST","RVV09","Queen Elizabeth The Queen Mother Hospital - RVV09",66,231,0.2857142857142857,0.95454545454545459,1.5151515151515152E-2,56,7,0,1,0,2]
["Q81","RVV","EAST KENT HOSPITALS UNIVERSITY NHS FOUNDATION TRUST","RVV01","William Harvey Hospital (Ashford) - RVV01",113,336,0.33630952380952384,0.99115044247787609,8.8495575221238937E-3,101,11,0,1,0,0]
["Q81","RXC","EAST SUSSEX HEALTHCARE NHS TRUST","RXC01","Conquest Hospital - RXC01",88,233,0.37768240343347642,0.97727272727272729,1.1363636363636364E-2,59,27,0,0,1,1]
["Q81","RXC","EAST SUSSEX HEALTHCARE NHS TRUST","RXC02","Eastbourne District General Hospital - RXC02",23,23,1,1,0,"*","*","*","*","*","*"]
["Q81","RXC","EAST SUSSEX HEALTHCARE NHS TRUST","RXCXXX","Non-hospital site - RXCXXX",2,5,0.4,"*","*","*","*","*","*","*","*"]
["Q81","RDU","FRIMLEY HEALTH NHS FOUNDATION TRUST","RDU01","Frimley Park Hospital - RDU01",177,422,0.41943127962085308,0.97740112994350281,5.6497175141242938E-3,159,14,2,1,0,1]
["Q81","RDU","FRIMLEY HEALTH NHS FOUNDATION TRUST","RDUXXX","Non-hospital site - RDUXXX",7,10,0.7,1,0,5,2,0,0,0,0]
["Q81","RDU","FRIMLEY HEALTH NHS FOUNDATION TRUST","RDU50","Wexham Park Hospital - RDU50",20,334,5.9880239520958084E-2,0.95,0,16,3,1,0,0,0]
["Q81","RWF","MAIDSTONE AND TUNBRIDGE WELLS NHS TRUST","RWF03","Maidstone District General Hospital - RWF03",40,45,0.88888888888888884,0.95,0,38,0,0,0,0,2]
["Q81","RWF","MAIDSTONE AND TUNBRIDGE WELLS NHS TRUST","RWFXXX","Non-hospital site - RWFXXX",33,17,1.9411764705882353,1,0,33,0,0,0,0,0]
["Q81","RWF","MAIDSTONE AND TUNBRIDGE WELLS NHS TRUST","RWFTW","The Tunbridge Wells Hospital - RWFTW",131,394,0.33248730964467005,0.9007633587786259,0,101,17,2,0,0,11]
["Q81","RPA","MEDWAY NHS FOUNDATION TRUST","RPA02","Medway Maritime Hospital - RPA02",111,274,0.4051094890510949,1,0,102,9,0,0,0,0]
["Q81","RA2","ROYAL SURREY COUNTY HOSPITAL NHS FOUNDATION TRUST","RA201","Royal Surrey County Hospital - RA201",23,263,8.7452471482889732E-2,1,0,23,0,0,0,0,0]
["Q81","RTP","SURREY AND SUSSEX HEALTHCARE NHS TRUST","RTP04","East Surrey Hospital - RTP04",92,377,0.24403183023872679,0.96739130434782605,1.0869565217391304E-2,72,17,1,1,0,1]
["Q81","RYR","WESTERN SUSSEX HOSPITALS NHS FOUNDATION TRUST","RYR16","St Richard's Hospital - RYR16",56,211,0.26540284360189575,1,0,48,8,0,0,0,0]
["Q81","RYR","WESTERN SUSSEX HOSPITALS NHS FOUNDATION TRUST","RYR18","Worthing Hospital - RYR18",117,193,0.60621761658031093,0.98290598290598286,8.5470085470085479E-3,103,12,0,1,0,1]
["Q82","RXQ","BUCKINGHAMSHIRE HEALTHCARE NHS TRUST","RXQ02","Stoke Mandeville Hospital - RXQ02",229,488,0.46926229508196721,0.97379912663755464,4.3668122270742356E-3,"*","*","*","*","*","*"]
["Q82","RXQ","BUCKINGHAMSHIRE HEALTHCARE NHS TRUST","RXQ50","Wycombe Hospital - RXQ50",4,31,0.12903225806451613,"*","*","*","*","*","*","*","*"]
["Q82","RTE","GLOUCESTERSHIRE HOSPITALS NHS FOUNDATION TRUST","RTE01","Cheltenham General Hospital - RTE01",5,13,0.38461538461538464,1,0,4,1,0,0,0,0]
["Q82","RTE","GLOUCESTERSHIRE HOSPITALS NHS FOUNDATION TRUST","RTE03","Gloucestershire Royal Hospital - RTE03",58,246,0.23577235772357724,0.94827586206896552,3.4482758620689655E-2,48,7,1,1,1,0]
["Q82","RTE","GLOUCESTERSHIRE HOSPITALS NHS FOUNDATION TRUST","RTEXXX","Non-hospital site - RTEXXX",0,1,0,"NA","NA",0,0,0,0,0,0]
["Q82","RTE","GLOUCESTERSHIRE HOSPITALS NHS FOUNDATION TRUST","RTE27","Stroud Maternity Hospital - RTE27",10,27,0.37037037037037035,0.9,0.1,8,1,0,1,0,0]
["Q82","RN3","GREAT WESTERN HOSPITALS NHS FOUNDATION TRUST","RN3XXX","Non-hospital site - RN3XXX",0,2,0,"NA","NA",0,0,0,0,0,0]
["Q82","RN3","GREAT WESTERN HOSPITALS NHS FOUNDATION TRUST","RN325","The Great Western Hospital - RN325",37,359,0.10306406685236769,1,0,"*","*","*","*","*","*"]
["Q82","RTH","OXFORD UNIVERSITY HOSPITALS NHS FOUNDATION TRUST","RTH19","Chipping Norton Community Hospital - RTH19",2,6,0.33333333333333331,"*","*","*","*","*","*","*","*"]
["Q82","RTH","OXFORD UNIVERSITY HOSPITALS NHS FOUNDATION TRUST","RTH05","Horton General Hospital - RTH05",11,13,0.84615384615384615,0.90909090909090906,0,10,0,1,0,0,0]
["Q82","RTH","OXFORD UNIVERSITY HOSPITALS NHS FOUNDATION TRUST","RTH08","John Radcliffe Hospital - RTH08",93,519,0.1791907514450867,1,0,80,13,0,0,0,0]
["Q82","RTH","OXFORD UNIVERSITY HOSPITALS NHS FOUNDATION TRUST","RTHXXX","Non-hospital site - RTHXXX",1,12,8.3333333333333329E-2,"*","*","*","*","*","*","*","*"]
["Q82","RTH","OXFORD UNIVERSITY HOSPITALS NHS FOUNDATION TRUST","RTH16","Wallingford Community Hospital - RTH16",1,7,0.14285714285714285,"*","*","*","*","*","*","*","*"]
["Q82","RTH","OXFORD UNIVERSITY HOSPITALS NHS FOUNDATION TRUST","RTH21","Wantage Community Hospital - RTH21",0,3,0,"NA","NA",0,0,0,0,0,0]
["Q82","RHW","ROYAL BERKSHIRE NHS FOUNDATION TRUST","RHW01","Royal Berkshire Hospital - RHW01",168,400,0.42,0.95833333333333337,1.1904761904761904E-2,131,30,1,2,0,4]
["Q82","RD1","ROYAL UNITED HOSPITALS BATH NHS FOUNDATION TRUST","RD102","Chippenham Community Hospital -RD102",0,15,0,"NA","NA",0,0,0,0,0,0]
["Q82","RD1","ROYAL UNITED HOSPITALS BATH NHS FOUNDATION TRUST","RD121","Frome Community Hospital  - RD121",4,15,0.26666666666666666,"*","*","*","*","*","*","*","*"]
["Q82","RD1","ROYAL UNITED HOSPITALS BATH NHS FOUNDATION TRUST","RD1XXX","Non Hospital Site - RD1XXX",0,6,0,"NA","NA",0,0,0,0,0,0]
["Q82","RD1","ROYAL UNITED HOSPITALS BATH NHS FOUNDATION TRUST","RD129","Paulton Memorial Hospital  - RD129",2,15,0.13333333333333333,"*","*","*","*","*","*","*","*"]
["Q82","RD1","ROYAL UNITED HOSPITALS BATH NHS FOUNDATION TRUST","RD130","Princess Anne Wing RUH  - RD130",57,295,0.19322033898305085,1,0,54,3,0,0,0,0]
["Q82","RD1","ROYAL UNITED HOSPITALS BATH NHS FOUNDATION TRUST","RD108","Trowbridge Community Hospital  - RD108",5,13,0.38461538461538464,1,0,5,0,0,0,0,0]
["Q82","RNZ","SALISBURY NHS FOUNDATION TRUST","RNZXXX","Non-hospital site - RNZXXX",2,11,0.18181818181818182,"*","*","*","*","*","*","*","*"]
["Q82","RNZ","SALISBURY NHS FOUNDATION TRUST","RNZ02","Salisbury District Hospital - RNZ02",2,180,1.1111111111111112E-2,"*","*","*","*","*","*","*","*"]
["Q83","RMC","BOLTON NHS FOUNDATION TRUST","RMC01","Royal Bolton Hospital - RMC01",93,558,0.16666666666666666,0.92473118279569888,6.4516129032258063E-2,81,5,1,1,5,0]
["Q83","RY2","BRIDGEWATER COMMUNITY HEALTHCARE NHS FOUNDATION TRUST","RY28P","Health Care Resource Centre - RY28P",0,0,"NA","NA","NA",0,0,0,0,0,0]
["Q83","RY2","BRIDGEWATER COMMUNITY HEALTHCARE NHS FOUNDATION TRUST","RY2XXX","Non-hospital site - RY2XXX",0,0,"NA","NA","NA",0,0,0,0,0,0]
["Q83","RW3","CENTRAL MANCHESTER UNIVERSITY HOSPITALS NHS FOUNDATION TRUST","RW3XXX","Non-hospital site - RW3XXX",0,8,0,"NA","NA",0,0,0,0,0,0]
["Q83","RW3","CENTRAL MANCHESTER UNIVERSITY HOSPITALS NHS FOUNDATION TRUST","RW3SM","St Mary's Hospital - RW3SM",20,747,2.677376171352075E-2,1,0,15,5,0,0,0,0]
["Q83","RW6","PENNINE ACUTE HOSPITALS NHS TRUST","RW6XXX","Non-hospital site - RW6XXX",0,15,0,"NA","NA",0,0,0,0,0,0]
["Q83","RW6","PENNINE ACUTE HOSPITALS NHS TRUST","RW602","North Manchester General Hospital - RW602",29,304,9.5394736842105268E-2,0.96551724137931039,3.4482758620689655E-2,25,3,0,0,1,0]
["Q83","RW6","PENNINE ACUTE HOSPITALS NHS TRUST","RW603","Royal Oldham Hospital - RW603",70,422,0.16587677725118483,0.87142857142857144,4.2857142857142858E-2,54,7,4,1,2,2]
["Q83","RWJ","STOCKPORT NHS FOUNDATION TRUST","RWJXXX","Non-hospital site - RWJXXX",1,3,0.33333333333333331,"*","*","*","*","*","*","*","*"]
["Q83","RWJ","STOCKPORT NHS FOUNDATION TRUST","RWJ09","Stepping Hill Hospital - RWJ09",149,274,0.54379562043795615,1,0,"*","*","*","*","*","*"]
["Q83","RMP","TAMESIDE AND GLOSSOP INTEGRATED CARE NHS FOUNDATION TRUST","RMP01","Tameside General Hospital - RMP01",71,198,0.35858585858585856,0.9859154929577465,0,49,21,1,0,0,0]
["Q83","RM2","UNIVERSITY HOSPITAL OF SOUTH MANCHESTER NHS FOUNDATION TRUST","RM202","Wythenshawe Hospital - RM202",47,350,0.13428571428571429,1,0,47,0,0,0,0,0]
["Q83","RRF","WRIGHTINGTON, WIGAN AND LEIGH NHS FOUNDATION TRUST","RRF02","Royal Albert Edward Infirmary - RRF02",71,206,0.3446601941747573,0.971830985915493,0,60,9,2,0,0,0]
["Q84","RXL","BLACKPOOL TEACHING HOSPITALS NHS FOUNDATION TRUST","RXL01","Blackpool Victoria Hospital - RXL01",90,255,0.35294117647058826,1,0,"*","*","*","*","*","*"]
["Q84","RXL","BLACKPOOL TEACHING HOSPITALS NHS FOUNDATION TRUST","RXLXXX","Non-hospital site - RXLXXX",1,0,"NA","*","*","*","*","*","*","*","*"]
["Q84","RXR","EAST LANCASHIRE HOSPITALS NHS TRUST","RXR20","Royal Blackburn Hospital - RXR20",152,428,0.35514018691588783,0.98026315789473684,6.5789473684210523E-3,132,17,2,0,1,0]
["Q84","RXN","LANCASHIRE TEACHING HOSPITALS NHS FOUNDATION TRUST","RXN01","Chorley and South Ribble Hospital - RXN01",1,8,0.125,"*","*","*","*","*","*","*","*"]
["Q84","RXN","LANCASHIRE TEACHING HOSPITALS NHS FOUNDATION TRUST","RXN02","Royal Preston Hospital - RXN02",48,245,0.19591836734693877,0.97916666666666663,2.0833333333333332E-2,"*","*","*","*","*","*"]

{"sheet":"Region (Geography) Q3","index":8,"n_rows":26,"n_cols":11,"rows_kept":26,"cut":false,"hidden":false,"merged":[[8,0,9,0],[8,1,9,1],[8,2,9,2],[8,3,9,3],[8,4,9,4],[8,5,8,10]]}
[]
[]
[]
[]
[]
[null,"   Sort data by:           "]
[]
[]
["Region (Geo) Code","Region (Geography)","Total Responses","Percentage Recommended","Percentage Not  Recommended","Breakdown of Responses"]
[null,null,null,null,null,"Extremely Likely","Likely","Neither","Unlikely","Extremely Unlikely","Don't Know"]
[null,"England",11535,0.95058517555266575,1.8638925010836586E-2,8568,2397,219,115,100,136]
[null,"Selection (excluding suppressed data)",{"$f":"SUBTOTAL(9,C13:C40)","v":11535},{"$f":"IFERROR((F12+G12)/SUM(F12:K12), \"-\")","v":0.95058517555266575},{"$f":"IFERROR((I12+J12)/SUM(F12:K12), \"-\")","v":1.8638925010836586E-2},{"$f":"SUBTOTAL(9,F13:F40)","v":8568},{"$f":"SUBTOTAL(9,G13:G40)","v":2397},219,115,100,136]
["Q72","NHS England Yorkshire & Humber",959,0.97184567257559962,1.0427528675703858E-2,752,180,11,7,3,6]
["Q74","NHS England Cumbria & North East",470,0.98297872340425529,8.5106382978723406E-3,399,63,4,2,2,0]
["Q75","NHS England Cheshire & Merseyside",341,0.967741935483871,1.466275659824047E-2,276,54,4,3,2,2]
["Q83","NHS England Greater Manchester",924,0.94913419913419916,2.3809523809523808E-2,717,160,20,8,14,5]
["Q84","NHS England Lancashire",215,0.93488372093023253,3.255813953488372E-2,160,41,7,3,4,0]
["Q76","NHS England North Midlands",697,0.97991391678622664,4.30416068866571E-3,536,147,8,1,2,3]
["Q77","NHS England West Midlands",946,0.94397463002114168,2.748414376321353E-2,654,239,18,11,15,9]
["Q78","NHS England Central Midlands",1092,0.92032967032967028,2.7472527472527472E-2,743,262,35,16,14,22]
["Q79","NHS England East",1074,0.95716945996275604,1.3035381750465549E-2,833,195,18,8,6,14]
["Q80","NHS England South West",478,0.96234309623430958,1.6736401673640166E-2,367,93,9,2,6,1]
["Q81","NHS England South East",1335,0.95280898876404496,1.0486891385767791E-2,1089,183,14,11,3,35]
["Q82","NHS England South Central",477,0.96016771488469599,1.2578616352201259E-2,348,110,6,5,1,7]
["Q70","NHS England Wessex",650,0.9538461538461539,2.4615384615384615E-2,512,108,8,8,8,6]
["Q71","NHS England London",1877,0.92914224826851355,2.6638252530633989E-2,1182,562,57,30,20,26]

{"sheet":"Trusts Q3","index":9,"n_rows":146,"n_cols":19,"rows_kept":146,"cut":false,"hidden":false,"merged":[[8,6,8,11],[8,12,8,18],[8,0,9,0],[8,1,9,1],[8,2,9,2],[8,3,9,3],[8,4,9,4],[8,5,9,5]]}
[]
[]
[]
[]
[]
[null,"   Sort data by:           "]
[]
[]
["Region (Geo) Code","Trust Code","Trust Name","Total Responses","Percentage Recommended","Percentage Not  Recommended","Breakdown of Responses",null,null,null,null,null,"Mode of Collection"]
[null,null,null,null,null,null,"Extremely Likely","Likely","Neither","Unlikely","Extremely Unlikely","Don't Know","SMS/Text / Smartphone App","Electronic tablet/kiosk at point of discharge","Paper / postcard at point of discharge","Paper survey sent to the patients home","Telephone survey once patient is home","Online survey once patient is home","Other"]
[null,null,"England",11535,0.95058517555266575,1.8638925010836586E-2,8568,2397,219,115,100,136,936,2478,7094,663,1,170,193]
[null,null,"Selection (excluding suppressed data)",{"$f":"SUBTOTAL(9,D13:D299)","v":11535},{"$f":"IFERROR((G12+H12)/SUM(G12:L12), \"-\")","v":0.95049074958742297},{"$f":"IFERROR((J12+K12)/SUM(G12:L12), \"-\")","v":1.8674541822287848E-2},{"$f":"SUBTOTAL(9,G13:G299)","v":8550},{"$f":"SUBTOTAL(9,H13:H299)","v":2393},219,115,100,136,936,2475,7075,663,1,170,193]
["Q70","RBD","DORSET COUNTY HOSPITAL NHS FOUNDATION TRUST",44,0.90909090909090906,6.8181818181818177E-2,34,6,0,1,2,1,44,0,0,0,0,0,0]
["Q70","RN5","HAMPSHIRE HOSPITALS NHS FOUNDATION TRUST",165,0.98181818181818181,0,142,20,2,0,0,1,0,0,165,0,0,0,0]
["Q70","R1F","ISLE OF WIGHT NHS TRUST",15,1,0,13,2,0,0,0,0,0,0,15,0,0,0,0]
["Q70","RD3","POOLE HOSPITAL NHS FOUNDATION TRUST",117,0.90598290598290598,5.128205128205128E-2,80,26,3,1,5,2,88,0,29,0,0,0,0]
["Q70","RHU","PORTSMOUTH HOSPITALS NHS TRUST",149,0.95302013422818788,2.6845637583892617E-2,122,20,1,4,0,2,0,0,148,0,0,1,0]
["Q70","RDZ","THE ROYAL BOURNEMOUTH AND CHRISTCHURCH HOSPITALS NHS FOUNDATION TRUST",0,"NA","NA",0,0,0,0,0,0,0,0,0,0,0,0,0]
["Q70","RHM","UNIVERSITY HOSPITAL SOUTHAMPTON NHS FOUNDATION TRUST",160,0.96875,1.8749999999999999E-2,121,34,2,2,1,0,0,0,157,0,0,3,0]
["Q71","RF4","BARKING, HAVERING AND REDBRIDGE UNIVERSITY HOSPITALS NHS TRUST",193,0.9689119170984456,5.1813471502590676E-3,131,56,1,1,0,4,0,0,193,0,0,0,0]
["Q71","R1H","BARTS HEALTH NHS TRUST",120,0.94166666666666665,2.5000000000000001E-2,74,39,2,2,1,2,0,66,54,0,0,0,0]
["Q71","RQM","CHELSEA AND WESTMINSTER HOSPITAL NHS FOUNDATION TRUST",179,0.9050279329608939,6.1452513966480445E-2,135,27,6,6,5,0,152,0,27,0,0,0,0]
["Q71","RJ6","CROYDON HEALTH SERVICES NHS TRUST",227,0.92070484581497802,3.5242290748898682E-2,138,71,8,6,2,2,0,0,227,0,0,0,0]
["Q71","RVR","EPSOM AND ST HELIER UNIVERSITY HOSPITALS NHS TRUST",27,1,0,24,3,0,0,0,0,0,0,27,0,0,0,0]
["Q71","RJ1","GUY'S AND ST THOMAS' NHS FOUNDATION TRUST",35,0.91428571428571426,2.8571428571428571E-2,16,16,1,1,0,1,0,0,35,0,0,0,0]
["Q71","RQX","HOMERTON UNIVERSITY HOSPITAL NHS FOUNDATION TRUST",91,0.90109890109890112,4.3956043956043959E-2,52,30,4,0,4,1,0,91,0,0,0,0,0]
["Q71","RYJ","IMPERIAL COLLEGE HEALTHCARE NHS TRUST",183,0.92349726775956287,2.7322404371584699E-2,89,80,8,4,1,1,1,146,36,0,0,0,0]
["Q71","RJZ","KING'S COLLEGE HOSPITAL NHS FOUNDATION TRUST",104,0.95192307692307687,1.9230769230769232E-2,72,27,2,1,1,1,0,97,7,0,0,0,0]
["Q71","RAX","KINGSTON HOSPITAL NHS FOUNDATION TRUST",45,0.97777777777777775,0,34,10,1,0,0,0,0,45,0,0,0,0,0]
["Q71","RJ2","LEWISHAM AND GREENWICH NHS TRUST",192,0.88541666666666663,2.6041666666666668E-2,105,65,10,3,2,7,0,0,192,0,0,0,0]
["Q71","R1K","LONDON NORTH WEST HEALTHCARE NHS TRUST",0,"NA","NA",0,0,0,0,0,0,0,0,0,0,0,0,0]
["Q71","RAP","NORTH MIDDLESEX UNIVERSITY HOSPITAL NHS TRUST",7,0.7142857142857143,0.14285714285714285,2,3,0,0,1,1,0,7,0,0,0,0,0]
["Q71","RAL","ROYAL FREE LONDON NHS FOUNDATION TRUST",142,0.95070422535211263,2.1126760563380281E-2,89,46,4,2,1,0,0,0,142,0,0,0,0]
["Q71","RJ7","ST GEORGE'S UNIVERSITY HOSPITALS NHS FOUNDATION TRUST",34,0.94117647058823528,0,19,13,2,0,0,0,0,34,0,0,0,0,0]
["Q71","RAS","THE HILLINGDON HOSPITALS NHS FOUNDATION TRUST",53,1,0,39,14,0,0,0,0,0,0,53,0,0,0,0]
["Q71","RKE","THE WHITTINGTON HOSPITAL NHS TRUST",115,0.87826086956521743,4.3478260869565216E-2,63,38,5,4,1,4,0,115,0,0,0,0,0]
["Q71","RRV","UNIVERSITY COLLEGE LONDON HOSPITALS NHS FOUNDATION TRUST",130,0.9538461538461539,7.6923076923076927E-3,100,24,3,0,1,2,0,0,130,0,0,0,0]
["Q72","RCF","AIREDALE NHS FOUNDATION TRUST",20,0.9,0,16,2,2,0,0,0,0,1,19,0,0,0,0]
["Q72","RFF","BARNSLEY HOSPITAL NHS FOUNDATION TRUST",52,1,0,44,8,0,0,0,0,0,0,52,0,0,0,0]
["Q72","RAE","BRADFORD TEACHING HOSPITALS NHS FOUNDATION TRUST",13,0.84615384615384615,7.6923076923076927E-2,5,6,0,1,0,1,0,9,4,0,0,0,0]
["Q72","RWY","CALDERDALE AND HUDDERSFIELD NHS FOUNDATION TRUST",225,0.97333333333333338,0,174,45,5,0,0,1,0,225,0,0,0,0,0]
["Q72","RP5","DONCASTER AND BASSETLAW TEACHING HOSPITALS NHS FOUNDATION TRUST",129,0.98449612403100772,1.5503875968992248E-2,99,28,0,2,0,0,0,0,129,0,0,0,0]
["Q72","RCD","HARROGATE AND DISTRICT NHS FOUNDATION TRUST",21,1,0,20,1,0,0,0,0,0,0,21,0,0,0,0]
["Q72","RWA","HULL AND EAST YORKSHIRE HOSPITALS NHS TRUST",17,1,0,16,1,0,0,0,0,0,0,17,0,0,0,0]
["Q72","RR8","LEEDS TEACHING HOSPITALS NHS TRUST",75,0.97333333333333338,0,57,16,1,0,0,1,0,0,75,0,0,0,0]
["Q72","RXF","MID YORKSHIRE HOSPITALS NHS TRUST",66,1,0,45,21,0,0,0,0,0,0,66,0,0,0,0]
["Q72","RJL","NORTHERN LINCOLNSHIRE AND GOOLE NHS FOUNDATION TRUST",43,0.95348837209302328,4.6511627906976744E-2,33,8,0,1,1,0,0,0,0,43,0,0,0]
["Q72","RHQ","SHEFFIELD TEACHING HOSPITALS NHS FOUNDATION TRUST",137,0.93430656934306566,2.1897810218978103E-2,114,14,3,1,2,3,0,0,136,0,0,1,0]
["Q72","RFR","THE ROTHERHAM NHS FOUNDATION TRUST",77,1,0,61,16,0,0,0,0,0,0,77,0,0,0,0]
["Q72","RCB","YORK TEACHING HOSPITAL NHS FOUNDATION TRUST",84,0.97619047619047616,2.3809523809523808E-2,68,14,0,2,0,0,0,0,84,0,0,0,0]
["Q74","RLN","CITY HOSPITALS SUNDERLAND NHS FOUNDATION TRUST",42,1,0,40,2,0,0,0,0,0,0,42,0,0,0,0]
["Q74","RXP","COUNTY DURHAM AND DARLINGTON NHS FOUNDATION TRUST",42,1,0,32,10,0,0,0,0,0,0,42,0,0,0,0]
["Q74","RR7","GATESHEAD HEALTH NHS FOUNDATION TRUST",40,0.97499999999999998,0,32,7,1,0,0,0,0,13,27,0,0,0,0]
["Q74","RNL","NORTH CUMBRIA UNIVERSITY HOSPITALS NHS TRUST",79,0.98734177215189878,0,65,13,1,0,0,0,0,0,62,0,0,0,17]
["Q74","RVW","NORTH TEES AND HARTLEPOOL NHS FOUNDATION TRUST",18,0.88888888888888884,0.1111111111111111,12,4,0,1,1,0,0,0,18,0,0,0,0]
["Q74","RTF","NORTHUMBRIA HEALTHCARE NHS FOUNDATION TRUST",31,1,0,29,2,0,0,0,0,0,0,31,0,0,0,0]
["Q74","RTR","SOUTH TEES HOSPITALS NHS FOUNDATION TRUST",20,1,0,20,0,0,0,0,0,0,0,20,0,0,0,0]
["Q74","RE9","SOUTH TYNESIDE NHS FOUNDATION TRUST",21,1,0,19,2,0,0,0,0,0,0,21,0,0,0,0]
["Q74","RTD","THE NEWCASTLE UPON TYNE HOSPITALS NHS FOUNDATION TRUST",158,0.97468354430379744,1.2658227848101266E-2,135,19,2,1,1,0,0,0,158,0,0,0,0]
["Q74","RTX","UNIVERSITY HOSPITALS OF MORECAMBE BAY NHS FOUNDATION TRUST",19,1,0,15,4,0,0,0,0,0,0,19,0,0,0,0]
["Q75","RJR","COUNTESS OF CHESTER HOSPITAL NHS FOUNDATION TRUST",62,0.93548387096774188,4.8387096774193547E-2,47,11,1,2,1,0,32,0,0,30,0,0,0]
["Q75","RJN","EAST CHESHIRE NHS TRUST",16,1,0,14,2,0,0,0,0,0,0,16,0,0,0,0]
["Q75","REP","LIVERPOOL WOMEN'S NHS FOUNDATION TRUST",5,0.8,0.2,3,1,0,1,0,0,0,0,5,0,0,0,0]
["Q75","RBT","MID CHESHIRE HOSPITALS NHS FOUNDATION TRUST",19,1,0,15,4,0,0,0,0,0,0,19,0,0,0,0]
["Q75","RVY","SOUTHPORT AND ORMSKIRK HOSPITAL NHS TRUST",21,1,0,16,5,0,0,0,0,0,7,14,0,0,0,0]
["Q75","RBN","ST HELENS AND KNOWSLEY HOSPITAL SERVICES NHS TRUST",32,0.875,3.125E-2,21,7,1,0,1,2,0,0,32,0,0,0,0]
["Q75","RWW","WARRINGTON AND HALTON HOSPITALS NHS FOUNDATION TRUST",54,0.98148148148148151,0,44,9,1,0,0,0,0,0,54,0,0,0,0]
["Q75","RBL","WIRRAL UNIVERSITY TEACHING HOSPITAL NHS FOUNDATION TRUST",132,0.99242424242424243,0,116,15,1,0,0,0,0,0,132,0,0,0,0]
["Q76","RJF","BURTON HOSPITALS NHS FOUNDATION TRUST",92,0.98913043478260865,1.0869565217391304E-2,83,8,0,0,1,0,1,0,91,0,0,0,0]
["Q76","RFS","CHESTERFIELD ROYAL HOSPITAL NHS FOUNDATION TRUST",35,0.97142857142857142,0,26,8,1,0,0,0,0,31,4,0,0,0,0]
["Q76","RTG","DERBY TEACHING HOSPITALS NHS FOUNDATION TRUST",177,0.97740112994350281,5.6497175141242938E-3,122,51,1,0,1,2,1,0,176,0,0,0,0]
["Q76","RX1","NOTTINGHAM UNIVERSITY HOSPITALS NHS TRUST",149,0.96644295302013428,6.7114093959731542E-3,104,40,4,1,0,0,0,0,0,0,0,149,0]
["Q76","RK5","SHERWOOD FOREST HOSPITALS NHS FOUNDATION TRUST",72,0.98611111111111116,0,61,10,1,0,0,0,0,0,72,0,0,0,0]
["Q76","RXW","SHREWSBURY AND TELFORD HOSPITAL NHS TRUST",114,1,0,102,12,0,0,0,0,0,0,114,0,0,0,0]
["Q76","RJE","UNIVERSITY HOSPITALS OF NORTH MIDLANDS NHS TRUST",58,0.96551724137931039,0,38,18,1,0,0,1,0,0,58,0,0,0,0]
["Q77","RQ3","BIRMINGHAM WOMEN'S AND CHILDREN'S NHS FOUNDATION TRUST",0,"NA","NA",0,0,0,0,0,0,0,0,0,0,0,0,0]
["Q77","RLT","GEORGE ELIOT HOSPITAL NHS TRUST",156,0.94871794871794868,1.9230769230769232E-2,116,32,3,1,2,2,61,0,95,0,0,0,0]
["Q77","RR1","HEART OF ENGLAND NHS FOUNDATION TRUST",137,0.93430656934306566,3.6496350364963501E-2,65,63,3,4,1,1,0,0,137,0,0,0,0]
["Q77","RXK","SANDWELL AND WEST BIRMINGHAM HOSPITALS NHS TRUST",58,0.91379310344827591,0,29,24,4,0,0,1,0,58,0,0,0,0,0]
["Q77","RJC","SOUTH WARWICKSHIRE NHS FOUNDATION TRUST",72,0.95833333333333337,1.3888888888888888E-2,57,12,0,1,0,2,0,0,70,0,0,2,0]
["Q77","RNA","THE DUDLEY GROUP NHS FOUNDATION TRUST",123,0.97560975609756095,1.6260162601626018E-2,111,9,1,2,0,0,0,0,123,0,0,0,0]
["Q77","RL4","THE ROYAL WOLVERHAMPTON NHS TRUST",124,0.90322580645161288,7.2580645161290328E-2,87,25,2,2,7,1,56,0,68,0,0,0,0]
["Q77","RKB","UNIVERSITY HOSPITALS COVENTRY AND WARWICKSHIRE NHS TRUST",165,0.97575757575757571,1.2121212121212121E-2,108,53,0,0,2,2,0,0,165,0,0,0,0]
["Q77","RBK","WALSALL HEALTHCARE NHS TRUST",19,0.63157894736842102,0.21052631578947367,9,3,3,1,3,0,19,0,0,0,0,0,0]
["Q77","RWP","WORCESTERSHIRE ACUTE HOSPITALS NHS TRUST",37,0.94594594594594594,0,30,5,2,0,0,0,0,0,37,0,0,0,0]
["Q77","RLQ","WYE VALLEY NHS TRUST",55,1,0,42,13,0,0,0,0,0,55,0,0,0,0,0]
["Q78","RC1","BEDFORD HOSPITAL NHS TRUST",60,0.96666666666666667,1.6666666666666666E-2,49,9,1,0,1,0,60,0,0,0,0,0,0]
["Q78","RWH","EAST AND NORTH HERTFORDSHIRE NHS TRUST",214,0.88785046728971961,2.336448598130841E-2,127,63,12,5,0,7,0,214,0,0,0,0,0]
["Q78","RNQ","KETTERING GENERAL HOSPITAL NHS FOUNDATION TRUST",42,0.97619047619047616,2.3809523809523808E-2,35,6,0,0,1,0,0,0,42,0,0,0,0]
["Q78","RC9","LUTON AND DUNSTABLE UNIVERSITY HOSPITAL NHS FOUNDATION TRUST",39,0.97435897435897434,2.564102564102564E-2,31,7,0,1,0,0,0,28,11,0,0,0,0]
["Q78","RD8","MILTON KEYNES UNIVERSITY HOSPITAL NHS FOUNDATION TRUST",43,0.95348837209302328,0,32,9,2,0,0,0,0,0,39,0,0,4,0]
["Q78","RNS","NORTHAMPTON GENERAL HOSPITAL NHS TRUST",63,0.98412698412698407,0,55,7,1,0,0,0,0,0,63,0,0,0,0]
["Q78","RWD","UNITED LINCOLNSHIRE HOSPITALS NHS TRUST",58,0.81034482758620685,0.1206896551724138,38,9,3,5,2,1,0,0,58,0,0,0,0]
["Q78","RWE","UNIVERSITY HOSPITALS OF LEICESTER NHS TRUST",420,0.91666666666666663,2.6190476190476191E-2,275,110,12,4,7,12,0,420,0,0,0,0,0]
["Q78","RWG","WEST HERTFORDSHIRE HOSPITALS NHS TRUST",153,0.934640522875817,2.6143790849673203E-2,101,42,4,1,3,2,0,0,152,0,0,1,0]
["Q79","RDD","BASILDON AND THURROCK UNIVERSITY HOSPITALS NHS FOUNDATION TRUST",155,0.94838709677419353,1.2903225806451613E-2,115,32,3,1,1,3,0,0,155,0,0,0,0]
["Q79","RGT","CAMBRIDGE UNIVERSITY HOSPITALS NHS FOUNDATION TRUST",161,0.96894409937888204,1.2422360248447204E-2,116,40,3,2,0,0,0,158,3,0,0,0,0]
["Q79","RDE","COLCHESTER HOSPITAL UNIVERSITY NHS FOUNDATION TRUST",66,0.93939393939393945,1.5151515151515152E-2,38,24,2,1,0,1,0,0,66,0,0,0,0]
["Q79","RGQ","IPSWICH HOSPITAL NHS TRUST",105,0.96190476190476193,0,80,21,4,0,0,0,0,103,0,0,0,2,0]
["Q79","RGP","JAMES PAGET UNIVERSITY HOSPITALS NHS FOUNDATION TRUST",35,1,0,30,5,0,0,0,0,0,0,35,0,0,0,0]
["Q79","RQ8","MID ESSEX HOSPITAL SERVICES NHS TRUST",57,0.91228070175438591,8.771929824561403E-2,48,4,0,1,4,0,57,0,0,0,0,0,0]
["Q79","RM1","NORFOLK AND NORWICH UNIVERSITY HOSPITALS NHS FOUNDATION TRUST",41,1,0,39,2,0,0,0,0,0,39,2,0,0,0,0]
["Q79","RGN","NORTH WEST ANGLIA NHS FOUNDATION TRUST",200,0.97,1.4999999999999999E-2,164,30,2,2,1,1,0,0,198,0,0,2,0]
["Q79","RAJ","SOUTHEND UNIVERSITY HOSPITAL NHS FOUNDATION TRUST",7,1,0,"*","*","*","*","*","*","*","*","*","*","*","*","*"]
["Q79","RQW","THE PRINCESS ALEXANDRA HOSPITAL NHS TRUST",176,0.94886363636363635,0,148,19,0,0,0,9,0,0,0,0,0,0,176]
["Q79","RCX","THE QUEEN ELIZABETH HOSPITAL, KING'S LYNN, NHS FOUNDATION TRUST",68,0.92647058823529416,1.4705882352941176E-2,45,18,4,1,0,0,0,0,68,0,0,0,0]
["Q79","RGR","WEST SUFFOLK NHS FOUNDATION TRUST",3,"*","*","*","*","*","*","*","*","*","*","*","*","*","*","*"]
["Q80","RVJ","NORTH BRISTOL NHS TRUST",91,0.93406593406593408,5.4945054945054944E-2,73,12,1,1,4,0,75,0,16,0,0,0,0]
["Q80","RBZ","NORTHERN DEVON HEALTHCARE NHS TRUST",18,1,0,15,3,0,0,0,0,0,0,18,0,0,0,0]
["Q80","RK9","PLYMOUTH HOSPITALS NHS TRUST",75,0.97333333333333338,0,48,25,2,0,0,0,0,58,17,0,0,0,0]
["Q80","REF","ROYAL CORNWALL HOSPITALS NHS TRUST",50,0.9,0.04,38,7,3,1,1,0,0,0,50,0,0,0,0]
["Q80","RH8","ROYAL DEVON AND EXETER NHS FOUNDATION TRUST",1,"*","*","*","*","*","*","*","*","*","*","*","*","*","*","*"]
["Q80","RBA","TAUNTON AND SOMERSET NHS FOUNDATION TRUST",73,1,0,60,13,0,0,0,0,0,0,73,0,0,0,0]
["Q80","RA9","TORBAY AND SOUTH DEVON NHS FOUNDATION TRUST",5,1,0,"*","*","*","*","*","*","*","*","*","*","*","*","*"]
["Q80","RA7","UNIVERSITY HOSPITALS BRISTOL NHS FOUNDATION TRUST",87,0.96551724137931039,0,67,17,2,0,0,1,0,0,87,0,0,0,0]
["Q80","RA3","WESTON AREA HEALTH NHS TRUST",13,1,0,12,1,0,0,0,0,0,0,13,0,0,0,0]
["Q80","RA4","YEOVIL DISTRICT HOSPITAL NHS FOUNDATION TRUST",65,0.96923076923076923,1.5384615384615385E-2,50,13,1,0,1,0,0,35,30,0,0,0,0]
["Q81","RTK","ASHFORD AND ST PETER'S HOSPITALS NHS FOUNDATION TRUST",0,"NA","NA",0,0,0,0,0,0,0,0,0,0,0,0,0]
["Q81","RXH","BRIGHTON AND SUSSEX UNIVERSITY HOSPITALS NHS TRUST",63,0.90476190476190477,4.7619047619047616E-2,50,7,3,2,1,0,63,0,0,0,0,0,0]
["Q81","RN7","DARTFORD AND GRAVESHAM NHS TRUST",89,1,0,73,16,0,0,0,0,0,0,89,0,0,0,0]
["Q81","RVV","EAST KENT HOSPITALS UNIVERSITY NHS FOUNDATION TRUST",201,0.94029850746268662,9.9502487562189053E-3,169,20,0,2,0,10,0,0,0,201,0,0,0]
["Q81","RXC","EAST SUSSEX HEALTHCARE NHS TRUST",111,0.98198198198198194,9.0090090090090089E-3,81,28,0,0,1,1,0,110,0,0,0,1,0]
["Q81","RDU","FRIMLEY HEALTH NHS FOUNDATION TRUST",164,0.87804878048780488,6.0975609756097563E-3,125,19,4,1,0,15,0,0,164,0,0,0,0]
["Q81","RWF","MAIDSTONE AND TUNBRIDGE WELLS NHS TRUST",169,0.95857988165680474,0,145,17,0,0,0,7,0,0,167,0,0,2,0]
["Q81","RPA","MEDWAY NHS FOUNDATION TRUST",145,0.97931034482758617,6.8965517241379309E-3,126,16,2,1,0,0,0,0,0,145,0,0,0]
["Q81","RA2","ROYAL SURREY COUNTY HOSPITAL NHS FOUNDATION TRUST",124,0.94354838709677424,3.2258064516129031E-2,100,17,3,3,1,0,74,0,50,0,0,0,0]
["Q81","RTP","SURREY AND SUSSEX HEALTHCARE NHS TRUST",96,0.95833333333333337,1.0416666666666666E-2,69,23,2,1,0,1,0,0,96,0,0,0,0]
["Q81","RYR","WESTERN SUSSEX HOSPITALS NHS FOUNDATION TRUST",173,0.98843930635838151,5.7803468208092483E-3,151,20,0,1,0,1,0,0,172,0,0,1,0]
["Q82","RXQ","BUCKINGHAMSHIRE HEALTHCARE NHS TRUST",188,0.97872340425531912,1.0638297872340425E-2,140,44,2,2,0,0,0,0,188,0,0,0,0]
["Q82","RTE","GLOUCESTERSHIRE HOSPITALS NHS FOUNDATION TRUST",0,"NA","NA",0,0,0,0,0,0,0,0,0,0,0,0,0]
["Q82","RN3","GREAT WESTERN HOSPITALS NHS FOUNDATION TRUST",5,1,0,"*","*","*","*","*","*","*","*","*","*","*","*","*"]
["Q82","RTH","OXFORD UNIVERSITY HOSPITALS NHS FOUNDATION TRUST",103,0.89320388349514568,9.7087378640776691E-3,74,18,3,1,0,7,0,0,102,0,0,1,0]
["Q82","RHW","ROYAL BERKSHIRE NHS FOUNDATION TRUST",129,0.97674418604651159,1.5503875968992248E-2,84,42,1,1,1,0,0,84,45,0,0,0,0]
["Q82","RD1","ROYAL UNITED HOSPITALS BATH NHS FOUNDATION TRUST",51,0.98039215686274506,1.9607843137254902E-2,46,4,0,1,0,0,0,0,51,0,0,0,0]
["Q82","RNZ","SALISBURY NHS FOUNDATION TRUST",1,"*","*","*","*","*","*","*","*","*","*","*","*","*","*","*"]
["Q83","RMC","BOLTON NHS FOUNDATION TRUST",150,0.92666666666666664,0.04,103,36,5,1,5,0,26,0,0,124,0,0,0]
["Q83","RY2","BRIDGEWATER COMMUNITY HEALTHCARE NHS FOUNDATION TRUST",0,"NA","NA",0,0,0,0,0,0,0,0,0,0,0,0,0]
["Q83","RW3","CENTRAL MANCHESTER UNIVERSITY HOSPITALS NHS FOUNDATION TRUST",386,0.98186528497409331,5.1813471502590676E-3,313,66,2,1,1,3,0,130,256,0,0,0,0]
["Q83","RW6","PENNINE ACUTE HOSPITALS NHS TRUST",139,0.87050359712230219,8.6330935251798566E-2,98,23,5,5,7,1,59,0,80,0,0,0,0]
["Q83","RWJ","STOCKPORT NHS FOUNDATION TRUST",120,0.96666666666666667,8.3333333333333332E-3,104,12,2,1,0,1,0,0,0,120,0,0,0]
["Q83","RMP","TAMESIDE AND GLOSSOP INTEGRATED CARE NHS FOUNDATION TRUST",53,0.8867924528301887,1.8867924528301886E-2,31,16,5,0,1,0,0,42,11,0,0,0,0]
["Q83","RM2","UNIVERSITY HOSPITAL OF SOUTH MANCHESTER NHS FOUNDATION TRUST",10,1,0,8,2,0,0,0,0,0,0,10,0,0,0,0]
["Q83","RRF","WRIGHTINGTON, WIGAN AND LEIGH NHS FOUNDATION TRUST",66,0.98484848484848486,0,60,5,1,0,0,0,0,0,66,0,0,0,0]
["Q84","RXL","BLACKPOOL TEACHING HOSPITALS NHS FOUNDATION TRUST",91,0.94505494505494503,2.197802197802198E-2,58,28,3,2,0,0,0,54,37,0,0,0,0]
["Q84","RXR","EAST LANCASHIRE HOSPITALS NHS TRUST",75,0.90666666666666662,5.3333333333333337E-2,59,9,3,0,4,0,19,0,56,0,0,0,0]
["Q84","RXN","LANCASHIRE TEACHING HOSPITALS NHS FOUNDATION TRUST",49,0.95918367346938771,2.0408163265306121E-2,43,4,1,1,0,0,48,0,0,0,1,0,0]

{"sheet":"Sites Q3","index":10,"n_rows":204,"n_cols":14,"rows_kept":204,"cut":false,"hidden":false,"merged":[[8,6,9,6],[8,7,9,7],[8,8,8,13],[8,0,9,0],[8,1,9,1],[8,2,9,2],[8,3,9,3],[8,4,9,4],[8,5,9,5]]}
[]
[]
[]
[]
[]
[null,"   Sort data by:           "]
[]
[]
["Region (Geo) Code","Trust Code","Trust Name","Site Code","Site Name","Total Responses","Percentage Recommended","Percentage Not  Recommended","Breakdown of Responses"]
[null,null,null,null,null,null,null,null,"Extremely Likely","Likely","Neither","Unlikely","Extremely Unlikely","Don't Know"]
[null,null,null,null,"England",11535,0.95058517555266575,1.8638925010836586E-2,8568,2397,219,115,100,136]
[null,null,null,null,"Selection (excluding suppressed data)",{"$f":"SUBTOTAL(9,F13:F298)","v":11535},{"$f":"IFERROR((I12+J12)/SUM(I12:N12), \"-\")","v":0.95050460728389641},{"$f":"IFERROR((L12+M12)/SUM(I12:N12), \"-\")","v":1.8780166739798158E-2},{"$f":"SUBTOTAL(9,I13:I298)","v":8449},{"$f":"SUBTOTAL(9,J13:J298)","v":2382},217,114,100,133]
["Q70","RBD","DORSET COUNTY HOSPITAL NHS FOUNDATION TRUST","RBD01","Dorset County Hospital - RBD01",44,0.90909090909090906,6.8181818181818177E-2,34,6,0,1,2,1]
["Q70","RN5","HAMPSHIRE HOSPITALS NHS FOUNDATION TRUST","RN542","Andover War Memorial Hospital - RN542",0,"NA","NA",0,0,0,0,0,0]
["Q70","RN5","HAMPSHIRE HOSPITALS NHS FOUNDATION TRUST","RN506","Basingstoke and North Hampshire Hospital - RN506",114,0.97368421052631582,0,100,11,2,0,0,1]
["Q70","RN5","HAMPSHIRE HOSPITALS NHS FOUNDATION TRUST","RN541","Royal Hampshire County Hospital - RN541",51,1,0,42,9,0,0,0,0]
["Q70","R1F","ISLE OF WIGHT NHS TRUST","R1F01","St Mary's Hospital - R1F01",15,1,0,13,2,0,0,0,0]
["Q70","RD3","POOLE HOSPITAL NHS FOUNDATION TRUST","RD304","Poole General Hospital NHS Trust HQ - RD304",117,0.90598290598290598,5.128205128205128E-2,80,26,3,1,5,2]
["Q70","RHU","PORTSMOUTH HOSPITALS NHS TRUST","RHU10","Gosport War Memorial Hospital - RHU10",3,"*","*","*","*","*","*","*","*"]
["Q70","RHU","PORTSMOUTH HOSPITALS NHS TRUST","RHU04","Petersfield Community Hospital - RHU04",0,"NA","NA",0,0,0,0,0,0]
["Q70","RHU","PORTSMOUTH HOSPITALS NHS TRUST","RHU03","Queen Alexandra Hospital - RHU03",145,0.9517241379310345,2.7586206896551724E-2,118,20,1,4,0,2]
["Q70","RHU","PORTSMOUTH HOSPITALS NHS TRUST","RHU02","St Mary's Hospital - RHU02",1,"*","*","*","*","*","*","*","*"]
["Q70","RDZ","THE ROYAL BOURNEMOUTH AND CHRISTCHURCH HOSPITALS NHS FOUNDATION TRUST","RDZ20","Royal Bournemouth General Hospital - RDZ20",0,"NA","NA",0,0,0,0,0,0]
["Q70","RHM","UNIVERSITY HOSPITAL SOUTHAMPTON NHS FOUNDATION TRUST","RHM12","Princess Anne Hospital - RHM12",160,0.96875,1.8749999999999999E-2,121,34,2,2,1,0]
["Q71","RF4","BARKING, HAVERING AND REDBRIDGE UNIVERSITY HOSPITALS NHS TRUST","RF4QH","Queen's Hospital - RF4QH",193,0.9689119170984456,5.1813471502590676E-3,131,56,1,1,0,4]
["Q71","R1H","BARTS HEALTH NHS TRUST","R1HNH","Newham General Hospital - R1HNH",74,0.97297297297297303,1.3513513513513514E-2,51,21,1,1,0,0]
["Q71","R1H","BARTS HEALTH NHS TRUST","R1H12","The Royal London Hospital - R1H12",29,0.82758620689655171,6.8965517241379309E-2,13,11,1,1,1,2]
["Q71","R1H","BARTS HEALTH NHS TRUST","R1HKH","Whipps Cross University Hospital - R1HKH",17,1,0,10,7,0,0,0,0]
["Q71","RQM","CHELSEA AND WESTMINSTER HOSPITAL NHS FOUNDATION TRUST","RQM01","Chelsea and Westminster Hospital - RQM01",117,0.92307692307692313,5.128205128205128E-2,88,20,3,4,2,0]
["Q71","RQM","CHELSEA AND WESTMINSTER HOSPITAL NHS FOUNDATION TRUST","RQM91","West Middlesex University Hospital - RQM91",62,0.87096774193548387,8.0645161290322578E-2,47,7,3,2,3,0]
["Q71","RJ6","CROYDON HEALTH SERVICES NHS TRUST","RJ611","Croydon University Hospital - RJ611",227,0.92070484581497802,3.5242290748898682E-2,138,71,8,6,2,2]
["Q71","RVR","EPSOM AND ST HELIER UNIVERSITY HOSPITALS NHS TRUST","RVR50","Epsom Hospital - RVR50",21,1,0,19,2,0,0,0,0]
["Q71","RVR","EPSOM AND ST HELIER UNIVERSITY HOSPITALS NHS TRUST","RVR05","St Helier Hospital - RVR05",6,1,0,5,1,0,0,0,0]
["Q71","RJ1","GUY'S AND ST THOMAS' NHS FOUNDATION TRUST","RJ122","St Thomas' Hospital - RJ122",35,0.91428571428571426,2.8571428571428571E-2,16,16,1,1,0,1]
["Q71","RQX","HOMERTON UNIVERSITY HOSPITAL NHS FOUNDATION TRUST","RQXM1","Homerton University Hospital - RQXM1",91,0.90109890109890112,4.3956043956043959E-2,52,30,4,0,4,1]
["Q71","RYJ","IMPERIAL COLLEGE HEALTHCARE NHS TRUST","RYJ04","Queen Charlotte's Hospital - RYJ04",50,0.96,0,33,15,2,0,0,0]
["Q71","RYJ","IMPERIAL COLLEGE HEALTHCARE NHS TRUST","RYJ01","St Mary's Hospital (HQ) - RYJ01",133,0.90977443609022557,3.7593984962406013E-2,56,65,6,4,1,1]
["Q71","RJZ","KING'S COLLEGE HOSPITAL NHS FOUNDATION TRUST","RJZ01","King's College Hospital (Denmark Hill) - RJZ01",10,0.8,0.1,7,1,1,1,0,0]
["Q71","RJZ","KING'S COLLEGE HOSPITAL NHS FOUNDATION TRUST","RJZ30","Princess Royal University Hospital - RJZ30",94,0.96808510638297873,1.0638297872340425E-2,65,26,1,0,1,1]
["Q71","RAX","KINGSTON HOSPITAL NHS FOUNDATION TRUST","RAX01","Kingston Hospital - RAX01",45,0.97777777777777775,0,34,10,1,0,0,0]
["Q71","RJ2","LEWISHAM AND GREENWICH NHS TRUST","RJ231","Queen Elizabeth Hospital - RJ231",59,0.89830508474576276,5.0847457627118647E-2,37,16,2,2,1,1]
["Q71","RJ2","LEWISHAM AND GREENWICH NHS TRUST","RJ224","University Hospital Lewisham - RJ224",133,0.87969924812030076,1.5037593984962405E-2,68,49,8,1,1,6]
["Q71","R1K","LONDON NORTH WEST HEALTHCARE NHS TRUST","R1K04","Ealing Hospital - R1K04",0,"NA","NA",0,0,0,0,0,0]
["Q71","RAP","NORTH MIDDLESEX UNIVERSITY HOSPITAL NHS TRUST","RAPNM","North Middlesex Hospital - RAPNM",7,0.7142857142857143,0.14285714285714285,2,3,0,0,1,1]
["Q71","RAL","ROYAL FREE LONDON NHS FOUNDATION TRUST","RAL26","Barnet Hospital - RAL26",89,0.9662921348314607,0,62,24,3,0,0,0]
["Q71","RAL","ROYAL FREE LONDON NHS FOUNDATION TRUST","RAL01","Royal Free Hospital - RAL01",53,0.92452830188679247,5.6603773584905662E-2,27,22,1,2,1,0]
["Q71","RJ7","ST GEORGE'S UNIVERSITY HOSPITALS NHS FOUNDATION TRUST","RJ701","St George's Hospital (Tooting) - RJ701",34,0.94117647058823528,0,19,13,2,0,0,0]
["Q71","RAS","THE HILLINGDON HOSPITALS NHS FOUNDATION TRUST","RAS01","Hillingdon Hospital - RAS01",53,1,0,39,14,0,0,0,0]
["Q71","RKE","THE WHITTINGTON HOSPITAL NHS TRUST","RKEQ4","The Whittington Hospital - RKEQ4",115,0.87826086956521743,4.3478260869565216E-2,63,38,5,4,1,4]
["Q71","RRV","UNIVERSITY COLLEGE LONDON HOSPITALS NHS FOUNDATION TRUST","RRV03","University College Hospital - RRV03",130,0.9538461538461539,7.6923076923076927E-3,100,24,3,0,1,2]
["Q72","RCF","AIREDALE NHS FOUNDATION TRUST","RCF22","Airedale General Hospital - RCF22",20,0.9,0,16,2,2,0,0,0]
["Q72","RFF","BARNSLEY HOSPITAL NHS FOUNDATION TRUST","RFFAA","Barnsley Hospital NHS Foundation Trust HQ - RFFAA",52,1,0,44,8,0,0,0,0]
["Q72","RAE","BRADFORD TEACHING HOSPITALS NHS FOUNDATION TRUST","RAE01","Bradford Royal Infirmary - RAE01",13,0.84615384615384615,7.6923076923076927E-2,5,6,0,1,0,1]
["Q72","RWY","CALDERDALE AND HUDDERSFIELD NHS FOUNDATION TRUST","RWY02","Calderdale Royal Hospital - RWY02",205,0.97073170731707314,0,155,44,5,0,0,1]
["Q72","RWY","CALDERDALE AND HUDDERSFIELD NHS FOUNDATION TRUST","RWY01","Huddersfield Royal Infirmary - RWY01",20,1,0,19,1,0,0,0,0]
["Q72","RP5","DONCASTER AND BASSETLAW TEACHING HOSPITALS NHS FOUNDATION TRUST","RP5BA","Bassetlaw Hospital - RP5BA",40,1,0,37,3,0,0,0,0]
["Q72","RP5","DONCASTER AND BASSETLAW TEACHING HOSPITALS NHS FOUNDATION TRUST","RP5DR","Doncaster Royal Infirmary - RP5DR",89,0.97752808988764039,2.247191011235955E-2,62,25,0,2,0,0]
["Q72","RCD","HARROGATE AND DISTRICT NHS FOUNDATION TRUST","RCD01","Harrogate District Hospital - RCD01",21,1,0,20,1,0,0,0,0]
["Q72","RWA","HULL AND EAST YORKSHIRE HOSPITALS NHS TRUST","RWA01","Hull Royal Infirmary - RWA01",17,1,0,16,1,0,0,0,0]
["Q72","RR8","LEEDS TEACHING HOSPITALS NHS TRUST","RR801","Leeds General Infirmary - RR801",75,0.97333333333333338,0,57,16,1,0,0,1]
["Q72","RR8","LEEDS TEACHING HOSPITALS NHS TRUST","RR813","St James's University Hospital - RR813",0,"NA","NA",0,0,0,0,0,0]
["Q72","RXF","MID YORKSHIRE HOSPITALS NHS TRUST","RXF05","Pinderfields General Hospital - RXF05",66,1,0,45,21,0,0,0,0]
["Q72","RJL","NORTHERN LINCOLNSHIRE AND GOOLE NHS FOUNDATION TRUST","RJL30","Diana, Princess Of Wales Hospital - RJL30",0,"NA","NA",0,0,0,0,0,0]
["Q72","RJL","NORTHERN LINCOLNSHIRE AND GOOLE NHS FOUNDATION TRUST","RJL32","Scunthorpe General Hospital - RJL32",43,0.95348837209302328,4.6511627906976744E-2,33,8,0,1,1,0]
["Q72","RHQ","SHEFFIELD TEACHING HOSPITALS NHS FOUNDATION TRUST","RHQHH","Royal Hallamshire Hospital - RHQHH",137,0.93430656934306566,2.1897810218978103E-2,114,14,3,1,2,3]
["Q72","RFR","THE ROTHERHAM NHS FOUNDATION TRUST","RFRPA","Rotherham District General Hospital - RFRPA",77,1,0,61,16,0,0,0,0]
["Q72","RCB","YORK TEACHING HOSPITAL NHS FOUNDATION TRUST","RCBCA","Scarborough General Hospital - RCBCA",24,1,0,21,3,0,0,0,0]
["Q72","RCB","YORK TEACHING HOSPITAL NHS FOUNDATION TRUST","RCB55","York Hospital - RCB55",60,0.96666666666666667,3.3333333333333333E-2,47,11,0,2,0,0]
["Q74","RLN","CITY HOSPITALS SUNDERLAND NHS FOUNDATION TRUST","RLNGL","Sunderland Royal Hospital - RLNGL",42,1,0,40,2,0,0,0,0]
["Q74","RXP","COUNTY DURHAM AND DARLINGTON NHS FOUNDATION TRUST","RXPDA","Darlington Memorial Hospital - RXPDA",26,1,0,18,8,0,0,0,0]
["Q74","RXP","COUNTY DURHAM AND DARLINGTON NHS FOUNDATION TRUST","RXPCP","University Hospital Of North Durham - RXPCP",16,1,0,14,2,0,0,0,0]
["Q74","RR7","GATESHEAD HEALTH NHS FOUNDATION TRUST","RR7EN","Queen Elizabeth Hospital - RR7EN",40,0.97499999999999998,0,32,7,1,0,0,0]
["Q74","RNL","NORTH CUMBRIA UNIVERSITY HOSPITALS NHS TRUST","RNLAY","Cumberland Infirmary - RNLAY",24,1,0,21,3,0,0,0,0]
["Q74","RNL","NORTH CUMBRIA UNIVERSITY HOSPITALS NHS TRUST","RNLBX","West Cumberland Hospital - RNLBX",55,0.98181818181818181,0,44,10,1,0,0,0]
["Q74","RVW","NORTH TEES AND HARTLEPOOL NHS FOUNDATION TRUST","RVWAE","University Hospital Of North Tees - RVWAE",18,0.88888888888888884,0.1111111111111111,12,4,0,1,1,0]
["Q74","RTF","NORTHUMBRIA HEALTHCARE NHS FOUNDATION TRUST","RTFDJ","Alnwick Infirmary - RTFDJ",0,"NA","NA",0,0,0,0,0,0]
["Q74","RTF","NORTHUMBRIA HEALTHCARE NHS FOUNDATION TRUST","RTFDH","Berwick Infirmary - RTFDH",0,"NA","NA",0,0,0,0,0,0]
["Q74","RTF","NORTHUMBRIA HEALTHCARE NHS FOUNDATION TRUST","RTFDR","Hexham General Hospital - RTFDR",1,"*","*","*","*","*","*","*","*"]
["Q74","RTF","NORTHUMBRIA HEALTHCARE NHS FOUNDATION TRUST","RTF86","The Northumbria - RTF86",30,1,0,"*","*","*","*","*","*"]
["Q74","RTR","SOUTH TEES HOSPITALS NHS FOUNDATION TRUST","RTR45","Friarage Hospital Site - RTR45",6,1,0,6,0,0,0,0,0]
["Q74","RTR","SOUTH TEES HOSPITALS NHS FOUNDATION TRUST","RTRAT","The James Cook University Hospital - RTRAT",14,1,0,14,0,0,0,0,0]
["Q74","RE9","SOUTH TYNESIDE NHS FOUNDATION TRUST","RE9GA","South Tyneside District Hospital - RE9GA",21,1,0,19,2,0,0,0,0]
["Q74","RTD","THE NEWCASTLE UPON TYNE HOSPITALS NHS FOUNDATION TRUST","RTD02","The Royal Victoria Infirmary - RTD02",158,0.97468354430379744,1.2658227848101266E-2,135,19,2,1,1,0]
["Q74","RTX","UNIVERSITY HOSPITALS OF MORECAMBE BAY NHS FOUNDATION TRUST","RTXBU","Furness General Hospital - RTXBU",18,1,0,"*","*","*","*","*","*"]
["Q74","RTX","UNIVERSITY HOSPITALS OF MORECAMBE BAY NHS FOUNDATION TRUST","RTX02","Royal Lancaster Infirmary - RTX02",1,"*","*","*","*","*","*","*","*"]
["Q75","RJR","COUNTESS OF CHESTER HOSPITAL NHS FOUNDATION TRUST","RJR05","Countess Of Chester Hospital - RJR05",62,0.93548387096774188,4.8387096774193547E-2,47,11,1,2,1,0]
["Q75","RJN","EAST CHESHIRE NHS TRUST","RJN71","Macclesfield District General Hospital - RJN71",16,1,0,14,2,0,0,0,0]
["Q75","REP","LIVERPOOL WOMEN'S NHS FOUNDATION TRUST","REP01","Liverpool Womens Hospital - REP01",5,0.8,0.2,3,1,0,1,0,0]
["Q75","RBT","MID CHESHIRE HOSPITALS NHS FOUNDATION TRUST","RBT20","Leighton Hospital - RBT20",19,1,0,15,4,0,0,0,0]
["Q75","RVY","SOUTHPORT AND ORMSKIRK HOSPITAL NHS TRUST","RVY02","Ormskirk and District General Hospital - RVY02",21,1,0,16,5,0,0,0,0]
["Q75","RBN","ST HELENS AND KNOWSLEY HOSPITAL SERVICES NHS TRUST","RBN01","Whiston Hospital - RBN01",32,0.875,3.125E-2,21,7,1,0,1,2]
["Q75","RWW","WARRINGTON AND HALTON HOSPITALS NHS FOUNDATION TRUST","RWWWH","Warrington Hospital - RWWWH",54,0.98148148148148151,0,44,9,1,0,0,0]
["Q75","RBL","WIRRAL UNIVERSITY TEACHING HOSPITAL NHS FOUNDATION TRUST","RBL14","Arrowe Park Hospital - RBL14",132,0.99242424242424243,0,116,15,1,0,0,0]
["Q76","RJF","BURTON HOSPITALS NHS FOUNDATION TRUST","RJF02","Queen's Hospital, Burton Upon Trent - RJF02",92,0.98913043478260865,1.0869565217391304E-2,83,8,0,0,1,0]
["Q76","RFS","CHESTERFIELD ROYAL HOSPITAL NHS FOUNDATION TRUST","RFSDA","Chesterfield Royal Hospital - RFSDA",35,0.97142857142857142,0,26,8,1,0,0,0]
["Q76","RTG","DERBY TEACHING HOSPITALS NHS FOUNDATION TRUST","RTGFG","Royal Derby Hospital - RTGFG",177,0.97740112994350281,5.6497175141242938E-3,122,51,1,0,1,2]
["Q76","RX1","NOTTINGHAM UNIVERSITY HOSPITALS NHS TRUST","RX1CC","Nottingham University Hospitals NHS Trust - City Campus - RX1CC",104,0.96153846153846156,9.6153846153846159E-3,72,28,3,1,0,0]
["Q76","RX1","NOTTINGHAM UNIVERSITY HOSPITALS NHS TRUST","RX1RA","Nottingham University Hospitals NHS Trust - Queen's Medical Centre Campus - RX1RA",45,0.97777777777777775,0,32,12,1,0,0,0]
["Q76","RK5","SHERWOOD FOREST HOSPITALS NHS FOUNDATION TRUST","RK5BC","King's Mill Hospital - RK5BC",72,0.98611111111111116,0,61,10,1,0,0,0]
["Q76","RXW","SHREWSBURY AND TELFORD HOSPITAL NHS TRUST","RXWMB","Bridgnorth Hospital (Maternity) - RXWMB",9,1,0,9,0,0,0,0,0]
["Q76","RXW","SHREWSBURY AND TELFORD HOSPITAL NHS TRUST","RXWML","Ludlow Hospital (Maternity) - RXWML",7,1,0,7,0,0,0,0,0]
["Q76","RXW","SHREWSBURY AND TELFORD HOSPITAL NHS TRUST","RXWMJ","Robert Jones & Agnes Hunt Orthopaedic & District Hospital - RXWMJ",12,1,0,12,0,0,0,0,0]
["Q76","RXW","SHREWSBURY AND TELFORD HOSPITAL NHS TRUST","RXWAS","Royal Shrewsbury Hospital - RXWAS",15,1,0,12,3,0,0,0,0]
["Q76","RXW","SHREWSBURY AND TELFORD HOSPITAL NHS TRUST","RXWAT","The Princess Royal Hospital - RXWAT",71,1,0,62,9,0,0,0,0]
["Q76","RJE","UNIVERSITY HOSPITALS OF NORTH MIDLANDS NHS TRUST","RJE01","Royal Stoke University Hospital - RJE01",58,0.96551724137931039,0,38,18,1,0,0,1]
["Q77","RQ3","BIRMINGHAM WOMEN'S AND CHILDREN'S NHS FOUNDATION TRUST","RQ370","Birmingham Women's Hospital - RQ370",0,"NA","NA",0,0,0,0,0,0]
["Q77","RLT","GEORGE ELIOT HOSPITAL NHS TRUST","RLT01","George Eliot Hospital - Acute Services - RLT01",156,0.94871794871794868,1.9230769230769232E-2,116,32,3,1,2,2]
["Q77","RR1","HEART OF ENGLAND NHS FOUNDATION TRUST","RR105","Good Hope Hospital - RR105",13,1,0,10,3,0,0,0,0]
["Q77","RR1","HEART OF ENGLAND NHS FOUNDATION TRUST","RR101","Heartlands Hospital - RR101",118,0.92372881355932202,4.2372881355932202E-2,49,60,3,4,1,1]
["Q77","RR1","HEART OF ENGLAND NHS FOUNDATION TRUST","RR109","Solihull Hospital - RR109",6,1,0,6,0,0,0,0,0]
["Q77","RXK","SANDWELL AND WEST BIRMINGHAM HOSPITALS NHS TRUST","RXK02","City Hospital - RXK02",58,0.91379310344827591,0,29,24,4,0,0,1]
["Q77","RJC","SOUTH WARWICKSHIRE NHS FOUNDATION TRUST","RJC02","Warwick Hospital - RJC02",72,0.95833333333333337,1.3888888888888888E-2,57,12,0,1,0,2]
["Q77","RNA","THE DUDLEY GROUP NHS FOUNDATION TRUST","RNA01","Russells Hall Hospital - RNA01",123,0.97560975609756095,1.6260162601626018E-2,111,9,1,2,0,0]
["Q77","RL4","THE ROYAL WOLVERHAMPTON NHS TRUST","RL403","New Cross Hospital - RL403",124,0.90322580645161288,7.2580645161290328E-2,87,25,2,2,7,1]
["Q77","RKB","UNIVERSITY HOSPITALS COVENTRY AND WARWICKSHIRE NHS TRUST","RKB01","University Hospital (Coventry) - RKB01",165,0.97575757575757571,1.2121212121212121E-2,108,53,0,0,2,2]
["Q77","RBK","WALSALL HEALTHCARE NHS TRUST","RBK02","Manor Hospital - RBK02",19,0.63157894736842102,0.21052631578947367,9,3,3,1,3,0]
["Q77","RWP","WORCESTERSHIRE ACUTE HOSPITALS NHS TRUST","RWP50","Worcestershire Royal Hospital - RWP50",37,0.94594594594594594,0,30,5,2,0,0,0]
["Q77","RLQ","WYE VALLEY NHS TRUST","RLQ01","Hereford County Hospital - RLQ01",55,1,0,42,13,0,0,0,0]
["Q78","RC1","BEDFORD HOSPITAL NHS TRUST","RC110","Bedford Hospital South Wing - RC110",60,0.96666666666666667,1.6666666666666666E-2,49,9,1,0,1,0]
["Q78","RWH","EAST AND NORTH HERTFORDSHIRE NHS TRUST","RWH01","Lister Hospital - RWH01",214,0.88785046728971961,2.336448598130841E-2,127,63,12,5,0,7]
["Q78","RNQ","KETTERING GENERAL HOSPITAL NHS FOUNDATION TRUST","RNQ51","Kettering General Hospital - RNQ51",42,0.97619047619047616,2.3809523809523808E-2,35,6,0,0,1,0]
["Q78","RC9","LUTON AND DUNSTABLE UNIVERSITY HOSPITAL NHS FOUNDATION TRUST","RC971","Luton and Dunstable Hospital - RC971",39,0.97435897435897434,2.564102564102564E-2,31,7,0,1,0,0]
["Q78","RD8","MILTON KEYNES UNIVERSITY HOSPITAL NHS FOUNDATION TRUST","RD816","Milton Keynes Hospital - RD816",43,0.95348837209302328,0,32,9,2,0,0,0]
["Q78","RNS","NORTHAMPTON GENERAL HOSPITAL NHS TRUST","RNS01","Northampton General Hospital (Acute) - RNS01",63,0.98412698412698407,0,55,7,1,0,0,0]
["Q78","RWD","UNITED LINCOLNSHIRE HOSPITALS NHS TRUST","RWDLP","Grantham and District Hospital - RWDLP",0,"NA","NA",0,0,0,0,0,0]
["Q78","RWD","UNITED LINCOLNSHIRE HOSPITALS NHS TRUST","RWDDA","Lincoln County Hospital - RWDDA",43,0.79069767441860461,0.13953488372093023,28,6,3,5,1,0]
["Q78","RWD","UNITED LINCOLNSHIRE HOSPITALS NHS TRUST","RWDLA","Pilgrim Hospital - RWDLA",15,0.8666666666666667,6.6666666666666666E-2,10,3,0,0,1,1]
["Q78","RWE","UNIVERSITY HOSPITALS OF LEICESTER NHS TRUST","RWEAK","Leicester General Hospital - RWEAK",138,0.92028985507246375,2.1739130434782608E-2,83,44,4,2,1,4]
["Q78","RWE","UNIVERSITY HOSPITALS OF LEICESTER NHS TRUST","RWEAA","Leicester Royal Infirmary - RWEAA",259,0.9073359073359073,3.0888030888030889E-2,173,62,8,2,6,8]
["Q78","RWE","UNIVERSITY HOSPITALS OF LEICESTER NHS TRUST","RWE10","St Mary's Hospital - RWE10",23,1,0,19,4,0,0,0,0]
["Q78","RWG","WEST HERTFORDSHIRE HOSPITALS NHS TRUST","RWG02","Watford General Hospital - RWG02",153,0.934640522875817,2.6143790849673203E-2,101,42,4,1,3,2]
["Q79","RDD","BASILDON AND THURROCK UNIVERSITY HOSPITALS NHS FOUNDATION TRUST","RDDH0","Basildon University Hospital - RDDH0",155,0.94838709677419353,1.2903225806451613E-2,115,32,3,1,1,3]
["Q79","RGT","CAMBRIDGE UNIVERSITY HOSPITALS NHS FOUNDATION TRUST","RGT32","Rosie Hospital - RGT32",161,0.96894409937888204,1.2422360248447204E-2,116,40,3,2,0,0]
["Q79","RDE","COLCHESTER HOSPITAL UNIVERSITY NHS FOUNDATION TRUST","RDEE4","Colchester General Hospital - RDEE4",66,0.93939393939393945,1.5151515151515152E-2,38,24,2,1,0,1]
["Q79","RGQ","IPSWICH HOSPITAL NHS TRUST","RGQ02","The Ipswich Hospital NHS Trust - RGQ02",105,0.96190476190476193,0,80,21,4,0,0,0]
["Q79","RGP","JAMES PAGET UNIVERSITY HOSPITALS NHS FOUNDATION TRUST","RGP75","James Paget University Hospital - RGP75",35,1,0,30,5,0,0,0,0]
["Q79","RQ8","MID ESSEX HOSPITAL SERVICES NHS TRUST","RQ8L0","Broomfield Hospital - RQ8L0",57,0.91228070175438591,8.771929824561403E-2,48,4,0,1,4,0]
["Q79","RM1","NORFOLK AND NORWICH UNIVERSITY HOSPITALS NHS FOUNDATION TRUST","RM102","Norfolk and Norwich University Hospital - RM102",41,1,0,39,2,0,0,0,0]
["Q79","RGN","NORTH WEST ANGLIA NHS FOUNDATION TRUST","RGN90","Hinchingbrooke Hospital - RGN90",44,0.97727272727272729,0,41,2,1,0,0,0]
["Q79","RGN","NORTH WEST ANGLIA NHS FOUNDATION TRUST","RGN80","Peterborough City Hospital - RGN80",156,0.96794871794871795,1.9230769230769232E-2,123,28,1,2,1,1]
["Q79","RAJ","SOUTHEND UNIVERSITY HOSPITAL NHS FOUNDATION TRUST","RAJ01","Southend Hospital - RAJ01",7,1,0,"*","*","*","*","*","*"]
["Q79","RQW","THE PRINCESS ALEXANDRA HOSPITAL NHS TRUST","RQWG0","Princess Alexandra Hospital - RQWG0",176,0.94886363636363635,0,148,19,0,0,0,9]
["Q79","RCX","THE QUEEN ELIZABETH HOSPITAL, KING'S LYNN, NHS FOUNDATION TRUST","RCX70","The Queen Elizabeth Hospital - RCX70",68,0.92647058823529416,1.4705882352941176E-2,45,18,4,1,0,0]
["Q79","RGR","WEST SUFFOLK NHS FOUNDATION TRUST","RGR50","West Suffolk Hospital - RGR50",3,"*","*","*","*","*","*","*","*"]
["Q80","RVJ","NORTH BRISTOL NHS TRUST","RVJ21","Cossham Hospital - RVJ21",28,1,0,28,0,0,0,0,0]
["Q80","RVJ","NORTH BRISTOL NHS TRUST","RVJ01","Southmead Hospital - RVJ01",63,0.90476190476190477,7.9365079365079361E-2,45,12,1,1,4,0]
["Q80","RBZ","NORTHERN DEVON HEALTHCARE NHS TRUST","RBZ12","North Devon District Hospital - RBZ12",18,1,0,15,3,0,0,0,0]
["Q80","RK9","PLYMOUTH HOSPITALS NHS TRUST","RK950","Derriford Hospital - RK950",75,0.97333333333333338,0,48,25,2,0,0,0]
["Q80","REF","ROYAL CORNWALL HOSPITALS NHS TRUST","REF12","Royal Cornwall Hospital (Treliske) - REF12",50,0.9,0.04,38,7,3,1,1,0]
["Q80","RH8","ROYAL DEVON AND EXETER NHS FOUNDATION TRUST","RH854","Honiton Hospital - RH 854",0,"NA","NA",0,0,0,0,0,0]
["Q80","RH8","ROYAL DEVON AND EXETER NHS FOUNDATION TRUST","RH833","Okehampton Community Hospital - RH833",0,"NA","NA",0,0,0,0,0,0]
["Q80","RH8","ROYAL DEVON AND EXETER NHS FOUNDATION TRUST","RH801","Royal Devon and Exeter Hospital (Wonford) - RH801",1,"*","*","*","*","*","*","*","*"]
["Q80","RH8","ROYAL DEVON AND EXETER NHS FOUNDATION TRUST","RH853","Tiverton and District Hospital - RH853",0,"NA","NA",0,0,0,0,0,0]
["Q80","RBA","TAUNTON AND SOMERSET NHS FOUNDATION TRUST","RBAC3","Bridgwater Hospital - RBAC3",0,"NA","NA",0,0,0,0,0,0]
["Q80","RBA","TAUNTON AND SOMERSET NHS FOUNDATION TRUST","RBA11","Musgrove Park Hospital - RBA11",73,1,0,60,13,0,0,0,0]
["Q80","RA9","TORBAY AND SOUTH DEVON NHS FOUNDATION TRUST","RA901","Torbay Hospital - RA901",5,1,0,"*","*","*","*","*","*"]
["Q80","RA7","UNIVERSITY HOSPITALS BRISTOL NHS FOUNDATION TRUST","RA707","St Michael's Hospital - RA707",87,0.96551724137931039,0,67,17,2,0,0,1]
["Q80","RA3","WESTON AREA HEALTH NHS TRUST","RA301","Weston General Hospital - RA301",13,1,0,12,1,0,0,0,0]
["Q80","RA4","YEOVIL DISTRICT HOSPITAL NHS FOUNDATION TRUST","RA430","Yeovil District Hospital - RA430",65,0.96923076923076923,1.5384615384615385E-2,50,13,1,0,1,0]
["Q81","RTK","ASHFORD AND ST PETER'S HOSPITALS NHS FOUNDATION TRUST","RTK01","St Peter's Hospital - RTK01",0,"NA","NA",0,0,0,0,0,0]
["Q81","RXH","BRIGHTON AND SUSSEX UNIVERSITY HOSPITALS NHS TRUST","RXH09","Princess Royal Hospital - RXH09",31,0.93548387096774188,0,28,1,2,0,0,0]
["Q81","RXH","BRIGHTON AND SUSSEX UNIVERSITY HOSPITALS NHS TRUST","RXH01","Royal Sussex County Hospital - RXH01",32,0.875,9.375E-2,22,6,1,2,1,0]
["Q81","RN7","DARTFORD AND GRAVESHAM NHS TRUST","RN707","Darent Valley Hospital - RN707",89,1,0,73,16,0,0,0,0]
["Q81","RVV","EAST KENT HOSPITALS UNIVERSITY NHS FOUNDATION TRUST","RVV09","Queen Elizabeth The Queen Mother Hospital - RVV09",78,0.9358974358974359,0,64,9,0,0,0,5]
["Q81","RVV","EAST KENT HOSPITALS UNIVERSITY NHS FOUNDATION TRUST","RVV01","William Harvey Hospital (Ashford) - RVV01",123,0.94308943089430897,1.6260162601626018E-2,105,11,0,2,0,5]
["Q81","RXC","EAST SUSSEX HEALTHCARE NHS TRUST","RXC01","Conquest Hospital - RXC01",88,0.97727272727272729,1.1363636363636364E-2,60,26,0,0,1,1]
["Q81","RXC","EAST SUSSEX HEALTHCARE NHS TRUST","RXC02","Eastbourne District General Hospital - RXC02",23,1,0,21,2,0,0,0,0]
["Q81","RDU","FRIMLEY HEALTH NHS FOUNDATION TRUST","RDU01","Frimley Park Hospital - RDU01",142,0.89436619718309862,0,112,15,1,0,0,14]
["Q81","RDU","FRIMLEY HEALTH NHS FOUNDATION TRUST","RDU50","Wexham Park Hospital - RDU50",22,0.77272727272727271,4.5454545454545456E-2,13,4,3,1,0,1]
["Q81","RWF","MAIDSTONE AND TUNBRIDGE WELLS NHS TRUST","RWF03","Maidstone District General Hospital - RWF03",40,0.97499999999999998,0,39,0,0,0,0,1]
["Q81","RWF","MAIDSTONE AND TUNBRIDGE WELLS NHS TRUST","RWFTW","The Tunbridge Wells Hospital - RWFTW",129,0.95348837209302328,0,106,17,0,0,0,6]
["Q81","RPA","MEDWAY NHS FOUNDATION TRUST","RPA02","Medway Maritime Hospital - RPA02",145,0.97931034482758617,6.8965517241379309E-3,126,16,2,1,0,0]
["Q81","RA2","ROYAL SURREY COUNTY HOSPITAL NHS FOUNDATION TRUST","RA201","Royal Surrey County Hospital - RA201",124,0.94354838709677424,3.2258064516129031E-2,100,17,3,3,1,0]
["Q81","RTP","SURREY AND SUSSEX HEALTHCARE NHS TRUST","RTP04","East Surrey Hospital - RTP04",96,0.95833333333333337,1.0416666666666666E-2,69,23,2,1,0,1]
["Q81","RYR","WESTERN SUSSEX HOSPITALS NHS FOUNDATION TRUST","RYR16","St Richard's Hospital - RYR16",56,1,0,48,8,0,0,0,0]
["Q81","RYR","WESTERN SUSSEX HOSPITALS NHS FOUNDATION TRUST","RYR18","Worthing Hospital - RYR18",117,0.98290598290598286,8.5470085470085479E-3,103,12,0,1,0,1]
["Q82","RXQ","BUCKINGHAMSHIRE HEALTHCARE NHS TRUST","RXQ02","Stoke Mandeville Hospital - RXQ02",188,0.97872340425531912,1.0638297872340425E-2,140,44,2,2,0,0]
["Q82","RTE","GLOUCESTERSHIRE HOSPITALS NHS FOUNDATION TRUST","RTE03","Gloucestershire Royal Hospital - RTE03",0,"NA","NA",0,0,0,0,0,0]
["Q82","RTE","GLOUCESTERSHIRE HOSPITALS NHS FOUNDATION TRUST","RTE26","Stroud General Hospital - RTE26",0,"NA","NA",0,0,0,0,0,0]
["Q82","RN3","GREAT WESTERN HOSPITALS NHS FOUNDATION TRUST","RN325","The Great Western Hospital - RN325",5,1,0,"*","*","*","*","*","*"]
["Q82","RTH","OXFORD UNIVERSITY HOSPITALS NHS FOUNDATION TRUST","RTH19","Chipping Norton Community Hospital - RTH19",2,"*","*","*","*","*","*","*","*"]
["Q82","RTH","OXFORD UNIVERSITY HOSPITALS NHS FOUNDATION TRUST","RTH05","Horton General Hospital - RTH05",8,0.5,0,"*","*","*","*","*","*"]
["Q82","RTH","OXFORD UNIVERSITY HOSPITALS NHS FOUNDATION TRUST","RTH08","John Radcliffe Hospital - RTH08",93,0.92473118279569888,1.0752688172043012E-2,68,18,2,1,0,4]
["Q82","RTH","OXFORD UNIVERSITY HOSPITALS NHS FOUNDATION TRUST","RTH16","Wallingford Community Hospital - RTH16",0,"NA","NA",0,0,0,0,0,0]
["Q82","RHW","ROYAL BERKSHIRE NHS FOUNDATION TRUST","RHW01","Royal Berkshire Hospital - RHW01",129,0.97674418604651159,1.5503875968992248E-2,84,42,1,1,1,0]
["Q82","RD1","ROYAL UNITED HOSPITALS BATH NHS FOUNDATION TRUST","RD102","Chippenham Community Hospital -RD102",3,"*","*","*","*","*","*","*","*"]
["Q82","RD1","ROYAL UNITED HOSPITALS BATH NHS FOUNDATION TRUST","RD121","Frome Community Hospital  - RD121",0,"NA","NA",0,0,0,0,0,0]
["Q82","RD1","ROYAL UNITED HOSPITALS BATH NHS FOUNDATION TRUST","RD129","Paulton Memorial Hospital  - RD129",2,"*","*","*","*","*","*","*","*"]
["Q82","RD1","ROYAL UNITED HOSPITALS BATH NHS FOUNDATION TRUST","RD130","Princess Anne Wing RUH  - RD130",46,0.97826086956521741,2.1739130434782608E-2,42,3,0,1,0,0]
["Q82","RD1","ROYAL UNITED HOSPITALS BATH NHS FOUNDATION TRUST","RD108","Trowbridge Community Hospital  - RD108",0,"NA","NA",0,0,0,0,0,0]
["Q82","RNZ","SALISBURY NHS FOUNDATION TRUST","RNZ02","Salisbury District Hospital - RNZ02",1,"*","*","*","*","*","*","*","*"]
["Q83","RMC","BOLTON NHS FOUNDATION TRUST","RMC01","Royal Bolton Hospital - RMC01",150,0.92666666666666664,0.04,103,36,5,1,5,0]
["Q83","RY2","BRIDGEWATER COMMUNITY HEALTHCARE NHS FOUNDATION TRUST","RY28P","Health Care Resource Centre - RY28P",0,"NA","NA",0,0,0,0,0,0]
["Q83","RW3","CENTRAL MANCHESTER UNIVERSITY HOSPITALS NHS FOUNDATION TRUST","RW3SM","St Mary's Hospital - RW3SM",386,0.98186528497409331,5.1813471502590676E-3,313,66,2,1,1,3]
["Q83","RW6","PENNINE ACUTE HOSPITALS NHS TRUST","RW602","North Manchester General Hospital - RW602",46,1,0,42,4,0,0,0,0]
["Q83","RW6","PENNINE ACUTE HOSPITALS NHS TRUST","RW603","Royal Oldham Hospital - RW603",93,0.80645161290322576,0.12903225806451613,56,19,5,5,7,1]
["Q83","RWJ","STOCKPORT NHS FOUNDATION TRUST","RWJ09","Stepping Hill Hospital - RWJ09",120,0.96666666666666667,8.3333333333333332E-3,104,12,2,1,0,1]
["Q83","RMP","TAMESIDE AND GLOSSOP INTEGRATED CARE NHS FOUNDATION TRUST","RMP01","Tameside General Hospital - RMP01",53,0.8867924528301887,1.8867924528301886E-2,31,16,5,0,1,0]
["Q83","RM2","UNIVERSITY HOSPITAL OF SOUTH MANCHESTER NHS FOUNDATION TRUST","RM202","Wythenshawe Hospital - RM202",10,1,0,8,2,0,0,0,0]
["Q83","RRF","WRIGHTINGTON, WIGAN AND LEIGH NHS FOUNDATION TRUST","RRF02","Royal Albert Edward Infirmary - RRF02",66,0.98484848484848486,0,60,5,1,0,0,0]
["Q84","RXL","BLACKPOOL TEACHING HOSPITALS NHS FOUNDATION TRUST","RXL01","Blackpool Victoria Hospital - RXL01",91,0.94505494505494503,2.197802197802198E-2,58,28,3,2,0,0]
["Q84","RXR","EAST LANCASHIRE HOSPITALS NHS TRUST","RXR20","Royal Blackburn Hospital - RXR20",75,0.90666666666666662,5.3333333333333337E-2,59,9,3,0,4,0]
["Q84","RXN","LANCASHIRE TEACHING HOSPITALS NHS FOUNDATION TRUST","RXN01","Chorley and South Ribble Hospital - RXN01",3,"*","*","*","*","*","*","*","*"]
["Q84","RXN","LANCASHIRE TEACHING HOSPITALS NHS FOUNDATION TRUST","RXN02","Royal Preston Hospital - RXN02",46,0.95652173913043481,2.1739130434782608E-2,"*","*","*","*","*","*"]

{"sheet":"Region (Geography) Q4","index":11,"n_rows":26,"n_cols":11,"rows_kept":26,"cut":false,"hidden":false,"merged":[[8,0,9,0],[8,1,9,1],[8,2,9,2],[8,3,9,3],[8,4,9,4],[8,5,8,10]]}
[]
[]
[]
[]
[]
[null,"   Sort data by:           "]
[]
[]
["Region (Geo) Code","Region (Geography)","Total Responses","Percentage Recommended","Percentage Not  Recommended","Breakdown of Responses"]
[null,null,null,null,null,"Extremely Likely","Likely","Neither","Unlikely","Extremely Unlikely","Don't Know"]
[null,"England",5013,0.97646120087771793,5.9844404548174742E-3,4228,667,64,18,12,24]
[null,"Selection (excluding suppressed data)",{"$f":"SUBTOTAL(9,C13:C40)","v":5013},{"$f":"IFERROR((F12+G12)/SUM(F12:K12), \"-\")","v":0.97646120087771793},{"$f":"IFERROR((I12+J12)/SUM(F12:K12), \"-\")","v":5.9844404548174742E-3},{"$f":"SUBTOTAL(9,F13:F40)","v":4228},{"$f":"SUBTOTAL(9,G13:G40)","v":667},64,18,12,24]
["Q72","NHS England Yorkshire & Humber",497,0.98189134808853118,6.0362173038229373E-3,422,66,6,1,2,0]
["Q74","NHS England Cumbria & North East",191,0.98952879581151831,5.235602094240838E-3,175,14,1,0,1,0]
["Q75","NHS England Cheshire & Merseyside",80,0.98750000000000004,1.2500000000000001E-2,74,5,0,1,0,0]
["Q83","NHS England Greater Manchester",245,0.97959183673469385,8.1632653061224497E-3,213,27,3,1,1,0]
["Q84","NHS England Lancashire",168,0.97023809523809523,5.9523809523809521E-3,138,25,4,1,0,0]
["Q76","NHS England North Midlands",428,0.98831775700934577,2.3364485981308409E-3,376,47,4,0,1,0]
["Q77","NHS England West Midlands",329,0.97264437689969607,1.2158054711246201E-2,278,42,5,2,2,0]
["Q78","NHS England Central Midlands",595,0.9798319327731092,3.3613445378151263E-3,471,112,9,2,0,1]
["Q79","NHS England East",432,0.97916666666666663,2.3148148148148147E-3,364,59,2,0,1,6]
["Q80","NHS England South West",324,0.95061728395061729,1.5432098765432098E-2,263,45,9,4,1,2]
["Q81","NHS England South East",326,0.96625766871165641,9.202453987730062E-3,279,36,4,2,1,4]
["Q82","NHS England South Central",277,0.98555956678700363,0,242,31,3,0,0,1]
["Q70","NHS England Wessex",248,0.9838709677419355,0,206,38,2,0,0,2]
["Q71","NHS England London",873,0.9702176403207331,6.8728522336769758E-3,727,120,12,4,2,8]

{"sheet":"Trusts Q4","index":12,"n_rows":146,"n_cols":19,"rows_kept":146,"cut":false,"hidden":false,"merged":[[8,6,8,11],[8,12,8,18],[8,0,9,0],[8,1,9,1],[8,2,9,2],[8,3,9,3],[8,4,9,4],[8,5,9,5]]}
[]
[]
[]
[]
[]
[null,"   Sort data by:           "]
[]
[]
["Region (Geo) Code","Trust Code","Trust Name","Total Responses","Percentage Recommended","Percentage Not  Recommended","Breakdown of Responses",null,null,null,null,null,"Mode of Collection"]
[null,null,null,null,null,null,"Extremely Likely","Likely","Neither","Unlikely","Extremely Unlikely","Don't Know","SMS/Text / Smartphone App","Electronic tablet/kiosk at point of discharge","Paper / postcard at point of discharge","Paper survey sent to the patients home","Telephone survey once patient is home","Online survey once patient is home","Other"]
[null,null,"England",5013,0.97646120087771793,5.9844404548174742E-3,4228,667,64,18,12,24,543,354,3842,62,0,160,52]
[null,null,"Selection (excluding suppressed data)",{"$f":"SUBTOTAL(9,D13:D299)","v":5013},{"$f":"IFERROR((G12+H12)/SUM(G12:L12), \"-\")","v":0.97749847962700187},{"$f":"IFERROR((J12+K12)/SUM(G12:L12), \"-\")","v":5.8787755929454689E-3},{"$f":"SUBTOTAL(9,G13:G299)","v":4168},{"$f":"SUBTOTAL(9,H13:H299)","v":654},58,17,12,24,533,343,3796,52,0,157,52]
["Q70","RBD","DORSET COUNTY HOSPITAL NHS FOUNDATION TRUST",27,0.96296296296296291,0,24,2,0,0,0,1,27,0,0,0,0,0,0]
["Q70","RN5","HAMPSHIRE HOSPITALS NHS FOUNDATION TRUST",49,1,0,45,4,0,0,0,0,1,0,48,0,0,0,0]
["Q70","R1F","ISLE OF WIGHT NHS TRUST",0,"NA","NA",0,0,0,0,0,0,0,0,0,0,0,0,0]
["Q70","RD3","POOLE HOSPITAL NHS FOUNDATION TRUST",29,0.93103448275862066,0,23,4,2,0,0,0,29,0,0,0,0,0,0]
["Q70","RHU","PORTSMOUTH HOSPITALS NHS TRUST",49,0.97959183673469385,0,40,8,0,0,0,1,0,0,49,0,0,0,0]
["Q70","RDZ","THE ROYAL BOURNEMOUTH AND CHRISTCHURCH HOSPITALS NHS FOUNDATION TRUST",13,1,0,12,1,0,0,0,0,0,0,13,0,0,0,0]
["Q70","RHM","UNIVERSITY HOSPITAL SOUTHAMPTON NHS FOUNDATION TRUST",81,1,0,62,19,0,0,0,0,0,0,79,0,0,2,0]
["Q71","RF4","BARKING, HAVERING AND REDBRIDGE UNIVERSITY HOSPITALS NHS TRUST",215,0.99534883720930234,0,197,17,0,0,0,1,0,0,215,0,0,0,0]
["Q71","R1H","BARTS HEALTH NHS TRUST",54,0.83333333333333337,3.7037037037037035E-2,29,16,2,2,0,5,0,0,54,0,0,0,0]
["Q71","RQM","CHELSEA AND WESTMINSTER HOSPITAL NHS FOUNDATION TRUST",36,0.86111111111111116,5.5555555555555552E-2,27,4,3,1,1,0,26,0,10,0,0,0,0]
["Q71","RJ6","CROYDON HEALTH SERVICES NHS TRUST",1,"*","*","*","*","*","*","*","*","*","*","*","*","*","*","*"]
["Q71","RVR","EPSOM AND ST HELIER UNIVERSITY HOSPITALS NHS TRUST",12,1,0,11,1,0,0,0,0,0,0,12,0,0,0,0]
["Q71","RJ1","GUY'S AND ST THOMAS' NHS FOUNDATION TRUST",8,1,0,8,0,0,0,0,0,0,0,8,0,0,0,0]
["Q71","RQX","HOMERTON UNIVERSITY HOSPITAL NHS FOUNDATION TRUST",68,0.97058823529411764,0,53,13,1,0,0,1,0,7,61,0,0,0,0]
["Q71","RYJ","IMPERIAL COLLEGE HEALTHCARE NHS TRUST",104,0.98076923076923073,0,80,22,2,0,0,0,36,0,68,0,0,0,0]
["Q71","RJZ","KING'S COLLEGE HOSPITAL NHS FOUNDATION TRUST",17,1,0,16,1,0,0,0,0,0,15,2,0,0,0,0]
["Q71","RAX","KINGSTON HOSPITAL NHS FOUNDATION TRUST",19,1,0,17,2,0,0,0,0,0,19,0,0,0,0,0]
["Q71","RJ2","LEWISHAM AND GREENWICH NHS TRUST",71,0.9859154929577465,1.4084507042253521E-2,56,14,0,0,1,0,0,0,71,0,0,0,0]
["Q71","R1K","LONDON NORTH WEST HEALTHCARE NHS TRUST",10,1,0,8,2,0,0,0,0,0,7,3,0,0,0,0]
["Q71","RAP","NORTH MIDDLESEX UNIVERSITY HOSPITAL NHS TRUST",118,0.94915254237288138,8.4745762711864406E-3,97,15,4,1,0,1,0,0,118,0,0,0,0]
["Q71","RAL","ROYAL FREE LONDON NHS FOUNDATION TRUST",69,1,0,63,6,0,0,0,0,0,0,69,0,0,0,0]
["Q71","RJ7","ST GEORGE'S UNIVERSITY HOSPITALS NHS FOUNDATION TRUST",20,1,0,17,3,0,0,0,0,0,20,0,0,0,0,0]
["Q71","RAS","THE HILLINGDON HOSPITALS NHS FOUNDATION TRUST",7,1,0,5,2,0,0,0,0,0,0,7,0,0,0,0]
["Q71","RKE","THE WHITTINGTON HOSPITAL NHS TRUST",41,1,0,39,2,0,0,0,0,0,21,20,0,0,0,0]
["Q71","RRV","UNIVERSITY COLLEGE LONDON HOSPITALS NHS FOUNDATION TRUST",3,"*","*","*","*","*","*","*","*","*","*","*","*","*","*","*"]
["Q72","RCF","AIREDALE NHS FOUNDATION TRUST",21,0.95238095238095233,0,20,0,1,0,0,0,1,0,20,0,0,0,0]
["Q72","RFF","BARNSLEY HOSPITAL NHS FOUNDATION TRUST",26,0.92307692307692313,3.8461538461538464E-2,23,1,1,0,1,0,0,0,26,0,0,0,0]
["Q72","RAE","BRADFORD TEACHING HOSPITALS NHS FOUNDATION TRUST",11,1,0,"*","*","*","*","*","*","*","*","*","*","*","*","*"]
["Q72","RWY","CALDERDALE AND HUDDERSFIELD NHS FOUNDATION TRUST",131,0.97709923664122134,7.6335877862595417E-3,101,27,2,0,1,0,0,131,0,0,0,0,0]
["Q72","RP5","DONCASTER AND BASSETLAW TEACHING HOSPITALS NHS FOUNDATION TRUST",50,0.98,0.02,44,5,0,1,0,0,0,0,50,0,0,0,0]
["Q72","RCD","HARROGATE AND DISTRICT NHS FOUNDATION TRUST",13,1,0,11,2,0,0,0,0,0,0,13,0,0,0,0]
["Q72","RWA","HULL AND EAST YORKSHIRE HOSPITALS NHS TRUST",13,1,0,12,1,0,0,0,0,0,0,13,0,0,0,0]
["Q72","RR8","LEEDS TEACHING HOSPITALS NHS TRUST",30,1,0,26,4,0,0,0,0,0,0,30,0,0,0,0]
["Q72","RXF","MID YORKSHIRE HOSPITALS NHS TRUST",30,1,0,27,3,0,0,0,0,0,0,30,0,0,0,0]
["Q72","RJL","NORTHERN LINCOLNSHIRE AND GOOLE NHS FOUNDATION TRUST",2,"*","*","*","*","*","*","*","*","*","*","*","*","*","*","*"]
["Q72","RHQ","SHEFFIELD TEACHING HOSPITALS NHS FOUNDATION TRUST",44,1,0,39,5,0,0,0,0,0,0,44,0,0,0,0]
["Q72","RFR","THE ROTHERHAM NHS FOUNDATION TRUST",34,1,0,30,4,0,0,0,0,0,0,34,0,0,0,0]
["Q72","RCB","YORK TEACHING HOSPITAL NHS FOUNDATION TRUST",92,0.97826086956521741,0,78,12,2,0,0,0,0,0,92,0,0,0,0]
["Q74","RLN","CITY HOSPITALS SUNDERLAND NHS FOUNDATION TRUST",0,"NA","NA",0,0,0,0,0,0,0,0,0,0,0,0,0]
["Q74","RXP","COUNTY DURHAM AND DARLINGTON NHS FOUNDATION TRUST",8,1,0,8,0,0,0,0,0,0,0,8,0,0,0,0]
["Q74","RR7","GATESHEAD HEALTH NHS FOUNDATION TRUST",14,1,0,14,0,0,0,0,0,0,0,14,0,0,0,0]
["Q74","RNL","NORTH CUMBRIA UNIVERSITY HOSPITALS NHS TRUST",29,1,0,29,0,0,0,0,0,0,0,29,0,0,0,0]
["Q74","RVW","NORTH TEES AND HARTLEPOOL NHS FOUNDATION TRUST",29,1,0,24,5,0,0,0,0,0,0,29,0,0,0,0]
["Q74","RTF","NORTHUMBRIA HEALTHCARE NHS FOUNDATION TRUST",79,0.97468354430379744,1.2658227848101266E-2,70,7,1,0,1,0,0,0,79,0,0,0,0]
["Q74","RTR","SOUTH TEES HOSPITALS NHS FOUNDATION TRUST",6,1,0,6,0,0,0,0,0,0,0,6,0,0,0,0]
["Q74","RE9","SOUTH TYNESIDE NHS FOUNDATION TRUST",4,"*","*","*","*","*","*","*","*","*","*","*","*","*","*","*"]
["Q74","RTD","THE NEWCASTLE UPON TYNE HOSPITALS NHS FOUNDATION TRUST",2,"*","*","*","*","*","*","*","*","*","*","*","*","*","*","*"]
["Q74","RTX","UNIVERSITY HOSPITALS OF MORECAMBE BAY NHS FOUNDATION TRUST",20,1,0,18,2,0,0,0,0,0,0,20,0,0,0,0]
["Q75","RJR","COUNTESS OF CHESTER HOSPITAL NHS FOUNDATION TRUST",29,0.96551724137931039,3.4482758620689655E-2,26,2,0,1,0,0,29,0,0,0,0,0,0]
["Q75","RJN","EAST CHESHIRE NHS TRUST",3,"*","*","*","*","*","*","*","*","*","*","*","*","*","*","*"]
["Q75","REP","LIVERPOOL WOMEN'S NHS FOUNDATION TRUST",0,"NA","NA",0,0,0,0,0,0,0,0,0,0,0,0,0]
["Q75","RBT","MID CHESHIRE HOSPITALS NHS FOUNDATION TRUST",6,1,0,6,0,0,0,0,0,0,0,6,0,0,0,0]
["Q75","RVY","SOUTHPORT AND ORMSKIRK HOSPITAL NHS TRUST",1,"*","*","*","*","*","*","*","*","*","*","*","*","*","*","*"]
["Q75","RBN","ST HELENS AND KNOWSLEY HOSPITAL SERVICES NHS TRUST",26,1,0,25,1,0,0,0,0,0,0,26,0,0,0,0]
["Q75","RWW","WARRINGTON AND HALTON HOSPITALS NHS FOUNDATION TRUST",10,1,0,8,2,0,0,0,0,0,0,10,0,0,0,0]
["Q75","RBL","WIRRAL UNIVERSITY TEACHING HOSPITAL NHS FOUNDATION TRUST",5,1,0,5,0,0,0,0,0,0,0,5,0,0,0,0]
["Q76","RJF","BURTON HOSPITALS NHS FOUNDATION TRUST",17,0.94117647058823528,0,15,1,1,0,0,0,0,0,17,0,0,0,0]
["Q76","RFS","CHESTERFIELD ROYAL HOSPITAL NHS FOUNDATION TRUST",0,"NA","NA",0,0,0,0,0,0,0,0,0,0,0,0,0]
["Q76","RTG","DERBY TEACHING HOSPITALS NHS FOUNDATION TRUST",97,0.96907216494845361,1.0309278350515464E-2,83,11,2,0,1,0,1,0,96,0,0,0,0]
["Q76","RX1","NOTTINGHAM UNIVERSITY HOSPITALS NHS TRUST",214,0.99532710280373837,0,186,27,1,0,0,0,0,0,214,0,0,0,0]
["Q76","RK5","SHERWOOD FOREST HOSPITALS NHS FOUNDATION TRUST",19,1,0,18,1,0,0,0,0,0,0,19,0,0,0,0]
["Q76","RXW","SHREWSBURY AND TELFORD HOSPITAL NHS TRUST",15,1,0,15,0,0,0,0,0,0,0,15,0,0,0,0]
["Q76","RJE","UNIVERSITY HOSPITALS OF NORTH MIDLANDS NHS TRUST",66,1,0,59,7,0,0,0,0,0,0,66,0,0,0,0]
["Q77","RQ3","BIRMINGHAM WOMEN'S AND CHILDREN'S NHS FOUNDATION TRUST",40,1,0,35,5,0,0,0,0,0,0,40,0,0,0,0]
["Q77","RLT","GEORGE ELIOT HOSPITAL NHS TRUST",41,0.90243902439024393,4.878048780487805E-2,30,7,2,1,1,0,23,0,18,0,0,0,0]
["Q77","RR1","HEART OF ENGLAND NHS FOUNDATION TRUST",0,"NA","NA",0,0,0,0,0,0,0,0,0,0,0,0,0]
["Q77","RXK","SANDWELL AND WEST BIRMINGHAM HOSPITALS NHS TRUST",1,"*","*","*","*","*","*","*","*","*","*","*","*","*","*","*"]
["Q77","RJC","SOUTH WARWICKSHIRE NHS FOUNDATION TRUST",0,"NA","NA",0,0,0,0,0,0,0,0,0,0,0,0,0]
["Q77","RNA","THE DUDLEY GROUP NHS FOUNDATION TRUST",45,1,0,42,3,0,0,0,0,0,0,45,0,0,0,0]
["Q77","RL4","THE ROYAL WOLVERHAMPTON NHS TRUST",15,1,0,14,1,0,0,0,0,0,0,15,0,0,0,0]
["Q77","RKB","UNIVERSITY HOSPITALS COVENTRY AND WARWICKSHIRE NHS TRUST",115,0.99130434782608701,0,98,16,1,0,0,0,0,0,115,0,0,0,0]
["Q77","RBK","WALSALL HEALTHCARE NHS TRUST",10,0.7,0.1,"*","*","*","*","*","*","*","*","*","*","*","*","*"]
["Q77","RWP","WORCESTERSHIRE ACUTE HOSPITALS NHS TRUST",42,1,0,38,4,0,0,0,0,0,0,42,0,0,0,0]
["Q77","RLQ","WYE VALLEY NHS TRUST",20,0.95,0.05,17,2,0,0,1,0,0,0,20,0,0,0,0]
["Q78","RC1","BEDFORD HOSPITAL NHS TRUST",48,0.97916666666666663,0,38,9,1,0,0,0,23,0,0,0,0,25,0]
["Q78","RWH","EAST AND NORTH HERTFORDSHIRE NHS TRUST",4,"*","*","*","*","*","*","*","*","*","*","*","*","*","*","*"]
["Q78","RNQ","KETTERING GENERAL HOSPITAL NHS FOUNDATION TRUST",0,"NA","NA",0,0,0,0,0,0,0,0,0,0,0,0,0]
["Q78","RC9","LUTON AND DUNSTABLE UNIVERSITY HOSPITAL NHS FOUNDATION TRUST",10,0.8,0,"*","*","*","*","*","*","*","*","*","*","*","*","*"]
["Q78","RD8","MILTON KEYNES UNIVERSITY HOSPITAL NHS FOUNDATION TRUST",30,0.93333333333333335,3.3333333333333333E-2,19,9,1,1,0,0,0,0,29,0,0,1,0]
["Q78","RNS","NORTHAMPTON GENERAL HOSPITAL NHS TRUST",124,0.97580645161290325,0,102,19,2,0,0,1,0,0,0,0,0,124,0]
["Q78","RWD","UNITED LINCOLNSHIRE HOSPITALS NHS TRUST",36,0.97222222222222221,0,34,1,1,0,0,0,0,0,36,0,0,0,0]
["Q78","RWE","UNIVERSITY HOSPITALS OF LEICESTER NHS TRUST",323,0.99380804953560375,3.0959752321981426E-3,255,66,1,1,0,0,0,4,319,0,0,0,0]
["Q78","RWG","WEST HERTFORDSHIRE HOSPITALS NHS TRUST",20,1,0,18,2,0,0,0,0,0,0,19,0,0,1,0]
["Q79","RDD","BASILDON AND THURROCK UNIVERSITY HOSPITALS NHS FOUNDATION TRUST",57,0.98245614035087714,0,52,4,0,0,0,1,0,0,57,0,0,0,0]
["Q79","RGT","CAMBRIDGE UNIVERSITY HOSPITALS NHS FOUNDATION TRUST",8,1,0,6,2,0,0,0,0,0,0,8,0,0,0,0]
["Q79","RDE","COLCHESTER HOSPITAL UNIVERSITY NHS FOUNDATION TRUST",0,"NA","NA",0,0,0,0,0,0,0,0,0,0,0,0,0]
["Q79","RGQ","IPSWICH HOSPITAL NHS TRUST",82,0.97560975609756095,0,74,6,2,0,0,0,0,80,1,0,0,1,0]
["Q79","RGP","JAMES PAGET UNIVERSITY HOSPITALS NHS FOUNDATION TRUST",6,1,0,"*","*","*","*","*","*","*","*","*","*","*","*","*"]
["Q79","RQ8","MID ESSEX HOSPITAL SERVICES NHS TRUST",37,0.97297297297297303,2.7027027027027029E-2,30,6,0,0,1,0,37,0,0,0,0,0,0]
["Q79","RM1","NORFOLK AND NORWICH UNIVERSITY HOSPITALS NHS FOUNDATION TRUST",19,1,0,15,4,0,0,0,0,0,0,19,0,0,0,0]
["Q79","RGN","NORTH WEST ANGLIA NHS FOUNDATION TRUST",126,0.99206349206349209,0,103,22,0,0,0,1,0,0,126,0,0,0,0]
["Q79","RAJ","SOUTHEND UNIVERSITY HOSPITAL NHS FOUNDATION TRUST",4,"*","*","*","*","*","*","*","*","*","*","*","*","*","*","*"]
["Q79","RQW","THE PRINCESS ALEXANDRA HOSPITAL NHS TRUST",52,0.92307692307692313,0,39,9,0,0,0,4,0,0,0,0,0,0,52]
["Q79","RCX","THE QUEEN ELIZABETH HOSPITAL, KING'S LYNN, NHS FOUNDATION TRUST",11,1,0,9,2,0,0,0,0,0,0,11,0,0,0,0]
["Q79","RGR","WEST SUFFOLK NHS FOUNDATION TRUST",30,1,0,26,4,0,0,0,0,0,30,0,0,0,0,0]
["Q80","RVJ","NORTH BRISTOL NHS TRUST",63,0.90476190476190477,4.7619047619047616E-2,46,11,3,2,1,0,53,0,10,0,0,0,0]
["Q80","RBZ","NORTHERN DEVON HEALTHCARE NHS TRUST",3,"*","*","*","*","*","*","*","*","*","*","*","*","*","*","*"]
["Q80","RK9","PLYMOUTH HOSPITALS NHS TRUST",92,0.95652173913043481,0,75,13,3,0,0,1,0,0,92,0,0,0,0]
["Q80","REF","ROYAL CORNWALL HOSPITALS NHS TRUST",21,0.95238095238095233,0,17,3,0,0,0,1,0,0,21,0,0,0,0]
["Q80","RH8","ROYAL DEVON AND EXETER NHS FOUNDATION TRUST",0,"NA","NA",0,0,0,0,0,0,0,0,0,0,0,0,0]
["Q80","RBA","TAUNTON AND SOMERSET NHS FOUNDATION TRUST",32,0.9375,0,26,4,2,0,0,0,0,0,32,0,0,0,0]
["Q80","RA9","TORBAY AND SOUTH DEVON NHS FOUNDATION TRUST",7,0.8571428571428571,0,"*","*","*","*","*","*","*","*","*","*","*","*","*"]
["Q80","RA7","UNIVERSITY HOSPITALS BRISTOL NHS FOUNDATION TRUST",65,0.98461538461538467,1.5384615384615385E-2,58,6,0,1,0,0,0,0,65,0,0,0,0]
["Q80","RA3","WESTON AREA HEALTH NHS TRUST",41,0.97560975609756095,2.4390243902439025E-2,33,7,0,1,0,0,0,0,41,0,0,0,0]
["Q80","RA4","YEOVIL DISTRICT HOSPITAL NHS FOUNDATION TRUST",0,"NA","NA",0,0,0,0,0,0,0,0,0,0,0,0,0]
["Q81","RTK","ASHFORD AND ST PETER'S HOSPITALS NHS FOUNDATION TRUST",0,"NA","NA",0,0,0,0,0,0,0,0,0,0,0,0,0]
["Q81","RXH","BRIGHTON AND SUSSEX UNIVERSITY HOSPITALS NHS TRUST",20,0.8,0.1,15,1,1,2,0,1,20,0,0,0,0,0,0]
["Q81","RN7","DARTFORD AND GRAVESHAM NHS TRUST",0,"NA","NA",0,0,0,0,0,0,0,0,0,0,0,0,0]
["Q81","RVV","EAST KENT HOSPITALS UNIVERSITY NHS FOUNDATION TRUST",6,1,0,"*","*","*","*","*","*","*","*","*","*","*","*","*"]
["Q81","RXC","EAST SUSSEX HEALTHCARE NHS TRUST",9,1,0,7,2,0,0,0,0,0,9,0,0,0,0,0]
["Q81","RDU","FRIMLEY HEALTH NHS FOUNDATION TRUST",148,0.9932432432432432,0,131,16,1,0,0,0,0,0,147,0,0,1,0]
["Q81","RWF","MAIDSTONE AND TUNBRIDGE WELLS NHS TRUST",6,1,0,5,1,0,0,0,0,0,0,6,0,0,0,0]
["Q81","RPA","MEDWAY NHS FOUNDATION TRUST",2,"*","*","*","*","*","*","*","*","*","*","*","*","*","*","*"]
["Q81","RA2","ROYAL SURREY COUNTY HOSPITAL NHS FOUNDATION TRUST",71,0.92957746478873238,1.4084507042253521E-2,58,8,1,0,1,3,57,0,14,0,0,0,0]
["Q81","RTP","SURREY AND SUSSEX HEALTHCARE NHS TRUST",43,0.97674418604651159,0,36,6,1,0,0,0,0,0,42,0,0,1,0]
["Q81","RYR","WESTERN SUSSEX HOSPITALS NHS FOUNDATION TRUST",21,1,0,19,2,0,0,0,0,0,0,21,0,0,0,0]
["Q82","RXQ","BUCKINGHAMSHIRE HEALTHCARE NHS TRUST",30,1,0,28,2,0,0,0,0,0,0,30,0,0,0,0]
["Q82","RTE","GLOUCESTERSHIRE HOSPITALS NHS FOUNDATION TRUST",0,"NA","NA",0,0,0,0,0,0,0,0,0,0,0,0,0]
["Q82","RN3","GREAT WESTERN HOSPITALS NHS FOUNDATION TRUST",13,0.92307692307692313,0,10,2,1,0,0,0,0,0,13,0,0,0,0]
["Q82","RTH","OXFORD UNIVERSITY HOSPITALS NHS FOUNDATION TRUST",123,0.97560975609756095,0,111,9,2,0,0,1,0,0,122,0,0,1,0]
["Q82","RHW","ROYAL BERKSHIRE NHS FOUNDATION TRUST",44,1,0,31,13,0,0,0,0,0,0,44,0,0,0,0]
["Q82","RD1","ROYAL UNITED HOSPITALS BATH NHS FOUNDATION TRUST",56,1,0,51,5,0,0,0,0,0,0,56,0,0,0,0]
["Q82","RNZ","SALISBURY NHS FOUNDATION TRUST",11,1,0,11,0,0,0,0,0,0,0,11,0,0,0,0]
["Q83","RMC","BOLTON NHS FOUNDATION TRUST",47,1,0,37,10,0,0,0,0,26,0,0,21,0,0,0]
["Q83","RY2","BRIDGEWATER COMMUNITY HEALTHCARE NHS FOUNDATION TRUST",53,0.98113207547169812,0,47,5,1,0,0,0,0,0,53,0,0,0,0]
["Q83","RW3","CENTRAL MANCHESTER UNIVERSITY HOSPITALS NHS FOUNDATION TRUST",0,"NA","NA",0,0,0,0,0,0,0,0,0,0,0,0,0]
["Q83","RW6","PENNINE ACUTE HOSPITALS NHS TRUST",34,0.94117647058823528,2.9411764705882353E-2,29,3,1,0,1,0,29,0,5,0,0,0,0]
["Q83","RWJ","STOCKPORT NHS FOUNDATION TRUST",31,0.93548387096774188,3.2258064516129031E-2,27,2,1,1,0,0,0,0,0,31,0,0,0]
["Q83","RMP","TAMESIDE AND GLOSSOP INTEGRATED CARE NHS FOUNDATION TRUST",17,1,0,16,1,0,0,0,0,0,0,17,0,0,0,0]
["Q83","RM2","UNIVERSITY HOSPITAL OF SOUTH MANCHESTER NHS FOUNDATION TRUST",51,1,0,47,4,0,0,0,0,0,0,51,0,0,0,0]
["Q83","RRF","WRIGHTINGTON, WIGAN AND LEIGH NHS FOUNDATION TRUST",12,1,0,10,2,0,0,0,0,6,0,6,0,0,0,0]
["Q84","RXL","BLACKPOOL TEACHING HOSPITALS NHS FOUNDATION TRUST",21,1,0,18,3,0,0,0,0,0,0,21,0,0,0,0]
["Q84","RXR","EAST LANCASHIRE HOSPITALS NHS TRUST",87,0.95402298850574707,0,68,15,4,0,0,0,49,0,38,0,0,0,0]
["Q84","RXN","LANCASHIRE TEACHING HOSPITALS NHS FOUNDATION TRUST",60,0.98333333333333328,1.6666666666666666E-2,52,7,0,1,0,0,60,0,0,0,0,0,0]

{"sheet":"BSQ1","index":13,"n_rows":212,"n_cols":33,"rows_kept":212,"cut":false,"hidden":true,"merged":[]}
[null,"Sort","Region (Geo)","Region (Geo)","Trusts","Trusts","Sites","Sites",null,"Sort ranges:","Sort range…","Sort range…","Sort range…","Reference Region List:","Code…","Name…","Linked Region List:","Code…","Name…","Reference Lists:","Code…","Code…","Name…","Code…","Name…","Trusts Linked Lists:","Code…","Name…","Site Linked Lists:","Code…","Name…","Code…","Name…"]
["Region (Geo)",1,1,1,"-","-","-","-",null,null,"Region (Geo) Code","Region (Geo) Code","Region (Geo) Code",null,"Q72","NHS England Yorkshire & Humber",null,"Q70","NHS England Central Midlands",null,"Q70","RBD","DORSET COUNTY HOSPITAL NHS FOUNDATION TRUST","RBD01","Dorset County Hospital - RBD01",null,"R1F","AIREDALE NHS FOUNDATION TRUST",null,"R1F","AIREDALE NHS FOUNDATION TRUST","R1F01","Airedale General Hospital - RCF22"]
["Trusts",1,1,1,1,1,"-","-",null,null,"Region (Geography)","Trust Code","Trust Code",null,"Q74","NHS England Cumbria & North East",null,"Q71","NHS England Cheshire & Merseyside",null,"Q70","RN5","HAMPSHIRE HOSPITALS NHS FOUNDATION TRUST","RN542","Andover War Memorial Hospital - RN542",null,"R1H","ASHFORD AND ST PETER'S HOSPITALS NHS FOUNDATION TRUST",null,"R1H","ASHFORD AND ST PETER'S HOSPITALS NHS FOUNDATION TRUST","R1H12","Alexandra Hospital - RWP01"]
["Sites",1,1,1,1,1,1,1,null,null,"Total Responses","Trust Name","Trust Name",null,"Q75","NHS England Cheshire & Merseyside",null,"Q72","NHS England Cumbria & North East",null,"Q70","RN5","HAMPSHIRE HOSPITALS NHS FOUNDATION TRUST","RN506","Basingstoke and North Hampshire Hospital - RN506",null,"R1K","BARKING, HAVERING AND REDBRIDGE UNIVERSITY HOSPITALS NHS TRUST",null,"R1K","BARKING, HAVERING AND REDBRIDGE UNIVERSITY HOSPITALS NHS TRUST","R1HKH","Andover War Memorial Hospital - RN542"]
[null,null,null,null,null,null,null,null,null,null,"Percentage Recommended","Total Responses","Site Code",null,"Q83","NHS England Greater Manchester",null,"Q74","NHS England East",null,"Q70","RN5","HAMPSHIRE HOSPITALS NHS FOUNDATION TRUST","RN541","Royal Hampshire County Hospital - RN541",null,"RA2","BARNSLEY HOSPITAL NHS FOUNDATION TRUST",null,"RA2","BARNSLEY HOSPITAL NHS FOUNDATION TRUST","R1HNH","Arrowe Park Hospital - RBL14"]
[null,null,null,null,null,null,null,null,null,null,"Percentage Not  Recommended","Percentage Recommended","Site Name",null,"Q84","NHS England Lancashire",null,"Q75","NHS England Greater Manchester",null,"Q70","R1F","ISLE OF WIGHT NHS TRUST","R1F01","St Mary's Hospital - R1F01",null,"RA3","BARTS HEALTH NHS TRUST",null,"RA3","BARTS HEALTH NHS TRUST","R1K01","Barnet Hospital - RAL26"]
[null,null,null,null,null,null,null,null,null,null,"Extremely Likely","Percentage Not  Recommended","Total Responses",null,"Q76","NHS England North Midlands",null,"Q76","NHS England Lancashire",null,"Q70","RD3","POOLE HOSPITAL NHS FOUNDATION TRUST","RD304","Poole General Hospital NHS Trust HQ - RD304",null,"RA4","BASILDON AND THURROCK UNIVERSITY HOSPITALS NHS FOUNDATION TRUST",null,"RA4","BASILDON AND THURROCK UNIVERSITY HOSPITALS NHS FOUNDATION TRUST","R1K02","Barnsley Hospital NHS Foundation Trust HQ - RFFAA"]
[null,null,null,null,null,null,null,null,null,null,"Likely","Extremely Likely","Percentage Recommended",null,"Q77","NHS England West Midlands",null,"Q77","NHS England London",null,"Q70","RHU","PORTSMOUTH HOSPITALS NHS TRUST","RHU10","Gosport War Memorial Hospital - RHU10",null,"RA7","BEDFORD HOSPITAL NHS TRUST",null,"RA7","BEDFORD HOSPITAL NHS TRUST","R1K04","Basildon University Hospital - RDDH0"]
[null,null,null,null,null,null,null,null,null,null,"Neither","Likely","Percentage Not  Recommended",null,"Q78","NHS England Central Midlands",null,"Q78","NHS England North Midlands",null,"Q70","RHU","PORTSMOUTH HOSPITALS NHS TRUST","RHU04","Petersfield Community Hospital - RHU04",null,"RA9","BIRMINGHAM WOMEN'S AND CHILDREN'S NHS FOUNDATION TRUST",null,"RA9","BIRMINGHAM WOMEN'S AND CHILDREN'S NHS FOUNDATION TRUST","R1KXXX","Basingstoke and North Hampshire Hospital - RN506"]
[null,null,null,null,null,null,null,null,null,null,"Unlikely","Neither","Extremely Likely",null,"Q79","NHS England East",null,"Q79","NHS England South Central",null,"Q70","RHU","PORTSMOUTH HOSPITALS NHS TRUST","RHU03","Queen Alexandra Hospital - RHU03",null,"RAE","BLACKPOOL TEACHING HOSPITALS NHS FOUNDATION TRUST",null,"RAE","BLACKPOOL TEACHING HOSPITALS NHS FOUNDATION TRUST","RA201","Bassetlaw Hospital - RP5BA"]
[null,null,null,null,null,null,null,null,null,null,"Extremely Unlikely","Unlikely","Likely",null,"Q80","NHS England South West",null,"Q80","NHS England South East",null,"Q70","RHU","PORTSMOUTH HOSPITALS NHS TRUST","RHU02","St Mary's Hospital - RHU02",null,"RAJ","BOLTON NHS FOUNDATION TRUST",null,"RAJ","BOLTON NHS FOUNDATION TRUST","RA301","Bedford Hospital South Wing - RC110"]
[null,null,null,null,null,null,null,null,null,null,"Don't Know","Extremely Unlikely","Neither",null,"Q81","NHS England South East",null,"Q81","NHS England South West",null,"Q70","RDZ","THE ROYAL BOURNEMOUTH AND CHRISTCHURCH HOSPITALS NHS FOUNDATION TRUST","RDZ20","Royal Bournemouth General Hospital - RDZ20",null,"RAL","BRADFORD TEACHING HOSPITALS NHS FOUNDATION TRUST",null,"RAL","BRADFORD TEACHING HOSPITALS NHS FOUNDATION TRUST","RA430","Birmingham Women's Hospital - RQ370"]
[null,null,null,null,null,null,null,null,null,null,null,"Don't Know","Unlikely",null,"Q82","NHS England South Central",null,"Q82","NHS England Wessex",null,"Q70","RHM","UNIVERSITY HOSPITAL SOUTHAMPTON NHS FOUNDATION TRUST","RHM12","Princess Anne Hospital - RHM12",null,"RAP","BRIDGEWATER COMMUNITY HEALTHCARE NHS FOUNDATION TRUST",null,"RAP","BRIDGEWATER COMMUNITY HEALTHCARE NHS FOUNDATION TRUST","RA707","Blackpool Victoria Hospital - RXL01"]
[null,null,null,null,null,null,null,null,null,null,null,"SMS/Text / Smartphone App","Extremely Unlikely",null,"Q70","NHS England Wessex",null,"Q83","NHS England West Midlands",null,"Q71","RF4","BARKING, HAVERING AND REDBRIDGE UNIVERSITY HOSPITALS NHS TRUST","RF4QH","Queen's Hospital - RF4QH",null,"RAS","BRIGHTON AND SUSSEX UNIVERSITY HOSPITALS NHS TRUST",null,"RAS","BRIGHTON AND SUSSEX UNIVERSITY HOSPITALS NHS TRUST","RA901","Bradford Royal Infirmary - RAE01"]
[null,null,null,null,null,null,null,null,null,null,null,"Electronic tablet/kiosk at point of discharge","Don't Know",null,"Q71","NHS England London",null,"Q84","NHS England Yorkshire & Humber",null,"Q71","R1H","BARTS HEALTH NHS TRUST","R1HNH","Newham General Hospital - R1HNH",null,"RAX","BUCKINGHAMSHIRE HEALTHCARE NHS TRUST",null,"RAX","BUCKINGHAMSHIRE HEALTHCARE NHS TRUST","RAE01","Bridgwater Hospital - RBAC3"]
[null,null,null,null,null,null,null,null,null,null,null,"Paper / postcard at point of discharge",null,null,null,null,null,null,null,null,"Q71","R1H","BARTS HEALTH NHS TRUST","R1H12","The Royal London Hospital - R1H12",null,"RBA","BURTON HOSPITALS NHS FOUNDATION TRUST",null,"RBA","BURTON HOSPITALS NHS FOUNDATION TRUST","RAEXXX","Broomfield Hospital - RQ8L0"]
[null,null,null,null,null,null,null,null,null,null,null,"Paper survey, sent to the patients home",null,null,null,null,null,null,null,null,"Q71","R1H","BARTS HEALTH NHS TRUST","R1HKH","Whipps Cross University Hospital - R1HKH",null,"RBD","CALDERDALE AND HUDDERSFIELD NHS FOUNDATION TRUST",null,"RBD","CALDERDALE AND HUDDERSFIELD NHS FOUNDATION TRUST","RAJ01","Central Middlesex Hospital - R1K02"]
[null,null,null,null,null,null,null,null,null,null,null,"Telephone survey once patient is home",null,null,null,null,null,null,null,null,"Q71","RQM","CHELSEA AND WESTMINSTER HOSPITAL NHS FOUNDATION TRUST","RQM01","Chelsea and Westminster Hospital - RQM01",null,"RBK","CAMBRIDGE UNIVERSITY HOSPITALS NHS FOUNDATION TRUST",null,"RBK","CAMBRIDGE UNIVERSITY HOSPITALS NHS FOUNDATION TRUST","RAL01","Chelsea and Westminster Hospital - RQM01"]
[null,null,null,null,null,null,null,null,null,null,null,"Online survey once patient is home",null,null,null,null,null,null,null,null,"Q71","RQM","CHELSEA AND WESTMINSTER HOSPITAL NHS FOUNDATION TRUST","RQM91","West Middlesex University Hospital - RQM91",null,"RBL","CENTRAL MANCHESTER UNIVERSITY HOSPITALS NHS FOUNDATION TRUST",null,"RBL","CENTRAL MANCHESTER UNIVERSITY HOSPITALS NHS FOUNDATION TRUST","RAL26","Cheltenham General Hospital - RTE01"]
[null,null,null,null,null,null,null,null,null,null,null,"Other",null,null,null,null,null,null,null,null,"Q71","RJ6","CROYDON HEALTH SERVICES NHS TRUST","RJ611","Croydon University Hospital - RJ611",null,"RBN","CHELSEA AND WESTMINSTER HOSPITAL NHS FOUNDATION TRUST",null,"RBN","CHELSEA AND WESTMINSTER HOSPITAL NHS FOUNDATION TRUST","RAPNM","Chesterfield Royal Hospital - RFSDA"]
[null,null,null,null,null,null,null,null,null,null,null,null,null,null,null,null,null,null,null,null,"Q71","RVR","EPSOM AND ST HELIER UNIVERSITY HOSPITALS NHS TRUST","RVR50","Epsom Hospital - RVR50",null,"RBT","CHESTERFIELD ROYAL HOSPITAL NHS FOUNDATION TRUST",null,"RBT","CHESTERFIELD ROYAL HOSPITAL NHS FOUNDATION TRUST","RAS01","Chippenham Community Hospital -RD102"]
[null,null,null,null,null,null,null,null,null,null,null,null,null,null,null,null,null,null,null,null,"Q71","RVR","EPSOM AND ST HELIER UNIVERSITY HOSPITALS NHS TRUST","RVRXXX","Non-hospital site - RVRXXX",null,"RBZ","CITY HOSPITALS SUNDERLAND NHS FOUNDATION TRUST",null,"RBZ","CITY HOSPITALS SUNDERLAND NHS FOUNDATION TRUST","RAX01","City Hospital - RXK02"]
[null,null,null,null,null,null,null,null,null,null,null,null,null,null,null,null,null,null,null,null,"Q71","RVR","EPSOM AND ST HELIER UNIVERSITY HOSPITALS NHS TRUST","RVR05","St Helier Hospital - RVR05",null,"RC1","COLCHESTER HOSPITAL UNIVERSITY NHS FOUNDATION TRUST",null,"RC1","COLCHESTER HOSPITAL UNIVERSITY NHS FOUNDATION TRUST","RAXXXX","Colchester General Hospital - RDEE4"]
[null,null,null,null,null,null,null,null,null,null,null,null,null,null,null,null,null,null,null,null,"Q71","RJ1","GUY'S AND ST THOMAS' NHS FOUNDATION TRUST","RJ122","St Thomas' Hospital - RJ122",null,"RC9","COUNTESS OF CHESTER HOSPITAL NHS FOUNDATION TRUST",null,"RC9","COUNTESS OF CHESTER HOSPITAL NHS FOUNDATION TRUST","RBA11","Conquest Hospital - RXC01"]
[null,null,null,null,null,null,null,null,null,null,null,null,null,null,null,null,null,null,null,null,"Q71","RQX","HOMERTON UNIVERSITY HOSPITAL NHS FOUNDATION TRUST","RQXM1","Homerton University Hospital - RQXM1",null,"RCB","COUNTY DURHAM AND DARLINGTON NHS FOUNDATION TRUST",null,"RCB","COUNTY DURHAM AND DARLINGTON NHS FOUNDATION TRUST","RBAC3","Countess Of Chester Hospital - RJR05"]
[null,null,null,null,null,null,null,null,null,null,null,null,null,null,null,null,null,null,null,null,"Q71","RYJ","IMPERIAL COLLEGE HEALTHCARE NHS TRUST","RYJ04","Queen Charlotte's Hospital - RYJ04",null,"RCD","CROYDON HEALTH SERVICES NHS TRUST",null,"RCD","CROYDON HEALTH SERVICES NHS TRUST","RBAXXX","County Hospital - RJE09"]
[null,null,null,null,null,null,null,null,null,null,null,null,null,null,null,null,null,null,null,null,"Q71","RYJ","IMPERIAL COLLEGE HEALTHCARE NHS TRUST","RYJ01","St Mary's Hospital (HQ) - RYJ01",null,"RCF","DARTFORD AND GRAVESHAM NHS TRUST",null,"RCF","DARTFORD AND GRAVESHAM NHS TRUST","RBD01","Crowborough Birthing Centre - RXC14"]
[null,null,null,null,null,null,null,null,null,null,null,null,null,null,null,null,null,null,null,null,"Q71","RJZ","KING'S COLLEGE HOSPITAL NHS FOUNDATION TRUST","RJZ01","King's College Hospital (Denmark Hill) - RJZ01",null,"RCX","DERBY TEACHING HOSPITALS NHS FOUNDATION TRUST",null,"RCX","DERBY TEACHING HOSPITALS NHS FOUNDATION TRUST","RBK02","Croydon University Hospital - RJ611"]
[null,null,null,null,null,null,null,null,null,null,null,null,null,null,null,null,null,null,null,null,"Q71","RJZ","KING'S COLLEGE HOSPITAL NHS FOUNDATION TRUST","RJZ30","Princess Royal University Hospital - RJZ30",null,"RD1","DONCASTER AND BASSETLAW TEACHING HOSPITALS NHS FOUNDATION TRUST",null,"RD1","DONCASTER AND BASSETLAW TEACHING HOSPITALS NHS FOUNDATION TRUST","RBL14","Darent Valley Hospital - RN707"]
[null,null,null,null,null,null,null,null,null,null,null,null,null,null,null,null,null,null,null,null,"Q71","RAX","KINGSTON HOSPITAL NHS FOUNDATION TRUST","RAX01","Kingston Hospital - RAX01",null,"RD3","DORSET COUNTY HOSPITAL NHS FOUNDATION TRUST",null,"RD3","DORSET COUNTY HOSPITAL NHS FOUNDATION TRUST","RBN01","Derriford Hospital - RK950"]
[null,null,null,null,null,null,null,null,null,null,null,null,null,null,null,null,null,null,null,null,"Q71","RAX","KINGSTON HOSPITAL NHS FOUNDATION TRUST","RAXXXX","Non-hospital site - RAXXXX",null,"RD8","EAST AND NORTH HERTFORDSHIRE NHS TRUST",null,"RD8","EAST AND NORTH HERTFORDSHIRE NHS TRUST","RBT20","Dewsbury and District Hospital - RXF10"]
[null,null,null,null,null,null,null,null,null,null,null,null,null,null,null,null,null,null,null,null,"Q71","RJ2","LEWISHAM AND GREENWICH NHS TRUST","RJ2XXX","Non-hospital site - RJ2XXX",null,"RDD","EAST CHESHIRE NHS TRUST",null,"RDD","EAST CHESHIRE NHS TRUST","RBZ12","Diana, Princess Of Wales Hospital - RJL30"]
[null,null,null,null,null,null,null,null,null,null,null,null,null,null,null,null,null,null,null,null,"Q71","RJ2","LEWISHAM AND GREENWICH NHS TRUST","RJ231","Queen Elizabeth Hospital - RJ231",null,"RDE","EAST KENT HOSPITALS UNIVERSITY NHS FOUNDATION TRUST",null,"RDE","EAST KENT HOSPITALS UNIVERSITY NHS FOUNDATION TRUST","RC110","Doncaster Royal Infirmary - RP5DR"]
[null,null,null,null,null,null,null,null,null,null,null,null,null,null,null,null,null,null,null,null,"Q71","RJ2","LEWISHAM AND GREENWICH NHS TRUST","RJ224","University Hospital Lewisham - RJ224",null,"RDU","EAST LANCASHIRE HOSPITALS NHS TRUST",null,"RDU","EAST LANCASHIRE HOSPITALS NHS TRUST","RC971","Dorset County Hospital - RBD01"]
[null,null,null,null,null,null,null,null,null,null,null,null,null,null,null,null,null,null,null,null,"Q71","R1K","LONDON NORTH WEST HEALTHCARE NHS TRUST","R1K02","Central Middlesex Hospital - R1K02",null,"RDZ","EAST SUSSEX HEALTHCARE NHS TRUST",null,"RDZ","EAST SUSSEX HEALTHCARE NHS TRUST","RCB55","Ealing Hospital - R1K04"]
[null,null,null,null,null,null,null,null,null,null,null,null,null,null,null,null,null,null,null,null,"Q71","R1K","LONDON NORTH WEST HEALTHCARE NHS TRUST","R1K04","Ealing Hospital - R1K04",null,"RE9","EPSOM AND ST HELIER UNIVERSITY HOSPITALS NHS TRUST",null,"RE9","EPSOM AND ST HELIER UNIVERSITY HOSPITALS NHS TRUST","RCBCA","East Surrey Hospital - RTP04"]
[null,null,null,null,null,null,null,null,null,null,null,null,null,null,null,null,null,null,null,null,"Q71","R1K","LONDON NORTH WEST HEALTHCARE NHS TRUST","R1KXXX","Non-hospital site - R1KXXX",null,"REF","FRIMLEY HEALTH NHS FOUNDATION TRUST",null,"REF","FRIMLEY HEALTH NHS FOUNDATION TRUST","RCD01","Eastbourne District General Hospital - RXC02"]
[null,null,null,null,null,null,null,null,null,null,null,null,null,null,null,null,null,null,null,null,"Q71","R1K","LONDON NORTH WEST HEALTHCARE NHS TRUST","R1K01","Northwick Park Hospital - R1K01",null,"REP","GATESHEAD HEALTH NHS FOUNDATION TRUST",null,"REP","GATESHEAD HEALTH NHS FOUNDATION TRUST","RCDXXX","Epsom Hospital - RVR50"]
[null,null,null,null,null,null,null,null,null,null,null,null,null,null,null,null,null,null,null,null,"Q71","RAP","NORTH MIDDLESEX UNIVERSITY HOSPITAL NHS TRUST","RAPNM","North Middlesex Hospital - RAPNM",null,"RF4","GEORGE ELIOT HOSPITAL NHS TRUST",null,"RF4","GEORGE ELIOT HOSPITAL NHS TRUST","RCF22","Fairfield General Hospital - RW601"]
[null,null,null,null,null,null,null,null,null,null,null,null,null,null,null,null,null,null,null,null,"Q71","RAL","ROYAL FREE LONDON NHS FOUNDATION TRUST","RAL26","Barnet Hospital - RAL26",null,"RFF","GLOUCESTERSHIRE HOSPITALS NHS FOUNDATION TRUST",null,"RFF","GLOUCESTERSHIRE HOSPITALS NHS FOUNDATION TRUST","RCX66","Frimley Park Hospital - RDU01"]
[null,null,null,null,null,null,null,null,null,null,null,null,null,null,null,null,null,null,null,null,"Q71","RAL","ROYAL FREE LONDON NHS FOUNDATION TRUST","RAL01","Royal Free Hospital - RAL01",null,"RFR","GREAT WESTERN HOSPITALS NHS FOUNDATION TRUST",null,"RFR","GREAT WESTERN HOSPITALS NHS FOUNDATION TRUST","RCX70","Frome Community Hospital  - RD121"]
[null,null,null,null,null,null,null,null,null,null,null,null,null,null,null,null,null,null,null,null,"Q71","RJ7","ST GEORGE'S UNIVERSITY HOSPITALS NHS FOUNDATION TRUST","RJ701","St George's Hospital (Tooting) - RJ701",null,"RFS","GUY'S AND ST THOMAS' NHS FOUNDATION TRUST",null,"RFS","GUY'S AND ST THOMAS' NHS FOUNDATION TRUST","RCXXXX","Furness General Hospital - RTXBU"]
[null,null,null,null,null,null,null,null,null,null,null,null,null,null,null,null,null,null,null,null,"Q71","RAS","THE HILLINGDON HOSPITALS NHS FOUNDATION TRUST","RAS01","Hillingdon Hospital - RAS01",null,"RGN","HAMPSHIRE HOSPITALS NHS FOUNDATION TRUST",null,"RGN","HAMPSHIRE HOSPITALS NHS FOUNDATION TRUST","RD102","George Eliot Hospital - Acute Services - RLT01"]
[null,null,null,null,null,null,null,null,null,null,null,null,null,null,null,null,null,null,null,null,"Q71","RKE","THE WHITTINGTON HOSPITAL NHS TRUST","RKEXXX","Non-hospital site - RKEXXX",null,"RGP","HARROGATE AND DISTRICT NHS FOUNDATION TRUST",null,"RGP","HARROGATE AND DISTRICT NHS FOUNDATION TRUST","RD108","Gloucestershire Royal Hospital - RTE03"]
[null,null,null,null,null,null,null,null,null,null,null,null,null,null,null,null,null,null,null,null,"Q71","RKE","THE WHITTINGTON HOSPITAL NHS TRUST","RKEQ4","The Whittington Hospital - RKEQ4",null,"RGQ","HEART OF ENGLAND NHS FOUNDATION TRUST",null,"RGQ","HEART OF ENGLAND NHS FOUNDATION TRUST","RD121","Good Hope Hospital - RR105"]
[null,null,null,null,null,null,null,null,null,null,null,null,null,null,null,null,null,null,null,null,"Q71","RRV","UNIVERSITY COLLEGE LONDON HOSPITALS NHS FOUNDATION TRUST","RRV03","University College Hospital - RRV03",null,"RGR","HOMERTON UNIVERSITY HOSPITAL NHS FOUNDATION TRUST",null,"RGR","HOMERTON UNIVERSITY HOSPITAL NHS FOUNDATION TRUST","RD129","Gosport War Memorial Hospital - RHU10"]
[null,null,null,null,null,null,null,null,null,null,null,null,null,null,null,null,null,null,null,null,"Q72","RCF","AIREDALE NHS FOUNDATION TRUST","RCF22","Airedale General Hospital - RCF22",null,"RGT","HULL AND EAST YORKSHIRE HOSPITALS NHS TRUST",null,"RGT","HULL AND EAST YORKSHIRE HOSPITALS NHS TRUST","RD130","Grantham and District Hospital - RWDLP"]
[null,null,null,null,null,null,null,null,null,null,null,null,null,null,null,null,null,null,null,null,"Q72","RFF","BARNSLEY HOSPITAL NHS FOUNDATION TRUST","RFFAA","Barnsley Hospital NHS Foundation Trust HQ - RFFAA",null,"RH8","IMPERIAL COLLEGE HEALTHCARE NHS TRUST",null,"RH8","IMPERIAL COLLEGE HEALTHCARE NHS TRUST","RD167","Harrogate District Hospital - RCD01"]
[null,null,null,null,null,null,null,null,null,null,null,null,null,null,null,null,null,null,null,null,"Q72","RAE","BRADFORD TEACHING HOSPITALS NHS FOUNDATION TRUST","RAE01","Bradford Royal Infirmary - RAE01",null,"RHM","IPSWICH HOSPITAL NHS TRUST",null,"RHM","IPSWICH HOSPITAL NHS TRUST","RD304","Health Care Resource Centre - RY28P"]
[null,null,null,null,null,null,null,null,null,null,null,null,null,null,null,null,null,null,null,null,"Q72","RAE","BRADFORD TEACHING HOSPITALS NHS FOUNDATION TRUST","RAEXXX","Non-hospital site - RAEXXX",null,"RHQ","ISLE OF WIGHT NHS TRUST",null,"RHQ","ISLE OF WIGHT NHS TRUST","RD816","Heartlands Hospital - RR101"]
[null,null,null,null,null,null,null,null,null,null,null,null,null,null,null,null,null,null,null,null,"Q72","RWY","CALDERDALE AND HUDDERSFIELD NHS FOUNDATION TRUST","RWYXXX","Non-hospital site - RWYXXX",null,"RHU","JAMES PAGET UNIVERSITY HOSPITALS NHS FOUNDATION TRUST",null,"RHU","JAMES PAGET UNIVERSITY HOSPITALS NHS FOUNDATION TRUST","RDDH0","Hereford County Hospital - RLQ01"]
[null,null,null,null,null,null,null,null,null,null,null,null,null,null,null,null,null,null,null,null,"Q72","RP5","DONCASTER AND BASSETLAW TEACHING HOSPITALS NHS FOUNDATION TRUST","RP5BA","Bassetlaw Hospital - RP5BA",null,"RHW","KETTERING GENERAL HOSPITAL NHS FOUNDATION TRUST",null,"RHW","KETTERING GENERAL HOSPITAL NHS FOUNDATION TRUST","RDEE4","Hillingdon Hospital - RAS01"]
[null,null,null,null,null,null,null,null,null,null,null,null,null,null,null,null,null,null,null,null,"Q72","RP5","DONCASTER AND BASSETLAW TEACHING HOSPITALS NHS FOUNDATION TRUST","RP5DR","Doncaster Royal Infirmary - RP5DR",null,"RJ1","KING'S COLLEGE HOSPITAL NHS FOUNDATION TRUST",null,"RJ1","KING'S COLLEGE HOSPITAL NHS FOUNDATION TRUST","RDU01","Hinchingbrooke Hospital - RGN90"]
[null,null,null,null,null,null,null,null,null,null,null,null,null,null,null,null,null,null,null,null,"Q72","RP5","DONCASTER AND BASSETLAW TEACHING HOSPITALS NHS FOUNDATION TRUST","RP5XXX","Non-hospital site - RP5XXX",null,"RJ2","KINGSTON HOSPITAL NHS FOUNDATION TRUST",null,"RJ2","KINGSTON HOSPITAL NHS FOUNDATION TRUST","RDU50","Homerton University Hospital - RQXM1"]
[null,null,null,null,null,null,null,null,null,null,null,null,null,null,null,null,null,null,null,null,"Q72","RCD","HARROGATE AND DISTRICT NHS FOUNDATION TRUST","RCD01","Harrogate District Hospital - RCD01",null,"RJ6","LANCASHIRE TEACHING HOSPITALS NHS FOUNDATION TRUST",null,"RJ6","LANCASHIRE TEACHING HOSPITALS NHS FOUNDATION TRUST","RDUXXX","Honiton Hospital - RH 854"]
[null,null,null,null,null,null,null,null,null,null,null,null,null,null,null,null,null,null,null,null,"Q72","RCD","HARROGATE AND DISTRICT NHS FOUNDATION TRUST","RCDXXX","Non-hospital site - RCDXXX",null,"RJ7","LEEDS TEACHING HOSPITALS NHS TRUST",null,"RJ7","LEEDS TEACHING HOSPITALS NHS TRUST","RDZ20","Hospital Of St Cross - RKB03"]
[null,null,null,null,null,null,null,null,null,null,null,null,null,null,null,null,null,null,null,null,"Q72","RWA","HULL AND EAST YORKSHIRE HOSPITALS NHS TRUST","RWA01","Hull Royal Infirmary - RWA01",null,"RJC","LEWISHAM AND GREENWICH NHS TRUST",null,"RJC","LEWISHAM AND GREENWICH NHS TRUST","RE9GA","Hull Royal Infirmary - RWA01"]
[null,null,null,null,null,null,null,null,null,null,null,null,null,null,null,null,null,null,null,null,"Q72","RR8","LEEDS TEACHING HOSPITALS NHS TRUST","RR801","Leeds General Infirmary - RR801",null,"RJE","LIVERPOOL WOMEN'S NHS FOUNDATION TRUST",null,"RJE","LIVERPOOL WOMEN'S NHS FOUNDATION TRUST","REF12","James Paget University Hospital - RGP75"]
[null,null,null,null,null,null,null,null,null,null,null,null,null,null,null,null,null,null,null,null,"Q72","RR8","LEEDS TEACHING HOSPITALS NHS TRUST","RR8XXX","Non-Hospital Site - RR8XXX",null,"RJF","LONDON NORTH WEST HEALTHCARE NHS TRUST",null,"RJF","LONDON NORTH WEST HEALTHCARE NHS TRUST","REP01","John Radcliffe Hospital - RTH08"]
[null,null,null,null,null,null,null,null,null,null,null,null,null,null,null,null,null,null,null,null,"Q72","RR8","LEEDS TEACHING HOSPITALS NHS TRUST","RR813","St James's University Hospital - RR813",null,"RJL","LUTON AND DUNSTABLE UNIVERSITY HOSPITAL NHS FOUNDATION TRUST",null,"RJL","LUTON AND DUNSTABLE UNIVERSITY HOSPITAL NHS FOUNDATION TRUST","RF4QH","Kettering General Hospital - RNQ51"]
[null,null,null,null,null,null,null,null,null,null,null,null,null,null,null,null,null,null,null,null,"Q72","RXF","MID YORKSHIRE HOSPITALS NHS TRUST","RXF10","Dewsbury and District Hospital - RXF10",null,"RJN","MAIDSTONE AND TUNBRIDGE WELLS NHS TRUST",null,"RJN","MAIDSTONE AND TUNBRIDGE WELLS NHS TRUST","RFFAA","Kidderminster Hospital - RWP31"]
[null,null,null,null,null,null,null,null,null,null,null,null,null,null,null,null,null,null,null,null,"Q72","RXF","MID YORKSHIRE HOSPITALS NHS TRUST","RXFXXX","Non-hospital site - RXFXXX",null,"RJR","MEDWAY NHS FOUNDATION TRUST",null,"RJR","MEDWAY NHS FOUNDATION TRUST","RFRPA","King's College Hospital (Denmark Hill) - RJZ01"]
[null,null,null,null,null,null,null,null,null,null,null,null,null,null,null,null,null,null,null,null,"Q72","RXF","MID YORKSHIRE HOSPITALS NHS TRUST","RXF05","Pinderfields General Hospital - RXF05",null,"RJZ","MID CHESHIRE HOSPITALS NHS FOUNDATION TRUST",null,"RJZ","MID CHESHIRE HOSPITALS NHS FOUNDATION TRUST","RFSDA","King's Mill Hospital - RK5BC"]
[null,null,null,null,null,null,null,null,null,null,null,null,null,null,null,null,null,null,null,null,"Q72","RXF","MID YORKSHIRE HOSPITALS NHS TRUST","RXF03","Pontefract General Infirmary - RXF03",null,"RK5","MID ESSEX HOSPITAL SERVICES NHS TRUST",null,"RK5","MID ESSEX HOSPITAL SERVICES NHS TRUST","RGN80","Kingston Hospital - RAX01"]
[null,null,null,null,null,null,null,null,null,null,null,null,null,null,null,null,null,null,null,null,"Q72","RJL","NORTHERN LINCOLNSHIRE AND GOOLE NHS FOUNDATION TRUST","RJL30","Diana, Princess Of Wales Hospital - RJL30",null,"RK9","MID YORKSHIRE HOSPITALS NHS TRUST",null,"RK9","MID YORKSHIRE HOSPITALS NHS TRUST","RGN90","Leeds General Infirmary - RR801"]
[null,null,null,null,null,null,null,null,null,null,null,null,null,null,null,null,null,null,null,null,"Q72","RJL","NORTHERN LINCOLNSHIRE AND GOOLE NHS FOUNDATION TRUST","RJL32","Scunthorpe General Hospital - RJL32",null,"RKB","MILTON KEYNES UNIVERSITY HOSPITAL NHS FOUNDATION TRUST",null,"RKB","MILTON KEYNES UNIVERSITY HOSPITAL NHS FOUNDATION TRUST","RGP75","Leicester General Hospital - RWEAK"]
[null,null,null,null,null,null,null,null,null,null,null,null,null,null,null,null,null,null,null,null,"Q72","RHQ","SHEFFIELD TEACHING HOSPITALS NHS FOUNDATION TRUST","RHQHH","Royal Hallamshire Hospital - RHQHH",null,"RKE","NORFOLK AND NORWICH UNIVERSITY HOSPITALS NHS FOUNDATION TRUST",null,"RKE","NORFOLK AND NORWICH UNIVERSITY HOSPITALS NHS FOUNDATION TRUST","RGQ02","Leicester Royal Infirmary - RWEAA"]
[null,null,null,null,null,null,null,null,null,null,null,null,null,null,null,null,null,null,null,null,"Q72","RFR","THE ROTHERHAM NHS FOUNDATION TRUST","RFRPA","Rotherham District General Hospital - RFRPA",null,"RL4","NORTH BRISTOL NHS TRUST",null,"RL4","NORTH BRISTOL NHS TRUST","RGR50","Leighton Hospital - RBT20"]
[null,null,null,null,null,null,null,null,null,null,null,null,null,null,null,null,null,null,null,null,"Q72","RCB","YORK TEACHING HOSPITAL NHS FOUNDATION TRUST","RCBCA","Scarborough General Hospital - RCBCA",null,"RLN","NORTH CUMBRIA UNIVERSITY HOSPITALS NHS TRUST",null,"RLN","NORTH CUMBRIA UNIVERSITY HOSPITALS NHS TRUST","RGT32","Lincoln County Hospital - RWDDA"]
[null,null,null,null,null,null,null,null,null,null,null,null,null,null,null,null,null,null,null,null,"Q72","RCB","YORK TEACHING HOSPITAL NHS FOUNDATION TRUST","RCB55","York Hospital - RCB55",null,"RLQ","NORTH MIDDLESEX UNIVERSITY HOSPITAL NHS TRUST",null,"RLQ","NORTH MIDDLESEX UNIVERSITY HOSPITAL NHS TRUST","RH801","Lister Hospital - RWH01"]
[null,null,null,null,null,null,null,null,null,null,null,null,null,null,null,null,null,null,null,null,"Q74","RLN","CITY HOSPITALS SUNDERLAND NHS FOUNDATION TRUST","RLNGL","Sunderland Royal Hospital - RLNGL",null,"RLT","NORTH TEES AND HARTLEPOOL NHS FOUNDATION TRUST",null,"RLT","NORTH TEES AND HARTLEPOOL NHS FOUNDATION TRUST","RH833","Liverpool Womens Hospital - REP01"]
[null,null,null,null,null,null,null,null,null,null,null,null,null,null,null,null,null,null,null,null,"Q74","RXP","COUNTY DURHAM AND DARLINGTON NHS FOUNDATION TRUST","RXPCP","University Hospital Of North Durham - RXPCP",null,"RM1","NORTH WEST ANGLIA NHS FOUNDATION TRUST",null,"RM1","NORTH WEST ANGLIA NHS FOUNDATION TRUST","RH853","Luton and Dunstable Hospital - RC971"]
[null,null,null,null,null,null,null,null,null,null,null,null,null,null,null,null,null,null,null,null,"Q74","RR7","GATESHEAD HEALTH NHS FOUNDATION TRUST","RR7EN","Queen Elizabeth Hospital - RR7EN",null,"RM2","NORTHAMPTON GENERAL HOSPITAL NHS TRUST",null,"RM2","NORTHAMPTON GENERAL HOSPITAL NHS TRUST","RH854","Macclesfield District General Hospital - RJN71"]
[null,null,null,null,null,null,null,null,null,null,null,null,null,null,null,null,null,null,null,null,"Q74","RNL","NORTH CUMBRIA UNIVERSITY HOSPITALS NHS TRUST","RNLXXX","Non-hospital site - RNLXXX",null,"RMC","NORTHERN DEVON HEALTHCARE NHS TRUST",null,"RMC","NORTHERN DEVON HEALTHCARE NHS TRUST","RHM12","Maidstone District General Hospital - RWF03"]
[null,null,null,null,null,null,null,null,null,null,null,null,null,null,null,null,null,null,null,null,"Q74","RVW","NORTH TEES AND HARTLEPOOL NHS FOUNDATION TRUST","RVWXXX","Non-hospital site - RVWXXX",null,"RMP","NORTHERN LINCOLNSHIRE AND GOOLE NHS FOUNDATION TRUST",null,"RMP","NORTHERN LINCOLNSHIRE AND GOOLE NHS FOUNDATION TRUST","RHQHH","Manor Hospital - RBK02"]
[null,null,null,null,null,null,null,null,null,null,null,null,null,null,null,null,null,null,null,null,"Q74","RTF","NORTHUMBRIA HEALTHCARE NHS FOUNDATION TRUST","RTFXXX","Non-hospital site - RTFXXX",null,"RN3","NORTHUMBRIA HEALTHCARE NHS FOUNDATION TRUST",null,"RN3","NORTHUMBRIA HEALTHCARE NHS FOUNDATION TRUST","RHU02","Medway Maritime Hospital - RPA02"]
[null,null,null,null,null,null,null,null,null,null,null,null,null,null,null,null,null,null,null,null,"Q74","RTR","SOUTH TEES HOSPITALS NHS FOUNDATION TRUST","RTRXXX","Non-hospital site - RTRXXX",null,"RN5","NOTTINGHAM UNIVERSITY HOSPITALS NHS TRUST",null,"RN5","NOTTINGHAM UNIVERSITY HOSPITALS NHS TRUST","RHU03","Milton Keynes Hospital - RD816"]
[null,null,null,null,null,null,null,null,null,null,null,null,null,null,null,null,null,null,null,null,"Q74","RE9","SOUTH TYNESIDE NHS FOUNDATION TRUST","RE9GA","South Tyneside District Hospital - RE9GA",null,"RN7","OXFORD UNIVERSITY HOSPITALS NHS FOUNDATION TRUST",null,"RN7","OXFORD UNIVERSITY HOSPITALS NHS FOUNDATION TRUST","RHU04","Musgrove Park Hospital - RBA11"]
[null,null,null,null,null,null,null,null,null,null,null,null,null,null,null,null,null,null,null,null,"Q74","RTD","THE NEWCASTLE UPON TYNE HOSPITALS NHS FOUNDATION TRUST","RTD02","The Royal Victoria Infirmary - RTD02",null,"RNA","PENNINE ACUTE HOSPITALS NHS TRUST",null,"RNA","PENNINE ACUTE HOSPITALS NHS TRUST","RHU10","New Cross Hospital - RL403"]
[null,null,null,null,null,null,null,null,null,null,null,null,null,null,null,null,null,null,null,null,"Q74","RTX","UNIVERSITY HOSPITALS OF MORECAMBE BAY NHS FOUNDATION TRUST","RTXBU","Furness General Hospital - RTXBU",null,"RNL","PLYMOUTH HOSPITALS NHS TRUST",null,"RNL","PLYMOUTH HOSPITALS NHS TRUST","RHW01","Newham General Hospital - R1HNH"]
[null,null,null,null,null,null,null,null,null,null,null,null,null,null,null,null,null,null,null,null,"Q74","RTX","UNIVERSITY HOSPITALS OF MORECAMBE BAY NHS FOUNDATION TRUST","RTX02","Royal Lancaster Infirmary - RTX02",null,"RNQ","POOLE HOSPITAL NHS FOUNDATION TRUST",null,"RNQ","POOLE HOSPITAL NHS FOUNDATION TRUST","RJ122","Non-hospital site - R1KXXX"]
[null,null,null,null,null,null,null,null,null,null,null,null,null,null,null,null,null,null,null,null,"Q75","RJR","COUNTESS OF CHESTER HOSPITAL NHS FOUNDATION TRUST","RJR05","Countess Of Chester Hospital - RJR05",null,"RNS","PORTSMOUTH HOSPITALS NHS TRUST",null,"RNS","PORTSMOUTH HOSPITALS NHS TRUST","RJ224","Non-hospital site - RAEXXX"]
[null,null,null,null,null,null,null,null,null,null,null,null,null,null,null,null,null,null,null,null,"Q75","RJR","COUNTESS OF CHESTER HOSPITAL NHS FOUNDATION TRUST","RJRXXX","Non-hospital site - RJRXXX",null,"RNZ","ROYAL BERKSHIRE NHS FOUNDATION TRUST",null,"RNZ","ROYAL BERKSHIRE NHS FOUNDATION TRUST","RJ231","Non-hospital site - RAXXXX"]
[null,null,null,null,null,null,null,null,null,null,null,null,null,null,null,null,null,null,null,null,"Q75","RJN","EAST CHESHIRE NHS TRUST","RJN71","Macclesfield District General Hospital - RJN71",null,"RP5","ROYAL CORNWALL HOSPITALS NHS TRUST",null,"RP5","ROYAL CORNWALL HOSPITALS NHS TRUST","RJ2XXX","Non-hospital site - RBAXXX"]
[null,null,null,null,null,null,null,null,null,null,null,null,null,null,null,null,null,null,null,null,"Q75","REP","LIVERPOOL WOMEN'S NHS FOUNDATION TRUST","REP01","Liverpool Womens Hospital - REP01",null,"RPA","ROYAL DEVON AND EXETER NHS FOUNDATION TRUST",null,"RPA","ROYAL DEVON AND EXETER NHS FOUNDATION TRUST","RJ611","Non-hospital site - RCDXXX"]
[null,null,null,null,null,null,null,null,null,null,null,null,null,null,null,null,null,null,null,null,"Q75","RBT","MID CHESHIRE HOSPITALS NHS FOUNDATION TRUST","RBT20","Leighton Hospital - RBT20",null,"RQ3","ROYAL FREE LONDON NHS FOUNDATION TRUST",null,"RQ3","ROYAL FREE LONDON NHS FOUNDATION TRUST","RJ701","Non-hospital site - RCXXXX"]
[null,null,null,null,null,null,null,null,null,null,null,null,null,null,null,null,null,null,null,null,"Q75","RVY","SOUTHPORT AND ORMSKIRK HOSPITAL NHS TRUST","RVYXXX","Non-hospital site - RVYXXX",null,"RQ8","ROYAL SURREY COUNTY HOSPITAL NHS FOUNDATION TRUST",null,"RQ8","ROYAL SURREY COUNTY HOSPITAL NHS FOUNDATION TRUST","RJCXXX","Non-hospital site - RDUXXX"]
[null,null,null,null,null,null,null,null,null,null,null,null,null,null,null,null,null,null,null,null,"Q75","RBN","ST HELENS AND KNOWSLEY HOSPITAL SERVICES NHS TRUST","RBN01","Whiston Hospital - RBN01",null,"RQM","ROYAL UNITED HOSPITALS BATH NHS FOUNDATION TRUST",null,"RQM","ROYAL UNITED HOSPITALS BATH NHS FOUNDATION TRUST","RJE01","Non-hospital site - RJ2XXX"]
[null,null,null,null,null,null,null,null,null,null,null,null,null,null,null,null,null,null,null,null,"Q75","RWW","WARRINGTON AND HALTON HOSPITALS NHS FOUNDATION TRUST","RWWWH","Warrington Hospital - RWWWH",null,"RQW","SALISBURY NHS FOUNDATION TRUST",null,"RQW","SALISBURY NHS FOUNDATION TRUST","RJE09","Non-hospital site - RJCXXX"]
[null,null,null,null,null,null,null,null,null,null,null,null,null,null,null,null,null,null,null,null,"Q75","RBL","WIRRAL UNIVERSITY TEACHING HOSPITAL NHS FOUNDATION TRUST","RBL14","Arrowe Park Hospital - RBL14",null,"RQX","SANDWELL AND WEST BIRMINGHAM HOSPITALS NHS TRUST",null,"RQX","SANDWELL AND WEST BIRMINGHAM HOSPITALS NHS TRUST","RJF02","Non-hospital site - RJRXXX"]
[null,null,null,null,null,null,null,null,null,null,null,null,null,null,null,null,null,null,null,null,"Q76","RJF","BURTON HOSPITALS NHS FOUNDATION TRUST","RJF02","Queen's Hospital, Burton Upon Trent - RJF02",null,"RR1","SHEFFIELD TEACHING HOSPITALS NHS FOUNDATION TRUST",null,"RR1","SHEFFIELD TEACHING HOSPITALS NHS FOUNDATION TRUST","RJL30","Non-hospital site - RK9XXX"]
[null,null,null,null,null,null,null,null,null,null,null,null,null,null,null,null,null,null,null,null,"Q76","RFS","CHESTERFIELD ROYAL HOSPITAL NHS FOUNDATION TRUST","RFSDA","Chesterfield Royal Hospital - RFSDA",null,"RR7","SHERWOOD FOREST HOSPITALS NHS FOUNDATION TRUST",null,"RR7","SHERWOOD FOREST HOSPITALS NHS FOUNDATION TRUST","RJL32","Non-hospital site - RKBXXX"]
[null,null,null,null,null,null,null,null,null,null,null,null,null,null,null,null,null,null,null,null,"Q76","RTG","DERBY TEACHING HOSPITALS NHS FOUNDATION TRUST","RTGFG","Royal Derby Hospital - RTGFG",null,"RR8","SHREWSBURY AND TELFORD HOSPITAL NHS TRUST",null,"RR8","SHREWSBURY AND TELFORD HOSPITAL NHS TRUST","RJN71","Non-hospital site - RKEXXX"]
[null,null,null,null,null,null,null,null,null,null,null,null,null,null,null,null,null,null,null,null,"Q76","RX1","NOTTINGHAM UNIVERSITY HOSPITALS NHS TRUST","RX1XXX","Non-hospital site - RX1XXX",null,"RRF","SOUTH TEES HOSPITALS NHS FOUNDATION TRUST",null,"RRF","SOUTH TEES HOSPITALS NHS FOUNDATION TRUST","RJR05","Non-hospital site - RN3XXX"]
[null,null,null,null,null,null,null,null,null,null,null,null,null,null,null,null,null,null,null,null,"Q76","RK5","SHERWOOD FOREST HOSPITALS NHS FOUNDATION TRUST","RK5BC","King's Mill Hospital - RK5BC",null,"RRV","SOUTH TYNESIDE NHS FOUNDATION TRUST",null,"RRV","SOUTH TYNESIDE NHS FOUNDATION TRUST","RJRXXX","Non-hospital site - RNAXXX"]
[null,null,null,null,null,null,null,null,null,null,null,null,null,null,null,null,null,null,null,null,"Q76","RXW","SHREWSBURY AND TELFORD HOSPITAL NHS TRUST","RXWXXX","Non-hospital site - RXWXXX",null,"RTD","SOUTH WARWICKSHIRE NHS FOUNDATION TRUST",null,"RTD","SOUTH WARWICKSHIRE NHS FOUNDATION TRUST","RJZ01","Non-hospital site - RNLXXX"]
[null,null,null,null,null,null,null,null,null,null,null,null,null,null,null,null,null,null,null,null,"Q76","RJE","UNIVERSITY HOSPITALS OF NORTH MIDLANDS NHS TRUST","RJE09","County Hospital - RJE09",null,"RTE","SOUTHEND UNIVERSITY HOSPITAL NHS FOUNDATION TRUST",null,"RTE","SOUTHEND UNIVERSITY HOSPITAL NHS FOUNDATION TRUST","RJZ30","Non-hospital site - RP5XXX"]
[null,null,null,null,null,null,null,null,null,null,null,null,null,null,null,null,null,null,null,null,"Q76","RJE","UNIVERSITY HOSPITALS OF NORTH MIDLANDS NHS TRUST","RJE01","Royal Stoke University Hospital - RJE01",null,"RTF","SOUTHPORT AND ORMSKIRK HOSPITAL NHS TRUST",null,"RTF","SOUTHPORT AND ORMSKIRK HOSPITAL NHS TRUST","RK5BC","Non-Hospital Site - RR8XXX"]
[null,null,null,null,null,null,null,null,null,null,null,null,null,null,null,null,null,null,null,null,"Q77","RQ3","BIRMINGHAM WOMEN'S AND CHILDREN'S NHS FOUNDATION TRUST","RQ370","Birmingham Women's Hospital - RQ370",null,"RTG","ST GEORGE'S UNIVERSITY HOSPITALS NHS FOUNDATION TRUST",null,"RTG","ST GEORGE'S UNIVERSITY HOSPITALS NHS FOUNDATION TRUST","RK950","Non-hospital site - RTEXXX"]
[null,null,null,null,null,null,null,null,null,null,null,null,null,null,null,null,null,null,null,null,"Q77","RLT","GEORGE ELIOT HOSPITAL NHS TRUST","RLT01","George Eliot Hospital - Acute Services - RLT01",null,"RTH","ST HELENS AND KNOWSLEY HOSPITAL SERVICES NHS TRUST",null,"RTH","ST HELENS AND KNOWSLEY HOSPITAL SERVICES NHS TRUST","RK9XXX","Non-hospital site - RTFXXX"]
[null,null,null,null,null,null,null,null,null,null,null,null,null,null,null,null,null,null,null,null,"Q77","RR1","HEART OF ENGLAND NHS FOUNDATION TRUST","RR105","Good Hope Hospital - RR105",null,"RTK","STOCKPORT NHS FOUNDATION TRUST",null,"RTK","STOCKPORT NHS FOUNDATION TRUST","RKB01","Non-hospital site - RTRXXX"]
[null,null,null,null,null,null,null,null,null,null,null,null,null,null,null,null,null,null,null,null,"Q77","RR1","HEART OF ENGLAND NHS FOUNDATION TRUST","RR101","Heartlands Hospital - RR101",null,"RTP","SURREY AND SUSSEX HEALTHCARE NHS TRUST",null,"RTP","SURREY AND SUSSEX HEALTHCARE NHS TRUST","RKB03","Non-hospital site - RVRXXX"]
[null,null,null,null,null,null,null,null,null,null,null,null,null,null,null,null,null,null,null,null,"Q77","RR1","HEART OF ENGLAND NHS FOUNDATION TRUST","RR109","Solihull Hospital - RR109",null,"RTR","TAMESIDE AND GLOSSOP INTEGRATED CARE NHS FOUNDATION TRUST",null,"RTR","TAMESIDE AND GLOSSOP INTEGRATED CARE NHS FOUNDATION TRUST","RKBXXX","Non-hospital site - RVVXXX"]
[null,null,null,null,null,null,null,null,null,null,null,null,null,null,null,null,null,null,null,null,"Q77","RXK","SANDWELL AND WEST BIRMINGHAM HOSPITALS NHS TRUST","RXK02","City Hospital - RXK02",null,"RTX","TAUNTON AND SOMERSET NHS FOUNDATION TRUST",null,"RTX","TAUNTON AND SOMERSET NHS FOUNDATION TRUST","RKEQ4","Non-hospital site - RVWXXX"]
[null,null,null,null,null,null,null,null,null,null,null,null,null,null,null,null,null,null,null,null,"Q77","RXK","SANDWELL AND WEST BIRMINGHAM HOSPITALS NHS TRUST","RXK01","Sandwell General Hospital - RXK01",null,"RVJ","THE DUDLEY GROUP NHS FOUNDATION TRUST",null,"RVJ","THE DUDLEY GROUP NHS FOUNDATION TRUST","RKEXXX","Non-hospital site - RVYXXX"]
[null,null,null,null,null,null,null,null,null,null,null,null,null,null,null,null,null,null,null,null,"Q77","RJC","SOUTH WARWICKSHIRE NHS FOUNDATION TRUST","RJCXXX","Non-hospital site - RJCXXX",null,"RVR","THE HILLINGDON HOSPITALS NHS FOUNDATION TRUST",null,"RVR","THE HILLINGDON HOSPITALS NHS FOUNDATION TRUST","RL403","Non-hospital site - RWDXXX"]
[null,null,null,null,null,null,null,null,null,null,null,null,null,null,null,null,null,null,null,null,"Q77","RNA","THE DUDLEY GROUP NHS FOUNDATION TRUST","RNAXXX","Non-hospital site - RNAXXX",null,"RVV","THE NEWCASTLE UPON TYNE HOSPITALS NHS FOUNDATION TRUST",null,"RVV","THE NEWCASTLE UPON TYNE HOSPITALS NHS FOUNDATION TRUST","RLNGL","Non-hospital site - RWEXXX"]
[null,null,null,null,null,null,null,null,null,null,null,null,null,null,null,null,null,null,null,null,"Q77","RNA","THE DUDLEY GROUP NHS FOUNDATION TRUST","RNA01","Russells Hall Hospital - RNA01",null,"RVW","THE PRINCESS ALEXANDRA HOSPITAL NHS TRUST",null,"RVW","THE PRINCESS ALEXANDRA HOSPITAL NHS TRUST","RLQ01","Non-hospital site - RWFXXX"]
[null,null,null,null,null,null,null,null,null,null,null,null,null,null,null,null,null,null,null,null,"Q77","RL4","THE ROYAL WOLVERHAMPTON NHS TRUST","RL403","New Cross Hospital - RL403",null,"RVY","THE QUEEN ELIZABETH HOSPITAL, KING'S LYNN, NHS FOUNDATION TRUST",null,"RVY","THE QUEEN ELIZABETH HOSPITAL, KING'S LYNN, NHS FOUNDATION TRUST","RLT01","Non-hospital site - RWHXXX"]
[null,null,null,null,null,null,null,null,null,null,null,null,null,null,null,null,null,null,null,null,"Q77","RKB","UNIVERSITY HOSPITALS COVENTRY AND WARWICKSHIRE NHS TRUST","RKB03","Hospital Of St Cross - RKB03",null,"RW3","THE ROTHERHAM NHS FOUNDATION TRUST",null,"RW3","THE ROTHERHAM NHS FOUNDATION TRUST","RM102","Non-hospital site - RWYXXX"]
[null,null,null,null,null,null,null,null,null,null,null,null,null,null,null,null,null,null,null,null,"Q77","RKB","UNIVERSITY HOSPITALS COVENTRY AND WARWICKSHIRE NHS TRUST","RKBXXX","Non-hospital site - RKBXXX",null,"RW6","THE ROYAL BOURNEMOUTH AND CHRISTCHURCH HOSPITALS NHS FOUNDATION TRUST",null,"RW6","THE ROYAL BOURNEMOUTH AND CHRISTCHURCH HOSPITALS NHS FOUNDATION TRUST","RM202","Non-hospital site - RX1XXX"]
[null,null,null,null,null,null,null,null,null,null,null,null,null,null,null,null,null,null,null,null,"Q77","RKB","UNIVERSITY HOSPITALS COVENTRY AND WARWICKSHIRE NHS TRUST","RKB01","University Hospital (Coventry) - RKB01",null,"RWA","THE ROYAL WOLVERHAMPTON NHS TRUST",null,"RWA","THE ROYAL WOLVERHAMPTON NHS TRUST","RMC01","Non-hospital site - RXCXXX"]
[null,null,null,null,null,null,null,null,null,null,null,null,null,null,null,null,null,null,null,null,"Q77","RBK","WALSALL HEALTHCARE NHS TRUST","RBK02","Manor Hospital - RBK02",null,"RWD","THE WHITTINGTON HOSPITAL NHS TRUST",null,"RWD","THE WHITTINGTON HOSPITAL NHS TRUST","RMP01","Non-hospital site - RXFXXX"]
[null,null,null,null,null,null,null,null,null,null,null,null,null,null,null,null,null,null,null,null,"Q77","RWP","WORCESTERSHIRE ACUTE HOSPITALS NHS TRUST","RWP01","Alexandra Hospital - RWP01",null,"RWE","TORBAY AND SOUTH DEVON NHS FOUNDATION TRUST",null,"RWE","TORBAY AND SOUTH DEVON NHS FOUNDATION TRUST","RN325","Non-hospital site - RXLXXX"]
[null,null,null,null,null,null,null,null,null,null,null,null,null,null,null,null,null,null,null,null,"Q77","RWP","WORCESTERSHIRE ACUTE HOSPITALS NHS TRUST","RWP31","Kidderminster Hospital - RWP31",null,"RWF","UNITED LINCOLNSHIRE HOSPITALS NHS TRUST",null,"RWF","UNITED LINCOLNSHIRE HOSPITALS NHS TRUST","RN3XXX","Non-hospital site - RXWXXX"]
[null,null,null,null,null,null,null,null,null,null,null,null,null,null,null,null,null,null,null,null,"Q77","RWP","WORCESTERSHIRE ACUTE HOSPITALS NHS TRUST","RWP50","Worcestershire Royal Hospital - RWP50",null,"RWG","UNIVERSITY COLLEGE LONDON HOSPITALS NHS FOUNDATION TRUST",null,"RWG","UNIVERSITY COLLEGE LONDON HOSPITALS NHS FOUNDATION TRUST","RN506","Non-hospital site - RY2XXX"]
[null,null,null,null,null,null,null,null,null,null,null,null,null,null,null,null,null,null,null,null,"Q77","RLQ","WYE VALLEY NHS TRUST","RLQ01","Hereford County Hospital - RLQ01",null,"RWH","UNIVERSITY HOSPITAL OF SOUTH MANCHESTER NHS FOUNDATION TRUST",null,"RWH","UNIVERSITY HOSPITAL OF SOUTH MANCHESTER NHS FOUNDATION TRUST","RN541","Norfolk and Norwich University Hospital - RM102"]
[null,null,null,null,null,null,null,null,null,null,null,null,null,null,null,null,null,null,null,null,"Q78","RC1","BEDFORD HOSPITAL NHS TRUST","RC110","Bedford Hospital South Wing - RC110",null,"RWJ","UNIVERSITY HOSPITAL SOUTHAMPTON NHS FOUNDATION TRUST",null,"RWJ","UNIVERSITY HOSPITAL SOUTHAMPTON NHS FOUNDATION TRUST","RN542","North Cambridgeshire Hospital - RCX66"]
[null,null,null,null,null,null,null,null,null,null,null,null,null,null,null,null,null,null,null,null,"Q78","RWH","EAST AND NORTH HERTFORDSHIRE NHS TRUST","RWH01","Lister Hospital - RWH01",null,"RWP","UNIVERSITY HOSPITALS BRISTOL NHS FOUNDATION TRUST",null,"RWP","UNIVERSITY HOSPITALS BRISTOL NHS FOUNDATION TRUST","RN707","North Devon District Hospital - RBZ12"]
[null,null,null,null,null,null,null,null,null,null,null,null,null,null,null,null,null,null,null,null,"Q78","RWH","EAST AND NORTH HERTFORDSHIRE NHS TRUST","RWHXXX","Non-hospital site - RWHXXX",null,"RWW","UNIVERSITY HOSPITALS COVENTRY AND WARWICKSHIRE NHS TRUST",null,"RWW","UNIVERSITY HOSPITALS COVENTRY AND WARWICKSHIRE NHS TRUST","RNA01","North Middlesex Hospital - RAPNM"]
[null,null,null,null,null,null,null,null,null,null,null,null,null,null,null,null,null,null,null,null,"Q78","RNQ","KETTERING GENERAL HOSPITAL NHS FOUNDATION TRUST","RNQ51","Kettering General Hospital - RNQ51",null,"RWY","UNIVERSITY HOSPITALS OF LEICESTER NHS TRUST",null,"RWY","UNIVERSITY HOSPITALS OF LEICESTER NHS TRUST","RNAXXX","Northampton General Hospital (Acute) - RNS01"]
[null,null,null,null,null,null,null,null,null,null,null,null,null,null,null,null,null,null,null,null,"Q78","RC9","LUTON AND DUNSTABLE UNIVERSITY HOSPITAL NHS FOUNDATION TRUST","RC971","Luton and Dunstable Hospital - RC971",null,"RX1","UNIVERSITY HOSPITALS OF MORECAMBE BAY NHS FOUNDATION TRUST",null,"RX1","UNIVERSITY HOSPITALS OF MORECAMBE BAY NHS FOUNDATION TRUST","RNLXXX","Northwick Park Hospital - R1K01"]
[null,null,null,null,null,null,null,null,null,null,null,null,null,null,null,null,null,null,null,null,"Q78","RD8","MILTON KEYNES UNIVERSITY HOSPITAL NHS FOUNDATION TRUST","RD816","Milton Keynes Hospital - RD816",null,"RXC","UNIVERSITY HOSPITALS OF NORTH MIDLANDS NHS TRUST",null,"RXC","UNIVERSITY HOSPITALS OF NORTH MIDLANDS NHS TRUST","RNQ51","Okehampton Community Hospital - RH833"]
[null,null,null,null,null,null,null,null,null,null,null,null,null,null,null,null,null,null,null,null,"Q78","RNS","NORTHAMPTON GENERAL HOSPITAL NHS TRUST","RNS01","Northampton General Hospital (Acute) - RNS01",null,"RXF","WALSALL HEALTHCARE NHS TRUST",null,"RXF","WALSALL HEALTHCARE NHS TRUST","RNS01","Paulton Memorial Hospital  - RD129"]
[null,null,null,null,null,null,null,null,null,null,null,null,null,null,null,null,null,null,null,null,"Q78","RWD","UNITED LINCOLNSHIRE HOSPITALS NHS TRUST","RWDLP","Grantham and District Hospital - RWDLP",null,"RXH","WARRINGTON AND HALTON HOSPITALS NHS FOUNDATION TRUST",null,"RXH","WARRINGTON AND HALTON HOSPITALS NHS FOUNDATION TRUST","RNZ02","Peterborough City Hospital - RGN80"]
[null,null,null,null,null,null,null,null,null,null,null,null,null,null,null,null,null,null,null,null,"Q78","RWD","UNITED LINCOLNSHIRE HOSPITALS NHS TRUST","RWDDA","Lincoln County Hospital - RWDDA",null,"RXK","WEST HERTFORDSHIRE HOSPITALS NHS TRUST",null,"RXK","WEST HERTFORDSHIRE HOSPITALS NHS TRUST","RP5BA","Petersfield Community Hospital - RHU04"]
[null,null,null,null,null,null,null,null,null,null,null,null,null,null,null,null,null,null,null,null,"Q78","RWD","UNITED LINCOLNSHIRE HOSPITALS NHS TRUST","RWDXXX","Non-hospital site - RWDXXX",null,"RXL","WEST SUFFOLK NHS FOUNDATION TRUST",null,"RXL","WEST SUFFOLK NHS FOUNDATION TRUST","RP5DR","Pilgrim Hospital - RWDLA"]
[null,null,null,null,null,null,null,null,null,null,null,null,null,null,null,null,null,null,null,null,"Q78","RWD","UNITED LINCOLNSHIRE HOSPITALS NHS TRUST","RWDLA","Pilgrim Hospital - RWDLA",null,"RXN","WESTERN SUSSEX HOSPITALS NHS FOUNDATION TRUST",null,"RXN","WESTERN SUSSEX HOSPITALS NHS FOUNDATION TRUST","RP5XXX","Pinderfields General Hospital - RXF05"]
[null,null,null,null,null,null,null,null,null,null,null,null,null,null,null,null,null,null,null,null,"Q78","RWE","UNIVERSITY HOSPITALS OF LEICESTER NHS TRUST","RWEAK","Leicester General Hospital - RWEAK",null,"RXP","WESTON AREA HEALTH NHS TRUST",null,"RXP","WESTON AREA HEALTH NHS TRUST","RPA02","Pontefract General Infirmary - RXF03"]
[null,null,null,null,null,null,null,null,null,null,null,null,null,null,null,null,null,null,null,null,"Q78","RWE","UNIVERSITY HOSPITALS OF LEICESTER NHS TRUST","RWEAA","Leicester Royal Infirmary - RWEAA",null,"RXQ","WIRRAL UNIVERSITY TEACHING HOSPITAL NHS FOUNDATION TRUST",null,"RXQ","WIRRAL UNIVERSITY TEACHING HOSPITAL NHS FOUNDATION TRUST","RQ370","Poole General Hospital NHS Trust HQ - RD304"]
[null,null,null,null,null,null,null,null,null,null,null,null,null,null,null,null,null,null,null,null,"Q78","RWE","UNIVERSITY HOSPITALS OF LEICESTER NHS TRUST","RWEXXX","Non-hospital site - RWEXXX",null,"RXR","WORCESTERSHIRE ACUTE HOSPITALS NHS TRUST",null,"RXR","WORCESTERSHIRE ACUTE HOSPITALS NHS TRUST","RQ8L0","Princess Alexandra Hospital - RQWG0"]
[null,null,null,null,null,null,null,null,null,null,null,null,null,null,null,null,null,null,null,null,"Q78","RWG","WEST HERTFORDSHIRE HOSPITALS NHS TRUST","RWG02","Watford General Hospital - RWG02",null,"RXW","WRIGHTINGTON, WIGAN AND LEIGH NHS FOUNDATION TRUST",null,"RXW","WRIGHTINGTON, WIGAN AND LEIGH NHS FOUNDATION TRUST","RQM01","Princess Anne Hospital - RHM12"]
[null,null,null,null,null,null,null,null,null,null,null,null,null,null,null,null,null,null,null,null,"Q79","RDD","BASILDON AND THURROCK UNIVERSITY HOSPITALS NHS FOUNDATION TRUST","RDDH0","Basildon University Hospital - RDDH0",null,"RY2","WYE VALLEY NHS TRUST",null,"RY2","WYE VALLEY NHS TRUST","RQM91","Princess Anne Wing RUH  - RD130"]
[null,null,null,null,null,null,null,null,null,null,null,null,null,null,null,null,null,null,null,null,"Q79","RGT","CAMBRIDGE UNIVERSITY HOSPITALS NHS FOUNDATION TRUST","RGT32","Rosie Hospital - RGT32",null,"RYJ","YEOVIL DISTRICT HOSPITAL NHS FOUNDATION TRUST",null,"RYJ","YEOVIL DISTRICT HOSPITAL NHS FOUNDATION TRUST","RQWG0","Princess Royal University Hospital - RJZ30"]
[null,null,null,null,null,null,null,null,null,null,null,null,null,null,null,null,null,null,null,null,"Q79","RDE","COLCHESTER HOSPITAL UNIVERSITY NHS FOUNDATION TRUST","RDEE4","Colchester General Hospital - RDEE4",null,"RYR","YORK TEACHING HOSPITAL NHS FOUNDATION TRUST",null,"RYR","YORK TEACHING HOSPITAL NHS FOUNDATION TRUST","RQXM1","Queen Alexandra Hospital - RHU03"]
[null,null,null,null,null,null,null,null,null,null,null,null,null,null,null,null,null,null,null,null,"Q79","RGQ","IPSWICH HOSPITAL NHS TRUST","RGQ02","The Ipswich Hospital NHS Trust - RGQ02",null,null,null,null,null,null,"RR101","Queen Charlotte's Hospital - RYJ04"]
[null,null,null,null,null,null,null,null,null,null,null,null,null,null,null,null,null,null,null,null,"Q79","RGP","JAMES PAGET UNIVERSITY HOSPITALS NHS FOUNDATION TRUST","RGP75","James Paget University Hospital - RGP75",null,null,null,null,null,null,"RR105","Queen Elizabeth Hospital - RJ231"]
[null,null,null,null,null,null,null,null,null,null,null,null,null,null,null,null,null,null,null,null,"Q79","RQ8","MID ESSEX HOSPITAL SERVICES NHS TRUST","RQ8L0","Broomfield Hospital - RQ8L0",null,null,null,null,null,null,"RR109","Queen Elizabeth Hospital - RR7EN"]
[null,null,null,null,null,null,null,null,null,null,null,null,null,null,null,null,null,null,null,null,"Q79","RM1","NORFOLK AND NORWICH UNIVERSITY HOSPITALS NHS FOUNDATION TRUST","RM102","Norfolk and Norwich University Hospital - RM102",null,null,null,null,null,null,"RR7EN","Queen's Hospital - RF4QH"]
[null,null,null,null,null,null,null,null,null,null,null,null,null,null,null,null,null,null,null,null,"Q79","RGN","NORTH WEST ANGLIA NHS FOUNDATION TRUST","RGN90","Hinchingbrooke Hospital - RGN90",null,null,null,null,null,null,"RR801","Queen's Hospital, Burton Upon Trent - RJF02"]
[null,null,null,null,null,null,null,null,null,null,null,null,null,null,null,null,null,null,null,null,"Q79","RGN","NORTH WEST ANGLIA NHS FOUNDATION TRUST","RGN80","Peterborough City Hospital - RGN80",null,null,null,null,null,null,"RR813","Rochdale Infirmary - RW604"]
[null,null,null,null,null,null,null,null,null,null,null,null,null,null,null,null,null,null,null,null,"Q79","RAJ","SOUTHEND UNIVERSITY HOSPITAL NHS FOUNDATION TRUST","RAJ01","Southend Hospital - RAJ01",null,null,null,null,null,null,"RR8XXX","Rosie Hospital - RGT32"]
[null,null,null,null,null,null,null,null,null,null,null,null,null,null,null,null,null,null,null,null,"Q79","RQW","THE PRINCESS ALEXANDRA HOSPITAL NHS TRUST","RQWG0","Princess Alexandra Hospital - RQWG0",null,null,null,null,null,null,"RRF02","Rotherham District General Hospital - RFRPA"]
[null,null,null,null,null,null,null,null,null,null,null,null,null,null,null,null,null,null,null,null,"Q79","RCX","THE QUEEN ELIZABETH HOSPITAL, KING'S LYNN, NHS FOUNDATION TRUST","RCXXXX","Non-hospital site - RCXXXX",null,null,null,null,null,null,"RRV03","Royal Albert Edward Infirmary - RRF02"]
[null,null,null,null,null,null,null,null,null,null,null,null,null,null,null,null,null,null,null,null,"Q79","RCX","THE QUEEN ELIZABETH HOSPITAL, KING'S LYNN, NHS FOUNDATION TRUST","RCX66","North Cambridgeshire Hospital - RCX66",null,null,null,null,null,null,"RTD02","Royal Berkshire Hospital - RHW01"]
[null,null,null,null,null,null,null,null,null,null,null,null,null,null,null,null,null,null,null,null,"Q79","RCX","THE QUEEN ELIZABETH HOSPITAL, KING'S LYNN, NHS FOUNDATION TRUST","RCX70","The Queen Elizabeth Hospital - RCX70",null,null,null,null,null,null,"RTE01","Royal Blackburn Hospital - RXR20"]
[null,null,null,null,null,null,null,null,null,null,null,null,null,null,null,null,null,null,null,null,"Q79","RGR","WEST SUFFOLK NHS FOUNDATION TRUST","RGR50","West Suffolk Hospital - RGR50",null,null,null,null,null,null,"RTE03","Royal Bolton Hospital - RMC01"]
[null,null,null,null,null,null,null,null,null,null,null,null,null,null,null,null,null,null,null,null,"Q80","RVJ","NORTH BRISTOL NHS TRUST","RVJ01","Southmead Hospital - RVJ01",null,null,null,null,null,null,"RTEXXX","Royal Bournemouth General Hospital - RDZ20"]
[null,null,null,null,null,null,null,null,null,null,null,null,null,null,null,null,null,null,null,null,"Q80","RBZ","NORTHERN DEVON HEALTHCARE NHS TRUST","RBZ12","North Devon District Hospital - RBZ12",null,null,null,null,null,null,"RTFXXX","Royal Cornwall Hospital (Treliske) - REF12"]
[null,null,null,null,null,null,null,null,null,null,null,null,null,null,null,null,null,null,null,null,"Q80","RK9","PLYMOUTH HOSPITALS NHS TRUST","RK950","Derriford Hospital - RK950",null,null,null,null,null,null,"RTGFG","Royal Derby Hospital - RTGFG"]
[null,null,null,null,null,null,null,null,null,null,null,null,null,null,null,null,null,null,null,null,"Q80","RK9","PLYMOUTH HOSPITALS NHS TRUST","RK9XXX","Non-hospital site - RK9XXX",null,null,null,null,null,null,"RTH08","Royal Devon and Exeter Hospital (Wonford) - RH801"]
[null,null,null,null,null,null,null,null,null,null,null,null,null,null,null,null,null,null,null,null,"Q80","REF","ROYAL CORNWALL HOSPITALS NHS TRUST","REF12","Royal Cornwall Hospital (Treliske) - REF12",null,null,null,null,null,null,"RTK01","Royal Free Hospital - RAL01"]
[null,null,null,null,null,null,null,null,null,null,null,null,null,null,null,null,null,null,null,null,"Q80","RH8","ROYAL DEVON AND EXETER NHS FOUNDATION TRUST","RH854","Honiton Hospital - RH 854",null,null,null,null,null,null,"RTP04","Royal Hallamshire Hospital - RHQHH"]
[null,null,null,null,null,null,null,null,null,null,null,null,null,null,null,null,null,null,null,null,"Q80","RH8","ROYAL DEVON AND EXETER NHS FOUNDATION TRUST","RH833","Okehampton Community Hospital - RH833",null,null,null,null,null,null,"RTRXXX","Royal Hampshire County Hospital - RN541"]
[null,null,null,null,null,null,null,null,null,null,null,null,null,null,null,null,null,null,null,null,"Q80","RH8","ROYAL DEVON AND EXETER NHS FOUNDATION TRUST","RH801","Royal Devon and Exeter Hospital (Wonford) - RH801",null,null,null,null,null,null,"RTX02","Royal Lancaster Infirmary - RTX02"]
[null,null,null,null,null,null,null,null,null,null,null,null,null,null,null,null,null,null,null,null,"Q80","RH8","ROYAL DEVON AND EXETER NHS FOUNDATION TRUST","RH853","Tiverton and District Hospital - RH853",null,null,null,null,null,null,"RTXBU","Royal Oldham Hospital - RW603"]
[null,null,null,null,null,null,null,null,null,null,null,null,null,null,null,null,null,null,null,null,"Q80","RBA","TAUNTON AND SOMERSET NHS FOUNDATION TRUST","RBAC3","Bridgwater Hospital - RBAC3",null,null,null,null,null,null,"RVJ01","Royal Preston Hospital - RXN02"]
[null,null,null,null,null,null,null,null,null,null,null,null,null,null,null,null,null,null,null,null,"Q80","RBA","TAUNTON AND SOMERSET NHS FOUNDATION TRUST","RBA11","Musgrove Park Hospital - RBA11",null,null,null,null,null,null,"RVR05","Royal Stoke University Hospital - RJE01"]
[null,null,null,null,null,null,null,null,null,null,null,null,null,null,null,null,null,null,null,null,"Q80","RBA","TAUNTON AND SOMERSET NHS FOUNDATION TRUST","RBAXXX","Non-hospital site - RBAXXX",null,null,null,null,null,null,"RVR50","Royal Surrey County Hospital - RA201"]
[null,null,null,null,null,null,null,null,null,null,null,null,null,null,null,null,null,null,null,null,"Q80","RA9","TORBAY AND SOUTH DEVON NHS FOUNDATION TRUST","RA901","Torbay Hospital - RA901",null,null,null,null,null,null,"RVRXXX","Royal Sussex County Hospital - RXH01"]
[null,null,null,null,null,null,null,null,null,null,null,null,null,null,null,null,null,null,null,null,"Q80","RA7","UNIVERSITY HOSPITALS BRISTOL NHS FOUNDATION TRUST","RA707","St Michael's Hospital - RA707",null,null,null,null,null,null,"RVVXXX","Russells Hall Hospital - RNA01"]
[null,null,null,null,null,null,null,null,null,null,null,null,null,null,null,null,null,null,null,null,"Q80","RA3","WESTON AREA HEALTH NHS TRUST","RA301","Weston General Hospital - RA301",null,null,null,null,null,null,"RVWXXX","Salisbury District Hospital - RNZ02"]
[null,null,null,null,null,null,null,null,null,null,null,null,null,null,null,null,null,null,null,null,"Q80","RA4","YEOVIL DISTRICT HOSPITAL NHS FOUNDATION TRUST","RA430","Yeovil District Hospital - RA430",null,null,null,null,null,null,"RVYXXX","Sandwell General Hospital - RXK01"]
[null,null,null,null,null,null,null,null,null,null,null,null,null,null,null,null,null,null,null,null,"Q81","RTK","ASHFORD AND ST PETER'S HOSPITALS NHS FOUNDATION TRUST","RTK01","St Peter's Hospital - RTK01",null,null,null,null,null,null,"RW3SM","Scarborough General Hospital - RCBCA"]
[null,null,null,null,null,null,null,null,null,null,null,null,null,null,null,null,null,null,null,null,"Q81","RXH","BRIGHTON AND SUSSEX UNIVERSITY HOSPITALS NHS TRUST","RXH01","Royal Sussex County Hospital - RXH01",null,null,null,null,null,null,"RW601","Scunthorpe General Hospital - RJL32"]
[null,null,null,null,null,null,null,null,null,null,null,null,null,null,null,null,null,null,null,null,"Q81","RN7","DARTFORD AND GRAVESHAM NHS TRUST","RN707","Darent Valley Hospital - RN707",null,null,null,null,null,null,"RW603","Shepton Mallet Community Hospital  - RD167"]
[null,null,null,null,null,null,null,null,null,null,null,null,null,null,null,null,null,null,null,null,"Q81","RVV","EAST KENT HOSPITALS UNIVERSITY NHS FOUNDATION TRUST","RVVXXX","Non-hospital site - RVVXXX",null,null,null,null,null,null,"RW604","Solihull Hospital - RR109"]
[null,null,null,null,null,null,null,null,null,null,null,null,null,null,null,null,null,null,null,null,"Q81","RXC","EAST SUSSEX HEALTHCARE NHS TRUST","RXC01","Conquest Hospital - RXC01",null,null,null,null,null,null,"RWA01","South Tyneside District Hospital - RE9GA"]
[null,null,null,null,null,null,null,null,null,null,null,null,null,null,null,null,null,null,null,null,"Q81","RXC","EAST SUSSEX HEALTHCARE NHS TRUST","RXC14","Crowborough Birthing Centre - RXC14",null,null,null,null,null,null,"RWDDA","Southend Hospital - RAJ01"]
[null,null,null,null,null,null,null,null,null,null,null,null,null,null,null,null,null,null,null,null,"Q81","RXC","EAST SUSSEX HEALTHCARE NHS TRUST","RXC02","Eastbourne District General Hospital - RXC02",null,null,null,null,null,null,"RWDLA","Southmead Hospital - RVJ01"]
[null,null,null,null,null,null,null,null,null,null,null,null,null,null,null,null,null,null,null,null,"Q81","RXC","EAST SUSSEX HEALTHCARE NHS TRUST","RXCXXX","Non-hospital site - RXCXXX",null,null,null,null,null,null,"RWDLP","St George's Hospital (Tooting) - RJ701"]
[null,null,null,null,null,null,null,null,null,null,null,null,null,null,null,null,null,null,null,null,"Q81","RDU","FRIMLEY HEALTH NHS FOUNDATION TRUST","RDU01","Frimley Park Hospital - RDU01",null,null,null,null,null,null,"RWDXXX","St Helier Hospital - RVR05"]
[null,null,null,null,null,null,null,null,null,null,null,null,null,null,null,null,null,null,null,null,"Q81","RDU","FRIMLEY HEALTH NHS FOUNDATION TRUST","RDUXXX","Non-hospital site - RDUXXX",null,null,null,null,null,null,"RWEAA","St James's University Hospital - RR813"]
[null,null,null,null,null,null,null,null,null,null,null,null,null,null,null,null,null,null,null,null,"Q81","RDU","FRIMLEY HEALTH NHS FOUNDATION TRUST","RDU50","Wexham Park Hospital - RDU50",null,null,null,null,null,null,"RWEAK","St Mary's Hospital - R1F01"]
[null,null,null,null,null,null,null,null,null,null,null,null,null,null,null,null,null,null,null,null,"Q81","RWF","MAIDSTONE AND TUNBRIDGE WELLS NHS TRUST","RWF03","Maidstone District General Hospital - RWF03",null,null,null,null,null,null,"RWEXXX","St Mary's Hospital - RHU02"]
[null,null,null,null,null,null,null,null,null,null,null,null,null,null,null,null,null,null,null,null,"Q81","RWF","MAIDSTONE AND TUNBRIDGE WELLS NHS TRUST","RWFXXX","Non-hospital site - RWFXXX",null,null,null,null,null,null,"RWF03","St Mary's Hospital - RW3SM"]
[null,null,null,null,null,null,null,null,null,null,null,null,null,null,null,null,null,null,null,null,"Q81","RWF","MAIDSTONE AND TUNBRIDGE WELLS NHS TRUST","RWFTW","The Tunbridge Wells Hospital - RWFTW",null,null,null,null,null,null,"RWFTW","St Mary's Hospital (HQ) - RYJ01"]
[null,null,null,null,null,null,null,null,null,null,null,null,null,null,null,null,null,null,null,null,"Q81","RPA","MEDWAY NHS FOUNDATION TRUST","RPA02","Medway Maritime Hospital - RPA02",null,null,null,null,null,null,"RWFXXX","St Michael's Hospital - RA707"]
[null,null,null,null,null,null,null,null,null,null,null,null,null,null,null,null,null,null,null,null,"Q81","RA2","ROYAL SURREY COUNTY HOSPITAL NHS FOUNDATION TRUST","RA201","Royal Surrey County Hospital - RA201",null,null,null,null,null,null,"RWG02","St Peter's Hospital - RTK01"]
[null,null,null,null,null,null,null,null,null,null,null,null,null,null,null,null,null,null,null,null,"Q81","RTP","SURREY AND SUSSEX HEALTHCARE NHS TRUST","RTP04","East Surrey Hospital - RTP04",null,null,null,null,null,null,"RWH01","St Richard's Hospital - RYR16"]
[null,null,null,null,null,null,null,null,null,null,null,null,null,null,null,null,null,null,null,null,"Q81","RYR","WESTERN SUSSEX HOSPITALS NHS FOUNDATION TRUST","RYR16","St Richard's Hospital - RYR16",null,null,null,null,null,null,"RWHXXX","St Thomas' Hospital - RJ122"]
[null,null,null,null,null,null,null,null,null,null,null,null,null,null,null,null,null,null,null,null,"Q81","RYR","WESTERN SUSSEX HOSPITALS NHS FOUNDATION TRUST","RYR18","Worthing Hospital - RYR18",null,null,null,null,null,null,"RWJ09","Stepping Hill Hospital - RWJ09"]
[null,null,null,null,null,null,null,null,null,null,null,null,null,null,null,null,null,null,null,null,"Q82","RXQ","BUCKINGHAMSHIRE HEALTHCARE NHS TRUST","RXQ02","Stoke Mandeville Hospital - RXQ02",null,null,null,null,null,null,"RWP01","Stoke Mandeville Hospital - RXQ02"]
[null,null,null,null,null,null,null,null,null,null,null,null,null,null,null,null,null,null,null,null,"Q82","RTE","GLOUCESTERSHIRE HOSPITALS NHS FOUNDATION TRUST","RTE01","Cheltenham General Hospital - RTE01",null,null,null,null,null,null,"RWP31","Sunderland Royal Hospital - RLNGL"]
[null,null,null,null,null,null,null,null,null,null,null,null,null,null,null,null,null,null,null,null,"Q82","RTE","GLOUCESTERSHIRE HOSPITALS NHS FOUNDATION TRUST","RTE03","Gloucestershire Royal Hospital - RTE03",null,null,null,null,null,null,"RWP50","Tameside General Hospital - RMP01"]
[null,null,null,null,null,null,null,null,null,null,null,null,null,null,null,null,null,null,null,null,"Q82","RTE","GLOUCESTERSHIRE HOSPITALS NHS FOUNDATION TRUST","RTEXXX","Non-hospital site - RTEXXX",null,null,null,null,null,null,"RWWWH","The Great Western Hospital - RN325"]
[null,null,null,null,null,null,null,null,null,null,null,null,null,null,null,null,null,null,null,null,"Q82","RN3","GREAT WESTERN HOSPITALS NHS FOUNDATION TRUST","RN3XXX","Non-hospital site - RN3XXX",null,null,null,null,null,null,"RWYXXX","The Ipswich Hospital NHS Trust - RGQ02"]
[null,null,null,null,null,null,null,null,null,null,null,null,null,null,null,null,null,null,null,null,"Q82","RN3","GREAT WESTERN HOSPITALS NHS FOUNDATION TRUST","RN325","The Great Western Hospital - RN325",null,null,null,null,null,null,"RX1XXX","The Queen Elizabeth Hospital - RCX70"]
[null,null,null,null,null,null,null,null,null,null,null,null,null,null,null,null,null,null,null,null,"Q82","RTH","OXFORD UNIVERSITY HOSPITALS NHS FOUNDATION TRUST","RTH08","John Radcliffe Hospital - RTH08",null,null,null,null,null,null,"RXC01","The Royal London Hospital - R1H12"]
[null,null,null,null,null,null,null,null,null,null,null,null,null,null,null,null,null,null,null,null,"Q82","RHW","ROYAL BERKSHIRE NHS FOUNDATION TRUST","RHW01","Royal Berkshire Hospital - RHW01",null,null,null,null,null,null,"RXC02","The Royal Victoria Infirmary - RTD02"]
[null,null,null,null,null,null,null,null,null,null,null,null,null,null,null,null,null,null,null,null,"Q82","RD1","ROYAL UNITED HOSPITALS BATH NHS FOUNDATION TRUST","RD102","Chippenham Community Hospital -RD102",null,null,null,null,null,null,"RXC14","The Tunbridge Wells Hospital - RWFTW"]
[null,null,null,null,null,null,null,null,null,null,null,null,null,null,null,null,null,null,null,null,"Q82","RD1","ROYAL UNITED HOSPITALS BATH NHS FOUNDATION TRUST","RD121","Frome Community Hospital  - RD121",null,null,null,null,null,null,"RXCXXX","The Whittington Hospital - RKEQ4"]
[null,null,null,null,null,null,null,null,null,null,null,null,null,null,null,null,null,null,null,null,"Q82","RD1","ROYAL UNITED HOSPITALS BATH NHS FOUNDATION TRUST","RD129","Paulton Memorial Hospital  - RD129",null,null,null,null,null,null,"RXF03","Tiverton and District Hospital - RH853"]
[null,null,null,null,null,null,null,null,null,null,null,null,null,null,null,null,null,null,null,null,"Q82","RD1","ROYAL UNITED HOSPITALS BATH NHS FOUNDATION TRUST","RD130","Princess Anne Wing RUH  - RD130",null,null,null,null,null,null,"RXF05","Torbay Hospital - RA901"]
[null,null,null,null,null,null,null,null,null,null,null,null,null,null,null,null,null,null,null,null,"Q82","RD1","ROYAL UNITED HOSPITALS BATH NHS FOUNDATION TRUST","RD167","Shepton Mallet Community Hospital  - RD167",null,null,null,null,null,null,"RXF10","Trowbridge Community Hospital  - RD108"]
[null,null,null,null,null,null,null,null,null,null,null,null,null,null,null,null,null,null,null,null,"Q82","RD1","ROYAL UNITED HOSPITALS BATH NHS FOUNDATION TRUST","RD108","Trowbridge Community Hospital  - RD108",null,null,null,null,null,null,"RXFXXX","University College Hospital - RRV03"]
[null,null,null,null,null,null,null,null,null,null,null,null,null,null,null,null,null,null,null,null,"Q82","RNZ","SALISBURY NHS FOUNDATION TRUST","RNZ02","Salisbury District Hospital - RNZ02",null,null,null,null,null,null,"RXH01","University Hospital (Coventry) - RKB01"]
[null,null,null,null,null,null,null,null,null,null,null,null,null,null,null,null,null,null,null,null,"Q83","RMC","BOLTON NHS FOUNDATION TRUST","RMC01","Royal Bolton Hospital - RMC01",null,null,null,null,null,null,"RXK01","University Hospital Lewisham - RJ224"]
[null,null,null,null,null,null,null,null,null,null,null,null,null,null,null,null,null,null,null,null,"Q83","RY2","BRIDGEWATER COMMUNITY HEALTHCARE NHS FOUNDATION TRUST","RY28P","Health Care Resource Centre - RY28P",null,null,null,null,null,null,"RXK02","University Hospital Of North Durham - RXPCP"]
[null,null,null,null,null,null,null,null,null,null,null,null,null,null,null,null,null,null,null,null,"Q83","RY2","BRIDGEWATER COMMUNITY HEALTHCARE NHS FOUNDATION TRUST","RY2XXX","Non-hospital site - RY2XXX",null,null,null,null,null,null,"RXL01","Warrington Hospital - RWWWH"]
[null,null,null,null,null,null,null,null,null,null,null,null,null,null,null,null,null,null,null,null,"Q83","RW3","CENTRAL MANCHESTER UNIVERSITY HOSPITALS NHS FOUNDATION TRUST","RW3SM","St Mary's Hospital - RW3SM",null,null,null,null,null,null,"RXLXXX","Watford General Hospital - RWG02"]
[null,null,null,null,null,null,null,null,null,null,null,null,null,null,null,null,null,null,null,null,"Q83","RW6","PENNINE ACUTE HOSPITALS NHS TRUST","RW601","Fairfield General Hospital - RW601",null,null,null,null,null,null,"RXN02","West Middlesex University Hospital - RQM91"]
[null,null,null,null,null,null,null,null,null,null,null,null,null,null,null,null,null,null,null,null,"Q83","RW6","PENNINE ACUTE HOSPITALS NHS TRUST","RW604","Rochdale Infirmary - RW604",null,null,null,null,null,null,"RXPCP","West Suffolk Hospital - RGR50"]
[null,null,null,null,null,null,null,null,null,null,null,null,null,null,null,null,null,null,null,null,"Q83","RW6","PENNINE ACUTE HOSPITALS NHS TRUST","RW603","Royal Oldham Hospital - RW603",null,null,null,null,null,null,"RXQ02","Weston General Hospital - RA301"]
[null,null,null,null,null,null,null,null,null,null,null,null,null,null,null,null,null,null,null,null,"Q83","RWJ","STOCKPORT NHS FOUNDATION TRUST","RWJ09","Stepping Hill Hospital - RWJ09",null,null,null,null,null,null,"RXR20","Wexham Park Hospital - RDU50"]
[null,null,null,null,null,null,null,null,null,null,null,null,null,null,null,null,null,null,null,null,"Q83","RMP","TAMESIDE AND GLOSSOP INTEGRATED CARE NHS FOUNDATION TRUST","RMP01","Tameside General Hospital - RMP01",null,null,null,null,null,null,"RXWXXX","Whipps Cross University Hospital - R1HKH"]
[null,null,null,null,null,null,null,null,null,null,null,null,null,null,null,null,null,null,null,null,"Q83","RM2","UNIVERSITY HOSPITAL OF SOUTH MANCHESTER NHS FOUNDATION TRUST","RM202","Wythenshawe Hospital - RM202",null,null,null,null,null,null,"RY28P","Whiston Hospital - RBN01"]
[null,null,null,null,null,null,null,null,null,null,null,null,null,null,null,null,null,null,null,null,"Q83","RRF","WRIGHTINGTON, WIGAN AND LEIGH NHS FOUNDATION TRUST","RRF02","Royal Albert Edward Infirmary - RRF02",null,null,null,null,null,null,"RY2XXX","Worcestershire Royal Hospital - RWP50"]
[null,null,null,null,null,null,null,null,null,null,null,null,null,null,null,null,null,null,null,null,"Q84","RXL","BLACKPOOL TEACHING HOSPITALS NHS FOUNDATION TRUST","RXL01","Blackpool Victoria Hospital - RXL01",null,null,null,null,null,null,"RYJ01","Worthing Hospital - RYR18"]
[null,null,null,null,null,null,null,null,null,null,null,null,null,null,null,null,null,null,null,null,"Q84","RXL","BLACKPOOL TEACHING HOSPITALS NHS FOUNDATION TRUST","RXLXXX","Non-hospital site - RXLXXX",null,null,null,null,null,null,"RYJ04","Wythenshawe Hospital - RM202"]
[null,null,null,null,null,null,null,null,null,null,null,null,null,null,null,null,null,null,null,null,"Q84","RXR","EAST LANCASHIRE HOSPITALS NHS TRUST","RXR20","Royal Blackburn Hospital - RXR20",null,null,null,null,null,null,"RYR16","Yeovil District Hospital - RA430"]
[null,null,null,null,null,null,null,null,null,null,null,null,null,null,null,null,null,null,null,null,"Q84","RXN","LANCASHIRE TEACHING HOSPITALS NHS FOUNDATION TRUST","RXN02","Royal Preston Hospital - RXN02",null,null,null,null,null,null,"RYR18","York Hospital - RCB55"]

{"sheet":"BSQ2","index":14,"n_rows":247,"n_cols":33,"rows_kept":247,"cut":false,"hidden":true,"merged":[]}
[null,"Sort","Region (Geo)","Region (Geo)","Trusts","Trusts","Sites","Sites",null,"Sort ranges:","Sort range…","Sort range…","Sort range…","Reference Region List:","Code…","Name…","Linked Region List:","Code…","Name…","Reference Lists:","Code…","Code…","Name…","Code…","Name…","Trusts Linked Lists:","Code…","Name…","Site Linked Lists:","Code…","Name…","Code…","Name…"]
["Region (Geo)",1,1,1,"-","-","-","-",null,null,"Region (Geo) Code","Region (Geo) Code","Region (Geo) Code",null,"Q72","NHS England Yorkshire & Humber",null,"Q70","NHS England Central Midlands",null,"Q70","RBD","DORSET COUNTY HOSPITAL NHS FOUNDATION TRUST","RBD01","Dorset County Hospital - RBD01",null,"R1F","AIREDALE NHS FOUNDATION TRUST",null,"R1F","AIREDALE NHS FOUNDATION TRUST","R1F01","Airedale General Hospital - RCF22"]
["Trusts",1,1,1,1,1,"-","-",null,null,"Region (Geography)","Trust Code","Trust Code",null,"Q74","NHS England Cumbria & North East",null,"Q71","NHS England Cheshire & Merseyside",null,"Q70","RN5","HAMPSHIRE HOSPITALS NHS FOUNDATION TRUST","RN542","Andover War Memorial Hospital - RN542",null,"R1H","ASHFORD AND ST PETER'S HOSPITALS NHS FOUNDATION TRUST",null,"R1H","ASHFORD AND ST PETER'S HOSPITALS NHS FOUNDATION TRUST","R1H12","Alnwick Infirmary - RTFDJ"]
["Sites",1,1,1,1,1,1,1,null,null,"Total Responses","Trust Name","Trust Name",null,"Q75","NHS England Cheshire & Merseyside",null,"Q72","NHS England Cumbria & North East",null,"Q70","RN5","HAMPSHIRE HOSPITALS NHS FOUNDATION TRUST","RN506","Basingstoke and North Hampshire Hospital - RN506",null,"R1K","BARKING, HAVERING AND REDBRIDGE UNIVERSITY HOSPITALS NHS TRUST",null,"R1K","BARKING, HAVERING AND REDBRIDGE UNIVERSITY HOSPITALS NHS TRUST","R1HKH","Andover War Memorial Hospital - RN542"]
[null,null,null,null,null,null,null,null,null,null,"Total Eligible","Total Responses","Site Code",null,"Q83","NHS England Greater Manchester",null,"Q74","NHS England East",null,"Q70","RN5","HAMPSHIRE HOSPITALS NHS FOUNDATION TRUST","RN541","Royal Hampshire County Hospital - RN541",null,"RA2","BARNSLEY HOSPITAL NHS FOUNDATION TRUST",null,"RA2","BARNSLEY HOSPITAL NHS FOUNDATION TRUST","R1HNH","Arrowe Park Hospital - RBL14"]
[null,null,null,null,null,null,null,null,null,null,"Response Rate","Total Eligible","Site Name",null,"Q84","NHS England Lancashire",null,"Q75","NHS England Greater Manchester",null,"Q70","R1F","ISLE OF WIGHT NHS TRUST","R1F01","St Mary's Hospital - R1F01",null,"RA3","BARTS HEALTH NHS TRUST",null,"RA3","BARTS HEALTH NHS TRUST","R1K01","Barnet Hospital - RAL26"]
[null,null,null,null,null,null,null,null,null,null,"Percentage Recommended","Response Rate","Total Responses",null,"Q76","NHS England North Midlands",null,"Q76","NHS England Lancashire",null,"Q70","RD3","POOLE HOSPITAL NHS FOUNDATION TRUST","RD304","Poole General Hospital NHS Trust HQ - RD304",null,"RA4","BASILDON AND THURROCK UNIVERSITY HOSPITALS NHS FOUNDATION TRUST",null,"RA4","BASILDON AND THURROCK UNIVERSITY HOSPITALS NHS FOUNDATION TRUST","R1K04","Barnsley Hospital NHS Foundation Trust HQ - RFFAA"]
[null,null,null,null,null,null,null,null,null,null,"Percentage Not  Recommended","Percentage Recommended","Total Eligible",null,"Q77","NHS England West Midlands",null,"Q77","NHS England London",null,"Q70","RHU","PORTSMOUTH HOSPITALS NHS TRUST","RHU10","Gosport War Memorial Hospital - RHU10",null,"RA7","BEDFORD HOSPITAL NHS TRUST",null,"RA7","BEDFORD HOSPITAL NHS TRUST","R1KXXX","Basildon University Hospital - RDDH0"]
[null,null,null,null,null,null,null,null,null,null,"Extremely Likely","Percentage Not  Recommended","Response Rate",null,"Q78","NHS England Central Midlands",null,"Q78","NHS England North Midlands",null,"Q70","RHU","PORTSMOUTH HOSPITALS NHS TRUST","RHU04","Petersfield Community Hospital - RHU04",null,"RA9","BIRMINGHAM WOMEN'S AND CHILDREN'S NHS FOUNDATION TRUST",null,"RA9","BIRMINGHAM WOMEN'S AND CHILDREN'S NHS FOUNDATION TRUST","RA201","Basingstoke and North Hampshire Hospital - RN506"]
[null,null,null,null,null,null,null,null,null,null,"Likely","Extremely Likely","Percentage Recommended",null,"Q79","NHS England East",null,"Q79","NHS England South Central",null,"Q70","RHU","PORTSMOUTH HOSPITALS NHS TRUST","RHU03","Queen Alexandra Hospital - RHU03",null,"RAE","BLACKPOOL TEACHING HOSPITALS NHS FOUNDATION TRUST",null,"RAE","BLACKPOOL TEACHING HOSPITALS NHS FOUNDATION TRUST","RA301","Bassetlaw Hospital - RP5BA"]
[null,null,null,null,null,null,null,null,null,null,"Neither","Likely","Percentage Not  Recommended",null,"Q80","NHS England South West",null,"Q80","NHS England South East",null,"Q70","RHU","PORTSMOUTH HOSPITALS NHS TRUST","RHU02","St Mary's Hospital - RHU02",null,"RAJ","BOLTON NHS FOUNDATION TRUST",null,"RAJ","BOLTON NHS FOUNDATION TRUST","RA430","Bedford Hospital South Wing - RC110"]
[null,null,null,null,null,null,null,null,null,null,"Unlikely","Neither","Extremely Likely",null,"Q81","NHS England South East",null,"Q81","NHS England South West",null,"Q70","RDZ","THE ROYAL BOURNEMOUTH AND CHRISTCHURCH HOSPITALS NHS FOUNDATION TRUST","RDZ20","Royal Bournemouth General Hospital - RDZ20",null,"RAL","BRADFORD TEACHING HOSPITALS NHS FOUNDATION TRUST",null,"RAL","BRADFORD TEACHING HOSPITALS NHS FOUNDATION TRUST","RA707","Berwick Infirmary - RTFDH"]
[null,null,null,null,null,null,null,null,null,null,"Extremely Unlikely","Unlikely","Likely",null,"Q82","NHS England South Central",null,"Q82","NHS England Wessex",null,"Q70","RHM","UNIVERSITY HOSPITAL SOUTHAMPTON NHS FOUNDATION TRUST","RHM12","Princess Anne Hospital - RHM12",null,"RAP","BRIDGEWATER COMMUNITY HEALTHCARE NHS FOUNDATION TRUST",null,"RAP","BRIDGEWATER COMMUNITY HEALTHCARE NHS FOUNDATION TRUST","RA901","Birmingham Women's Hospital - RQ370"]
[null,null,null,null,null,null,null,null,null,null,"Don't Know","Extremely Unlikely","Neither",null,"Q70","NHS England Wessex",null,"Q83","NHS England West Midlands",null,"Q71","RF4","BARKING, HAVERING AND REDBRIDGE UNIVERSITY HOSPITALS NHS TRUST","RF4QH","Queen's Hospital - RF4QH",null,"RAS","BRIGHTON AND SUSSEX UNIVERSITY HOSPITALS NHS TRUST",null,"RAS","BRIGHTON AND SUSSEX UNIVERSITY HOSPITALS NHS TRUST","RA957","Blackpool Victoria Hospital - RXL01"]
[null,null,null,null,null,null,null,null,null,null,null,"Don't Know","Unlikely",null,"Q71","NHS England London",null,"Q84","NHS England Yorkshire & Humber",null,"Q71","R1H","BARTS HEALTH NHS TRUST","R1HNH","Newham General Hospital - R1HNH",null,"RAX","BUCKINGHAMSHIRE HEALTHCARE NHS TRUST",null,"RAX","BUCKINGHAMSHIRE HEALTHCARE NHS TRUST","RA9XXX","Bradford Royal Infirmary - RAE01"]
[null,null,null,null,null,null,null,null,null,null,null,"SMS/Text / Smartphone App","Extremely Unlikely",null,null,null,null,null,null,null,"Q71","R1H","BARTS HEALTH NHS TRUST","R1H12","The Royal London Hospital - R1H12",null,"RBA","BURTON HOSPITALS NHS FOUNDATION TRUST",null,"RBA","BURTON HOSPITALS NHS FOUNDATION TRUST","RAE01","Bridgnorth Hospital (Maternity) - RXWMB"]
[null,null,null,null,null,null,null,null,null,null,null,"Electronic tablet/kiosk at point of discharge","Don't Know",null,null,null,null,null,null,null,"Q71","R1H","BARTS HEALTH NHS TRUST","R1HKH","Whipps Cross University Hospital - R1HKH",null,"RBD","CALDERDALE AND HUDDERSFIELD NHS FOUNDATION TRUST",null,"RBD","CALDERDALE AND HUDDERSFIELD NHS FOUNDATION TRUST","RAJ01","Bridgwater Hospital - RBAC3"]
[null,null,null,null,null,null,null,null,null,null,null,"Paper / postcard at point of discharge",null,null,null,null,null,null,null,null,"Q71","RQM","CHELSEA AND WESTMINSTER HOSPITAL NHS FOUNDATION TRUST","RQM01","Chelsea and Westminster Hospital - RQM01",null,"RBK","CAMBRIDGE UNIVERSITY HOSPITALS NHS FOUNDATION TRUST",null,"RBK","CAMBRIDGE UNIVERSITY HOSPITALS NHS FOUNDATION TRUST","RAL01","Broomfield Hospital - RQ8L0"]
[null,null,null,null,null,null,null,null,null,null,null,"Paper survey, sent to the patients home",null,null,null,null,null,null,null,null,"Q71","RQM","CHELSEA AND WESTMINSTER HOSPITAL NHS FOUNDATION TRUST","RQM91","West Middlesex University Hospital - RQM91",null,"RBL","CENTRAL MANCHESTER UNIVERSITY HOSPITALS NHS FOUNDATION TRUST",null,"RBL","CENTRAL MANCHESTER UNIVERSITY HOSPITALS NHS FOUNDATION TRUST","RAL26","Calderdale Royal Hospital - RWY02"]
[null,null,null,null,null,null,null,null,null,null,null,"Telephone survey once patient is home",null,null,null,null,null,null,null,null,"Q71","RJ6","CROYDON HEALTH SERVICES NHS TRUST","RJ611","Croydon University Hospital - RJ611",null,"RBN","CHELSEA AND WESTMINSTER HOSPITAL NHS FOUNDATION TRUST",null,"RBN","CHELSEA AND WESTMINSTER HOSPITAL NHS FOUNDATION TRUST","RAPNM","Chelsea and Westminster Hospital - RQM01"]
[null,null,null,null,null,null,null,null,null,null,null,"Online survey once patient is home",null,null,null,null,null,null,null,null,"Q71","RVR","EPSOM AND ST HELIER UNIVERSITY HOSPITALS NHS TRUST","RVR50","Epsom Hospital - RVR50",null,"RBT","CHESTERFIELD ROYAL HOSPITAL NHS FOUNDATION TRUST",null,"RBT","CHESTERFIELD ROYAL HOSPITAL NHS FOUNDATION TRUST","RAS01","Cheltenham General Hospital - RTE01"]
[null,null,null,null,null,null,null,null,null,null,null,"Other",null,null,null,null,null,null,null,null,"Q71","RVR","EPSOM AND ST HELIER UNIVERSITY HOSPITALS NHS TRUST","RVRXXX","Non-hospital site - RVRXXX",null,"RBZ","CITY HOSPITALS SUNDERLAND NHS FOUNDATION TRUST",null,"RBZ","CITY HOSPITALS SUNDERLAND NHS FOUNDATION TRUST","RASXXX","Chesterfield Royal Hospital - RFSDA"]
[null,null,null,null,null,null,null,null,null,null,null,null,null,null,null,null,null,null,null,null,"Q71","RVR","EPSOM AND ST HELIER UNIVERSITY HOSPITALS NHS TRUST","RVR05","St Helier Hospital - RVR05",null,"RC1","COLCHESTER HOSPITAL UNIVERSITY NHS FOUNDATION TRUST",null,"RC1","COLCHESTER HOSPITAL UNIVERSITY NHS FOUNDATION TRUST","RAX01","Chippenham Community Hospital -RD102"]
[null,null,null,null,null,null,null,null,null,null,null,null,null,null,null,null,null,null,null,null,"Q71","RJ1","GUY'S AND ST THOMAS' NHS FOUNDATION TRUST","RJ1XXX","Non-hospital site - RJ1XXX",null,"RC9","COUNTESS OF CHESTER HOSPITAL NHS FOUNDATION TRUST",null,"RC9","COUNTESS OF CHESTER HOSPITAL NHS FOUNDATION TRUST","RBA11","Chipping Norton Community Hospital - RTH19"]
[null,null,null,null,null,null,null,null,null,null,null,null,null,null,null,null,null,null,null,null,"Q71","RJ1","GUY'S AND ST THOMAS' NHS FOUNDATION TRUST","RJ122","St Thomas' Hospital - RJ122",null,"RCB","COUNTY DURHAM AND DARLINGTON NHS FOUNDATION TRUST",null,"RCB","COUNTY DURHAM AND DARLINGTON NHS FOUNDATION TRUST","RBAC3","Chorley and South Ribble Hospital - RXN01"]
[null,null,null,null,null,null,null,null,null,null,null,null,null,null,null,null,null,null,null,null,"Q71","RQX","HOMERTON UNIVERSITY HOSPITAL NHS FOUNDATION TRUST","RQXM1","Homerton University Hospital - RQXM1",null,"RCD","CROYDON HEALTH SERVICES NHS TRUST",null,"RCD","CROYDON HEALTH SERVICES NHS TRUST","RBAXXX","City Hospital - RXK02"]
[null,null,null,null,null,null,null,null,null,null,null,null,null,null,null,null,null,null,null,null,"Q71","RYJ","IMPERIAL COLLEGE HEALTHCARE NHS TRUST","RYJ04","Queen Charlotte's Hospital - RYJ04",null,"RCF","DARTFORD AND GRAVESHAM NHS TRUST",null,"RCF","DARTFORD AND GRAVESHAM NHS TRUST","RBD01","Clacton and District Hospital - RDEE2"]
[null,null,null,null,null,null,null,null,null,null,null,null,null,null,null,null,null,null,null,null,"Q71","RYJ","IMPERIAL COLLEGE HEALTHCARE NHS TRUST","RYJ01","St Mary's Hospital (HQ) - RYJ01",null,"RCX","DERBY TEACHING HOSPITALS NHS FOUNDATION TRUST",null,"RCX","DERBY TEACHING HOSPITALS NHS FOUNDATION TRUST","RBK02","Colchester General Hospital - RDEE4"]
[null,null,null,null,null,null,null,null,null,null,null,null,null,null,null,null,null,null,null,null,"Q71","RJZ","KING'S COLLEGE HOSPITAL NHS FOUNDATION TRUST","RJZ01","King's College Hospital (Denmark Hill) - RJZ01",null,"RD1","DONCASTER AND BASSETLAW TEACHING HOSPITALS NHS FOUNDATION TRUST",null,"RD1","DONCASTER AND BASSETLAW TEACHING HOSPITALS NHS FOUNDATION TRUST","RBL14","Conquest Hospital - RXC01"]
[null,null,null,null,null,null,null,null,null,null,null,null,null,null,null,null,null,null,null,null,"Q71","RJZ","KING'S COLLEGE HOSPITAL NHS FOUNDATION TRUST","RJZ30","Princess Royal University Hospital - RJZ30",null,"RD3","DORSET COUNTY HOSPITAL NHS FOUNDATION TRUST",null,"RD3","DORSET COUNTY HOSPITAL NHS FOUNDATION TRUST","RBN01","Cossham Hospital - RVJ21"]
[null,null,null,null,null,null,null,null,null,null,null,null,null,null,null,null,null,null,null,null,"Q71","RAX","KINGSTON HOSPITAL NHS FOUNDATION TRUST","RAX01","Kingston Hospital - RAX01",null,"RD8","EAST AND NORTH HERTFORDSHIRE NHS TRUST",null,"RD8","EAST AND NORTH HERTFORDSHIRE NHS TRUST","RBT20","Countess Of Chester Hospital - RJR05"]
[null,null,null,null,null,null,null,null,null,null,null,null,null,null,null,null,null,null,null,null,"Q71","RJ2","LEWISHAM AND GREENWICH NHS TRUST","RJ2XXX","Non-hospital site - RJ2XXX",null,"RDD","EAST CHESHIRE NHS TRUST",null,"RDD","EAST CHESHIRE NHS TRUST","RBZ12","County Hospital - RJE09"]
[null,null,null,null,null,null,null,null,null,null,null,null,null,null,null,null,null,null,null,null,"Q71","RJ2","LEWISHAM AND GREENWICH NHS TRUST","RJ231","Queen Elizabeth Hospital - RJ231",null,"RDE","EAST KENT HOSPITALS UNIVERSITY NHS FOUNDATION TRUST",null,"RDE","EAST KENT HOSPITALS UNIVERSITY NHS FOUNDATION TRUST","RC110","Croydon University Hospital - RJ611"]
[null,null,null,null,null,null,null,null,null,null,null,null,null,null,null,null,null,null,null,null,"Q71","RJ2","LEWISHAM AND GREENWICH NHS TRUST","RJ224","University Hospital Lewisham - RJ224",null,"RDU","EAST LANCASHIRE HOSPITALS NHS TRUST",null,"RDU","EAST LANCASHIRE HOSPITALS NHS TRUST","RC971","Cumberland Infirmary - RNLAY"]
[null,null,null,null,null,null,null,null,null,null,null,null,null,null,null,null,null,null,null,null,"Q71","R1K","LONDON NORTH WEST HEALTHCARE NHS TRUST","R1K04","Ealing Hospital - R1K04",null,"RDZ","EAST SUSSEX HEALTHCARE NHS TRUST",null,"RDZ","EAST SUSSEX HEALTHCARE NHS TRUST","RCB55","Darent Valley Hospital - RN707"]
[null,null,null,null,null,null,null,null,null,null,null,null,null,null,null,null,null,null,null,null,"Q71","R1K","LONDON NORTH WEST HEALTHCARE NHS TRUST","R1KXXX","Non-hospital site - R1KXXX",null,"RE9","EPSOM AND ST HELIER UNIVERSITY HOSPITALS NHS TRUST",null,"RE9","EPSOM AND ST HELIER UNIVERSITY HOSPITALS NHS TRUST","RCBCA","Darlington Memorial Hospital - RXPDA"]
[null,null,null,null,null,null,null,null,null,null,null,null,null,null,null,null,null,null,null,null,"Q71","R1K","LONDON NORTH WEST HEALTHCARE NHS TRUST","R1K01","Northwick Park Hospital - R1K01",null,"REF","FRIMLEY HEALTH NHS FOUNDATION TRUST",null,"REF","FRIMLEY HEALTH NHS FOUNDATION TRUST","RCD01","Derriford Hospital - RK950"]
[null,null,null,null,null,null,null,null,null,null,null,null,null,null,null,null,null,null,null,null,"Q71","RAP","NORTH MIDDLESEX UNIVERSITY HOSPITAL NHS TRUST","RAPNM","North Middlesex Hospital - RAPNM",null,"REP","GATESHEAD HEALTH NHS FOUNDATION TRUST",null,"REP","GATESHEAD HEALTH NHS FOUNDATION TRUST","RCF22","Dewsbury and District Hospital - RXF10"]
[null,null,null,null,null,null,null,null,null,null,null,null,null,null,null,null,null,null,null,null,"Q71","RAL","ROYAL FREE LONDON NHS FOUNDATION TRUST","RAL26","Barnet Hospital - RAL26",null,"RF4","GEORGE ELIOT HOSPITAL NHS TRUST",null,"RF4","GEORGE ELIOT HOSPITAL NHS TRUST","RCX70","Diana, Princess Of Wales Hospital - RJL30"]
[null,null,null,null,null,null,null,null,null,null,null,null,null,null,null,null,null,null,null,null,"Q71","RAL","ROYAL FREE LONDON NHS FOUNDATION TRUST","RAL01","Royal Free Hospital - RAL01",null,"RFF","GLOUCESTERSHIRE HOSPITALS NHS FOUNDATION TRUST",null,"RFF","GLOUCESTERSHIRE HOSPITALS NHS FOUNDATION TRUST","RCXXXX","Doncaster Royal Infirmary - RP5DR"]
[null,null,null,null,null,null,null,null,null,null,null,null,null,null,null,null,null,null,null,null,"Q71","RJ7","ST GEORGE'S UNIVERSITY HOSPITALS NHS FOUNDATION TRUST","RJ701","St George's Hospital (Tooting) - RJ701",null,"RFR","GREAT WESTERN HOSPITALS NHS FOUNDATION TRUST",null,"RFR","GREAT WESTERN HOSPITALS NHS FOUNDATION TRUST","RD102","Dorset County Hospital - RBD01"]
[null,null,null,null,null,null,null,null,null,null,null,null,null,null,null,null,null,null,null,null,"Q71","RAS","THE HILLINGDON HOSPITALS NHS FOUNDATION TRUST","RAS01","Hillingdon Hospital - RAS01",null,"RFS","GUY'S AND ST THOMAS' NHS FOUNDATION TRUST",null,"RFS","GUY'S AND ST THOMAS' NHS FOUNDATION TRUST","RD108","Ealing Hospital - R1K04"]
[null,null,null,null,null,null,null,null,null,null,null,null,null,null,null,null,null,null,null,null,"Q71","RAS","THE HILLINGDON HOSPITALS NHS FOUNDATION TRUST","RASXXX","Non-hospital site - RASXXX",null,"RGN","HAMPSHIRE HOSPITALS NHS FOUNDATION TRUST",null,"RGN","HAMPSHIRE HOSPITALS NHS FOUNDATION TRUST","RD121","East Surrey Hospital - RTP04"]
[null,null,null,null,null,null,null,null,null,null,null,null,null,null,null,null,null,null,null,null,"Q71","RKE","THE WHITTINGTON HOSPITAL NHS TRUST","RKEXXX","Non-hospital site - RKEXXX",null,"RGP","HARROGATE AND DISTRICT NHS FOUNDATION TRUST",null,"RGP","HARROGATE AND DISTRICT NHS FOUNDATION TRUST","RD129","Eastbourne District General Hospital - RXC02"]
[null,null,null,null,null,null,null,null,null,null,null,null,null,null,null,null,null,null,null,null,"Q71","RKE","THE WHITTINGTON HOSPITAL NHS TRUST","RKEQ4","The Whittington Hospital - RKEQ4",null,"RGQ","HEART OF ENGLAND NHS FOUNDATION TRUST",null,"RGQ","HEART OF ENGLAND NHS FOUNDATION TRUST","RD130","Epsom Hospital - RVR50"]
[null,null,null,null,null,null,null,null,null,null,null,null,null,null,null,null,null,null,null,null,"Q71","RRV","UNIVERSITY COLLEGE LONDON HOSPITALS NHS FOUNDATION TRUST","RRV03","University College Hospital - RRV03",null,"RGR","HOMERTON UNIVERSITY HOSPITAL NHS FOUNDATION TRUST",null,"RGR","HOMERTON UNIVERSITY HOSPITAL NHS FOUNDATION TRUST","RD1XXX","Friarage Hospital Site - RTR45"]
[null,null,null,null,null,null,null,null,null,null,null,null,null,null,null,null,null,null,null,null,"Q72","RCF","AIREDALE NHS FOUNDATION TRUST","RCF22","Airedale General Hospital - RCF22",null,"RGT","HULL AND EAST YORKSHIRE HOSPITALS NHS TRUST",null,"RGT","HULL AND EAST YORKSHIRE HOSPITALS NHS TRUST","RD304","Frimley Park Hospital - RDU01"]
[null,null,null,null,null,null,null,null,null,null,null,null,null,null,null,null,null,null,null,null,"Q72","RFF","BARNSLEY HOSPITAL NHS FOUNDATION TRUST","RFFAA","Barnsley Hospital NHS Foundation Trust HQ - RFFAA",null,"RH8","IMPERIAL COLLEGE HEALTHCARE NHS TRUST",null,"RH8","IMPERIAL COLLEGE HEALTHCARE NHS TRUST","RD816","Frome Community Hospital  - RD121"]
[null,null,null,null,null,null,null,null,null,null,null,null,null,null,null,null,null,null,null,null,"Q72","RAE","BRADFORD TEACHING HOSPITALS NHS FOUNDATION TRUST","RAE01","Bradford Royal Infirmary - RAE01",null,"RHM","IPSWICH HOSPITAL NHS TRUST",null,"RHM","IPSWICH HOSPITAL NHS TRUST","RDDH0","Furness General Hospital - RTXBU"]
[null,null,null,null,null,null,null,null,null,null,null,null,null,null,null,null,null,null,null,null,"Q72","RWY","CALDERDALE AND HUDDERSFIELD NHS FOUNDATION TRUST","RWY02","Calderdale Royal Hospital - RWY02",null,"RHQ","ISLE OF WIGHT NHS TRUST",null,"RHQ","ISLE OF WIGHT NHS TRUST","RDEE2","George Eliot Hospital - Acute Services - RLT01"]
[null,null,null,null,null,null,null,null,null,null,null,null,null,null,null,null,null,null,null,null,"Q72","RWY","CALDERDALE AND HUDDERSFIELD NHS FOUNDATION TRUST","RWY01","Huddersfield Royal Infirmary - RWY01",null,"RHU","JAMES PAGET UNIVERSITY HOSPITALS NHS FOUNDATION TRUST",null,"RHU","JAMES PAGET UNIVERSITY HOSPITALS NHS FOUNDATION TRUST","RDEE4","Gloucestershire Royal Hospital - RTE03"]
[null,null,null,null,null,null,null,null,null,null,null,null,null,null,null,null,null,null,null,null,"Q72","RWY","CALDERDALE AND HUDDERSFIELD NHS FOUNDATION TRUST","RWYXXX","Non-hospital site - RWYXXX",null,"RHW","KETTERING GENERAL HOSPITAL NHS FOUNDATION TRUST",null,"RHW","KETTERING GENERAL HOSPITAL NHS FOUNDATION TRUST","RDEEE","Good Hope Hospital - RR105"]
[null,null,null,null,null,null,null,null,null,null,null,null,null,null,null,null,null,null,null,null,"Q72","RP5","DONCASTER AND BASSETLAW TEACHING HOSPITALS NHS FOUNDATION TRUST","RP5BA","Bassetlaw Hospital - RP5BA",null,"RJ1","KING'S COLLEGE HOSPITAL NHS FOUNDATION TRUST",null,"RJ1","KING'S COLLEGE HOSPITAL NHS FOUNDATION TRUST","RDEXXX","Gosport War Memorial Hospital - RHU10"]
[null,null,null,null,null,null,null,null,null,null,null,null,null,null,null,null,null,null,null,null,"Q72","RP5","DONCASTER AND BASSETLAW TEACHING HOSPITALS NHS FOUNDATION TRUST","RP5DR","Doncaster Royal Infirmary - RP5DR",null,"RJ2","KINGSTON HOSPITAL NHS FOUNDATION TRUST",null,"RJ2","KINGSTON HOSPITAL NHS FOUNDATION TRUST","RDU01","Grantham and District Hospital - RWDLP"]
[null,null,null,null,null,null,null,null,null,null,null,null,null,null,null,null,null,null,null,null,"Q72","RP5","DONCASTER AND BASSETLAW TEACHING HOSPITALS NHS FOUNDATION TRUST","RP5XXX","Non-hospital site - RP5XXX",null,"RJ6","LANCASHIRE TEACHING HOSPITALS NHS FOUNDATION TRUST",null,"RJ6","LANCASHIRE TEACHING HOSPITALS NHS FOUNDATION TRUST","RDU50","Harrogate District Hospital - RCD01"]
[null,null,null,null,null,null,null,null,null,null,null,null,null,null,null,null,null,null,null,null,"Q72","RCD","HARROGATE AND DISTRICT NHS FOUNDATION TRUST","RCD01","Harrogate District Hospital - RCD01",null,"RJ7","LEEDS TEACHING HOSPITALS NHS TRUST",null,"RJ7","LEEDS TEACHING HOSPITALS NHS TRUST","RDUXXX","Harwich Maternity - RDEEE"]
[null,null,null,null,null,null,null,null,null,null,null,null,null,null,null,null,null,null,null,null,"Q72","RWA","HULL AND EAST YORKSHIRE HOSPITALS NHS TRUST","RWA01","Hull Royal Infirmary - RWA01",null,"RJC","LEWISHAM AND GREENWICH NHS TRUST",null,"RJC","LEWISHAM AND GREENWICH NHS TRUST","RDZ20","Health Care Resource Centre - RY28P"]
[null,null,null,null,null,null,null,null,null,null,null,null,null,null,null,null,null,null,null,null,"Q72","RR8","LEEDS TEACHING HOSPITALS NHS TRUST","RR801","Leeds General Infirmary - RR801",null,"RJE","LIVERPOOL WOMEN'S NHS FOUNDATION TRUST",null,"RJE","LIVERPOOL WOMEN'S NHS FOUNDATION TRUST","RE9GA","Heartlands Hospital - RR101"]
[null,null,null,null,null,null,null,null,null,null,null,null,null,null,null,null,null,null,null,null,"Q72","RR8","LEEDS TEACHING HOSPITALS NHS TRUST","RR8XXX","Non-Hospital Site - RR8XXX",null,"RJF","LONDON NORTH WEST HEALTHCARE NHS TRUST",null,"RJF","LONDON NORTH WEST HEALTHCARE NHS TRUST","REF12","Hereford County Hospital - RLQ01"]
[null,null,null,null,null,null,null,null,null,null,null,null,null,null,null,null,null,null,null,null,"Q72","RR8","LEEDS TEACHING HOSPITALS NHS TRUST","RR813","St James's University Hospital - RR813",null,"RJL","LUTON AND DUNSTABLE UNIVERSITY HOSPITAL NHS FOUNDATION TRUST",null,"RJL","LUTON AND DUNSTABLE UNIVERSITY HOSPITAL NHS FOUNDATION TRUST","REFXXX","Hexham General Hospital - RTFDR"]
[null,null,null,null,null,null,null,null,null,null,null,null,null,null,null,null,null,null,null,null,"Q72","RXF","MID YORKSHIRE HOSPITALS NHS TRUST","RXF10","Dewsbury and District Hospital - RXF10",null,"RJN","MAIDSTONE AND TUNBRIDGE WELLS NHS TRUST",null,"RJN","MAIDSTONE AND TUNBRIDGE WELLS NHS TRUST","REP01","Hillingdon Hospital - RAS01"]
[null,null,null,null,null,null,null,null,null,null,null,null,null,null,null,null,null,null,null,null,"Q72","RXF","MID YORKSHIRE HOSPITALS NHS TRUST","RXFXXX","Non-hospital site - RXFXXX",null,"RJR","MEDWAY NHS FOUNDATION TRUST",null,"RJR","MEDWAY NHS FOUNDATION TRUST","RF4QH","Hinchingbrooke Hospital - RGN90"]
[null,null,null,null,null,null,null,null,null,null,null,null,null,null,null,null,null,null,null,null,"Q72","RXF","MID YORKSHIRE HOSPITALS NHS TRUST","RXF05","Pinderfields General Hospital - RXF05",null,"RJZ","MID CHESHIRE HOSPITALS NHS FOUNDATION TRUST",null,"RJZ","MID CHESHIRE HOSPITALS NHS FOUNDATION TRUST","RFFAA","Homerton University Hospital - RQXM1"]
[null,null,null,null,null,null,null,null,null,null,null,null,null,null,null,null,null,null,null,null,"Q72","RXF","MID YORKSHIRE HOSPITALS NHS TRUST","RXF03","Pontefract General Infirmary - RXF03",null,"RK5","MID ESSEX HOSPITAL SERVICES NHS TRUST",null,"RK5","MID ESSEX HOSPITAL SERVICES NHS TRUST","RFRPA","Honiton Hospital - RH 854"]
[null,null,null,null,null,null,null,null,null,null,null,null,null,null,null,null,null,null,null,null,"Q72","RJL","NORTHERN LINCOLNSHIRE AND GOOLE NHS FOUNDATION TRUST","RJL30","Diana, Princess Of Wales Hospital - RJL30",null,"RK9","MID YORKSHIRE HOSPITALS NHS TRUST",null,"RK9","MID YORKSHIRE HOSPITALS NHS TRUST","RFSDA","Horton General Hospital - RTH05"]
[null,null,null,null,null,null,null,null,null,null,null,null,null,null,null,null,null,null,null,null,"Q72","RJL","NORTHERN LINCOLNSHIRE AND GOOLE NHS FOUNDATION TRUST","RJL32","Scunthorpe General Hospital - RJL32",null,"RKB","MILTON KEYNES UNIVERSITY HOSPITAL NHS FOUNDATION TRUST",null,"RKB","MILTON KEYNES UNIVERSITY HOSPITAL NHS FOUNDATION TRUST","RGN80","Hospital Of St Cross - RKB03"]
[null,null,null,null,null,null,null,null,null,null,null,null,null,null,null,null,null,null,null,null,"Q72","RHQ","SHEFFIELD TEACHING HOSPITALS NHS FOUNDATION TRUST","RHQHH","Royal Hallamshire Hospital - RHQHH",null,"RKE","NORFOLK AND NORWICH UNIVERSITY HOSPITALS NHS FOUNDATION TRUST",null,"RKE","NORFOLK AND NORWICH UNIVERSITY HOSPITALS NHS FOUNDATION TRUST","RGN90","Huddersfield Royal Infirmary - RWY01"]
[null,null,null,null,null,null,null,null,null,null,null,null,null,null,null,null,null,null,null,null,"Q72","RFR","THE ROTHERHAM NHS FOUNDATION TRUST","RFRPA","Rotherham District General Hospital - RFRPA",null,"RL4","NORTH BRISTOL NHS TRUST",null,"RL4","NORTH BRISTOL NHS TRUST","RGP75","Hull Royal Infirmary - RWA01"]
[null,null,null,null,null,null,null,null,null,null,null,null,null,null,null,null,null,null,null,null,"Q72","RCB","YORK TEACHING HOSPITAL NHS FOUNDATION TRUST","RCBCA","Scarborough General Hospital - RCBCA",null,"RLN","NORTH CUMBRIA UNIVERSITY HOSPITALS NHS TRUST",null,"RLN","NORTH CUMBRIA UNIVERSITY HOSPITALS NHS TRUST","RGQ02","James Paget University Hospital - RGP75"]
[null,null,null,null,null,null,null,null,null,null,null,null,null,null,null,null,null,null,null,null,"Q72","RCB","YORK TEACHING HOSPITAL NHS FOUNDATION TRUST","RCB55","York Hospital - RCB55",null,"RLQ","NORTH MIDDLESEX UNIVERSITY HOSPITAL NHS TRUST",null,"RLQ","NORTH MIDDLESEX UNIVERSITY HOSPITAL NHS TRUST","RGR50","John Radcliffe Hospital - RTH08"]
[null,null,null,null,null,null,null,null,null,null,null,null,null,null,null,null,null,null,null,null,"Q74","RLN","CITY HOSPITALS SUNDERLAND NHS FOUNDATION TRUST","RLNGL","Sunderland Royal Hospital - RLNGL",null,"RLT","NORTH TEES AND HARTLEPOOL NHS FOUNDATION TRUST",null,"RLT","NORTH TEES AND HARTLEPOOL NHS FOUNDATION TRUST","RGT32","Kettering General Hospital - RNQ51"]
[null,null,null,null,null,null,null,null,null,null,null,null,null,null,null,null,null,null,null,null,"Q74","RXP","COUNTY DURHAM AND DARLINGTON NHS FOUNDATION TRUST","RXPDA","Darlington Memorial Hospital - RXPDA",null,"RM1","NORTH WEST ANGLIA NHS FOUNDATION TRUST",null,"RM1","NORTH WEST ANGLIA NHS FOUNDATION TRUST","RH801","King's College Hospital (Denmark Hill) - RJZ01"]
[null,null,null,null,null,null,null,null,null,null,null,null,null,null,null,null,null,null,null,null,"Q74","RXP","COUNTY DURHAM AND DARLINGTON NHS FOUNDATION TRUST","RXPXXX","Non-hospital site - RXPXXX",null,"RM2","NORTHAMPTON GENERAL HOSPITAL NHS TRUST",null,"RM2","NORTHAMPTON GENERAL HOSPITAL NHS TRUST","RH833","King's Mill Hospital - RK5BC"]
[null,null,null,null,null,null,null,null,null,null,null,null,null,null,null,null,null,null,null,null,"Q74","RR7","GATESHEAD HEALTH NHS FOUNDATION TRUST","RR7EN","Queen Elizabeth Hospital - RR7EN",null,"RMC","NORTHERN DEVON HEALTHCARE NHS TRUST",null,"RMC","NORTHERN DEVON HEALTHCARE NHS TRUST","RH853","Kingston Hospital - RAX01"]
[null,null,null,null,null,null,null,null,null,null,null,null,null,null,null,null,null,null,null,null,"Q74","RNL","NORTH CUMBRIA UNIVERSITY HOSPITALS NHS TRUST","RNLAY","Cumberland Infirmary - RNLAY",null,"RMP","NORTHERN LINCOLNSHIRE AND GOOLE NHS FOUNDATION TRUST",null,"RMP","NORTHERN LINCOLNSHIRE AND GOOLE NHS FOUNDATION TRUST","RH854","Leeds General Infirmary - RR801"]
[null,null,null,null,null,null,null,null,null,null,null,null,null,null,null,null,null,null,null,null,"Q74","RNL","NORTH CUMBRIA UNIVERSITY HOSPITALS NHS TRUST","RNLXXX","Non-hospital site - RNLXXX",null,"RN3","NORTHUMBRIA HEALTHCARE NHS FOUNDATION TRUST",null,"RN3","NORTHUMBRIA HEALTHCARE NHS FOUNDATION TRUST","RHM12","Leicester General Hospital - RWEAK"]
[null,null,null,null,null,null,null,null,null,null,null,null,null,null,null,null,null,null,null,null,"Q74","RNL","NORTH CUMBRIA UNIVERSITY HOSPITALS NHS TRUST","RNLBE","Penrith Hospital - RNLBE",null,"RN5","NOTTINGHAM UNIVERSITY HOSPITALS NHS TRUST",null,"RN5","NOTTINGHAM UNIVERSITY HOSPITALS NHS TRUST","RHQHH","Leicester Royal Infirmary - RWEAA"]
[null,null,null,null,null,null,null,null,null,null,null,null,null,null,null,null,null,null,null,null,"Q74","RNL","NORTH CUMBRIA UNIVERSITY HOSPITALS NHS TRUST","RNLBX","West Cumberland Hospital - RNLBX",null,"RN7","OXFORD UNIVERSITY HOSPITALS NHS FOUNDATION TRUST",null,"RN7","OXFORD UNIVERSITY HOSPITALS NHS FOUNDATION TRUST","RHU02","Leighton Hospital - RBT20"]
[null,null,null,null,null,null,null,null,null,null,null,null,null,null,null,null,null,null,null,null,"Q74","RVW","NORTH TEES AND HARTLEPOOL NHS FOUNDATION TRUST","RVWAE","University Hospital Of North Tees - RVWAE",null,"RNA","PENNINE ACUTE HOSPITALS NHS TRUST",null,"RNA","PENNINE ACUTE HOSPITALS NHS TRUST","RHU03","Lincoln County Hospital - RWDDA"]
[null,null,null,null,null,null,null,null,null,null,null,null,null,null,null,null,null,null,null,null,"Q74","RTF","NORTHUMBRIA HEALTHCARE NHS FOUNDATION TRUST","RTFDJ","Alnwick Infirmary - RTFDJ",null,"RNL","PLYMOUTH HOSPITALS NHS TRUST",null,"RNL","PLYMOUTH HOSPITALS NHS TRUST","RHU04","Lister Hospital - RWH01"]
[null,null,null,null,null,null,null,null,null,null,null,null,null,null,null,null,null,null,null,null,"Q74","RTF","NORTHUMBRIA HEALTHCARE NHS FOUNDATION TRUST","RTFDH","Berwick Infirmary - RTFDH",null,"RNQ","POOLE HOSPITAL NHS FOUNDATION TRUST",null,"RNQ","POOLE HOSPITAL NHS FOUNDATION TRUST","RHU10","Liverpool Womens Hospital - REP01"]
[null,null,null,null,null,null,null,null,null,null,null,null,null,null,null,null,null,null,null,null,"Q74","RTF","NORTHUMBRIA HEALTHCARE NHS FOUNDATION TRUST","RTFDR","Hexham General Hospital - RTFDR",null,"RNS","PORTSMOUTH HOSPITALS NHS TRUST",null,"RNS","PORTSMOUTH HOSPITALS NHS TRUST","RHW01","Ludlow Hospital (Maternity) - RXWML"]
[null,null,null,null,null,null,null,null,null,null,null,null,null,null,null,null,null,null,null,null,"Q74","RTF","NORTHUMBRIA HEALTHCARE NHS FOUNDATION TRUST","RTFXXX","Non-hospital site - RTFXXX",null,"RNZ","ROYAL BERKSHIRE NHS FOUNDATION TRUST",null,"RNZ","ROYAL BERKSHIRE NHS FOUNDATION TRUST","RJ122","Luton and Dunstable Hospital - RC971"]
[null,null,null,null,null,null,null,null,null,null,null,null,null,null,null,null,null,null,null,null,"Q74","RTF","NORTHUMBRIA HEALTHCARE NHS FOUNDATION TRUST","RTF86","The Northumbria - RTF86",null,"RP5","ROYAL CORNWALL HOSPITALS NHS TRUST",null,"RP5","ROYAL CORNWALL HOSPITALS NHS TRUST","RJ1XXX","Macclesfield District General Hospital - RJN71"]
[null,null,null,null,null,null,null,null,null,null,null,null,null,null,null,null,null,null,null,null,"Q74","RTR","SOUTH TEES HOSPITALS NHS FOUNDATION TRUST","RTR45","Friarage Hospital Site - RTR45",null,"RPA","ROYAL DEVON AND EXETER NHS FOUNDATION TRUST",null,"RPA","ROYAL DEVON AND EXETER NHS FOUNDATION TRUST","RJ224","Maidstone District General Hospital - RWF03"]
[null,null,null,null,null,null,null,null,null,null,null,null,null,null,null,null,null,null,null,null,"Q74","RTR","SOUTH TEES HOSPITALS NHS FOUNDATION TRUST","RTRAT","The James Cook University Hospital - RTRAT",null,"RQ3","ROYAL FREE LONDON NHS FOUNDATION TRUST",null,"RQ3","ROYAL FREE LONDON NHS FOUNDATION TRUST","RJ231","Manor Hospital - RBK02"]
[null,null,null,null,null,null,null,null,null,null,null,null,null,null,null,null,null,null,null,null,"Q74","RE9","SOUTH TYNESIDE NHS FOUNDATION TRUST","RE9GA","South Tyneside District Hospital - RE9GA",null,"RQ8","ROYAL SURREY COUNTY HOSPITAL NHS FOUNDATION TRUST",null,"RQ8","ROYAL SURREY COUNTY HOSPITAL NHS FOUNDATION TRUST","RJ2XXX","Medway Maritime Hospital - RPA02"]
[null,null,null,null,null,null,null,null,null,null,null,null,null,null,null,null,null,null,null,null,"Q74","RTD","THE NEWCASTLE UPON TYNE HOSPITALS NHS FOUNDATION TRUST","RTD02","The Royal Victoria Infirmary - RTD02",null,"RQM","ROYAL UNITED HOSPITALS BATH NHS FOUNDATION TRUST",null,"RQM","ROYAL UNITED HOSPITALS BATH NHS FOUNDATION TRUST","RJ611","Milton Keynes Hospital - RD816"]
[null,null,null,null,null,null,null,null,null,null,null,null,null,null,null,null,null,null,null,null,"Q74","RTX","UNIVERSITY HOSPITALS OF MORECAMBE BAY NHS FOUNDATION TRUST","RTXBU","Furness General Hospital - RTXBU",null,"RQW","SALISBURY NHS FOUNDATION TRUST",null,"RQW","SALISBURY NHS FOUNDATION TRUST","RJ701","Musgrove Park Hospital - RBA11"]
[null,null,null,null,null,null,null,null,null,null,null,null,null,null,null,null,null,null,null,null,"Q75","RJR","COUNTESS OF CHESTER HOSPITAL NHS FOUNDATION TRUST","RJR05","Countess Of Chester Hospital - RJR05",null,"RQX","SANDWELL AND WEST BIRMINGHAM HOSPITALS NHS TRUST",null,"RQX","SANDWELL AND WEST BIRMINGHAM HOSPITALS NHS TRUST","RJC02","New Cross Hospital - RL403"]
[null,null,null,null,null,null,null,null,null,null,null,null,null,null,null,null,null,null,null,null,"Q75","RJN","EAST CHESHIRE NHS TRUST","RJN71","Macclesfield District General Hospital - RJN71",null,"RR1","SHEFFIELD TEACHING HOSPITALS NHS FOUNDATION TRUST",null,"RR1","SHEFFIELD TEACHING HOSPITALS NHS FOUNDATION TRUST","RJCXXX","Newham General Hospital - R1HNH"]
[null,null,null,null,null,null,null,null,null,null,null,null,null,null,null,null,null,null,null,null,"Q75","REP","LIVERPOOL WOMEN'S NHS FOUNDATION TRUST","REP01","Liverpool Womens Hospital - REP01",null,"RR7","SHERWOOD FOREST HOSPITALS NHS FOUNDATION TRUST",null,"RR7","SHERWOOD FOREST HOSPITALS NHS FOUNDATION TRUST","RJE01","Newton Abbot Community Hospital - RA957"]
[null,null,null,null,null,null,null,null,null,null,null,null,null,null,null,null,null,null,null,null,"Q75","RBT","MID CHESHIRE HOSPITALS NHS FOUNDATION TRUST","RBT20","Leighton Hospital - RBT20",null,"RR8","SHREWSBURY AND TELFORD HOSPITAL NHS TRUST",null,"RR8","SHREWSBURY AND TELFORD HOSPITAL NHS TRUST","RJE09","Non Hospital Site - RD1XXX"]
[null,null,null,null,null,null,null,null,null,null,null,null,null,null,null,null,null,null,null,null,"Q75","RVY","SOUTHPORT AND ORMSKIRK HOSPITAL NHS TRUST","RVY02","Ormskirk and District General Hospital - RVY02",null,"RRF","SOUTH TEES HOSPITALS NHS FOUNDATION TRUST",null,"RRF","SOUTH TEES HOSPITALS NHS FOUNDATION TRUST","RJEXXX","Non-hospital site - R1KXXX"]
[null,null,null,null,null,null,null,null,null,null,null,null,null,null,null,null,null,null,null,null,"Q75","RBN","ST HELENS AND KNOWSLEY HOSPITAL SERVICES NHS TRUST","RBN01","Whiston Hospital - RBN01",null,"RRV","SOUTH TYNESIDE NHS FOUNDATION TRUST",null,"RRV","SOUTH TYNESIDE NHS FOUNDATION TRUST","RJF02","Non-hospital site - RA9XXX"]
[null,null,null,null,null,null,null,null,null,null,null,null,null,null,null,null,null,null,null,null,"Q75","RWW","WARRINGTON AND HALTON HOSPITALS NHS FOUNDATION TRUST","RWWWH","Warrington Hospital - RWWWH",null,"RTD","SOUTH WARWICKSHIRE NHS FOUNDATION TRUST",null,"RTD","SOUTH WARWICKSHIRE NHS FOUNDATION TRUST","RJL30","Non-hospital site - RASXXX"]
[null,null,null,null,null,null,null,null,null,null,null,null,null,null,null,null,null,null,null,null,"Q75","RBL","WIRRAL UNIVERSITY TEACHING HOSPITAL NHS FOUNDATION TRUST","RBL14","Arrowe Park Hospital - RBL14",null,"RTE","SOUTHEND UNIVERSITY HOSPITAL NHS FOUNDATION TRUST",null,"RTE","SOUTHEND UNIVERSITY HOSPITAL NHS FOUNDATION TRUST","RJL32","Non-hospital site - RBAXXX"]
[null,null,null,null,null,null,null,null,null,null,null,null,null,null,null,null,null,null,null,null,"Q76","RJF","BURTON HOSPITALS NHS FOUNDATION TRUST","RJF02","Queen's Hospital, Burton Upon Trent - RJF02",null,"RTF","SOUTHPORT AND ORMSKIRK HOSPITAL NHS TRUST",null,"RTF","SOUTHPORT AND ORMSKIRK HOSPITAL NHS TRUST","RJN71","Non-hospital site - RCXXXX"]
[null,null,null,null,null,null,null,null,null,null,null,null,null,null,null,null,null,null,null,null,"Q76","RFS","CHESTERFIELD ROYAL HOSPITAL NHS FOUNDATION TRUST","RFSDA","Chesterfield Royal Hospital - RFSDA",null,"RTG","ST GEORGE'S UNIVERSITY HOSPITALS NHS FOUNDATION TRUST",null,"RTG","ST GEORGE'S UNIVERSITY HOSPITALS NHS FOUNDATION TRUST","RJR05","Non-hospital site - RDEXXX"]
[null,null,null,null,null,null,null,null,null,null,null,null,null,null,null,null,null,null,null,null,"Q76","RTG","DERBY TEACHING HOSPITALS NHS FOUNDATION TRUST","RTGFG","Royal Derby Hospital - RTGFG",null,"RTH","ST HELENS AND KNOWSLEY HOSPITAL SERVICES NHS TRUST",null,"RTH","ST HELENS AND KNOWSLEY HOSPITAL SERVICES NHS TRUST","RJZ01","Non-hospital site - RDUXXX"]
[null,null,null,null,null,null,null,null,null,null,null,null,null,null,null,null,null,null,null,null,"Q76","RX1","NOTTINGHAM UNIVERSITY HOSPITALS NHS TRUST","RX1XXX","Non-hospital site - RX1XXX",null,"RTK","STOCKPORT NHS FOUNDATION TRUST",null,"RTK","STOCKPORT NHS FOUNDATION TRUST","RJZ30","Non-hospital site - REFXXX"]
[null,null,null,null,null,null,null,null,null,null,null,null,null,null,null,null,null,null,null,null,"Q76","RX1","NOTTINGHAM UNIVERSITY HOSPITALS NHS TRUST","RX1CC","Nottingham University Hospitals NHS Trust - City Campus - RX1CC",null,"RTP","SURREY AND SUSSEX HEALTHCARE NHS TRUST",null,"RTP","SURREY AND SUSSEX HEALTHCARE NHS TRUST","RK5BC","Non-hospital site - RJ1XXX"]
[null,null,null,null,null,null,null,null,null,null,null,null,null,null,null,null,null,null,null,null,"Q76","RX1","NOTTINGHAM UNIVERSITY HOSPITALS NHS TRUST","RX1RA","Nottingham University Hospitals NHS Trust - Queen's Medical Centre Campus - RX1RA",null,"RTR","TAMESIDE AND GLOSSOP INTEGRATED CARE NHS FOUNDATION TRUST",null,"RTR","TAMESIDE AND GLOSSOP INTEGRATED CARE NHS FOUNDATION TRUST","RK5XXX","Non-hospital site - RJ2XXX"]
[null,null,null,null,null,null,null,null,null,null,null,null,null,null,null,null,null,null,null,null,"Q76","RK5","SHERWOOD FOREST HOSPITALS NHS FOUNDATION TRUST","RK5BC","King's Mill Hospital - RK5BC",null,"RTX","TAUNTON AND SOMERSET NHS FOUNDATION TRUST",null,"RTX","TAUNTON AND SOMERSET NHS FOUNDATION TRUST","RK950","Non-hospital site - RJCXXX"]
[null,null,null,null,null,null,null,null,null,null,null,null,null,null,null,null,null,null,null,null,"Q76","RK5","SHERWOOD FOREST HOSPITALS NHS FOUNDATION TRUST","RK5XXX","Non-hospital site - RK5XXX",null,"RVJ","THE DUDLEY GROUP NHS FOUNDATION TRUST",null,"RVJ","THE DUDLEY GROUP NHS FOUNDATION TRUST","RK9XXX","Non-hospital site - RJEXXX"]
[null,null,null,null,null,null,null,null,null,null,null,null,null,null,null,null,null,null,null,null,"Q76","RXW","SHREWSBURY AND TELFORD HOSPITAL NHS TRUST","RXWMB","Bridgnorth Hospital (Maternity) - RXWMB",null,"RVR","THE HILLINGDON HOSPITALS NHS FOUNDATION TRUST",null,"RVR","THE HILLINGDON HOSPITALS NHS FOUNDATION TRUST","RKB01","Non-hospital site - RK5XXX"]
[null,null,null,null,null,null,null,null,null,null,null,null,null,null,null,null,null,null,null,null,"Q76","RXW","SHREWSBURY AND TELFORD HOSPITAL NHS TRUST","RXWML","Ludlow Hospital (Maternity) - RXWML",null,"RVV","THE NEWCASTLE UPON TYNE HOSPITALS NHS FOUNDATION TRUST",null,"RVV","THE NEWCASTLE UPON TYNE HOSPITALS NHS FOUNDATION TRUST","RKB03","Non-hospital site - RK9XXX"]
[null,null,null,null,null,null,null,null,null,null,null,null,null,null,null,null,null,null,null,null,"Q76","RXW","SHREWSBURY AND TELFORD HOSPITAL NHS TRUST","RXWXXX","Non-hospital site - RXWXXX",null,"RVW","THE PRINCESS ALEXANDRA HOSPITAL NHS TRUST",null,"RVW","THE PRINCESS ALEXANDRA HOSPITAL NHS TRUST","RKBXXX","Non-hospital site - RKBXXX"]
[null,null,null,null,null,null,null,null,null,null,null,null,null,null,null,null,null,null,null,null,"Q76","RXW","SHREWSBURY AND TELFORD HOSPITAL NHS TRUST","RXWMJ","Robert Jones & Agnes Hunt Orthopaedic & District Hospital - RXWMJ",null,"RVY","THE QUEEN ELIZABETH HOSPITAL, KING'S LYNN, NHS FOUNDATION TRUST",null,"RVY","THE QUEEN ELIZABETH HOSPITAL, KING'S LYNN, NHS FOUNDATION TRUST","RKEQ4","Non-hospital site - RKEXXX"]
[null,null,null,null,null,null,null,null,null,null,null,null,null,null,null,null,null,null,null,null,"Q76","RXW","SHREWSBURY AND TELFORD HOSPITAL NHS TRUST","RXWAS","Royal Shrewsbury Hospital - RXWAS",null,"RW3","THE ROTHERHAM NHS FOUNDATION TRUST",null,"RW3","THE ROTHERHAM NHS FOUNDATION TRUST","RKEXXX","Non-hospital site - RN3XXX"]
[null,null,null,null,null,null,null,null,null,null,null,null,null,null,null,null,null,null,null,null,"Q76","RXW","SHREWSBURY AND TELFORD HOSPITAL NHS TRUST","RXWAT","The Princess Royal Hospital - RXWAT",null,"RW6","THE ROYAL BOURNEMOUTH AND CHRISTCHURCH HOSPITALS NHS FOUNDATION TRUST",null,"RW6","THE ROYAL BOURNEMOUTH AND CHRISTCHURCH HOSPITALS NHS FOUNDATION TRUST","RL403","Non-hospital site - RNLXXX"]
[null,null,null,null,null,null,null,null,null,null,null,null,null,null,null,null,null,null,null,null,"Q76","RJE","UNIVERSITY HOSPITALS OF NORTH MIDLANDS NHS TRUST","RJE09","County Hospital - RJE09",null,"RWA","THE ROYAL WOLVERHAMPTON NHS TRUST",null,"RWA","THE ROYAL WOLVERHAMPTON NHS TRUST","RLNGL","Non-hospital site - RNZXXX"]
[null,null,null,null,null,null,null,null,null,null,null,null,null,null,null,null,null,null,null,null,"Q76","RJE","UNIVERSITY HOSPITALS OF NORTH MIDLANDS NHS TRUST","RJEXXX","Non-hospital site - RJEXXX",null,"RWD","THE WHITTINGTON HOSPITAL NHS TRUST",null,"RWD","THE WHITTINGTON HOSPITAL NHS TRUST","RLQ01","Non-hospital site - RP5XXX"]
[null,null,null,null,null,null,null,null,null,null,null,null,null,null,null,null,null,null,null,null,"Q76","RJE","UNIVERSITY HOSPITALS OF NORTH MIDLANDS NHS TRUST","RJE01","Royal Stoke University Hospital - RJE01",null,"RWE","TORBAY AND SOUTH DEVON NHS FOUNDATION TRUST",null,"RWE","TORBAY AND SOUTH DEVON NHS FOUNDATION TRUST","RLT01","Non-Hospital Site - RR8XXX"]
[null,null,null,null,null,null,null,null,null,null,null,null,null,null,null,null,null,null,null,null,"Q77","RQ3","BIRMINGHAM WOMEN'S AND CHILDREN'S NHS FOUNDATION TRUST","RQ370","Birmingham Women's Hospital - RQ370",null,"RWF","UNITED LINCOLNSHIRE HOSPITALS NHS TRUST",null,"RWF","UNITED LINCOLNSHIRE HOSPITALS NHS TRUST","RM102","Non-hospital site - RTEXXX"]
[null,null,null,null,null,null,null,null,null,null,null,null,null,null,null,null,null,null,null,null,"Q77","RLT","GEORGE ELIOT HOSPITAL NHS TRUST","RLT01","George Eliot Hospital - Acute Services - RLT01",null,"RWG","UNIVERSITY COLLEGE LONDON HOSPITALS NHS FOUNDATION TRUST",null,"RWG","UNIVERSITY COLLEGE LONDON HOSPITALS NHS FOUNDATION TRUST","RM202","Non-hospital site - RTFXXX"]
[null,null,null,null,null,null,null,null,null,null,null,null,null,null,null,null,null,null,null,null,"Q77","RR1","HEART OF ENGLAND NHS FOUNDATION TRUST","RR105","Good Hope Hospital - RR105",null,"RWH","UNIVERSITY HOSPITAL OF SOUTH MANCHESTER NHS FOUNDATION TRUST",null,"RWH","UNIVERSITY HOSPITAL OF SOUTH MANCHESTER NHS FOUNDATION TRUST","RMC01","Non-hospital site - RTHXXX"]
[null,null,null,null,null,null,null,null,null,null,null,null,null,null,null,null,null,null,null,null,"Q77","RR1","HEART OF ENGLAND NHS FOUNDATION TRUST","RR101","Heartlands Hospital - RR101",null,"RWJ","UNIVERSITY HOSPITAL SOUTHAMPTON NHS FOUNDATION TRUST",null,"RWJ","UNIVERSITY HOSPITAL SOUTHAMPTON NHS FOUNDATION TRUST","RMP01","Non-hospital site - RVJXXX"]
[null,null,null,null,null,null,null,null,null,null,null,null,null,null,null,null,null,null,null,null,"Q77","RR1","HEART OF ENGLAND NHS FOUNDATION TRUST","RR109","Solihull Hospital - RR109",null,"RWP","UNIVERSITY HOSPITALS BRISTOL NHS FOUNDATION TRUST",null,"RWP","UNIVERSITY HOSPITALS BRISTOL NHS FOUNDATION TRUST","RN325","Non-hospital site - RVRXXX"]
[null,null,null,null,null,null,null,null,null,null,null,null,null,null,null,null,null,null,null,null,"Q77","RXK","SANDWELL AND WEST BIRMINGHAM HOSPITALS NHS TRUST","RXK02","City Hospital - RXK02",null,"RWW","UNIVERSITY HOSPITALS COVENTRY AND WARWICKSHIRE NHS TRUST",null,"RWW","UNIVERSITY HOSPITALS COVENTRY AND WARWICKSHIRE NHS TRUST","RN3XXX","Non-hospital site - RVVXXX"]
[null,null,null,null,null,null,null,null,null,null,null,null,null,null,null,null,null,null,null,null,"Q77","RJC","SOUTH WARWICKSHIRE NHS FOUNDATION TRUST","RJCXXX","Non-hospital site - RJCXXX",null,"RWY","UNIVERSITY HOSPITALS OF LEICESTER NHS TRUST",null,"RWY","UNIVERSITY HOSPITALS OF LEICESTER NHS TRUST","RN506","Non-hospital site - RW3XXX"]
[null,null,null,null,null,null,null,null,null,null,null,null,null,null,null,null,null,null,null,null,"Q77","RJC","SOUTH WARWICKSHIRE NHS FOUNDATION TRUST","RJC02","Warwick Hospital - RJC02",null,"RX1","UNIVERSITY HOSPITALS OF MORECAMBE BAY NHS FOUNDATION TRUST",null,"RX1","UNIVERSITY HOSPITALS OF MORECAMBE BAY NHS FOUNDATION TRUST","RN541","Non-hospital site - RW6XXX"]
[null,null,null,null,null,null,null,null,null,null,null,null,null,null,null,null,null,null,null,null,"Q77","RNA","THE DUDLEY GROUP NHS FOUNDATION TRUST","RNA01","Russells Hall Hospital - RNA01",null,"RXC","UNIVERSITY HOSPITALS OF NORTH MIDLANDS NHS TRUST",null,"RXC","UNIVERSITY HOSPITALS OF NORTH MIDLANDS NHS TRUST","RN542","Non-hospital site - RWDXXX"]
[null,null,null,null,null,null,null,null,null,null,null,null,null,null,null,null,null,null,null,null,"Q77","RL4","THE ROYAL WOLVERHAMPTON NHS TRUST","RL403","New Cross Hospital - RL403",null,"RXF","WALSALL HEALTHCARE NHS TRUST",null,"RXF","WALSALL HEALTHCARE NHS TRUST","RN707","Non-hospital site - RWEXXX"]
[null,null,null,null,null,null,null,null,null,null,null,null,null,null,null,null,null,null,null,null,"Q77","RKB","UNIVERSITY HOSPITALS COVENTRY AND WARWICKSHIRE NHS TRUST","RKB03","Hospital Of St Cross - RKB03",null,"RXH","WARRINGTON AND HALTON HOSPITALS NHS FOUNDATION TRUST",null,"RXH","WARRINGTON AND HALTON HOSPITALS NHS FOUNDATION TRUST","RNA01","Non-hospital site - RWFXXX"]
[null,null,null,null,null,null,null,null,null,null,null,null,null,null,null,null,null,null,null,null,"Q77","RKB","UNIVERSITY HOSPITALS COVENTRY AND WARWICKSHIRE NHS TRUST","RKBXXX","Non-hospital site - RKBXXX",null,"RXK","WEST HERTFORDSHIRE HOSPITALS NHS TRUST",null,"RXK","WEST HERTFORDSHIRE HOSPITALS NHS TRUST","RNLAY","Non-hospital site - RWHXXX"]
[null,null,null,null,null,null,null,null,null,null,null,null,null,null,null,null,null,null,null,null,"Q77","RKB","UNIVERSITY HOSPITALS COVENTRY AND WARWICKSHIRE NHS TRUST","RKB01","University Hospital (Coventry) - RKB01",null,"RXL","WEST SUFFOLK NHS FOUNDATION TRUST",null,"RXL","WEST SUFFOLK NHS FOUNDATION TRUST","RNLBE","Non-hospital site - RWJXXX"]
[null,null,null,null,null,null,null,null,null,null,null,null,null,null,null,null,null,null,null,null,"Q77","RBK","WALSALL HEALTHCARE NHS TRUST","RBK02","Manor Hospital - RBK02",null,"RXN","WESTERN SUSSEX HOSPITALS NHS FOUNDATION TRUST",null,"RXN","WESTERN SUSSEX HOSPITALS NHS FOUNDATION TRUST","RNLBX","Non-hospital site - RWYXXX"]
[null,null,null,null,null,null,null,null,null,null,null,null,null,null,null,null,null,null,null,null,"Q77","RWP","WORCESTERSHIRE ACUTE HOSPITALS NHS TRUST","RWP50","Worcestershire Royal Hospital - RWP50",null,"RXP","WESTON AREA HEALTH NHS TRUST",null,"RXP","WESTON AREA HEALTH NHS TRUST","RNLXXX","Non-hospital site - RX1XXX"]
[null,null,null,null,null,null,null,null,null,null,null,null,null,null,null,null,null,null,null,null,"Q77","RLQ","WYE VALLEY NHS TRUST","RLQ01","Hereford County Hospital - RLQ01",null,"RXQ","WIRRAL UNIVERSITY TEACHING HOSPITAL NHS FOUNDATION TRUST",null,"RXQ","WIRRAL UNIVERSITY TEACHING HOSPITAL NHS FOUNDATION TRUST","RNQ51","Non-hospital site - RXCXXX"]
[null,null,null,null,null,null,null,null,null,null,null,null,null,null,null,null,null,null,null,null,"Q78","RC1","BEDFORD HOSPITAL NHS TRUST","RC110","Bedford Hospital South Wing - RC110",null,"RXR","WORCESTERSHIRE ACUTE HOSPITALS NHS TRUST",null,"RXR","WORCESTERSHIRE ACUTE HOSPITALS NHS TRUST","RNS01","Non-hospital site - RXFXXX"]
[null,null,null,null,null,null,null,null,null,null,null,null,null,null,null,null,null,null,null,null,"Q78","RWH","EAST AND NORTH HERTFORDSHIRE NHS TRUST","RWH01","Lister Hospital - RWH01",null,"RXW","WRIGHTINGTON, WIGAN AND LEIGH NHS FOUNDATION TRUST",null,"RXW","WRIGHTINGTON, WIGAN AND LEIGH NHS FOUNDATION TRUST","RNZ02","Non-hospital site - RXHXXX"]
[null,null,null,null,null,null,null,null,null,null,null,null,null,null,null,null,null,null,null,null,"Q78","RWH","EAST AND NORTH HERTFORDSHIRE NHS TRUST","RWHXXX","Non-hospital site - RWHXXX",null,"RY2","WYE VALLEY NHS TRUST",null,"RY2","WYE VALLEY NHS TRUST","RNZXXX","Non-hospital site - RXLXXX"]
[null,null,null,null,null,null,null,null,null,null,null,null,null,null,null,null,null,null,null,null,"Q78","RNQ","KETTERING GENERAL HOSPITAL NHS FOUNDATION TRUST","RNQ51","Kettering General Hospital - RNQ51",null,"RYJ","YEOVIL DISTRICT HOSPITAL NHS FOUNDATION TRUST",null,"RYJ","YEOVIL DISTRICT HOSPITAL NHS FOUNDATION TRUST","RP5BA","Non-hospital site - RXPXXX"]
[null,null,null,null,null,null,null,null,null,null,null,null,null,null,null,null,null,null,null,null,"Q78","RC9","LUTON AND DUNSTABLE UNIVERSITY HOSPITAL NHS FOUNDATION TRUST","RC971","Luton and Dunstable Hospital - RC971",null,"RYR","YORK TEACHING HOSPITAL NHS FOUNDATION TRUST",null,"RYR","YORK TEACHING HOSPITAL NHS FOUNDATION TRUST","RP5DR","Non-hospital site - RXWXXX"]
[null,null,null,null,null,null,null,null,null,null,null,null,null,null,null,null,null,null,null,null,"Q78","RD8","MILTON KEYNES UNIVERSITY HOSPITAL NHS FOUNDATION TRUST","RD816","Milton Keynes Hospital - RD816",null,null,null,null,null,null,"RP5XXX","Non-hospital site - RY2XXX"]
[null,null,null,null,null,null,null,null,null,null,null,null,null,null,null,null,null,null,null,null,"Q78","RNS","NORTHAMPTON GENERAL HOSPITAL NHS TRUST","RNS01","Northampton General Hospital (Acute) - RNS01",null,null,null,null,null,null,"RPA02","Norfolk and Norwich University Hospital - RM102"]
[null,null,null,null,null,null,null,null,null,null,null,null,null,null,null,null,null,null,null,null,"Q78","RWD","UNITED LINCOLNSHIRE HOSPITALS NHS TRUST","RWDLP","Grantham and District Hospital - RWDLP",null,null,null,null,null,null,"RQ370","North Devon District Hospital - RBZ12"]
[null,null,null,null,null,null,null,null,null,null,null,null,null,null,null,null,null,null,null,null,"Q78","RWD","UNITED LINCOLNSHIRE HOSPITALS NHS TRUST","RWDDA","Lincoln County Hospital - RWDDA",null,null,null,null,null,null,"RQ8L0","North Manchester General Hospital - RW602"]
[null,null,null,null,null,null,null,null,null,null,null,null,null,null,null,null,null,null,null,null,"Q78","RWD","UNITED LINCOLNSHIRE HOSPITALS NHS TRUST","RWDXXX","Non-hospital site - RWDXXX",null,null,null,null,null,null,"RQM01","North Middlesex Hospital - RAPNM"]
[null,null,null,null,null,null,null,null,null,null,null,null,null,null,null,null,null,null,null,null,"Q78","RWD","UNITED LINCOLNSHIRE HOSPITALS NHS TRUST","RWDLA","Pilgrim Hospital - RWDLA",null,null,null,null,null,null,"RQM91","Northampton General Hospital (Acute) - RNS01"]
[null,null,null,null,null,null,null,null,null,null,null,null,null,null,null,null,null,null,null,null,"Q78","RWE","UNIVERSITY HOSPITALS OF LEICESTER NHS TRUST","RWEAK","Leicester General Hospital - RWEAK",null,null,null,null,null,null,"RQWG0","Northwick Park Hospital - R1K01"]
[null,null,null,null,null,null,null,null,null,null,null,null,null,null,null,null,null,null,null,null,"Q78","RWE","UNIVERSITY HOSPITALS OF LEICESTER NHS TRUST","RWEAA","Leicester Royal Infirmary - RWEAA",null,null,null,null,null,null,"RQXM1","Nottingham University Hospitals NHS Trust - City Campus - RX1CC"]
[null,null,null,null,null,null,null,null,null,null,null,null,null,null,null,null,null,null,null,null,"Q78","RWE","UNIVERSITY HOSPITALS OF LEICESTER NHS TRUST","RWEXXX","Non-hospital site - RWEXXX",null,null,null,null,null,null,"RR101","Nottingham University Hospitals NHS Trust - Queen's Medical Centre Campus - RX1RA"]
[null,null,null,null,null,null,null,null,null,null,null,null,null,null,null,null,null,null,null,null,"Q78","RWE","UNIVERSITY HOSPITALS OF LEICESTER NHS TRUST","RWE10","St Mary's Hospital - RWE10",null,null,null,null,null,null,"RR105","Okehampton Community Hospital - RH833"]
[null,null,null,null,null,null,null,null,null,null,null,null,null,null,null,null,null,null,null,null,"Q78","RWG","WEST HERTFORDSHIRE HOSPITALS NHS TRUST","RWG02","Watford General Hospital - RWG02",null,null,null,null,null,null,"RR109","Ormskirk and District General Hospital - RVY02"]
[null,null,null,null,null,null,null,null,null,null,null,null,null,null,null,null,null,null,null,null,"Q79","RDD","BASILDON AND THURROCK UNIVERSITY HOSPITALS NHS FOUNDATION TRUST","RDDH0","Basildon University Hospital - RDDH0",null,null,null,null,null,null,"RR7EN","Paulton Memorial Hospital  - RD129"]
[null,null,null,null,null,null,null,null,null,null,null,null,null,null,null,null,null,null,null,null,"Q79","RGT","CAMBRIDGE UNIVERSITY HOSPITALS NHS FOUNDATION TRUST","RGT32","Rosie Hospital - RGT32",null,null,null,null,null,null,"RR801","Penrith Hospital - RNLBE"]
[null,null,null,null,null,null,null,null,null,null,null,null,null,null,null,null,null,null,null,null,"Q79","RDE","COLCHESTER HOSPITAL UNIVERSITY NHS FOUNDATION TRUST","RDEE2","Clacton and District Hospital - RDEE2",null,null,null,null,null,null,"RR813","Peterborough City Hospital - RGN80"]
[null,null,null,null,null,null,null,null,null,null,null,null,null,null,null,null,null,null,null,null,"Q79","RDE","COLCHESTER HOSPITAL UNIVERSITY NHS FOUNDATION TRUST","RDEE4","Colchester General Hospital - RDEE4",null,null,null,null,null,null,"RR8XXX","Petersfield Community Hospital - RHU04"]
[null,null,null,null,null,null,null,null,null,null,null,null,null,null,null,null,null,null,null,null,"Q79","RDE","COLCHESTER HOSPITAL UNIVERSITY NHS FOUNDATION TRUST","RDEEE","Harwich Maternity - RDEEE",null,null,null,null,null,null,"RRF02","Pilgrim Hospital - RWDLA"]
[null,null,null,null,null,null,null,null,null,null,null,null,null,null,null,null,null,null,null,null,"Q79","RDE","COLCHESTER HOSPITAL UNIVERSITY NHS FOUNDATION TRUST","RDEXXX","Non-hospital site - RDEXXX",null,null,null,null,null,null,"RRV03","Pinderfields General Hospital - RXF05"]
[null,null,null,null,null,null,null,null,null,null,null,null,null,null,null,null,null,null,null,null,"Q79","RGQ","IPSWICH HOSPITAL NHS TRUST","RGQ02","The Ipswich Hospital NHS Trust - RGQ02",null,null,null,null,null,null,"RTD02","Pontefract General Infirmary - RXF03"]
[null,null,null,null,null,null,null,null,null,null,null,null,null,null,null,null,null,null,null,null,"Q79","RGP","JAMES PAGET UNIVERSITY HOSPITALS NHS FOUNDATION TRUST","RGP75","James Paget University Hospital - RGP75",null,null,null,null,null,null,"RTE01","Poole General Hospital NHS Trust HQ - RD304"]
[null,null,null,null,null,null,null,null,null,null,null,null,null,null,null,null,null,null,null,null,"Q79","RQ8","MID ESSEX HOSPITAL SERVICES NHS TRUST","RQ8L0","Broomfield Hospital - RQ8L0",null,null,null,null,null,null,"RTE03","Princess Alexandra Hospital - RQWG0"]
[null,null,null,null,null,null,null,null,null,null,null,null,null,null,null,null,null,null,null,null,"Q79","RM1","NORFOLK AND NORWICH UNIVERSITY HOSPITALS NHS FOUNDATION TRUST","RM102","Norfolk and Norwich University Hospital - RM102",null,null,null,null,null,null,"RTE27","Princess Anne Hospital - RHM12"]
[null,null,null,null,null,null,null,null,null,null,null,null,null,null,null,null,null,null,null,null,"Q79","RGN","NORTH WEST ANGLIA NHS FOUNDATION TRUST","RGN90","Hinchingbrooke Hospital - RGN90",null,null,null,null,null,null,"RTEXXX","Princess Anne Wing RUH  - RD130"]
[null,null,null,null,null,null,null,null,null,null,null,null,null,null,null,null,null,null,null,null,"Q79","RGN","NORTH WEST ANGLIA NHS FOUNDATION TRUST","RGN80","Peterborough City Hospital - RGN80",null,null,null,null,null,null,"RTF86","Princess Royal Hospital - RXH09"]
[null,null,null,null,null,null,null,null,null,null,null,null,null,null,null,null,null,null,null,null,"Q79","RAJ","SOUTHEND UNIVERSITY HOSPITAL NHS FOUNDATION TRUST","RAJ01","Southend Hospital - RAJ01",null,null,null,null,null,null,"RTFDH","Princess Royal University Hospital - RJZ30"]
[null,null,null,null,null,null,null,null,null,null,null,null,null,null,null,null,null,null,null,null,"Q79","RQW","THE PRINCESS ALEXANDRA HOSPITAL NHS TRUST","RQWG0","Princess Alexandra Hospital - RQWG0",null,null,null,null,null,null,"RTFDJ","Queen Alexandra Hospital - RHU03"]
[null,null,null,null,null,null,null,null,null,null,null,null,null,null,null,null,null,null,null,null,"Q79","RCX","THE QUEEN ELIZABETH HOSPITAL, KING'S LYNN, NHS FOUNDATION TRUST","RCXXXX","Non-hospital site - RCXXXX",null,null,null,null,null,null,"RTFDR","Queen Charlotte's Hospital - RYJ04"]
[null,null,null,null,null,null,null,null,null,null,null,null,null,null,null,null,null,null,null,null,"Q79","RCX","THE QUEEN ELIZABETH HOSPITAL, KING'S LYNN, NHS FOUNDATION TRUST","RCX70","The Queen Elizabeth Hospital - RCX70",null,null,null,null,null,null,"RTFXXX","Queen Elizabeth Hospital - RJ231"]
[null,null,null,null,null,null,null,null,null,null,null,null,null,null,null,null,null,null,null,null,"Q79","RGR","WEST SUFFOLK NHS FOUNDATION TRUST","RGR50","West Suffolk Hospital - RGR50",null,null,null,null,null,null,"RTGFG","Queen Elizabeth Hospital - RR7EN"]
[null,null,null,null,null,null,null,null,null,null,null,null,null,null,null,null,null,null,null,null,"Q80","RVJ","NORTH BRISTOL NHS TRUST","RVJ21","Cossham Hospital - RVJ21",null,null,null,null,null,null,"RTH05","Queen Elizabeth The Queen Mother Hospital - RVV09"]
[null,null,null,null,null,null,null,null,null,null,null,null,null,null,null,null,null,null,null,null,"Q80","RVJ","NORTH BRISTOL NHS TRUST","RVJXXX","Non-hospital site - RVJXXX",null,null,null,null,null,null,"RTH08","Queen's Hospital - RF4QH"]
[null,null,null,null,null,null,null,null,null,null,null,null,null,null,null,null,null,null,null,null,"Q80","RVJ","NORTH BRISTOL NHS TRUST","RVJ01","Southmead Hospital - RVJ01",null,null,null,null,null,null,"RTH16","Queen's Hospital, Burton Upon Trent - RJF02"]
[null,null,null,null,null,null,null,null,null,null,null,null,null,null,null,null,null,null,null,null,"Q80","RBZ","NORTHERN DEVON HEALTHCARE NHS TRUST","RBZ12","North Devon District Hospital - RBZ12",null,null,null,null,null,null,"RTH19","Robert Jones & Agnes Hunt Orthopaedic & District Hospital - RXWMJ"]
[null,null,null,null,null,null,null,null,null,null,null,null,null,null,null,null,null,null,null,null,"Q80","RK9","PLYMOUTH HOSPITALS NHS TRUST","RK950","Derriford Hospital - RK950",null,null,null,null,null,null,"RTH21","Rosie Hospital - RGT32"]
[null,null,null,null,null,null,null,null,null,null,null,null,null,null,null,null,null,null,null,null,"Q80","RK9","PLYMOUTH HOSPITALS NHS TRUST","RK9XXX","Non-hospital site - RK9XXX",null,null,null,null,null,null,"RTHXXX","Rotherham District General Hospital - RFRPA"]
[null,null,null,null,null,null,null,null,null,null,null,null,null,null,null,null,null,null,null,null,"Q80","REF","ROYAL CORNWALL HOSPITALS NHS TRUST","REFXXX","Non-hospital site - REFXXX",null,null,null,null,null,null,"RTK01","Royal Albert Edward Infirmary - RRF02"]
[null,null,null,null,null,null,null,null,null,null,null,null,null,null,null,null,null,null,null,null,"Q80","REF","ROYAL CORNWALL HOSPITALS NHS TRUST","REF12","Royal Cornwall Hospital (Treliske) - REF12",null,null,null,null,null,null,"RTP04","Royal Berkshire Hospital - RHW01"]
[null,null,null,null,null,null,null,null,null,null,null,null,null,null,null,null,null,null,null,null,"Q80","RH8","ROYAL DEVON AND EXETER NHS FOUNDATION TRUST","RH854","Honiton Hospital - RH 854",null,null,null,null,null,null,"RTR45","Royal Blackburn Hospital - RXR20"]
[null,null,null,null,null,null,null,null,null,null,null,null,null,null,null,null,null,null,null,null,"Q80","RH8","ROYAL DEVON AND EXETER NHS FOUNDATION TRUST","RH833","Okehampton Community Hospital - RH833",null,null,null,null,null,null,"RTRAT","Royal Bolton Hospital - RMC01"]
[null,null,null,null,null,null,null,null,null,null,null,null,null,null,null,null,null,null,null,null,"Q80","RH8","ROYAL DEVON AND EXETER NHS FOUNDATION TRUST","RH801","Royal Devon and Exeter Hospital (Wonford) - RH801",null,null,null,null,null,null,"RTXBU","Royal Bournemouth General Hospital - RDZ20"]
[null,null,null,null,null,null,null,null,null,null,null,null,null,null,null,null,null,null,null,null,"Q80","RH8","ROYAL DEVON AND EXETER NHS FOUNDATION TRUST","RH853","Tiverton and District Hospital - RH853",null,null,null,null,null,null,"RVJ01","Royal Cornwall Hospital (Treliske) - REF12"]
[null,null,null,null,null,null,null,null,null,null,null,null,null,null,null,null,null,null,null,null,"Q80","RBA","TAUNTON AND SOMERSET NHS FOUNDATION TRUST","RBAC3","Bridgwater Hospital - RBAC3",null,null,null,null,null,null,"RVJ21","Royal Derby Hospital - RTGFG"]
[null,null,null,null,null,null,null,null,null,null,null,null,null,null,null,null,null,null,null,null,"Q80","RBA","TAUNTON AND SOMERSET NHS FOUNDATION TRUST","RBA11","Musgrove Park Hospital - RBA11",null,null,null,null,null,null,"RVJXXX","Royal Devon and Exeter Hospital (Wonford) - RH801"]
[null,null,null,null,null,null,null,null,null,null,null,null,null,null,null,null,null,null,null,null,"Q80","RBA","TAUNTON AND SOMERSET NHS FOUNDATION TRUST","RBAXXX","Non-hospital site - RBAXXX",null,null,null,null,null,null,"RVR05","Royal Free Hospital - RAL01"]
[null,null,null,null,null,null,null,null,null,null,null,null,null,null,null,null,null,null,null,null,"Q80","RA9","TORBAY AND SOUTH DEVON NHS FOUNDATION TRUST","RA957","Newton Abbot Community Hospital - RA957",null,null,null,null,null,null,"RVR50","Royal Hallamshire Hospital - RHQHH"]
[null,null,null,null,null,null,null,null,null,null,null,null,null,null,null,null,null,null,null,null,"Q80","RA9","TORBAY AND SOUTH DEVON NHS FOUNDATION TRUST","RA9XXX","Non-hospital site - RA9XXX",null,null,null,null,null,null,"RVRXXX","Royal Hampshire County Hospital - RN541"]
[null,null,null,null,null,null,null,null,null,null,null,null,null,null,null,null,null,null,null,null,"Q80","RA9","TORBAY AND SOUTH DEVON NHS FOUNDATION TRUST","RA901","Torbay Hospital - RA901",null,null,null,null,null,null,"RVV01","Royal Oldham Hospital - RW603"]
[null,null,null,null,null,null,null,null,null,null,null,null,null,null,null,null,null,null,null,null,"Q80","RA7","UNIVERSITY HOSPITALS BRISTOL NHS FOUNDATION TRUST","RA707","St Michael's Hospital - RA707",null,null,null,null,null,null,"RVV09","Royal Preston Hospital - RXN02"]
[null,null,null,null,null,null,null,null,null,null,null,null,null,null,null,null,null,null,null,null,"Q80","RA3","WESTON AREA HEALTH NHS TRUST","RA301","Weston General Hospital - RA301",null,null,null,null,null,null,"RVVXXX","Royal Shrewsbury Hospital - RXWAS"]
[null,null,null,null,null,null,null,null,null,null,null,null,null,null,null,null,null,null,null,null,"Q80","RA4","YEOVIL DISTRICT HOSPITAL NHS FOUNDATION TRUST","RA430","Yeovil District Hospital - RA430",null,null,null,null,null,null,"RVWAE","Royal Stoke University Hospital - RJE01"]
[null,null,null,null,null,null,null,null,null,null,null,null,null,null,null,null,null,null,null,null,"Q81","RTK","ASHFORD AND ST PETER'S HOSPITALS NHS FOUNDATION TRUST","RTK01","St Peter's Hospital - RTK01",null,null,null,null,null,null,"RVY02","Royal Surrey County Hospital - RA201"]
[null,null,null,null,null,null,null,null,null,null,null,null,null,null,null,null,null,null,null,null,"Q81","RXH","BRIGHTON AND SUSSEX UNIVERSITY HOSPITALS NHS TRUST","RXHXXX","Non-hospital site - RXHXXX",null,null,null,null,null,null,"RW3SM","Royal Sussex County Hospital - RXH01"]
[null,null,null,null,null,null,null,null,null,null,null,null,null,null,null,null,null,null,null,null,"Q81","RXH","BRIGHTON AND SUSSEX UNIVERSITY HOSPITALS NHS TRUST","RXH09","Princess Royal Hospital - RXH09",null,null,null,null,null,null,"RW3XXX","Russells Hall Hospital - RNA01"]
[null,null,null,null,null,null,null,null,null,null,null,null,null,null,null,null,null,null,null,null,"Q81","RXH","BRIGHTON AND SUSSEX UNIVERSITY HOSPITALS NHS TRUST","RXH01","Royal Sussex County Hospital - RXH01",null,null,null,null,null,null,"RW602","Salisbury District Hospital - RNZ02"]
[null,null,null,null,null,null,null,null,null,null,null,null,null,null,null,null,null,null,null,null,"Q81","RN7","DARTFORD AND GRAVESHAM NHS TRUST","RN707","Darent Valley Hospital - RN707",null,null,null,null,null,null,"RW603","Scarborough General Hospital - RCBCA"]
[null,null,null,null,null,null,null,null,null,null,null,null,null,null,null,null,null,null,null,null,"Q81","RVV","EAST KENT HOSPITALS UNIVERSITY NHS FOUNDATION TRUST","RVVXXX","Non-hospital site - RVVXXX",null,null,null,null,null,null,"RW6XXX","Scunthorpe General Hospital - RJL32"]
[null,null,null,null,null,null,null,null,null,null,null,null,null,null,null,null,null,null,null,null,"Q81","RVV","EAST KENT HOSPITALS UNIVERSITY NHS FOUNDATION TRUST","RVV09","Queen Elizabeth The Queen Mother Hospital - RVV09",null,null,null,null,null,null,"RWA01","Solihull Hospital - RR109"]
[null,null,null,null,null,null,null,null,null,null,null,null,null,null,null,null,null,null,null,null,"Q81","RVV","EAST KENT HOSPITALS UNIVERSITY NHS FOUNDATION TRUST","RVV01","William Harvey Hospital (Ashford) - RVV01",null,null,null,null,null,null,"RWDDA","South Tyneside District Hospital - RE9GA"]
[null,null,null,null,null,null,null,null,null,null,null,null,null,null,null,null,null,null,null,null,"Q81","RXC","EAST SUSSEX HEALTHCARE NHS TRUST","RXC01","Conquest Hospital - RXC01",null,null,null,null,null,null,"RWDLA","Southend Hospital - RAJ01"]
[null,null,null,null,null,null,null,null,null,null,null,null,null,null,null,null,null,null,null,null,"Q81","RXC","EAST SUSSEX HEALTHCARE NHS TRUST","RXC02","Eastbourne District General Hospital - RXC02",null,null,null,null,null,null,"RWDLP","Southmead Hospital - RVJ01"]
[null,null,null,null,null,null,null,null,null,null,null,null,null,null,null,null,null,null,null,null,"Q81","RXC","EAST SUSSEX HEALTHCARE NHS TRUST","RXCXXX","Non-hospital site - RXCXXX",null,null,null,null,null,null,"RWDXXX","St George's Hospital (Tooting) - RJ701"]
[null,null,null,null,null,null,null,null,null,null,null,null,null,null,null,null,null,null,null,null,"Q81","RDU","FRIMLEY HEALTH NHS FOUNDATION TRUST","RDU01","Frimley Park Hospital - RDU01",null,null,null,null,null,null,"RWE10","St Helier Hospital - RVR05"]
[null,null,null,null,null,null,null,null,null,null,null,null,null,null,null,null,null,null,null,null,"Q81","RDU","FRIMLEY HEALTH NHS FOUNDATION TRUST","RDUXXX","Non-hospital site - RDUXXX",null,null,null,null,null,null,"RWEAA","St James's University Hospital - RR813"]
[null,null,null,null,null,null,null,null,null,null,null,null,null,null,null,null,null,null,null,null,"Q81","RDU","FRIMLEY HEALTH NHS FOUNDATION TRUST","RDU50","Wexham Park Hospital - RDU50",null,null,null,null,null,null,"RWEAK","St Mary's Hospital - R1F01"]
[null,null,null,null,null,null,null,null,null,null,null,null,null,null,null,null,null,null,null,null,"Q81","RWF","MAIDSTONE AND TUNBRIDGE WELLS NHS TRUST","RWF03","Maidstone District General Hospital - RWF03",null,null,null,null,null,null,"RWEXXX","St Mary's Hospital - RHU02"]
[null,null,null,null,null,null,null,null,null,null,null,null,null,null,null,null,null,null,null,null,"Q81","RWF","MAIDSTONE AND TUNBRIDGE WELLS NHS TRUST","RWFXXX","Non-hospital site - RWFXXX",null,null,null,null,null,null,"RWF03","St Mary's Hospital - RW3SM"]
[null,null,null,null,null,null,null,null,null,null,null,null,null,null,null,null,null,null,null,null,"Q81","RWF","MAIDSTONE AND TUNBRIDGE WELLS NHS TRUST","RWFTW","The Tunbridge Wells Hospital - RWFTW",null,null,null,null,null,null,"RWFTW","St Mary's Hospital - RWE10"]
[null,null,null,null,null,null,null,null,null,null,null,null,null,null,null,null,null,null,null,null,"Q81","RPA","MEDWAY NHS FOUNDATION TRUST","RPA02","Medway Maritime Hospital - RPA02",null,null,null,null,null,null,"RWFXXX","St Mary's Hospital (HQ) - RYJ01"]
[null,null,null,null,null,null,null,null,null,null,null,null,null,null,null,null,null,null,null,null,"Q81","RA2","ROYAL SURREY COUNTY HOSPITAL NHS FOUNDATION TRUST","RA201","Royal Surrey County Hospital - RA201",null,null,null,null,null,null,"RWG02","St Michael's Hospital - RA707"]
[null,null,null,null,null,null,null,null,null,null,null,null,null,null,null,null,null,null,null,null,"Q81","RTP","SURREY AND SUSSEX HEALTHCARE NHS TRUST","RTP04","East Surrey Hospital - RTP04",null,null,null,null,null,null,"RWH01","St Peter's Hospital - RTK01"]
[null,null,null,null,null,null,null,null,null,null,null,null,null,null,null,null,null,null,null,null,"Q81","RYR","WESTERN SUSSEX HOSPITALS NHS FOUNDATION TRUST","RYR16","St Richard's Hospital - RYR16",null,null,null,null,null,null,"RWHXXX","St Richard's Hospital - RYR16"]
[null,null,null,null,null,null,null,null,null,null,null,null,null,null,null,null,null,null,null,null,"Q81","RYR","WESTERN SUSSEX HOSPITALS NHS FOUNDATION TRUST","RYR18","Worthing Hospital - RYR18",null,null,null,null,null,null,"RWJ09","St Thomas' Hospital - RJ122"]
[null,null,null,null,null,null,null,null,null,null,null,null,null,null,null,null,null,null,null,null,"Q82","RXQ","BUCKINGHAMSHIRE HEALTHCARE NHS TRUST","RXQ02","Stoke Mandeville Hospital - RXQ02",null,null,null,null,null,null,"RWJXXX","Stepping Hill Hospital - RWJ09"]
[null,null,null,null,null,null,null,null,null,null,null,null,null,null,null,null,null,null,null,null,"Q82","RXQ","BUCKINGHAMSHIRE HEALTHCARE NHS TRUST","RXQ50","Wycombe Hospital - RXQ50",null,null,null,null,null,null,"RWP50","Stoke Mandeville Hospital - RXQ02"]
[null,null,null,null,null,null,null,null,null,null,null,null,null,null,null,null,null,null,null,null,"Q82","RTE","GLOUCESTERSHIRE HOSPITALS NHS FOUNDATION TRUST","RTE01","Cheltenham General Hospital - RTE01",null,null,null,null,null,null,"RWWWH","Stroud Maternity Hospital - RTE27"]
[null,null,null,null,null,null,null,null,null,null,null,null,null,null,null,null,null,null,null,null,"Q82","RTE","GLOUCESTERSHIRE HOSPITALS NHS FOUNDATION TRUST","RTE03","Gloucestershire Royal Hospital - RTE03",null,null,null,null,null,null,"RWY01","Sunderland Royal Hospital - RLNGL"]
[null,null,null,null,null,null,null,null,null,null,null,null,null,null,null,null,null,null,null,null,"Q82","RTE","GLOUCESTERSHIRE HOSPITALS NHS FOUNDATION TRUST","RTEXXX","Non-hospital site - RTEXXX",null,null,null,null,null,null,"RWY02","Tameside General Hospital - RMP01"]
[null,null,null,null,null,null,null,null,null,null,null,null,null,null,null,null,null,null,null,null,"Q82","RTE","GLOUCESTERSHIRE HOSPITALS NHS FOUNDATION TRUST","RTE27","Stroud Maternity Hospital - RTE27",null,null,null,null,null,null,"RWYXXX","The Great Western Hospital - RN325"]
[null,null,null,null,null,null,null,null,null,null,null,null,null,null,null,null,null,null,null,null,"Q82","RN3","GREAT WESTERN HOSPITALS NHS FOUNDATION TRUST","RN3XXX","Non-hospital site - RN3XXX",null,null,null,null,null,null,"RX1CC","The Ipswich Hospital NHS Trust - RGQ02"]
[null,null,null,null,null,null,null,null,null,null,null,null,null,null,null,null,null,null,null,null,"Q82","RN3","GREAT WESTERN HOSPITALS NHS FOUNDATION TRUST","RN325","The Great Western Hospital - RN325",null,null,null,null,null,null,"RX1RA","The James Cook University Hospital - RTRAT"]
[null,null,null,null,null,null,null,null,null,null,null,null,null,null,null,null,null,null,null,null,"Q82","RTH","OXFORD UNIVERSITY HOSPITALS NHS FOUNDATION TRUST","RTH19","Chipping Norton Community Hospital - RTH19",null,null,null,null,null,null,"RX1XXX","The Northumbria - RTF86"]
[null,null,null,null,null,null,null,null,null,null,null,null,null,null,null,null,null,null,null,null,"Q82","RTH","OXFORD UNIVERSITY HOSPITALS NHS FOUNDATION TRUST","RTH05","Horton General Hospital - RTH05",null,null,null,null,null,null,"RXC01","The Princess Royal Hospital - RXWAT"]
[null,null,null,null,null,null,null,null,null,null,null,null,null,null,null,null,null,null,null,null,"Q82","RTH","OXFORD UNIVERSITY HOSPITALS NHS FOUNDATION TRUST","RTH08","John Radcliffe Hospital - RTH08",null,null,null,null,null,null,"RXC02","The Queen Elizabeth Hospital - RCX70"]
[null,null,null,null,null,null,null,null,null,null,null,null,null,null,null,null,null,null,null,null,"Q82","RTH","OXFORD UNIVERSITY HOSPITALS NHS FOUNDATION TRUST","RTHXXX","Non-hospital site - RTHXXX",null,null,null,null,null,null,"RXCXXX","The Royal London Hospital - R1H12"]
[null,null,null,null,null,null,null,null,null,null,null,null,null,null,null,null,null,null,null,null,"Q82","RTH","OXFORD UNIVERSITY HOSPITALS NHS FOUNDATION TRUST","RTH16","Wallingford Community Hospital - RTH16",null,null,null,null,null,null,"RXF03","The Royal Victoria Infirmary - RTD02"]
[null,null,null,null,null,null,null,null,null,null,null,null,null,null,null,null,null,null,null,null,"Q82","RTH","OXFORD UNIVERSITY HOSPITALS NHS FOUNDATION TRUST","RTH21","Wantage Community Hospital - RTH21",null,null,null,null,null,null,"RXF05","The Tunbridge Wells Hospital - RWFTW"]
[null,null,null,null,null,null,null,null,null,null,null,null,null,null,null,null,null,null,null,null,"Q82","RHW","ROYAL BERKSHIRE NHS FOUNDATION TRUST","RHW01","Royal Berkshire Hospital - RHW01",null,null,null,null,null,null,"RXF10","The Whittington Hospital - RKEQ4"]
[null,null,null,null,null,null,null,null,null,null,null,null,null,null,null,null,null,null,null,null,"Q82","RD1","ROYAL UNITED HOSPITALS BATH NHS FOUNDATION TRUST","RD102","Chippenham Community Hospital -RD102",null,null,null,null,null,null,"RXFXXX","Tiverton and District Hospital - RH853"]
[null,null,null,null,null,null,null,null,null,null,null,null,null,null,null,null,null,null,null,null,"Q82","RD1","ROYAL UNITED HOSPITALS BATH NHS FOUNDATION TRUST","RD121","Frome Community Hospital  - RD121",null,null,null,null,null,null,"RXH01","Torbay Hospital - RA901"]
[null,null,null,null,null,null,null,null,null,null,null,null,null,null,null,null,null,null,null,null,"Q82","RD1","ROYAL UNITED HOSPITALS BATH NHS FOUNDATION TRUST","RD1XXX","Non Hospital Site - RD1XXX",null,null,null,null,null,null,"RXH09","Trowbridge Community Hospital  - RD108"]
[null,null,null,null,null,null,null,null,null,null,null,null,null,null,null,null,null,null,null,null,"Q82","RD1","ROYAL UNITED HOSPITALS BATH NHS FOUNDATION TRUST","RD129","Paulton Memorial Hospital  - RD129",null,null,null,null,null,null,"RXHXXX","University College Hospital - RRV03"]
[null,null,null,null,null,null,null,null,null,null,null,null,null,null,null,null,null,null,null,null,"Q82","RD1","ROYAL UNITED HOSPITALS BATH NHS FOUNDATION TRUST","RD130","Princess Anne Wing RUH  - RD130",null,null,null,null,null,null,"RXK02","University Hospital (Coventry) - RKB01"]
[null,null,null,null,null,null,null,null,null,null,null,null,null,null,null,null,null,null,null,null,"Q82","RD1","ROYAL UNITED HOSPITALS BATH NHS FOUNDATION TRUST","RD108","Trowbridge Community Hospital  - RD108",null,null,null,null,null,null,"RXL01","University Hospital Lewisham - RJ224"]
[null,null,null,null,null,null,null,null,null,null,null,null,null,null,null,null,null,null,null,null,"Q82","RNZ","SALISBURY NHS FOUNDATION TRUST","RNZXXX","Non-hospital site - RNZXXX",null,null,null,null,null,null,"RXLXXX","University Hospital Of North Tees - RVWAE"]
[null,null,null,null,null,null,null,null,null,null,null,null,null,null,null,null,null,null,null,null,"Q82","RNZ","SALISBURY NHS FOUNDATION TRUST","RNZ02","Salisbury District Hospital - RNZ02",null,null,null,null,null,null,"RXN01","Wallingford Community Hospital - RTH16"]
[null,null,null,null,null,null,null,null,null,null,null,null,null,null,null,null,null,null,null,null,"Q83","RMC","BOLTON NHS FOUNDATION TRUST","RMC01","Royal Bolton Hospital - RMC01",null,null,null,null,null,null,"RXN02","Wantage Community Hospital - RTH21"]
[null,null,null,null,null,null,null,null,null,null,null,null,null,null,null,null,null,null,null,null,"Q83","RY2","BRIDGEWATER COMMUNITY HEALTHCARE NHS FOUNDATION TRUST","RY28P","Health Care Resource Centre - RY28P",null,null,null,null,null,null,"RXPDA","Warrington Hospital - RWWWH"]
[null,null,null,null,null,null,null,null,null,null,null,null,null,null,null,null,null,null,null,null,"Q83","RY2","BRIDGEWATER COMMUNITY HEALTHCARE NHS FOUNDATION TRUST","RY2XXX","Non-hospital site - RY2XXX",null,null,null,null,null,null,"RXPXXX","Warwick Hospital - RJC02"]
[null,null,null,null,null,null,null,null,null,null,null,null,null,null,null,null,null,null,null,null,"Q83","RW3","CENTRAL MANCHESTER UNIVERSITY HOSPITALS NHS FOUNDATION TRUST","RW3XXX","Non-hospital site - RW3XXX",null,null,null,null,null,null,"RXQ02","Watford General Hospital - RWG02"]
[null,null,null,null,null,null,null,null,null,null,null,null,null,null,null,null,null,null,null,null,"Q83","RW3","CENTRAL MANCHESTER UNIVERSITY HOSPITALS NHS FOUNDATION TRUST","RW3SM","St Mary's Hospital - RW3SM",null,null,null,null,null,null,"RXQ50","West Cumberland Hospital - RNLBX"]
[null,null,null,null,null,null,null,null,null,null,null,null,null,null,null,null,null,null,null,null,"Q83","RW6","PENNINE ACUTE HOSPITALS NHS TRUST","RW6XXX","Non-hospital site - RW6XXX",null,null,null,null,null,null,"RXR20","West Middlesex University Hospital - RQM91"]
[null,null,null,null,null,null,null,null,null,null,null,null,null,null,null,null,null,null,null,null,"Q83","RW6","PENNINE ACUTE HOSPITALS NHS TRUST","RW602","North Manchester General Hospital - RW602",null,null,null,null,null,null,"RXWAS","West Suffolk Hospital - RGR50"]
[null,null,null,null,null,null,null,null,null,null,null,null,null,null,null,null,null,null,null,null,"Q83","RW6","PENNINE ACUTE HOSPITALS NHS TRUST","RW603","Royal Oldham Hospital - RW603",null,null,null,null,null,null,"RXWAT","Weston General Hospital - RA301"]
[null,null,null,null,null,null,null,null,null,null,null,null,null,null,null,null,null,null,null,null,"Q83","RWJ","STOCKPORT NHS FOUNDATION TRUST","RWJXXX","Non-hospital site - RWJXXX",null,null,null,null,null,null,"RXWMB","Wexham Park Hospital - RDU50"]
[null,null,null,null,null,null,null,null,null,null,null,null,null,null,null,null,null,null,null,null,"Q83","RWJ","STOCKPORT NHS FOUNDATION TRUST","RWJ09","Stepping Hill Hospital - RWJ09",null,null,null,null,null,null,"RXWMJ","Whipps Cross University Hospital - R1HKH"]
[null,null,null,null,null,null,null,null,null,null,null,null,null,null,null,null,null,null,null,null,"Q83","RMP","TAMESIDE AND GLOSSOP INTEGRATED CARE NHS FOUNDATION TRUST","RMP01","Tameside General Hospital - RMP01",null,null,null,null,null,null,"RXWML","Whiston Hospital - RBN01"]
[null,null,null,null,null,null,null,null,null,null,null,null,null,null,null,null,null,null,null,null,"Q83","RM2","UNIVERSITY HOSPITAL OF SOUTH MANCHESTER NHS FOUNDATION TRUST","RM202","Wythenshawe Hospital - RM202",null,null,null,null,null,null,"RXWXXX","William Harvey Hospital (Ashford) - RVV01"]
[null,null,null,null,null,null,null,null,null,null,null,null,null,null,null,null,null,null,null,null,"Q83","RRF","WRIGHTINGTON, WIGAN AND LEIGH NHS FOUNDATION TRUST","RRF02","Royal Albert Edward Infirmary - RRF02",null,null,null,null,null,null,"RY28P","Worcestershire Royal Hospital - RWP50"]
[null,null,null,null,null,null,null,null,null,null,null,null,null,null,null,null,null,null,null,null,"Q84","RXL","BLACKPOOL TEACHING HOSPITALS NHS FOUNDATION TRUST","RXL01","Blackpool Victoria Hospital - RXL01",null,null,null,null,null,null,"RY2XXX","Worthing Hospital - RYR18"]
[null,null,null,null,null,null,null,null,null,null,null,null,null,null,null,null,null,null,null,null,"Q84","RXL","BLACKPOOL TEACHING HOSPITALS NHS FOUNDATION TRUST","RXLXXX","Non-hospital site - RXLXXX",null,null,null,null,null,null,"RYJ01","Wycombe Hospital - RXQ50"]
[null,null,null,null,null,null,null,null,null,null,null,null,null,null,null,null,null,null,null,null,"Q84","RXR","EAST LANCASHIRE HOSPITALS NHS TRUST","RXR20","Royal Blackburn Hospital - RXR20",null,null,null,null,null,null,"RYJ04","Wythenshawe Hospital - RM202"]
[null,null,null,null,null,null,null,null,null,null,null,null,null,null,null,null,null,null,null,null,"Q84","RXN","LANCASHIRE TEACHING HOSPITALS NHS FOUNDATION TRUST","RXN01","Chorley and South Ribble Hospital - RXN01",null,null,null,null,null,null,"RYR16","Yeovil District Hospital - RA430"]
[null,null,null,null,null,null,null,null,null,null,null,null,null,null,null,null,null,null,null,null,"Q84","RXN","LANCASHIRE TEACHING HOSPITALS NHS FOUNDATION TRUST","RXN02","Royal Preston Hospital - RXN02",null,null,null,null,null,null,"RYR18","York Hospital - RCB55"]

{"sheet":"BSQ3","index":15,"n_rows":193,"n_cols":33,"rows_kept":193,"cut":false,"hidden":true,"merged":[]}
[null,"Sort","Region (Geo)","Region (Geo)","Trusts","Trusts","Sites","Sites",null,"Sort ranges:","Sort range…","Sort range…","Sort range…","Reference Region List:","Code…","Name…","Linked Region List:","Code…","Name…","Reference Lists:","Code…","Code…","Name…","Code…","Name…","Trusts Linked Lists:","Code…","Name…","Site Linked Lists:","Code…","Name…","Code…","Name…"]
["Region (Geo)",1,1,1,"-","-","-","-",null,null,"Region (Geo) Code","Region (Geo) Code","Region (Geo) Code",null,"Q72","NHS England Yorkshire & Humber",null,"Q70","NHS England Central Midlands",null,"Q70","RBD","DORSET COUNTY HOSPITAL NHS FOUNDATION TRUST","RBD01","Dorset County Hospital - RBD01",null,"R1F","AIREDALE NHS FOUNDATION TRUST",null,"R1F","AIREDALE NHS FOUNDATION TRUST","R1F01","Airedale General Hospital - RCF22"]
["Trusts",1,1,1,1,1,"-","-",null,null,"Region (Geography)","Trust Code","Trust Code",null,"Q74","NHS England Cumbria & North East",null,"Q71","NHS England Cheshire & Merseyside",null,"Q70","RN5","HAMPSHIRE HOSPITALS NHS FOUNDATION TRUST","RN542","Andover War Memorial Hospital - RN542",null,"R1H","ASHFORD AND ST PETER'S HOSPITALS NHS FOUNDATION TRUST",null,"R1H","ASHFORD AND ST PETER'S HOSPITALS NHS FOUNDATION TRUST","R1H12","Alnwick Infirmary - RTFDJ"]
["Sites",1,1,1,1,1,1,1,null,null,"Total Responses","Trust Name","Trust Name",null,"Q75","NHS England Cheshire & Merseyside",null,"Q72","NHS England Cumbria & North East",null,"Q70","RN5","HAMPSHIRE HOSPITALS NHS FOUNDATION TRUST","RN506","Basingstoke and North Hampshire Hospital - RN506",null,"R1K","BARKING, HAVERING AND REDBRIDGE UNIVERSITY HOSPITALS NHS TRUST",null,"R1K","BARKING, HAVERING AND REDBRIDGE UNIVERSITY HOSPITALS NHS TRUST","R1HKH","Andover War Memorial Hospital - RN542"]
[null,null,null,null,null,null,null,null,null,null,"Percentage Recommended","Total Responses","Site Code",null,"Q83","NHS England Greater Manchester",null,"Q74","NHS England East",null,"Q70","RN5","HAMPSHIRE HOSPITALS NHS FOUNDATION TRUST","RN541","Royal Hampshire County Hospital - RN541",null,"RA2","BARNSLEY HOSPITAL NHS FOUNDATION TRUST",null,"RA2","BARNSLEY HOSPITAL NHS FOUNDATION TRUST","R1HNH","Arrowe Park Hospital - RBL14"]
[null,null,null,null,null,null,null,null,null,null,"Percentage Not  Recommended","Percentage Recommended","Site Name",null,"Q84","NHS England Lancashire",null,"Q75","NHS England Greater Manchester",null,"Q70","R1F","ISLE OF WIGHT NHS TRUST","R1F01","St Mary's Hospital - R1F01",null,"RA3","BARTS HEALTH NHS TRUST",null,"RA3","BARTS HEALTH NHS TRUST","R1K04","Barnet Hospital - RAL26"]
[null,null,null,null,null,null,null,null,null,null,"Extremely Likely","Percentage Not  Recommended","Total Responses",null,"Q76","NHS England North Midlands",null,"Q76","NHS England Lancashire",null,"Q70","RD3","POOLE HOSPITAL NHS FOUNDATION TRUST","RD304","Poole General Hospital NHS Trust HQ - RD304",null,"RA4","BASILDON AND THURROCK UNIVERSITY HOSPITALS NHS FOUNDATION TRUST",null,"RA4","BASILDON AND THURROCK UNIVERSITY HOSPITALS NHS FOUNDATION TRUST","RA201","Barnsley Hospital NHS Foundation Trust HQ - RFFAA"]
[null,null,null,null,null,null,null,null,null,null,"Likely","Extremely Likely","Percentage Recommended",null,"Q77","NHS England West Midlands",null,"Q77","NHS England London",null,"Q70","RHU","PORTSMOUTH HOSPITALS NHS TRUST","RHU10","Gosport War Memorial Hospital - RHU10",null,"RA7","BEDFORD HOSPITAL NHS TRUST",null,"RA7","BEDFORD HOSPITAL NHS TRUST","RA301","Basildon University Hospital - RDDH0"]
[null,null,null,null,null,null,null,null,null,null,"Neither","Likely","Percentage Not  Recommended",null,"Q78","NHS England Central Midlands",null,"Q78","NHS England North Midlands",null,"Q70","RHU","PORTSMOUTH HOSPITALS NHS TRUST","RHU04","Petersfield Community Hospital - RHU04",null,"RA9","BIRMINGHAM WOMEN'S AND CHILDREN'S NHS FOUNDATION TRUST",null,"RA9","BIRMINGHAM WOMEN'S AND CHILDREN'S NHS FOUNDATION TRUST","RA430","Basingstoke and North Hampshire Hospital - RN506"]
[null,null,null,null,null,null,null,null,null,null,"Unlikely","Neither","Extremely Likely",null,"Q79","NHS England East",null,"Q79","NHS England South Central",null,"Q70","RHU","PORTSMOUTH HOSPITALS NHS TRUST","RHU03","Queen Alexandra Hospital - RHU03",null,"RAE","BLACKPOOL TEACHING HOSPITALS NHS FOUNDATION TRUST",null,"RAE","BLACKPOOL TEACHING HOSPITALS NHS FOUNDATION TRUST","RA707","Bassetlaw Hospital - RP5BA"]
[null,null,null,null,null,null,null,null,null,null,"Extremely Unlikely","Unlikely","Likely",null,"Q80","NHS England South West",null,"Q80","NHS England South East",null,"Q70","RHU","PORTSMOUTH HOSPITALS NHS TRUST","RHU02","St Mary's Hospital - RHU02",null,"RAJ","BOLTON NHS FOUNDATION TRUST",null,"RAJ","BOLTON NHS FOUNDATION TRUST","RA901","Bedford Hospital South Wing - RC110"]
[null,null,null,null,null,null,null,null,null,null,"Don't Know","Extremely Unlikely","Neither",null,"Q81","NHS England South East",null,"Q81","NHS England South West",null,"Q70","RDZ","THE ROYAL BOURNEMOUTH AND CHRISTCHURCH HOSPITALS NHS FOUNDATION TRUST","RDZ20","Royal Bournemouth General Hospital - RDZ20",null,"RAL","BRADFORD TEACHING HOSPITALS NHS FOUNDATION TRUST",null,"RAL","BRADFORD TEACHING HOSPITALS NHS FOUNDATION TRUST","RAE01","Berwick Infirmary - RTFDH"]
[null,null,null,null,null,null,null,null,null,null,null,"Don't Know","Unlikely",null,"Q82","NHS England South Central",null,"Q82","NHS England Wessex",null,"Q70","RHM","UNIVERSITY HOSPITAL SOUTHAMPTON NHS FOUNDATION TRUST","RHM12","Princess Anne Hospital - RHM12",null,"RAP","BRIDGEWATER COMMUNITY HEALTHCARE NHS FOUNDATION TRUST",null,"RAP","BRIDGEWATER COMMUNITY HEALTHCARE NHS FOUNDATION TRUST","RAJ01","Birmingham Women's Hospital - RQ370"]
[null,null,null,null,null,null,null,null,null,null,null,"SMS/Text / Smartphone App","Extremely Unlikely",null,"Q70","NHS England Wessex",null,"Q83","NHS England West Midlands",null,"Q71","RF4","BARKING, HAVERING AND REDBRIDGE UNIVERSITY HOSPITALS NHS TRUST","RF4QH","Queen's Hospital - RF4QH",null,"RAS","BRIGHTON AND SUSSEX UNIVERSITY HOSPITALS NHS TRUST",null,"RAS","BRIGHTON AND SUSSEX UNIVERSITY HOSPITALS NHS TRUST","RAL01","Blackpool Victoria Hospital - RXL01"]
[null,null,null,null,null,null,null,null,null,null,null,"Electronic tablet/kiosk at point of discharge","Don't Know",null,"Q71","NHS England London",null,"Q84","NHS England Yorkshire & Humber",null,"Q71","R1H","BARTS HEALTH NHS TRUST","R1HNH","Newham General Hospital - R1HNH",null,"RAX","BUCKINGHAMSHIRE HEALTHCARE NHS TRUST",null,"RAX","BUCKINGHAMSHIRE HEALTHCARE NHS TRUST","RAL26","Bradford Royal Infirmary - RAE01"]
[null,null,null,null,null,null,null,null,null,null,null,"Paper / postcard at point of discharge",null,null,null,null,null,null,null,null,"Q71","R1H","BARTS HEALTH NHS TRUST","R1H12","The Royal London Hospital - R1H12",null,"RBA","BURTON HOSPITALS NHS FOUNDATION TRUST",null,"RBA","BURTON HOSPITALS NHS FOUNDATION TRUST","RAPNM","Bridgnorth Hospital (Maternity) - RXWMB"]
[null,null,null,null,null,null,null,null,null,null,null,"Paper survey, sent to the patients home",null,null,null,null,null,null,null,null,"Q71","R1H","BARTS HEALTH NHS TRUST","R1HKH","Whipps Cross University Hospital - R1HKH",null,"RBD","CALDERDALE AND HUDDERSFIELD NHS FOUNDATION TRUST",null,"RBD","CALDERDALE AND HUDDERSFIELD NHS FOUNDATION TRUST","RAS01","Bridgwater Hospital - RBAC3"]
[null,null,null,null,null,null,null,null,null,null,null,"Telephone survey once patient is home",null,null,null,null,null,null,null,null,"Q71","RQM","CHELSEA AND WESTMINSTER HOSPITAL NHS FOUNDATION TRUST","RQM01","Chelsea and Westminster Hospital - RQM01",null,"RBK","CAMBRIDGE UNIVERSITY HOSPITALS NHS FOUNDATION TRUST",null,"RBK","CAMBRIDGE UNIVERSITY HOSPITALS NHS FOUNDATION TRUST","RAX01","Broomfield Hospital - RQ8L0"]
[null,null,null,null,null,null,null,null,null,null,null,"Online survey once patient is home",null,null,null,null,null,null,null,null,"Q71","RQM","CHELSEA AND WESTMINSTER HOSPITAL NHS FOUNDATION TRUST","RQM91","West Middlesex University Hospital - RQM91",null,"RBL","CENTRAL MANCHESTER UNIVERSITY HOSPITALS NHS FOUNDATION TRUST",null,"RBL","CENTRAL MANCHESTER UNIVERSITY HOSPITALS NHS FOUNDATION TRUST","RBA11","Calderdale Royal Hospital - RWY02"]
[null,null,null,null,null,null,null,null,null,null,null,"Other",null,null,null,null,null,null,null,null,"Q71","RJ6","CROYDON HEALTH SERVICES NHS TRUST","RJ611","Croydon University Hospital - RJ611",null,"RBN","CHELSEA AND WESTMINSTER HOSPITAL NHS FOUNDATION TRUST",null,"RBN","CHELSEA AND WESTMINSTER HOSPITAL NHS FOUNDATION TRUST","RBAC3","Chelsea and Westminster Hospital - RQM01"]
[null,null,null,null,null,null,null,null,null,null,null,null,null,null,null,null,null,null,null,null,"Q71","RVR","EPSOM AND ST HELIER UNIVERSITY HOSPITALS NHS TRUST","RVR50","Epsom Hospital - RVR50",null,"RBT","CHESTERFIELD ROYAL HOSPITAL NHS FOUNDATION TRUST",null,"RBT","CHESTERFIELD ROYAL HOSPITAL NHS FOUNDATION TRUST","RBD01","Chesterfield Royal Hospital - RFSDA"]
[null,null,null,null,null,null,null,null,null,null,null,null,null,null,null,null,null,null,null,null,"Q71","RVR","EPSOM AND ST HELIER UNIVERSITY HOSPITALS NHS TRUST","RVR05","St Helier Hospital - RVR05",null,"RBZ","CITY HOSPITALS SUNDERLAND NHS FOUNDATION TRUST",null,"RBZ","CITY HOSPITALS SUNDERLAND NHS FOUNDATION TRUST","RBK02","Chippenham Community Hospital -RD102"]
[null,null,null,null,null,null,null,null,null,null,null,null,null,null,null,null,null,null,null,null,"Q71","RJ1","GUY'S AND ST THOMAS' NHS FOUNDATION TRUST","RJ122","St Thomas' Hospital - RJ122",null,"RC1","COLCHESTER HOSPITAL UNIVERSITY NHS FOUNDATION TRUST",null,"RC1","COLCHESTER HOSPITAL UNIVERSITY NHS FOUNDATION TRUST","RBL14","Chipping Norton Community Hospital - RTH19"]
[null,null,null,null,null,null,null,null,null,null,null,null,null,null,null,null,null,null,null,null,"Q71","RQX","HOMERTON UNIVERSITY HOSPITAL NHS FOUNDATION TRUST","RQXM1","Homerton University Hospital - RQXM1",null,"RC9","COUNTESS OF CHESTER HOSPITAL NHS FOUNDATION TRUST",null,"RC9","COUNTESS OF CHESTER HOSPITAL NHS FOUNDATION TRUST","RBN01","Chorley and South Ribble Hospital - RXN01"]
[null,null,null,null,null,null,null,null,null,null,null,null,null,null,null,null,null,null,null,null,"Q71","RYJ","IMPERIAL COLLEGE HEALTHCARE NHS TRUST","RYJ04","Queen Charlotte's Hospital - RYJ04",null,"RCB","COUNTY DURHAM AND DARLINGTON NHS FOUNDATION TRUST",null,"RCB","COUNTY DURHAM AND DARLINGTON NHS FOUNDATION TRUST","RBT20","City Hospital - RXK02"]
[null,null,null,null,null,null,null,null,null,null,null,null,null,null,null,null,null,null,null,null,"Q71","RYJ","IMPERIAL COLLEGE HEALTHCARE NHS TRUST","RYJ01","St Mary's Hospital (HQ) - RYJ01",null,"RCD","CROYDON HEALTH SERVICES NHS TRUST",null,"RCD","CROYDON HEALTH SERVICES NHS TRUST","RBZ12","Colchester General Hospital - RDEE4"]
[null,null,null,null,null,null,null,null,null,null,null,null,null,null,null,null,null,null,null,null,"Q71","RJZ","KING'S COLLEGE HOSPITAL NHS FOUNDATION TRUST","RJZ01","King's College Hospital (Denmark Hill) - RJZ01",null,"RCF","DARTFORD AND GRAVESHAM NHS TRUST",null,"RCF","DARTFORD AND GRAVESHAM NHS TRUST","RC110","Conquest Hospital - RXC01"]
[null,null,null,null,null,null,null,null,null,null,null,null,null,null,null,null,null,null,null,null,"Q71","RJZ","KING'S COLLEGE HOSPITAL NHS FOUNDATION TRUST","RJZ30","Princess Royal University Hospital - RJZ30",null,"RCX","DERBY TEACHING HOSPITALS NHS FOUNDATION TRUST",null,"RCX","DERBY TEACHING HOSPITALS NHS FOUNDATION TRUST","RC971","Cossham Hospital - RVJ21"]
[null,null,null,null,null,null,null,null,null,null,null,null,null,null,null,null,null,null,null,null,"Q71","RAX","KINGSTON HOSPITAL NHS FOUNDATION TRUST","RAX01","Kingston Hospital - RAX01",null,"RD1","DONCASTER AND BASSETLAW TEACHING HOSPITALS NHS FOUNDATION TRUST",null,"RD1","DONCASTER AND BASSETLAW TEACHING HOSPITALS NHS FOUNDATION TRUST","RCB55","Countess Of Chester Hospital - RJR05"]
[null,null,null,null,null,null,null,null,null,null,null,null,null,null,null,null,null,null,null,null,"Q71","RJ2","LEWISHAM AND GREENWICH NHS TRUST","RJ231","Queen Elizabeth Hospital - RJ231",null,"RD3","DORSET COUNTY HOSPITAL NHS FOUNDATION TRUST",null,"RD3","DORSET COUNTY HOSPITAL NHS FOUNDATION TRUST","RCBCA","Croydon University Hospital - RJ611"]
[null,null,null,null,null,null,null,null,null,null,null,null,null,null,null,null,null,null,null,null,"Q71","RJ2","LEWISHAM AND GREENWICH NHS TRUST","RJ224","University Hospital Lewisham - RJ224",null,"RD8","EAST AND NORTH HERTFORDSHIRE NHS TRUST",null,"RD8","EAST AND NORTH HERTFORDSHIRE NHS TRUST","RCD01","Cumberland Infirmary - RNLAY"]
[null,null,null,null,null,null,null,null,null,null,null,null,null,null,null,null,null,null,null,null,"Q71","R1K","LONDON NORTH WEST HEALTHCARE NHS TRUST","R1K04","Ealing Hospital - R1K04",null,"RDD","EAST CHESHIRE NHS TRUST",null,"RDD","EAST CHESHIRE NHS TRUST","RCF22","Darent Valley Hospital - RN707"]
[null,null,null,null,null,null,null,null,null,null,null,null,null,null,null,null,null,null,null,null,"Q71","RAP","NORTH MIDDLESEX UNIVERSITY HOSPITAL NHS TRUST","RAPNM","North Middlesex Hospital - RAPNM",null,"RDE","EAST KENT HOSPITALS UNIVERSITY NHS FOUNDATION TRUST",null,"RDE","EAST KENT HOSPITALS UNIVERSITY NHS FOUNDATION TRUST","RCX70","Darlington Memorial Hospital - RXPDA"]
[null,null,null,null,null,null,null,null,null,null,null,null,null,null,null,null,null,null,null,null,"Q71","RAL","ROYAL FREE LONDON NHS FOUNDATION TRUST","RAL26","Barnet Hospital - RAL26",null,"RDU","EAST LANCASHIRE HOSPITALS NHS TRUST",null,"RDU","EAST LANCASHIRE HOSPITALS NHS TRUST","RD102","Derriford Hospital - RK950"]
[null,null,null,null,null,null,null,null,null,null,null,null,null,null,null,null,null,null,null,null,"Q71","RAL","ROYAL FREE LONDON NHS FOUNDATION TRUST","RAL01","Royal Free Hospital - RAL01",null,"RDZ","EAST SUSSEX HEALTHCARE NHS TRUST",null,"RDZ","EAST SUSSEX HEALTHCARE NHS TRUST","RD108","Diana, Princess Of Wales Hospital - RJL30"]
[null,null,null,null,null,null,null,null,null,null,null,null,null,null,null,null,null,null,null,null,"Q71","RJ7","ST GEORGE'S UNIVERSITY HOSPITALS NHS FOUNDATION TRUST","RJ701","St George's Hospital (Tooting) - RJ701",null,"RE9","EPSOM AND ST HELIER UNIVERSITY HOSPITALS NHS TRUST",null,"RE9","EPSOM AND ST HELIER UNIVERSITY HOSPITALS NHS TRUST","RD121","Doncaster Royal Infirmary - RP5DR"]
[null,null,null,null,null,null,null,null,null,null,null,null,null,null,null,null,null,null,null,null,"Q71","RAS","THE HILLINGDON HOSPITALS NHS FOUNDATION TRUST","RAS01","Hillingdon Hospital - RAS01",null,"REF","FRIMLEY HEALTH NHS FOUNDATION TRUST",null,"REF","FRIMLEY HEALTH NHS FOUNDATION TRUST","RD129","Dorset County Hospital - RBD01"]
[null,null,null,null,null,null,null,null,null,null,null,null,null,null,null,null,null,null,null,null,"Q71","RKE","THE WHITTINGTON HOSPITAL NHS TRUST","RKEQ4","The Whittington Hospital - RKEQ4",null,"REP","GATESHEAD HEALTH NHS FOUNDATION TRUST",null,"REP","GATESHEAD HEALTH NHS FOUNDATION TRUST","RD130","Ealing Hospital - R1K04"]
[null,null,null,null,null,null,null,null,null,null,null,null,null,null,null,null,null,null,null,null,"Q71","RRV","UNIVERSITY COLLEGE LONDON HOSPITALS NHS FOUNDATION TRUST","RRV03","University College Hospital - RRV03",null,"RF4","GEORGE ELIOT HOSPITAL NHS TRUST",null,"RF4","GEORGE ELIOT HOSPITAL NHS TRUST","RD304","East Surrey Hospital - RTP04"]
[null,null,null,null,null,null,null,null,null,null,null,null,null,null,null,null,null,null,null,null,"Q72","RCF","AIREDALE NHS FOUNDATION TRUST","RCF22","Airedale General Hospital - RCF22",null,"RFF","GLOUCESTERSHIRE HOSPITALS NHS FOUNDATION TRUST",null,"RFF","GLOUCESTERSHIRE HOSPITALS NHS FOUNDATION TRUST","RD816","Eastbourne District General Hospital - RXC02"]
[null,null,null,null,null,null,null,null,null,null,null,null,null,null,null,null,null,null,null,null,"Q72","RFF","BARNSLEY HOSPITAL NHS FOUNDATION TRUST","RFFAA","Barnsley Hospital NHS Foundation Trust HQ - RFFAA",null,"RFR","GREAT WESTERN HOSPITALS NHS FOUNDATION TRUST",null,"RFR","GREAT WESTERN HOSPITALS NHS FOUNDATION TRUST","RDDH0","Epsom Hospital - RVR50"]
[null,null,null,null,null,null,null,null,null,null,null,null,null,null,null,null,null,null,null,null,"Q72","RAE","BRADFORD TEACHING HOSPITALS NHS FOUNDATION TRUST","RAE01","Bradford Royal Infirmary - RAE01",null,"RFS","GUY'S AND ST THOMAS' NHS FOUNDATION TRUST",null,"RFS","GUY'S AND ST THOMAS' NHS FOUNDATION TRUST","RDEE4","Friarage Hospital Site - RTR45"]
[null,null,null,null,null,null,null,null,null,null,null,null,null,null,null,null,null,null,null,null,"Q72","RWY","CALDERDALE AND HUDDERSFIELD NHS FOUNDATION TRUST","RWY02","Calderdale Royal Hospital - RWY02",null,"RGN","HAMPSHIRE HOSPITALS NHS FOUNDATION TRUST",null,"RGN","HAMPSHIRE HOSPITALS NHS FOUNDATION TRUST","RDU01","Frimley Park Hospital - RDU01"]
[null,null,null,null,null,null,null,null,null,null,null,null,null,null,null,null,null,null,null,null,"Q72","RWY","CALDERDALE AND HUDDERSFIELD NHS FOUNDATION TRUST","RWY01","Huddersfield Royal Infirmary - RWY01",null,"RGP","HARROGATE AND DISTRICT NHS FOUNDATION TRUST",null,"RGP","HARROGATE AND DISTRICT NHS FOUNDATION TRUST","RDU50","Frome Community Hospital  - RD121"]
[null,null,null,null,null,null,null,null,null,null,null,null,null,null,null,null,null,null,null,null,"Q72","RP5","DONCASTER AND BASSETLAW TEACHING HOSPITALS NHS FOUNDATION TRUST","RP5BA","Bassetlaw Hospital - RP5BA",null,"RGQ","HEART OF ENGLAND NHS FOUNDATION TRUST",null,"RGQ","HEART OF ENGLAND NHS FOUNDATION TRUST","RDZ20","Furness General Hospital - RTXBU"]
[null,null,null,null,null,null,null,null,null,null,null,null,null,null,null,null,null,null,null,null,"Q72","RP5","DONCASTER AND BASSETLAW TEACHING HOSPITALS NHS FOUNDATION TRUST","RP5DR","Doncaster Royal Infirmary - RP5DR",null,"RGR","HOMERTON UNIVERSITY HOSPITAL NHS FOUNDATION TRUST",null,"RGR","HOMERTON UNIVERSITY HOSPITAL NHS FOUNDATION TRUST","RE9GA","George Eliot Hospital - Acute Services - RLT01"]
[null,null,null,null,null,null,null,null,null,null,null,null,null,null,null,null,null,null,null,null,"Q72","RCD","HARROGATE AND DISTRICT NHS FOUNDATION TRUST","RCD01","Harrogate District Hospital - RCD01",null,"RGT","HULL AND EAST YORKSHIRE HOSPITALS NHS TRUST",null,"RGT","HULL AND EAST YORKSHIRE HOSPITALS NHS TRUST","REF12","Gloucestershire Royal Hospital - RTE03"]
[null,null,null,null,null,null,null,null,null,null,null,null,null,null,null,null,null,null,null,null,"Q72","RWA","HULL AND EAST YORKSHIRE HOSPITALS NHS TRUST","RWA01","Hull Royal Infirmary - RWA01",null,"RH8","IMPERIAL COLLEGE HEALTHCARE NHS TRUST",null,"RH8","IMPERIAL COLLEGE HEALTHCARE NHS TRUST","REP01","Good Hope Hospital - RR105"]
[null,null,null,null,null,null,null,null,null,null,null,null,null,null,null,null,null,null,null,null,"Q72","RR8","LEEDS TEACHING HOSPITALS NHS TRUST","RR801","Leeds General Infirmary - RR801",null,"RHM","IPSWICH HOSPITAL NHS TRUST",null,"RHM","IPSWICH HOSPITAL NHS TRUST","RF4QH","Gosport War Memorial Hospital - RHU10"]
[null,null,null,null,null,null,null,null,null,null,null,null,null,null,null,null,null,null,null,null,"Q72","RR8","LEEDS TEACHING HOSPITALS NHS TRUST","RR813","St James's University Hospital - RR813",null,"RHQ","ISLE OF WIGHT NHS TRUST",null,"RHQ","ISLE OF WIGHT NHS TRUST","RFFAA","Grantham and District Hospital - RWDLP"]
[null,null,null,null,null,null,null,null,null,null,null,null,null,null,null,null,null,null,null,null,"Q72","RXF","MID YORKSHIRE HOSPITALS NHS TRUST","RXF05","Pinderfields General Hospital - RXF05",null,"RHU","JAMES PAGET UNIVERSITY HOSPITALS NHS FOUNDATION TRUST",null,"RHU","JAMES PAGET UNIVERSITY HOSPITALS NHS FOUNDATION TRUST","RFRPA","Harrogate District Hospital - RCD01"]
[null,null,null,null,null,null,null,null,null,null,null,null,null,null,null,null,null,null,null,null,"Q72","RJL","NORTHERN LINCOLNSHIRE AND GOOLE NHS FOUNDATION TRUST","RJL30","Diana, Princess Of Wales Hospital - RJL30",null,"RHW","KETTERING GENERAL HOSPITAL NHS FOUNDATION TRUST",null,"RHW","KETTERING GENERAL HOSPITAL NHS FOUNDATION TRUST","RFSDA","Health Care Resource Centre - RY28P"]
[null,null,null,null,null,null,null,null,null,null,null,null,null,null,null,null,null,null,null,null,"Q72","RJL","NORTHERN LINCOLNSHIRE AND GOOLE NHS FOUNDATION TRUST","RJL32","Scunthorpe General Hospital - RJL32",null,"RJ1","KING'S COLLEGE HOSPITAL NHS FOUNDATION TRUST",null,"RJ1","KING'S COLLEGE HOSPITAL NHS FOUNDATION TRUST","RGN80","Heartlands Hospital - RR101"]
[null,null,null,null,null,null,null,null,null,null,null,null,null,null,null,null,null,null,null,null,"Q72","RHQ","SHEFFIELD TEACHING HOSPITALS NHS FOUNDATION TRUST","RHQHH","Royal Hallamshire Hospital - RHQHH",null,"RJ2","KINGSTON HOSPITAL NHS FOUNDATION TRUST",null,"RJ2","KINGSTON HOSPITAL NHS FOUNDATION TRUST","RGN90","Hereford County Hospital - RLQ01"]
[null,null,null,null,null,null,null,null,null,null,null,null,null,null,null,null,null,null,null,null,"Q72","RFR","THE ROTHERHAM NHS FOUNDATION TRUST","RFRPA","Rotherham District General Hospital - RFRPA",null,"RJ6","LANCASHIRE TEACHING HOSPITALS NHS FOUNDATION TRUST",null,"RJ6","LANCASHIRE TEACHING HOSPITALS NHS FOUNDATION TRUST","RGP75","Hexham General Hospital - RTFDR"]
[null,null,null,null,null,null,null,null,null,null,null,null,null,null,null,null,null,null,null,null,"Q72","RCB","YORK TEACHING HOSPITAL NHS FOUNDATION TRUST","RCBCA","Scarborough General Hospital - RCBCA",null,"RJ7","LEEDS TEACHING HOSPITALS NHS TRUST",null,"RJ7","LEEDS TEACHING HOSPITALS NHS TRUST","RGQ02","Hillingdon Hospital - RAS01"]
[null,null,null,null,null,null,null,null,null,null,null,null,null,null,null,null,null,null,null,null,"Q72","RCB","YORK TEACHING HOSPITAL NHS FOUNDATION TRUST","RCB55","York Hospital - RCB55",null,"RJC","LEWISHAM AND GREENWICH NHS TRUST",null,"RJC","LEWISHAM AND GREENWICH NHS TRUST","RGR50","Hinchingbrooke Hospital - RGN90"]
[null,null,null,null,null,null,null,null,null,null,null,null,null,null,null,null,null,null,null,null,"Q74","RLN","CITY HOSPITALS SUNDERLAND NHS FOUNDATION TRUST","RLNGL","Sunderland Royal Hospital - RLNGL",null,"RJE","LIVERPOOL WOMEN'S NHS FOUNDATION TRUST",null,"RJE","LIVERPOOL WOMEN'S NHS FOUNDATION TRUST","RGT32","Homerton University Hospital - RQXM1"]
[null,null,null,null,null,null,null,null,null,null,null,null,null,null,null,null,null,null,null,null,"Q74","RXP","COUNTY DURHAM AND DARLINGTON NHS FOUNDATION TRUST","RXPDA","Darlington Memorial Hospital - RXPDA",null,"RJF","LONDON NORTH WEST HEALTHCARE NHS TRUST",null,"RJF","LONDON NORTH WEST HEALTHCARE NHS TRUST","RH801","Honiton Hospital - RH 854"]
[null,null,null,null,null,null,null,null,null,null,null,null,null,null,null,null,null,null,null,null,"Q74","RXP","COUNTY DURHAM AND DARLINGTON NHS FOUNDATION TRUST","RXPCP","University Hospital Of North Durham - RXPCP",null,"RJL","LUTON AND DUNSTABLE UNIVERSITY HOSPITAL NHS FOUNDATION TRUST",null,"RJL","LUTON AND DUNSTABLE UNIVERSITY HOSPITAL NHS FOUNDATION TRUST","RH833","Horton General Hospital - RTH05"]
[null,null,null,null,null,null,null,null,null,null,null,null,null,null,null,null,null,null,null,null,"Q74","RR7","GATESHEAD HEALTH NHS FOUNDATION TRUST","RR7EN","Queen Elizabeth Hospital - RR7EN",null,"RJN","MAIDSTONE AND TUNBRIDGE WELLS NHS TRUST",null,"RJN","MAIDSTONE AND TUNBRIDGE WELLS NHS TRUST","RH853","Huddersfield Royal Infirmary - RWY01"]
[null,null,null,null,null,null,null,null,null,null,null,null,null,null,null,null,null,null,null,null,"Q74","RNL","NORTH CUMBRIA UNIVERSITY HOSPITALS NHS TRUST","RNLAY","Cumberland Infirmary - RNLAY",null,"RJR","MEDWAY NHS FOUNDATION TRUST",null,"RJR","MEDWAY NHS FOUNDATION TRUST","RH854","Hull Royal Infirmary - RWA01"]
[null,null,null,null,null,null,null,null,null,null,null,null,null,null,null,null,null,null,null,null,"Q74","RNL","NORTH CUMBRIA UNIVERSITY HOSPITALS NHS TRUST","RNLBX","West Cumberland Hospital - RNLBX",null,"RJZ","MID CHESHIRE HOSPITALS NHS FOUNDATION TRUST",null,"RJZ","MID CHESHIRE HOSPITALS NHS FOUNDATION TRUST","RHM12","James Paget University Hospital - RGP75"]
[null,null,null,null,null,null,null,null,null,null,null,null,null,null,null,null,null,null,null,null,"Q74","RVW","NORTH TEES AND HARTLEPOOL NHS FOUNDATION TRUST","RVWAE","University Hospital Of North Tees - RVWAE",null,"RK5","MID ESSEX HOSPITAL SERVICES NHS TRUST",null,"RK5","MID ESSEX HOSPITAL SERVICES NHS TRUST","RHQHH","John Radcliffe Hospital - RTH08"]
[null,null,null,null,null,null,null,null,null,null,null,null,null,null,null,null,null,null,null,null,"Q74","RTF","NORTHUMBRIA HEALTHCARE NHS FOUNDATION TRUST","RTFDJ","Alnwick Infirmary - RTFDJ",null,"RK9","MID YORKSHIRE HOSPITALS NHS TRUST",null,"RK9","MID YORKSHIRE HOSPITALS NHS TRUST","RHU02","Kettering General Hospital - RNQ51"]
[null,null,null,null,null,null,null,null,null,null,null,null,null,null,null,null,null,null,null,null,"Q74","RTF","NORTHUMBRIA HEALTHCARE NHS FOUNDATION TRUST","RTFDH","Berwick Infirmary - RTFDH",null,"RKB","MILTON KEYNES UNIVERSITY HOSPITAL NHS FOUNDATION TRUST",null,"RKB","MILTON KEYNES UNIVERSITY HOSPITAL NHS FOUNDATION TRUST","RHU03","King's College Hospital (Denmark Hill) - RJZ01"]
[null,null,null,null,null,null,null,null,null,null,null,null,null,null,null,null,null,null,null,null,"Q74","RTF","NORTHUMBRIA HEALTHCARE NHS FOUNDATION TRUST","RTFDR","Hexham General Hospital - RTFDR",null,"RKE","NORFOLK AND NORWICH UNIVERSITY HOSPITALS NHS FOUNDATION TRUST",null,"RKE","NORFOLK AND NORWICH UNIVERSITY HOSPITALS NHS FOUNDATION TRUST","RHU04","King's Mill Hospital - RK5BC"]
[null,null,null,null,null,null,null,null,null,null,null,null,null,null,null,null,null,null,null,null,"Q74","RTF","NORTHUMBRIA HEALTHCARE NHS FOUNDATION TRUST","RTF86","The Northumbria - RTF86",null,"RL4","NORTH BRISTOL NHS TRUST",null,"RL4","NORTH BRISTOL NHS TRUST","RHU10","Kingston Hospital - RAX01"]
[null,null,null,null,null,null,null,null,null,null,null,null,null,null,null,null,null,null,null,null,"Q74","RTR","SOUTH TEES HOSPITALS NHS FOUNDATION TRUST","RTR45","Friarage Hospital Site - RTR45",null,"RLN","NORTH CUMBRIA UNIVERSITY HOSPITALS NHS TRUST",null,"RLN","NORTH CUMBRIA UNIVERSITY HOSPITALS NHS TRUST","RHW01","Leeds General Infirmary - RR801"]
[null,null,null,null,null,null,null,null,null,null,null,null,null,null,null,null,null,null,null,null,"Q74","RTR","SOUTH TEES HOSPITALS NHS FOUNDATION TRUST","RTRAT","The James Cook University Hospital - RTRAT",null,"RLQ","NORTH MIDDLESEX UNIVERSITY HOSPITAL NHS TRUST",null,"RLQ","NORTH MIDDLESEX UNIVERSITY HOSPITAL NHS TRUST","RJ122","Leicester General Hospital - RWEAK"]
[null,null,null,null,null,null,null,null,null,null,null,null,null,null,null,null,null,null,null,null,"Q74","RE9","SOUTH TYNESIDE NHS FOUNDATION TRUST","RE9GA","South Tyneside District Hospital - RE9GA",null,"RLT","NORTH TEES AND HARTLEPOOL NHS FOUNDATION TRUST",null,"RLT","NORTH TEES AND HARTLEPOOL NHS FOUNDATION TRUST","RJ224","Leicester Royal Infirmary - RWEAA"]
[null,null,null,null,null,null,null,null,null,null,null,null,null,null,null,null,null,null,null,null,"Q74","RTD","THE NEWCASTLE UPON TYNE HOSPITALS NHS FOUNDATION TRUST","RTD02","The Royal Victoria Infirmary - RTD02",null,"RM1","NORTH WEST ANGLIA NHS FOUNDATION TRUST",null,"RM1","NORTH WEST ANGLIA NHS FOUNDATION TRUST","RJ231","Leighton Hospital - RBT20"]
[null,null,null,null,null,null,null,null,null,null,null,null,null,null,null,null,null,null,null,null,"Q74","RTX","UNIVERSITY HOSPITALS OF MORECAMBE BAY NHS FOUNDATION TRUST","RTXBU","Furness General Hospital - RTXBU",null,"RM2","NORTHAMPTON GENERAL HOSPITAL NHS TRUST",null,"RM2","NORTHAMPTON GENERAL HOSPITAL NHS TRUST","RJ611","Lincoln County Hospital - RWDDA"]
[null,null,null,null,null,null,null,null,null,null,null,null,null,null,null,null,null,null,null,null,"Q74","RTX","UNIVERSITY HOSPITALS OF MORECAMBE BAY NHS FOUNDATION TRUST","RTX02","Royal Lancaster Infirmary - RTX02",null,"RMC","NORTHERN DEVON HEALTHCARE NHS TRUST",null,"RMC","NORTHERN DEVON HEALTHCARE NHS TRUST","RJ701","Lister Hospital - RWH01"]
[null,null,null,null,null,null,null,null,null,null,null,null,null,null,null,null,null,null,null,null,"Q75","RJR","COUNTESS OF CHESTER HOSPITAL NHS FOUNDATION TRUST","RJR05","Countess Of Chester Hospital - RJR05",null,"RMP","NORTHERN LINCOLNSHIRE AND GOOLE NHS FOUNDATION TRUST",null,"RMP","NORTHERN LINCOLNSHIRE AND GOOLE NHS FOUNDATION TRUST","RJC02","Liverpool Womens Hospital - REP01"]
[null,null,null,null,null,null,null,null,null,null,null,null,null,null,null,null,null,null,null,null,"Q75","RJN","EAST CHESHIRE NHS TRUST","RJN71","Macclesfield District General Hospital - RJN71",null,"RN3","NORTHUMBRIA HEALTHCARE NHS FOUNDATION TRUST",null,"RN3","NORTHUMBRIA HEALTHCARE NHS FOUNDATION TRUST","RJE01","Ludlow Hospital (Maternity) - RXWML"]
[null,null,null,null,null,null,null,null,null,null,null,null,null,null,null,null,null,null,null,null,"Q75","REP","LIVERPOOL WOMEN'S NHS FOUNDATION TRUST","REP01","Liverpool Womens Hospital - REP01",null,"RN5","NOTTINGHAM UNIVERSITY HOSPITALS NHS TRUST",null,"RN5","NOTTINGHAM UNIVERSITY HOSPITALS NHS TRUST","RJF02","Luton and Dunstable Hospital - RC971"]
[null,null,null,null,null,null,null,null,null,null,null,null,null,null,null,null,null,null,null,null,"Q75","RBT","MID CHESHIRE HOSPITALS NHS FOUNDATION TRUST","RBT20","Leighton Hospital - RBT20",null,"RN7","OXFORD UNIVERSITY HOSPITALS NHS FOUNDATION TRUST",null,"RN7","OXFORD UNIVERSITY HOSPITALS NHS FOUNDATION TRUST","RJL30","Macclesfield District General Hospital - RJN71"]
[null,null,null,null,null,null,null,null,null,null,null,null,null,null,null,null,null,null,null,null,"Q75","RVY","SOUTHPORT AND ORMSKIRK HOSPITAL NHS TRUST","RVY02","Ormskirk and District General Hospital - RVY02",null,"RNA","PENNINE ACUTE HOSPITALS NHS TRUST",null,"RNA","PENNINE ACUTE HOSPITALS NHS TRUST","RJL32","Maidstone District General Hospital - RWF03"]
[null,null,null,null,null,null,null,null,null,null,null,null,null,null,null,null,null,null,null,null,"Q75","RBN","ST HELENS AND KNOWSLEY HOSPITAL SERVICES NHS TRUST","RBN01","Whiston Hospital - RBN01",null,"RNL","PLYMOUTH HOSPITALS NHS TRUST",null,"RNL","PLYMOUTH HOSPITALS NHS TRUST","RJN71","Manor Hospital - RBK02"]
[null,null,null,null,null,null,null,null,null,null,null,null,null,null,null,null,null,null,null,null,"Q75","RWW","WARRINGTON AND HALTON HOSPITALS NHS FOUNDATION TRUST","RWWWH","Warrington Hospital - RWWWH",null,"RNQ","POOLE HOSPITAL NHS FOUNDATION TRUST",null,"RNQ","POOLE HOSPITAL NHS FOUNDATION TRUST","RJR05","Medway Maritime Hospital - RPA02"]
[null,null,null,null,null,null,null,null,null,null,null,null,null,null,null,null,null,null,null,null,"Q75","RBL","WIRRAL UNIVERSITY TEACHING HOSPITAL NHS FOUNDATION TRUST","RBL14","Arrowe Park Hospital - RBL14",null,"RNS","PORTSMOUTH HOSPITALS NHS TRUST",null,"RNS","PORTSMOUTH HOSPITALS NHS TRUST","RJZ01","Milton Keynes Hospital - RD816"]
[null,null,null,null,null,null,null,null,null,null,null,null,null,null,null,null,null,null,null,null,"Q76","RJF","BURTON HOSPITALS NHS FOUNDATION TRUST","RJF02","Queen's Hospital, Burton Upon Trent - RJF02",null,"RNZ","ROYAL BERKSHIRE NHS FOUNDATION TRUST",null,"RNZ","ROYAL BERKSHIRE NHS FOUNDATION TRUST","RJZ30","Musgrove Park Hospital - RBA11"]
[null,null,null,null,null,null,null,null,null,null,null,null,null,null,null,null,null,null,null,null,"Q76","RFS","CHESTERFIELD ROYAL HOSPITAL NHS FOUNDATION TRUST","RFSDA","Chesterfield Royal Hospital - RFSDA",null,"RP5","ROYAL CORNWALL HOSPITALS NHS TRUST",null,"RP5","ROYAL CORNWALL HOSPITALS NHS TRUST","RK5BC","New Cross Hospital - RL403"]
[null,null,null,null,null,null,null,null,null,null,null,null,null,null,null,null,null,null,null,null,"Q76","RTG","DERBY TEACHING HOSPITALS NHS FOUNDATION TRUST","RTGFG","Royal Derby Hospital - RTGFG",null,"RPA","ROYAL DEVON AND EXETER NHS FOUNDATION TRUST",null,"RPA","ROYAL DEVON AND EXETER NHS FOUNDATION TRUST","RK950","Newham General Hospital - R1HNH"]
[null,null,null,null,null,null,null,null,null,null,null,null,null,null,null,null,null,null,null,null,"Q76","RX1","NOTTINGHAM UNIVERSITY HOSPITALS NHS TRUST","RX1CC","Nottingham University Hospitals NHS Trust - City Campus - RX1CC",null,"RQ3","ROYAL FREE LONDON NHS FOUNDATION TRUST",null,"RQ3","ROYAL FREE LONDON NHS FOUNDATION TRUST","RKB01","Norfolk and Norwich University Hospital - RM102"]
[null,null,null,null,null,null,null,null,null,null,null,null,null,null,null,null,null,null,null,null,"Q76","RX1","NOTTINGHAM UNIVERSITY HOSPITALS NHS TRUST","RX1RA","Nottingham University Hospitals NHS Trust - Queen's Medical Centre Campus - RX1RA",null,"RQ8","ROYAL SURREY COUNTY HOSPITAL NHS FOUNDATION TRUST",null,"RQ8","ROYAL SURREY COUNTY HOSPITAL NHS FOUNDATION TRUST","RKEQ4","North Devon District Hospital - RBZ12"]
[null,null,null,null,null,null,null,null,null,null,null,null,null,null,null,null,null,null,null,null,"Q76","RK5","SHERWOOD FOREST HOSPITALS NHS FOUNDATION TRUST","RK5BC","King's Mill Hospital - RK5BC",null,"RQM","ROYAL UNITED HOSPITALS BATH NHS FOUNDATION TRUST",null,"RQM","ROYAL UNITED HOSPITALS BATH NHS FOUNDATION TRUST","RL403","North Manchester General Hospital - RW602"]
[null,null,null,null,null,null,null,null,null,null,null,null,null,null,null,null,null,null,null,null,"Q76","RXW","SHREWSBURY AND TELFORD HOSPITAL NHS TRUST","RXWMB","Bridgnorth Hospital (Maternity) - RXWMB",null,"RQW","SALISBURY NHS FOUNDATION TRUST",null,"RQW","SALISBURY NHS FOUNDATION TRUST","RLNGL","North Middlesex Hospital - RAPNM"]
[null,null,null,null,null,null,null,null,null,null,null,null,null,null,null,null,null,null,null,null,"Q76","RXW","SHREWSBURY AND TELFORD HOSPITAL NHS TRUST","RXWML","Ludlow Hospital (Maternity) - RXWML",null,"RQX","SANDWELL AND WEST BIRMINGHAM HOSPITALS NHS TRUST",null,"RQX","SANDWELL AND WEST BIRMINGHAM HOSPITALS NHS TRUST","RLQ01","Northampton General Hospital (Acute) - RNS01"]
[null,null,null,null,null,null,null,null,null,null,null,null,null,null,null,null,null,null,null,null,"Q76","RXW","SHREWSBURY AND TELFORD HOSPITAL NHS TRUST","RXWMJ","Robert Jones & Agnes Hunt Orthopaedic & District Hospital - RXWMJ",null,"RR1","SHEFFIELD TEACHING HOSPITALS NHS FOUNDATION TRUST",null,"RR1","SHEFFIELD TEACHING HOSPITALS NHS FOUNDATION TRUST","RLT01","Nottingham University Hospitals NHS Trust - City Campus - RX1CC"]
[null,null,null,null,null,null,null,null,null,null,null,null,null,null,null,null,null,null,null,null,"Q76","RXW","SHREWSBURY AND TELFORD HOSPITAL NHS TRUST","RXWAS","Royal Shrewsbury Hospital - RXWAS",null,"RR7","SHERWOOD FOREST HOSPITALS NHS FOUNDATION TRUST",null,"RR7","SHERWOOD FOREST HOSPITALS NHS FOUNDATION TRUST","RM102","Nottingham University Hospitals NHS Trust - Queen's Medical Centre Campus - RX1RA"]
[null,null,null,null,null,null,null,null,null,null,null,null,null,null,null,null,null,null,null,null,"Q76","RXW","SHREWSBURY AND TELFORD HOSPITAL NHS TRUST","RXWAT","The Princess Royal Hospital - RXWAT",null,"RR8","SHREWSBURY AND TELFORD HOSPITAL NHS TRUST",null,"RR8","SHREWSBURY AND TELFORD HOSPITAL NHS TRUST","RM202","Okehampton Community Hospital - RH833"]
[null,null,null,null,null,null,null,null,null,null,null,null,null,null,null,null,null,null,null,null,"Q76","RJE","UNIVERSITY HOSPITALS OF NORTH MIDLANDS NHS TRUST","RJE01","Royal Stoke University Hospital - RJE01",null,"RRF","SOUTH TEES HOSPITALS NHS FOUNDATION TRUST",null,"RRF","SOUTH TEES HOSPITALS NHS FOUNDATION TRUST","RMC01","Ormskirk and District General Hospital - RVY02"]
[null,null,null,null,null,null,null,null,null,null,null,null,null,null,null,null,null,null,null,null,"Q77","RQ3","BIRMINGHAM WOMEN'S AND CHILDREN'S NHS FOUNDATION TRUST","RQ370","Birmingham Women's Hospital - RQ370",null,"RRV","SOUTH TYNESIDE NHS FOUNDATION TRUST",null,"RRV","SOUTH TYNESIDE NHS FOUNDATION TRUST","RMP01","Paulton Memorial Hospital  - RD129"]
[null,null,null,null,null,null,null,null,null,null,null,null,null,null,null,null,null,null,null,null,"Q77","RLT","GEORGE ELIOT HOSPITAL NHS TRUST","RLT01","George Eliot Hospital - Acute Services - RLT01",null,"RTD","SOUTH WARWICKSHIRE NHS FOUNDATION TRUST",null,"RTD","SOUTH WARWICKSHIRE NHS FOUNDATION TRUST","RN325","Peterborough City Hospital - RGN80"]
[null,null,null,null,null,null,null,null,null,null,null,null,null,null,null,null,null,null,null,null,"Q77","RR1","HEART OF ENGLAND NHS FOUNDATION TRUST","RR105","Good Hope Hospital - RR105",null,"RTE","SOUTHEND UNIVERSITY HOSPITAL NHS FOUNDATION TRUST",null,"RTE","SOUTHEND UNIVERSITY HOSPITAL NHS FOUNDATION TRUST","RN506","Petersfield Community Hospital - RHU04"]
[null,null,null,null,null,null,null,null,null,null,null,null,null,null,null,null,null,null,null,null,"Q77","RR1","HEART OF ENGLAND NHS FOUNDATION TRUST","RR101","Heartlands Hospital - RR101",null,"RTF","SOUTHPORT AND ORMSKIRK HOSPITAL NHS TRUST",null,"RTF","SOUTHPORT AND ORMSKIRK HOSPITAL NHS TRUST","RN541","Pilgrim Hospital - RWDLA"]
[null,null,null,null,null,null,null,null,null,null,null,null,null,null,null,null,null,null,null,null,"Q77","RR1","HEART OF ENGLAND NHS FOUNDATION TRUST","RR109","Solihull Hospital - RR109",null,"RTG","ST GEORGE'S UNIVERSITY HOSPITALS NHS FOUNDATION TRUST",null,"RTG","ST GEORGE'S UNIVERSITY HOSPITALS NHS FOUNDATION TRUST","RN542","Pinderfields General Hospital - RXF05"]
[null,null,null,null,null,null,null,null,null,null,null,null,null,null,null,null,null,null,null,null,"Q77","RXK","SANDWELL AND WEST BIRMINGHAM HOSPITALS NHS TRUST","RXK02","City Hospital - RXK02",null,"RTH","ST HELENS AND KNOWSLEY HOSPITAL SERVICES NHS TRUST",null,"RTH","ST HELENS AND KNOWSLEY HOSPITAL SERVICES NHS TRUST","RN707","Poole General Hospital NHS Trust HQ - RD304"]
[null,null,null,null,null,null,null,null,null,null,null,null,null,null,null,null,null,null,null,null,"Q77","RJC","SOUTH WARWICKSHIRE NHS FOUNDATION TRUST","RJC02","Warwick Hospital - RJC02",null,"RTK","STOCKPORT NHS FOUNDATION TRUST",null,"RTK","STOCKPORT NHS FOUNDATION TRUST","RNA01","Princess Alexandra Hospital - RQWG0"]
[null,null,null,null,null,null,null,null,null,null,null,null,null,null,null,null,null,null,null,null,"Q77","RNA","THE DUDLEY GROUP NHS FOUNDATION TRUST","RNA01","Russells Hall Hospital - RNA01",null,"RTP","SURREY AND SUSSEX HEALTHCARE NHS TRUST",null,"RTP","SURREY AND SUSSEX HEALTHCARE NHS TRUST","RNLAY","Princess Anne Hospital - RHM12"]
[null,null,null,null,null,null,null,null,null,null,null,null,null,null,null,null,null,null,null,null,"Q77","RL4","THE ROYAL WOLVERHAMPTON NHS TRUST","RL403","New Cross Hospital - RL403",null,"RTR","TAMESIDE AND GLOSSOP INTEGRATED CARE NHS FOUNDATION TRUST",null,"RTR","TAMESIDE AND GLOSSOP INTEGRATED CARE NHS FOUNDATION TRUST","RNLBX","Princess Anne Wing RUH  - RD130"]
[null,null,null,null,null,null,null,null,null,null,null,null,null,null,null,null,null,null,null,null,"Q77","RKB","UNIVERSITY HOSPITALS COVENTRY AND WARWICKSHIRE NHS TRUST","RKB01","University Hospital (Coventry) - RKB01",null,"RTX","TAUNTON AND SOMERSET NHS FOUNDATION TRUST",null,"RTX","TAUNTON AND SOMERSET NHS FOUNDATION TRUST","RNQ51","Princess Royal Hospital - RXH09"]
[null,null,null,null,null,null,null,null,null,null,null,null,null,null,null,null,null,null,null,null,"Q77","RBK","WALSALL HEALTHCARE NHS TRUST","RBK02","Manor Hospital - RBK02",null,"RVJ","THE DUDLEY GROUP NHS FOUNDATION TRUST",null,"RVJ","THE DUDLEY GROUP NHS FOUNDATION TRUST","RNS01","Princess Royal University Hospital - RJZ30"]
[null,null,null,null,null,null,null,null,null,null,null,null,null,null,null,null,null,null,null,null,"Q77","RWP","WORCESTERSHIRE ACUTE HOSPITALS NHS TRUST","RWP50","Worcestershire Royal Hospital - RWP50",null,"RVR","THE HILLINGDON HOSPITALS NHS FOUNDATION TRUST",null,"RVR","THE HILLINGDON HOSPITALS NHS FOUNDATION TRUST","RNZ02","Queen Alexandra Hospital - RHU03"]
[null,null,null,null,null,null,null,null,null,null,null,null,null,null,null,null,null,null,null,null,"Q77","RLQ","WYE VALLEY NHS TRUST","RLQ01","Hereford County Hospital - RLQ01",null,"RVV","THE NEWCASTLE UPON TYNE HOSPITALS NHS FOUNDATION TRUST",null,"RVV","THE NEWCASTLE UPON TYNE HOSPITALS NHS FOUNDATION TRUST","RP5BA","Queen Charlotte's Hospital - RYJ04"]
[null,null,null,null,null,null,null,null,null,null,null,null,null,null,null,null,null,null,null,null,"Q78","RC1","BEDFORD HOSPITAL NHS TRUST","RC110","Bedford Hospital South Wing - RC110",null,"RVW","THE PRINCESS ALEXANDRA HOSPITAL NHS TRUST",null,"RVW","THE PRINCESS ALEXANDRA HOSPITAL NHS TRUST","RP5DR","Queen Elizabeth Hospital - RJ231"]
[null,null,null,null,null,null,null,null,null,null,null,null,null,null,null,null,null,null,null,null,"Q78","RWH","EAST AND NORTH HERTFORDSHIRE NHS TRUST","RWH01","Lister Hospital - RWH01",null,"RVY","THE QUEEN ELIZABETH HOSPITAL, KING'S LYNN, NHS FOUNDATION TRUST",null,"RVY","THE QUEEN ELIZABETH HOSPITAL, KING'S LYNN, NHS FOUNDATION TRUST","RPA02","Queen Elizabeth Hospital - RR7EN"]
[null,null,null,null,null,null,null,null,null,null,null,null,null,null,null,null,null,null,null,null,"Q78","RNQ","KETTERING GENERAL HOSPITAL NHS FOUNDATION TRUST","RNQ51","Kettering General Hospital - RNQ51",null,"RW3","THE ROTHERHAM NHS FOUNDATION TRUST",null,"RW3","THE ROTHERHAM NHS FOUNDATION TRUST","RQ370","Queen Elizabeth The Queen Mother Hospital - RVV09"]
[null,null,null,null,null,null,null,null,null,null,null,null,null,null,null,null,null,null,null,null,"Q78","RC9","LUTON AND DUNSTABLE UNIVERSITY HOSPITAL NHS FOUNDATION TRUST","RC971","Luton and Dunstable Hospital - RC971",null,"RW6","THE ROYAL BOURNEMOUTH AND CHRISTCHURCH HOSPITALS NHS FOUNDATION TRUST",null,"RW6","THE ROYAL BOURNEMOUTH AND CHRISTCHURCH HOSPITALS NHS FOUNDATION TRUST","RQ8L0","Queen's Hospital - RF4QH"]
[null,null,null,null,null,null,null,null,null,null,null,null,null,null,null,null,null,null,null,null,"Q78","RD8","MILTON KEYNES UNIVERSITY HOSPITAL NHS FOUNDATION TRUST","RD816","Milton Keynes Hospital - RD816",null,"RWA","THE ROYAL WOLVERHAMPTON NHS TRUST",null,"RWA","THE ROYAL WOLVERHAMPTON NHS TRUST","RQM01","Queen's Hospital, Burton Upon Trent - RJF02"]
[null,null,null,null,null,null,null,null,null,null,null,null,null,null,null,null,null,null,null,null,"Q78","RNS","NORTHAMPTON GENERAL HOSPITAL NHS TRUST","RNS01","Northampton General Hospital (Acute) - RNS01",null,"RWD","THE WHITTINGTON HOSPITAL NHS TRUST",null,"RWD","THE WHITTINGTON HOSPITAL NHS TRUST","RQM91","Robert Jones & Agnes Hunt Orthopaedic & District Hospital - RXWMJ"]
[null,null,null,null,null,null,null,null,null,null,null,null,null,null,null,null,null,null,null,null,"Q78","RWD","UNITED LINCOLNSHIRE HOSPITALS NHS TRUST","RWDLP","Grantham and District Hospital - RWDLP",null,"RWE","TORBAY AND SOUTH DEVON NHS FOUNDATION TRUST",null,"RWE","TORBAY AND SOUTH DEVON NHS FOUNDATION TRUST","RQWG0","Rosie Hospital - RGT32"]
[null,null,null,null,null,null,null,null,null,null,null,null,null,null,null,null,null,null,null,null,"Q78","RWD","UNITED LINCOLNSHIRE HOSPITALS NHS TRUST","RWDDA","Lincoln County Hospital - RWDDA",null,"RWF","UNITED LINCOLNSHIRE HOSPITALS NHS TRUST",null,"RWF","UNITED LINCOLNSHIRE HOSPITALS NHS TRUST","RQXM1","Rotherham District General Hospital - RFRPA"]
[null,null,null,null,null,null,null,null,null,null,null,null,null,null,null,null,null,null,null,null,"Q78","RWD","UNITED LINCOLNSHIRE HOSPITALS NHS TRUST","RWDLA","Pilgrim Hospital - RWDLA",null,"RWG","UNIVERSITY COLLEGE LONDON HOSPITALS NHS FOUNDATION TRUST",null,"RWG","UNIVERSITY COLLEGE LONDON HOSPITALS NHS FOUNDATION TRUST","RR101","Royal Albert Edward Infirmary - RRF02"]
[null,null,null,null,null,null,null,null,null,null,null,null,null,null,null,null,null,null,null,null,"Q78","RWE","UNIVERSITY HOSPITALS OF LEICESTER NHS TRUST","RWEAK","Leicester General Hospital - RWEAK",null,"RWH","UNIVERSITY HOSPITAL OF SOUTH MANCHESTER NHS FOUNDATION TRUST",null,"RWH","UNIVERSITY HOSPITAL OF SOUTH MANCHESTER NHS FOUNDATION TRUST","RR105","Royal Berkshire Hospital - RHW01"]
[null,null,null,null,null,null,null,null,null,null,null,null,null,null,null,null,null,null,null,null,"Q78","RWE","UNIVERSITY HOSPITALS OF LEICESTER NHS TRUST","RWEAA","Leicester Royal Infirmary - RWEAA",null,"RWJ","UNIVERSITY HOSPITAL SOUTHAMPTON NHS FOUNDATION TRUST",null,"RWJ","UNIVERSITY HOSPITAL SOUTHAMPTON NHS FOUNDATION TRUST","RR109","Royal Blackburn Hospital - RXR20"]
[null,null,null,null,null,null,null,null,null,null,null,null,null,null,null,null,null,null,null,null,"Q78","RWE","UNIVERSITY HOSPITALS OF LEICESTER NHS TRUST","RWE10","St Mary's Hospital - RWE10",null,"RWP","UNIVERSITY HOSPITALS BRISTOL NHS FOUNDATION TRUST",null,"RWP","UNIVERSITY HOSPITALS BRISTOL NHS FOUNDATION TRUST","RR7EN","Royal Bolton Hospital - RMC01"]
[null,null,null,null,null,null,null,null,null,null,null,null,null,null,null,null,null,null,null,null,"Q78","RWG","WEST HERTFORDSHIRE HOSPITALS NHS TRUST","RWG02","Watford General Hospital - RWG02",null,"RWW","UNIVERSITY HOSPITALS COVENTRY AND WARWICKSHIRE NHS TRUST",null,"RWW","UNIVERSITY HOSPITALS COVENTRY AND WARWICKSHIRE NHS TRUST","RR801","Royal Bournemouth General Hospital - RDZ20"]
[null,null,null,null,null,null,null,null,null,null,null,null,null,null,null,null,null,null,null,null,"Q79","RDD","BASILDON AND THURROCK UNIVERSITY HOSPITALS NHS FOUNDATION TRUST","RDDH0","Basildon University Hospital - RDDH0",null,"RWY","UNIVERSITY HOSPITALS OF LEICESTER NHS TRUST",null,"RWY","UNIVERSITY HOSPITALS OF LEICESTER NHS TRUST","RR813","Royal Cornwall Hospital (Treliske) - REF12"]
[null,null,null,null,null,null,null,null,null,null,null,null,null,null,null,null,null,null,null,null,"Q79","RGT","CAMBRIDGE UNIVERSITY HOSPITALS NHS FOUNDATION TRUST","RGT32","Rosie Hospital - RGT32",null,"RX1","UNIVERSITY HOSPITALS OF MORECAMBE BAY NHS FOUNDATION TRUST",null,"RX1","UNIVERSITY HOSPITALS OF MORECAMBE BAY NHS FOUNDATION TRUST","RRF02","Royal Derby Hospital - RTGFG"]
[null,null,null,null,null,null,null,null,null,null,null,null,null,null,null,null,null,null,null,null,"Q79","RDE","COLCHESTER HOSPITAL UNIVERSITY NHS FOUNDATION TRUST","RDEE4","Colchester General Hospital - RDEE4",null,"RXC","UNIVERSITY HOSPITALS OF NORTH MIDLANDS NHS TRUST",null,"RXC","UNIVERSITY HOSPITALS OF NORTH MIDLANDS NHS TRUST","RRV03","Royal Devon and Exeter Hospital (Wonford) - RH801"]
[null,null,null,null,null,null,null,null,null,null,null,null,null,null,null,null,null,null,null,null,"Q79","RGQ","IPSWICH HOSPITAL NHS TRUST","RGQ02","The Ipswich Hospital NHS Trust - RGQ02",null,"RXF","WALSALL HEALTHCARE NHS TRUST",null,"RXF","WALSALL HEALTHCARE NHS TRUST","RTD02","Royal Free Hospital - RAL01"]
[null,null,null,null,null,null,null,null,null,null,null,null,null,null,null,null,null,null,null,null,"Q79","RGP","JAMES PAGET UNIVERSITY HOSPITALS NHS FOUNDATION TRUST","RGP75","James Paget University Hospital - RGP75",null,"RXH","WARRINGTON AND HALTON HOSPITALS NHS FOUNDATION TRUST",null,"RXH","WARRINGTON AND HALTON HOSPITALS NHS FOUNDATION TRUST","RTE03","Royal Hallamshire Hospital - RHQHH"]
[null,null,null,null,null,null,null,null,null,null,null,null,null,null,null,null,null,null,null,null,"Q79","RQ8","MID ESSEX HOSPITAL SERVICES NHS TRUST","RQ8L0","Broomfield Hospital - RQ8L0",null,"RXK","WEST HERTFORDSHIRE HOSPITALS NHS TRUST",null,"RXK","WEST HERTFORDSHIRE HOSPITALS NHS TRUST","RTE26","Royal Hampshire County Hospital - RN541"]
[null,null,null,null,null,null,null,null,null,null,null,null,null,null,null,null,null,null,null,null,"Q79","RM1","NORFOLK AND NORWICH UNIVERSITY HOSPITALS NHS FOUNDATION TRUST","RM102","Norfolk and Norwich University Hospital - RM102",null,"RXL","WEST SUFFOLK NHS FOUNDATION TRUST",null,"RXL","WEST SUFFOLK NHS FOUNDATION TRUST","RTF86","Royal Lancaster Infirmary - RTX02"]
[null,null,null,null,null,null,null,null,null,null,null,null,null,null,null,null,null,null,null,null,"Q79","RGN","NORTH WEST ANGLIA NHS FOUNDATION TRUST","RGN90","Hinchingbrooke Hospital - RGN90",null,"RXN","WESTERN SUSSEX HOSPITALS NHS FOUNDATION TRUST",null,"RXN","WESTERN SUSSEX HOSPITALS NHS FOUNDATION TRUST","RTFDH","Royal Oldham Hospital - RW603"]
[null,null,null,null,null,null,null,null,null,null,null,null,null,null,null,null,null,null,null,null,"Q79","RGN","NORTH WEST ANGLIA NHS FOUNDATION TRUST","RGN80","Peterborough City Hospital - RGN80",null,"RXP","WESTON AREA HEALTH NHS TRUST",null,"RXP","WESTON AREA HEALTH NHS TRUST","RTFDJ","Royal Preston Hospital - RXN02"]
[null,null,null,null,null,null,null,null,null,null,null,null,null,null,null,null,null,null,null,null,"Q79","RAJ","SOUTHEND UNIVERSITY HOSPITAL NHS FOUNDATION TRUST","RAJ01","Southend Hospital - RAJ01",null,"RXQ","WIRRAL UNIVERSITY TEACHING HOSPITAL NHS FOUNDATION TRUST",null,"RXQ","WIRRAL UNIVERSITY TEACHING HOSPITAL NHS FOUNDATION TRUST","RTFDR","Royal Shrewsbury Hospital - RXWAS"]
[null,null,null,null,null,null,null,null,null,null,null,null,null,null,null,null,null,null,null,null,"Q79","RQW","THE PRINCESS ALEXANDRA HOSPITAL NHS TRUST","RQWG0","Princess Alexandra Hospital - RQWG0",null,"RXR","WORCESTERSHIRE ACUTE HOSPITALS NHS TRUST",null,"RXR","WORCESTERSHIRE ACUTE HOSPITALS NHS TRUST","RTGFG","Royal Stoke University Hospital - RJE01"]
[null,null,null,null,null,null,null,null,null,null,null,null,null,null,null,null,null,null,null,null,"Q79","RCX","THE QUEEN ELIZABETH HOSPITAL, KING'S LYNN, NHS FOUNDATION TRUST","RCX70","The Queen Elizabeth Hospital - RCX70",null,"RXW","WRIGHTINGTON, WIGAN AND LEIGH NHS FOUNDATION TRUST",null,"RXW","WRIGHTINGTON, WIGAN AND LEIGH NHS FOUNDATION TRUST","RTH05","Royal Surrey County Hospital - RA201"]
[null,null,null,null,null,null,null,null,null,null,null,null,null,null,null,null,null,null,null,null,"Q79","RGR","WEST SUFFOLK NHS FOUNDATION TRUST","RGR50","West Suffolk Hospital - RGR50",null,"RY2","WYE VALLEY NHS TRUST",null,"RY2","WYE VALLEY NHS TRUST","RTH08","Royal Sussex County Hospital - RXH01"]
[null,null,null,null,null,null,null,null,null,null,null,null,null,null,null,null,null,null,null,null,"Q80","RVJ","NORTH BRISTOL NHS TRUST","RVJ21","Cossham Hospital - RVJ21",null,"RYJ","YEOVIL DISTRICT HOSPITAL NHS FOUNDATION TRUST",null,"RYJ","YEOVIL DISTRICT HOSPITAL NHS FOUNDATION TRUST","RTH16","Russells Hall Hospital - RNA01"]
[null,null,null,null,null,null,null,null,null,null,null,null,null,null,null,null,null,null,null,null,"Q80","RVJ","NORTH BRISTOL NHS TRUST","RVJ01","Southmead Hospital - RVJ01",null,"RYR","YORK TEACHING HOSPITAL NHS FOUNDATION TRUST",null,"RYR","YORK TEACHING HOSPITAL NHS FOUNDATION TRUST","RTH19","Salisbury District Hospital - RNZ02"]
[null,null,null,null,null,null,null,null,null,null,null,null,null,null,null,null,null,null,null,null,"Q80","RBZ","NORTHERN DEVON HEALTHCARE NHS TRUST","RBZ12","North Devon District Hospital - RBZ12",null,null,null,null,null,null,"RTK01","Scarborough General Hospital - RCBCA"]
[null,null,null,null,null,null,null,null,null,null,null,null,null,null,null,null,null,null,null,null,"Q80","RK9","PLYMOUTH HOSPITALS NHS TRUST","RK950","Derriford Hospital - RK950",null,null,null,null,null,null,"RTP04","Scunthorpe General Hospital - RJL32"]
[null,null,null,null,null,null,null,null,null,null,null,null,null,null,null,null,null,null,null,null,"Q80","REF","ROYAL CORNWALL HOSPITALS NHS TRUST","REF12","Royal Cornwall Hospital (Treliske) - REF12",null,null,null,null,null,null,"RTR45","Solihull Hospital - RR109"]
[null,null,null,null,null,null,null,null,null,null,null,null,null,null,null,null,null,null,null,null,"Q80","RH8","ROYAL DEVON AND EXETER NHS FOUNDATION TRUST","RH854","Honiton Hospital - RH 854",null,null,null,null,null,null,"RTRAT","South Tyneside District Hospital - RE9GA"]
[null,null,null,null,null,null,null,null,null,null,null,null,null,null,null,null,null,null,null,null,"Q80","RH8","ROYAL DEVON AND EXETER NHS FOUNDATION TRUST","RH833","Okehampton Community Hospital - RH833",null,null,null,null,null,null,"RTX02","Southend Hospital - RAJ01"]
[null,null,null,null,null,null,null,null,null,null,null,null,null,null,null,null,null,null,null,null,"Q80","RH8","ROYAL DEVON AND EXETER NHS FOUNDATION TRUST","RH801","Royal Devon and Exeter Hospital (Wonford) - RH801",null,null,null,null,null,null,"RTXBU","Southmead Hospital - RVJ01"]
[null,null,null,null,null,null,null,null,null,null,null,null,null,null,null,null,null,null,null,null,"Q80","RH8","ROYAL DEVON AND EXETER NHS FOUNDATION TRUST","RH853","Tiverton and District Hospital - RH853",null,null,null,null,null,null,"RVJ01","St George's Hospital (Tooting) - RJ701"]
[null,null,null,null,null,null,null,null,null,null,null,null,null,null,null,null,null,null,null,null,"Q80","RBA","TAUNTON AND SOMERSET NHS FOUNDATION TRUST","RBAC3","Bridgwater Hospital - RBAC3",null,null,null,null,null,null,"RVJ21","St Helier Hospital - RVR05"]
[null,null,null,null,null,null,null,null,null,null,null,null,null,null,null,null,null,null,null,null,"Q80","RBA","TAUNTON AND SOMERSET NHS FOUNDATION TRUST","RBA11","Musgrove Park Hospital - RBA11",null,null,null,null,null,null,"RVR05","St James's University Hospital - RR813"]
[null,null,null,null,null,null,null,null,null,null,null,null,null,null,null,null,null,null,null,null,"Q80","RA9","TORBAY AND SOUTH DEVON NHS FOUNDATION TRUST","RA901","Torbay Hospital - RA901",null,null,null,null,null,null,"RVR50","St Mary's Hospital - R1F01"]
[null,null,null,null,null,null,null,null,null,null,null,null,null,null,null,null,null,null,null,null,"Q80","RA7","UNIVERSITY HOSPITALS BRISTOL NHS FOUNDATION TRUST","RA707","St Michael's Hospital - RA707",null,null,null,null,null,null,"RVV01","St Mary's Hospital - RHU02"]
[null,null,null,null,null,null,null,null,null,null,null,null,null,null,null,null,null,null,null,null,"Q80","RA3","WESTON AREA HEALTH NHS TRUST","RA301","Weston General Hospital - RA301",null,null,null,null,null,null,"RVV09","St Mary's Hospital - RW3SM"]
[null,null,null,null,null,null,null,null,null,null,null,null,null,null,null,null,null,null,null,null,"Q80","RA4","YEOVIL DISTRICT HOSPITAL NHS FOUNDATION TRUST","RA430","Yeovil District Hospital - RA430",null,null,null,null,null,null,"RVWAE","St Mary's Hospital - RWE10"]
[null,null,null,null,null,null,null,null,null,null,null,null,null,null,null,null,null,null,null,null,"Q81","RTK","ASHFORD AND ST PETER'S HOSPITALS NHS FOUNDATION TRUST","RTK01","St Peter's Hospital - RTK01",null,null,null,null,null,null,"RVY02","St Mary's Hospital (HQ) - RYJ01"]
[null,null,null,null,null,null,null,null,null,null,null,null,null,null,null,null,null,null,null,null,"Q81","RXH","BRIGHTON AND SUSSEX UNIVERSITY HOSPITALS NHS TRUST","RXH09","Princess Royal Hospital - RXH09",null,null,null,null,null,null,"RW3SM","St Michael's Hospital - RA707"]
[null,null,null,null,null,null,null,null,null,null,null,null,null,null,null,null,null,null,null,null,"Q81","RXH","BRIGHTON AND SUSSEX UNIVERSITY HOSPITALS NHS TRUST","RXH01","Royal Sussex County Hospital - RXH01",null,null,null,null,null,null,"RW602","St Peter's Hospital - RTK01"]
[null,null,null,null,null,null,null,null,null,null,null,null,null,null,null,null,null,null,null,null,"Q81","RN7","DARTFORD AND GRAVESHAM NHS TRUST","RN707","Darent Valley Hospital - RN707",null,null,null,null,null,null,"RW603","St Richard's Hospital - RYR16"]
[null,null,null,null,null,null,null,null,null,null,null,null,null,null,null,null,null,null,null,null,"Q81","RVV","EAST KENT HOSPITALS UNIVERSITY NHS FOUNDATION TRUST","RVV09","Queen Elizabeth The Queen Mother Hospital - RVV09",null,null,null,null,null,null,"RWA01","St Thomas' Hospital - RJ122"]
[null,null,null,null,null,null,null,null,null,null,null,null,null,null,null,null,null,null,null,null,"Q81","RVV","EAST KENT HOSPITALS UNIVERSITY NHS FOUNDATION TRUST","RVV01","William Harvey Hospital (Ashford) - RVV01",null,null,null,null,null,null,"RWDDA","Stepping Hill Hospital - RWJ09"]
[null,null,null,null,null,null,null,null,null,null,null,null,null,null,null,null,null,null,null,null,"Q81","RXC","EAST SUSSEX HEALTHCARE NHS TRUST","RXC01","Conquest Hospital - RXC01",null,null,null,null,null,null,"RWDLA","Stoke Mandeville Hospital - RXQ02"]
[null,null,null,null,null,null,null,null,null,null,null,null,null,null,null,null,null,null,null,null,"Q81","RXC","EAST SUSSEX HEALTHCARE NHS TRUST","RXC02","Eastbourne District General Hospital - RXC02",null,null,null,null,null,null,"RWDLP","Stroud General Hospital - RTE26"]
[null,null,null,null,null,null,null,null,null,null,null,null,null,null,null,null,null,null,null,null,"Q81","RDU","FRIMLEY HEALTH NHS FOUNDATION TRUST","RDU01","Frimley Park Hospital - RDU01",null,null,null,null,null,null,"RWE10","Sunderland Royal Hospital - RLNGL"]
[null,null,null,null,null,null,null,null,null,null,null,null,null,null,null,null,null,null,null,null,"Q81","RDU","FRIMLEY HEALTH NHS FOUNDATION TRUST","RDU50","Wexham Park Hospital - RDU50",null,null,null,null,null,null,"RWEAA","Tameside General Hospital - RMP01"]
[null,null,null,null,null,null,null,null,null,null,null,null,null,null,null,null,null,null,null,null,"Q81","RWF","MAIDSTONE AND TUNBRIDGE WELLS NHS TRUST","RWF03","Maidstone District General Hospital - RWF03",null,null,null,null,null,null,"RWEAK","The Great Western Hospital - RN325"]
[null,null,null,null,null,null,null,null,null,null,null,null,null,null,null,null,null,null,null,null,"Q81","RWF","MAIDSTONE AND TUNBRIDGE WELLS NHS TRUST","RWFTW","The Tunbridge Wells Hospital - RWFTW",null,null,null,null,null,null,"RWF03","The Ipswich Hospital NHS Trust - RGQ02"]
[null,null,null,null,null,null,null,null,null,null,null,null,null,null,null,null,null,null,null,null,"Q81","RPA","MEDWAY NHS FOUNDATION TRUST","RPA02","Medway Maritime Hospital - RPA02",null,null,null,null,null,null,"RWFTW","The James Cook University Hospital - RTRAT"]
[null,null,null,null,null,null,null,null,null,null,null,null,null,null,null,null,null,null,null,null,"Q81","RA2","ROYAL SURREY COUNTY HOSPITAL NHS FOUNDATION TRUST","RA201","Royal Surrey County Hospital - RA201",null,null,null,null,null,null,"RWG02","The Northumbria - RTF86"]
[null,null,null,null,null,null,null,null,null,null,null,null,null,null,null,null,null,null,null,null,"Q81","RTP","SURREY AND SUSSEX HEALTHCARE NHS TRUST","RTP04","East Surrey Hospital - RTP04",null,null,null,null,null,null,"RWH01","The Princess Royal Hospital - RXWAT"]
[null,null,null,null,null,null,null,null,null,null,null,null,null,null,null,null,null,null,null,null,"Q81","RYR","WESTERN SUSSEX HOSPITALS NHS FOUNDATION TRUST","RYR16","St Richard's Hospital - RYR16",null,null,null,null,null,null,"RWJ09","The Queen Elizabeth Hospital - RCX70"]
[null,null,null,null,null,null,null,null,null,null,null,null,null,null,null,null,null,null,null,null,"Q81","RYR","WESTERN SUSSEX HOSPITALS NHS FOUNDATION TRUST","RYR18","Worthing Hospital - RYR18",null,null,null,null,null,null,"RWP50","The Royal London Hospital - R1H12"]
[null,null,null,null,null,null,null,null,null,null,null,null,null,null,null,null,null,null,null,null,"Q82","RXQ","BUCKINGHAMSHIRE HEALTHCARE NHS TRUST","RXQ02","Stoke Mandeville Hospital - RXQ02",null,null,null,null,null,null,"RWWWH","The Royal Victoria Infirmary - RTD02"]
[null,null,null,null,null,null,null,null,null,null,null,null,null,null,null,null,null,null,null,null,"Q82","RTE","GLOUCESTERSHIRE HOSPITALS NHS FOUNDATION TRUST","RTE03","Gloucestershire Royal Hospital - RTE03",null,null,null,null,null,null,"RWY01","The Tunbridge Wells Hospital - RWFTW"]
[null,null,null,null,null,null,null,null,null,null,null,null,null,null,null,null,null,null,null,null,"Q82","RTE","GLOUCESTERSHIRE HOSPITALS NHS FOUNDATION TRUST","RTE26","Stroud General Hospital - RTE26",null,null,null,null,null,null,"RWY02","The Whittington Hospital - RKEQ4"]
[null,null,null,null,null,null,null,null,null,null,null,null,null,null,null,null,null,null,null,null,"Q82","RN3","GREAT WESTERN HOSPITALS NHS FOUNDATION TRUST","RN325","The Great Western Hospital - RN325",null,null,null,null,null,null,"RX1CC","Tiverton and District Hospital - RH853"]
[null,null,null,null,null,null,null,null,null,null,null,null,null,null,null,null,null,null,null,null,"Q82","RTH","OXFORD UNIVERSITY HOSPITALS NHS FOUNDATION TRUST","RTH19","Chipping Norton Community Hospital - RTH19",null,null,null,null,null,null,"RX1RA","Torbay Hospital - RA901"]
[null,null,null,null,null,null,null,null,null,null,null,null,null,null,null,null,null,null,null,null,"Q82","RTH","OXFORD UNIVERSITY HOSPITALS NHS FOUNDATION TRUST","RTH05","Horton General Hospital - RTH05",null,null,null,null,null,null,"RXC01","Trowbridge Community Hospital  - RD108"]
[null,null,null,null,null,null,null,null,null,null,null,null,null,null,null,null,null,null,null,null,"Q82","RTH","OXFORD UNIVERSITY HOSPITALS NHS FOUNDATION TRUST","RTH08","John Radcliffe Hospital - RTH08",null,null,null,null,null,null,"RXC02","University College Hospital - RRV03"]
[null,null,null,null,null,null,null,null,null,null,null,null,null,null,null,null,null,null,null,null,"Q82","RTH","OXFORD UNIVERSITY HOSPITALS NHS FOUNDATION TRUST","RTH16","Wallingford Community Hospital - RTH16",null,null,null,null,null,null,"RXF05","University Hospital (Coventry) - RKB01"]
[null,null,null,null,null,null,null,null,null,null,null,null,null,null,null,null,null,null,null,null,"Q82","RHW","ROYAL BERKSHIRE NHS FOUNDATION TRUST","RHW01","Royal Berkshire Hospital - RHW01",null,null,null,null,null,null,"RXH01","University Hospital Lewisham - RJ224"]
[null,null,null,null,null,null,null,null,null,null,null,null,null,null,null,null,null,null,null,null,"Q82","RD1","ROYAL UNITED HOSPITALS BATH NHS FOUNDATION TRUST","RD102","Chippenham Community Hospital -RD102",null,null,null,null,null,null,"RXH09","University Hospital Of North Durham - RXPCP"]
[null,null,null,null,null,null,null,null,null,null,null,null,null,null,null,null,null,null,null,null,"Q82","RD1","ROYAL UNITED HOSPITALS BATH NHS FOUNDATION TRUST","RD121","Frome Community Hospital  - RD121",null,null,null,null,null,null,"RXK02","University Hospital Of North Tees - RVWAE"]
[null,null,null,null,null,null,null,null,null,null,null,null,null,null,null,null,null,null,null,null,"Q82","RD1","ROYAL UNITED HOSPITALS BATH NHS FOUNDATION TRUST","RD129","Paulton Memorial Hospital  - RD129",null,null,null,null,null,null,"RXL01","Wallingford Community Hospital - RTH16"]
[null,null,null,null,null,null,null,null,null,null,null,null,null,null,null,null,null,null,null,null,"Q82","RD1","ROYAL UNITED HOSPITALS BATH NHS FOUNDATION TRUST","RD130","Princess Anne Wing RUH  - RD130",null,null,null,null,null,null,"RXN01","Warrington Hospital - RWWWH"]
[null,null,null,null,null,null,null,null,null,null,null,null,null,null,null,null,null,null,null,null,"Q82","RD1","ROYAL UNITED HOSPITALS BATH NHS FOUNDATION TRUST","RD108","Trowbridge Community Hospital  - RD108",null,null,null,null,null,null,"RXN02","Warwick Hospital - RJC02"]
[null,null,null,null,null,null,null,null,null,null,null,null,null,null,null,null,null,null,null,null,"Q82","RNZ","SALISBURY NHS FOUNDATION TRUST","RNZ02","Salisbury District Hospital - RNZ02",null,null,null,null,null,null,"RXPCP","Watford General Hospital - RWG02"]
[null,null,null,null,null,null,null,null,null,null,null,null,null,null,null,null,null,null,null,null,"Q83","RMC","BOLTON NHS FOUNDATION TRUST","RMC01","Royal Bolton Hospital - RMC01",null,null,null,null,null,null,"RXPDA","West Cumberland Hospital - RNLBX"]
[null,null,null,null,null,null,null,null,null,null,null,null,null,null,null,null,null,null,null,null,"Q83","RY2","BRIDGEWATER COMMUNITY HEALTHCARE NHS FOUNDATION TRUST","RY28P","Health Care Resource Centre - RY28P",null,null,null,null,null,null,"RXQ02","West Middlesex University Hospital - RQM91"]
[null,null,null,null,null,null,null,null,null,null,null,null,null,null,null,null,null,null,null,null,"Q83","RW3","CENTRAL MANCHESTER UNIVERSITY HOSPITALS NHS FOUNDATION TRUST","RW3SM","St Mary's Hospital - RW3SM",null,null,null,null,null,null,"RXR20","West Suffolk Hospital - RGR50"]
[null,null,null,null,null,null,null,null,null,null,null,null,null,null,null,null,null,null,null,null,"Q83","RW6","PENNINE ACUTE HOSPITALS NHS TRUST","RW602","North Manchester General Hospital - RW602",null,null,null,null,null,null,"RXWAS","Weston General Hospital - RA301"]
[null,null,null,null,null,null,null,null,null,null,null,null,null,null,null,null,null,null,null,null,"Q83","RW6","PENNINE ACUTE HOSPITALS NHS TRUST","RW603","Royal Oldham Hospital - RW603",null,null,null,null,null,null,"RXWAT","Wexham Park Hospital - RDU50"]
[null,null,null,null,null,null,null,null,null,null,null,null,null,null,null,null,null,null,null,null,"Q83","RWJ","STOCKPORT NHS FOUNDATION TRUST","RWJ09","Stepping Hill Hospital - RWJ09",null,null,null,null,null,null,"RXWMB","Whipps Cross University Hospital - R1HKH"]
[null,null,null,null,null,null,null,null,null,null,null,null,null,null,null,null,null,null,null,null,"Q83","RMP","TAMESIDE AND GLOSSOP INTEGRATED CARE NHS FOUNDATION TRUST","RMP01","Tameside General Hospital - RMP01",null,null,null,null,null,null,"RXWMJ","Whiston Hospital - RBN01"]
[null,null,null,null,null,null,null,null,null,null,null,null,null,null,null,null,null,null,null,null,"Q83","RM2","UNIVERSITY HOSPITAL OF SOUTH MANCHESTER NHS FOUNDATION TRUST","RM202","Wythenshawe Hospital - RM202",null,null,null,null,null,null,"RXWML","William Harvey Hospital (Ashford) - RVV01"]
[null,null,null,null,null,null,null,null,null,null,null,null,null,null,null,null,null,null,null,null,"Q83","RRF","WRIGHTINGTON, WIGAN AND LEIGH NHS FOUNDATION TRUST","RRF02","Royal Albert Edward Infirmary - RRF02",null,null,null,null,null,null,"RY28P","Worcestershire Royal Hospital - RWP50"]
[null,null,null,null,null,null,null,null,null,null,null,null,null,null,null,null,null,null,null,null,"Q84","RXL","BLACKPOOL TEACHING HOSPITALS NHS FOUNDATION TRUST","RXL01","Blackpool Victoria Hospital - RXL01",null,null,null,null,null,null,"RYJ01","Worthing Hospital - RYR18"]
[null,null,null,null,null,null,null,null,null,null,null,null,null,null,null,null,null,null,null,null,"Q84","RXR","EAST LANCASHIRE HOSPITALS NHS TRUST","RXR20","Royal Blackburn Hospital - RXR20",null,null,null,null,null,null,"RYJ04","Wythenshawe Hospital - RM202"]
[null,null,null,null,null,null,null,null,null,null,null,null,null,null,null,null,null,null,null,null,"Q84","RXN","LANCASHIRE TEACHING HOSPITALS NHS FOUNDATION TRUST","RXN01","Chorley and South Ribble Hospital - RXN01",null,null,null,null,null,null,"RYR16","Yeovil District Hospital - RA430"]
[null,null,null,null,null,null,null,null,null,null,null,null,null,null,null,null,null,null,null,null,"Q84","RXN","LANCASHIRE TEACHING HOSPITALS NHS FOUNDATION TRUST","RXN02","Royal Preston Hospital - RXN02",null,null,null,null,null,null,"RYR18","York Hospital - RCB55"]

{"sheet":"BSQ4","index":16,"n_rows":135,"n_cols":28,"rows_kept":135,"cut":false,"hidden":true,"merged":[]}
[null,"Sort","Region (Geo)","Region (Geo)","Trusts","Trusts",null,null,null,"Sort ranges:","Sort range…","Sort range…",null,"Reference Region List:","Code…","Name…","Linked Region List:","Code…","Name…","Reference Lists:","Code…","Code…","Name…",null,null,"Trusts Linked Lists:","Code…","Name…"]
["Region (Geo)",1,1,1,"-","-",null,null,null,null,"Region (Geo) Code","Region (Geo) Code",null,null,"Q72","NHS England Yorkshire & Humber",null,"Q70","NHS England Central Midlands",null,"Q70","RBD","DORSET COUNTY HOSPITAL NHS FOUNDATION TRUST",null,null,null,"R1F","AIREDALE NHS FOUNDATION TRUST"]
["Trusts",1,1,1,1,1,null,null,null,null,"Region (Geography)","Trust Code",null,null,"Q74","NHS England Cumbria & North East",null,"Q71","NHS England Cheshire & Merseyside",null,"Q70","RN5","HAMPSHIRE HOSPITALS NHS FOUNDATION TRUST",null,null,null,"R1H","ASHFORD AND ST PETER'S HOSPITALS NHS FOUNDATION TRUST"]
[null,null,null,null,null,null,null,null,null,null,"Total Responses","Trust Name",null,null,"Q75","NHS England Cheshire & Merseyside",null,"Q72","NHS England Cumbria & North East",null,"Q70","R1F","ISLE OF WIGHT NHS TRUST",null,null,null,"R1K","BARKING, HAVERING AND REDBRIDGE UNIVERSITY HOSPITALS NHS TRUST"]
[null,null,null,null,null,null,null,null,null,null,"Percentage Recommended","Total Responses",null,null,"Q83","NHS England Greater Manchester",null,"Q74","NHS England East",null,"Q70","RD3","POOLE HOSPITAL NHS FOUNDATION TRUST",null,null,null,"RA2","BARNSLEY HOSPITAL NHS FOUNDATION TRUST"]
[null,null,null,null,null,null,null,null,null,null,"Percentage Not  Recommended","Percentage Recommended",null,null,"Q84","NHS England Lancashire",null,"Q75","NHS England Greater Manchester",null,"Q70","RHU","PORTSMOUTH HOSPITALS NHS TRUST",null,null,null,"RA3","BARTS HEALTH NHS TRUST"]
[null,null,null,null,null,null,null,null,null,null,"Extremely Likely","Percentage Not  Recommended",null,null,"Q76","NHS England North Midlands",null,"Q76","NHS England Lancashire",null,"Q70","RDZ","THE ROYAL BOURNEMOUTH AND CHRISTCHURCH HOSPITALS NHS FOUNDATION TRUST",null,null,null,"RA4","BASILDON AND THURROCK UNIVERSITY HOSPITALS NHS FOUNDATION TRUST"]
[null,null,null,null,null,null,null,null,null,null,"Likely","Extremely Likely",null,null,"Q77","NHS England West Midlands",null,"Q77","NHS England London",null,"Q70","RHM","UNIVERSITY HOSPITAL SOUTHAMPTON NHS FOUNDATION TRUST",null,null,null,"RA7","BEDFORD HOSPITAL NHS TRUST"]
[null,null,null,null,null,null,null,null,null,null,"Neither","Likely",null,null,"Q78","NHS England Central Midlands",null,"Q78","NHS England North Midlands",null,"Q71","RF4","BARKING, HAVERING AND REDBRIDGE UNIVERSITY HOSPITALS NHS TRUST",null,null,null,"RA9","BIRMINGHAM WOMEN'S AND CHILDREN'S NHS FOUNDATION TRUST"]
[null,null,null,null,null,null,null,null,null,null,"Unlikely","Neither",null,null,"Q79","NHS England East",null,"Q79","NHS England South Central",null,"Q71","R1H","BARTS HEALTH NHS TRUST",null,null,null,"RAE","BLACKPOOL TEACHING HOSPITALS NHS FOUNDATION TRUST"]
[null,null,null,null,null,null,null,null,null,null,"Extremely Unlikely","Unlikely",null,null,"Q80","NHS England South West",null,"Q80","NHS England South East",null,"Q71","RQM","CHELSEA AND WESTMINSTER HOSPITAL NHS FOUNDATION TRUST",null,null,null,"RAJ","BOLTON NHS FOUNDATION TRUST"]
[null,null,null,null,null,null,null,null,null,null,"Don't Know","Extremely Unlikely",null,null,"Q81","NHS England South East",null,"Q81","NHS England South West",null,"Q71","RJ6","CROYDON HEALTH SERVICES NHS TRUST",null,null,null,"RAL","BRADFORD TEACHING HOSPITALS NHS FOUNDATION TRUST"]
[null,null,null,null,null,null,null,null,null,null,null,"Don't Know",null,null,"Q82","NHS England South Central",null,"Q82","NHS England Wessex",null,"Q71","RVR","EPSOM AND ST HELIER UNIVERSITY HOSPITALS NHS TRUST",null,null,null,"RAP","BRIDGEWATER COMMUNITY HEALTHCARE NHS FOUNDATION TRUST"]
[null,null,null,null,null,null,null,null,null,null,null,"SMS/Text / Smartphone App",null,null,"Q70","NHS England Wessex",null,"Q83","NHS England West Midlands",null,"Q71","RJ1","GUY'S AND ST THOMAS' NHS FOUNDATION TRUST",null,null,null,"RAS","BRIGHTON AND SUSSEX UNIVERSITY HOSPITALS NHS TRUST"]
[null,null,null,null,null,null,null,null,null,null,null,"Electronic tablet/kiosk at point of discharge",null,null,"Q71","NHS England London",null,"Q84","NHS England Yorkshire & Humber",null,"Q71","RQX","HOMERTON UNIVERSITY HOSPITAL NHS FOUNDATION TRUST",null,null,null,"RAX","BUCKINGHAMSHIRE HEALTHCARE NHS TRUST"]
[null,null,null,null,null,null,null,null,null,null,null,"Paper / postcard at point of discharge",null,null,null,null,null,null,null,null,"Q71","RYJ","IMPERIAL COLLEGE HEALTHCARE NHS TRUST",null,null,null,"RBA","BURTON HOSPITALS NHS FOUNDATION TRUST"]
[null,null,null,null,null,null,null,null,null,null,null,"Paper survey, sent to the patients home",null,null,null,null,null,null,null,null,"Q71","RJZ","KING'S COLLEGE HOSPITAL NHS FOUNDATION TRUST",null,null,null,"RBD","CALDERDALE AND HUDDERSFIELD NHS FOUNDATION TRUST"]
[null,null,null,null,null,null,null,null,null,null,null,"Telephone survey once patient is home",null,null,null,null,null,null,null,null,"Q71","RAX","KINGSTON HOSPITAL NHS FOUNDATION TRUST",null,null,null,"RBK","CAMBRIDGE UNIVERSITY HOSPITALS NHS FOUNDATION TRUST"]
[null,null,null,null,null,null,null,null,null,null,null,"Online survey once patient is home",null,null,null,null,null,null,null,null,"Q71","RJ2","LEWISHAM AND GREENWICH NHS TRUST",null,null,null,"RBL","CENTRAL MANCHESTER UNIVERSITY HOSPITALS NHS FOUNDATION TRUST"]
[null,null,null,null,null,null,null,null,null,null,null,"Other",null,null,null,null,null,null,null,null,"Q71","R1K","LONDON NORTH WEST HEALTHCARE NHS TRUST",null,null,null,"RBN","CHELSEA AND WESTMINSTER HOSPITAL NHS FOUNDATION TRUST"]
[null,null,null,null,null,null,null,null,null,null,null,null,null,null,null,null,null,null,null,null,"Q71","RAP","NORTH MIDDLESEX UNIVERSITY HOSPITAL NHS TRUST",null,null,null,"RBT","CHESTERFIELD ROYAL HOSPITAL NHS FOUNDATION TRUST"]
[null,null,null,null,null,null,null,null,null,null,null,null,null,null,null,null,null,null,null,null,"Q71","RAL","ROYAL FREE LONDON NHS FOUNDATION TRUST",null,null,null,"RBZ","CITY HOSPITALS SUNDERLAND NHS FOUNDATION TRUST"]
[null,null,null,null,null,null,null,null,null,null,null,null,null,null,null,null,null,null,null,null,"Q71","RJ7","ST GEORGE'S UNIVERSITY HOSPITALS NHS FOUNDATION TRUST",null,null,null,"RC1","COLCHESTER HOSPITAL UNIVERSITY NHS FOUNDATION TRUST"]
[null,null,null,null,null,null,null,null,null,null,null,null,null,null,null,null,null,null,null,null,"Q71","RAS","THE HILLINGDON HOSPITALS NHS FOUNDATION TRUST",null,null,null,"RC9","COUNTESS OF CHESTER HOSPITAL NHS FOUNDATION TRUST"]
[null,null,null,null,null,null,null,null,null,null,null,null,null,null,null,null,null,null,null,null,"Q71","RKE","THE WHITTINGTON HOSPITAL NHS TRUST",null,null,null,"RCB","COUNTY DURHAM AND DARLINGTON NHS FOUNDATION TRUST"]
[null,null,null,null,null,null,null,null,null,null,null,null,null,null,null,null,null,null,null,null,"Q71","RRV","UNIVERSITY COLLEGE LONDON HOSPITALS NHS FOUNDATION TRUST",null,null,null,"RCD","CROYDON HEALTH SERVICES NHS TRUST"]
[null,null,null,null,null,null,null,null,null,null,null,null,null,null,null,null,null,null,null,null,"Q72","RCF","AIREDALE NHS FOUNDATION TRUST",null,null,null,"RCF","DARTFORD AND GRAVESHAM NHS TRUST"]
[null,null,null,null,null,null,null,null,null,null,null,null,null,null,null,null,null,null,null,null,"Q72","RFF","BARNSLEY HOSPITAL NHS FOUNDATION TRUST",null,null,null,"RCX","DERBY TEACHING HOSPITALS NHS FOUNDATION TRUST"]
[null,null,null,null,null,null,null,null,null,null,null,null,null,null,null,null,null,null,null,null,"Q72","RAE","BRADFORD TEACHING HOSPITALS NHS FOUNDATION TRUST",null,null,null,"RD1","DONCASTER AND BASSETLAW TEACHING HOSPITALS NHS FOUNDATION TRUST"]
[null,null,null,null,null,null,null,null,null,null,null,null,null,null,null,null,null,null,null,null,"Q72","RWY","CALDERDALE AND HUDDERSFIELD NHS FOUNDATION TRUST",null,null,null,"RD3","DORSET COUNTY HOSPITAL NHS FOUNDATION TRUST"]
[null,null,null,null,null,null,null,null,null,null,null,null,null,null,null,null,null,null,null,null,"Q72","RP5","DONCASTER AND BASSETLAW TEACHING HOSPITALS NHS FOUNDATION TRUST",null,null,null,"RD8","EAST AND NORTH HERTFORDSHIRE NHS TRUST"]
[null,null,null,null,null,null,null,null,null,null,null,null,null,null,null,null,null,null,null,null,"Q72","RCD","HARROGATE AND DISTRICT NHS FOUNDATION TRUST",null,null,null,"RDD","EAST CHESHIRE NHS TRUST"]
[null,null,null,null,null,null,null,null,null,null,null,null,null,null,null,null,null,null,null,null,"Q72","RWA","HULL AND EAST YORKSHIRE HOSPITALS NHS TRUST",null,null,null,"RDE","EAST KENT HOSPITALS UNIVERSITY NHS FOUNDATION TRUST"]
[null,null,null,null,null,null,null,null,null,null,null,null,null,null,null,null,null,null,null,null,"Q72","RR8","LEEDS TEACHING HOSPITALS NHS TRUST",null,null,null,"RDU","EAST LANCASHIRE HOSPITALS NHS TRUST"]
[null,null,null,null,null,null,null,null,null,null,null,null,null,null,null,null,null,null,null,null,"Q72","RXF","MID YORKSHIRE HOSPITALS NHS TRUST",null,null,null,"RDZ","EAST SUSSEX HEALTHCARE NHS TRUST"]
[null,null,null,null,null,null,null,null,null,null,null,null,null,null,null,null,null,null,null,null,"Q72","RJL","NORTHERN LINCOLNSHIRE AND GOOLE NHS FOUNDATION TRUST",null,null,null,"RE9","EPSOM AND ST HELIER UNIVERSITY HOSPITALS NHS TRUST"]
[null,null,null,null,null,null,null,null,null,null,null,null,null,null,null,null,null,null,null,null,"Q72","RHQ","SHEFFIELD TEACHING HOSPITALS NHS FOUNDATION TRUST",null,null,null,"REF","FRIMLEY HEALTH NHS FOUNDATION TRUST"]
[null,null,null,null,null,null,null,null,null,null,null,null,null,null,null,null,null,null,null,null,"Q72","RFR","THE ROTHERHAM NHS FOUNDATION TRUST",null,null,null,"REP","GATESHEAD HEALTH NHS FOUNDATION TRUST"]
[null,null,null,null,null,null,null,null,null,null,null,null,null,null,null,null,null,null,null,null,"Q72","RCB","YORK TEACHING HOSPITAL NHS FOUNDATION TRUST",null,null,null,"RF4","GEORGE ELIOT HOSPITAL NHS TRUST"]
[null,null,null,null,null,null,null,null,null,null,null,null,null,null,null,null,null,null,null,null,"Q74","RLN","CITY HOSPITALS SUNDERLAND NHS FOUNDATION TRUST",null,null,null,"RFF","GLOUCESTERSHIRE HOSPITALS NHS FOUNDATION TRUST"]
[null,null,null,null,null,null,null,null,null,null,null,null,null,null,null,null,null,null,null,null,"Q74","RXP","COUNTY DURHAM AND DARLINGTON NHS FOUNDATION TRUST",null,null,null,"RFR","GREAT WESTERN HOSPITALS NHS FOUNDATION TRUST"]
[null,null,null,null,null,null,null,null,null,null,null,null,null,null,null,null,null,null,null,null,"Q74","RR7","GATESHEAD HEALTH NHS FOUNDATION TRUST",null,null,null,"RFS","GUY'S AND ST THOMAS' NHS FOUNDATION TRUST"]
[null,null,null,null,null,null,null,null,null,null,null,null,null,null,null,null,null,null,null,null,"Q74","RNL","NORTH CUMBRIA UNIVERSITY HOSPITALS NHS TRUST",null,null,null,"RGN","HAMPSHIRE HOSPITALS NHS FOUNDATION TRUST"]
[null,null,null,null,null,null,null,null,null,null,null,null,null,null,null,null,null,null,null,null,"Q74","RVW","NORTH TEES AND HARTLEPOOL NHS FOUNDATION TRUST",null,null,null,"RGP","HARROGATE AND DISTRICT NHS FOUNDATION TRUST"]
[null,null,null,null,null,null,null,null,null,null,null,null,null,null,null,null,null,null,null,null,"Q74","RTF","NORTHUMBRIA HEALTHCARE NHS FOUNDATION TRUST",null,null,null,"RGQ","HEART OF ENGLAND NHS FOUNDATION TRUST"]
[null,null,null,null,null,null,null,null,null,null,null,null,null,null,null,null,null,null,null,null,"Q74","RTR","SOUTH TEES HOSPITALS NHS FOUNDATION TRUST",null,null,null,"RGR","HOMERTON UNIVERSITY HOSPITAL NHS FOUNDATION TRUST"]
[null,null,null,null,null,null,null,null,null,null,null,null,null,null,null,null,null,null,null,null,"Q74","RE9","SOUTH TYNESIDE NHS FOUNDATION TRUST",null,null,null,"RGT","HULL AND EAST YORKSHIRE HOSPITALS NHS TRUST"]
[null,null,null,null,null,null,null,null,null,null,null,null,null,null,null,null,null,null,null,null,"Q74","RTD","THE NEWCASTLE UPON TYNE HOSPITALS NHS FOUNDATION TRUST",null,null,null,"RH8","IMPERIAL COLLEGE HEALTHCARE NHS TRUST"]
[null,null,null,null,null,null,null,null,null,null,null,null,null,null,null,null,null,null,null,null,"Q74","RTX","UNIVERSITY HOSPITALS OF MORECAMBE BAY NHS FOUNDATION TRUST",null,null,null,"RHM","IPSWICH HOSPITAL NHS TRUST"]
[null,null,null,null,null,null,null,null,null,null,null,null,null,null,null,null,null,null,null,null,"Q75","RJR","COUNTESS OF CHESTER HOSPITAL NHS FOUNDATION TRUST",null,null,null,"RHQ","ISLE OF WIGHT NHS TRUST"]
[null,null,null,null,null,null,null,null,null,null,null,null,null,null,null,null,null,null,null,null,"Q75","RJN","EAST CHESHIRE NHS TRUST",null,null,null,"RHU","JAMES PAGET UNIVERSITY HOSPITALS NHS FOUNDATION TRUST"]
[null,null,null,null,null,null,null,null,null,null,null,null,null,null,null,null,null,null,null,null,"Q75","REP","LIVERPOOL WOMEN'S NHS FOUNDATION TRUST",null,null,null,"RHW","KETTERING GENERAL HOSPITAL NHS FOUNDATION TRUST"]
[null,null,null,null,null,null,null,null,null,null,null,null,null,null,null,null,null,null,null,null,"Q75","RBT","MID CHESHIRE HOSPITALS NHS FOUNDATION TRUST",null,null,null,"RJ1","KING'S COLLEGE HOSPITAL NHS FOUNDATION TRUST"]
[null,null,null,null,null,null,null,null,null,null,null,null,null,null,null,null,null,null,null,null,"Q75","RVY","SOUTHPORT AND ORMSKIRK HOSPITAL NHS TRUST",null,null,null,"RJ2","KINGSTON HOSPITAL NHS FOUNDATION TRUST"]
[null,null,null,null,null,null,null,null,null,null,null,null,null,null,null,null,null,null,null,null,"Q75","RBN","ST HELENS AND KNOWSLEY HOSPITAL SERVICES NHS TRUST",null,null,null,"RJ6","LANCASHIRE TEACHING HOSPITALS NHS FOUNDATION TRUST"]
[null,null,null,null,null,null,null,null,null,null,null,null,null,null,null,null,null,null,null,null,"Q75","RWW","WARRINGTON AND HALTON HOSPITALS NHS FOUNDATION TRUST",null,null,null,"RJ7","LEEDS TEACHING HOSPITALS NHS TRUST"]
[null,null,null,null,null,null,null,null,null,null,null,null,null,null,null,null,null,null,null,null,"Q75","RBL","WIRRAL UNIVERSITY TEACHING HOSPITAL NHS FOUNDATION TRUST",null,null,null,"RJC","LEWISHAM AND GREENWICH NHS TRUST"]
[null,null,null,null,null,null,null,null,null,null,null,null,null,null,null,null,null,null,null,null,"Q76","RJF","BURTON HOSPITALS NHS FOUNDATION TRUST",null,null,null,"RJE","LIVERPOOL WOMEN'S NHS FOUNDATION TRUST"]
[null,null,null,null,null,null,null,null,null,null,null,null,null,null,null,null,null,null,null,null,"Q76","RFS","CHESTERFIELD ROYAL HOSPITAL NHS FOUNDATION TRUST",null,null,null,"RJF","LONDON NORTH WEST HEALTHCARE NHS TRUST"]
[null,null,null,null,null,null,null,null,null,null,null,null,null,null,null,null,null,null,null,null,"Q76","RTG","DERBY TEACHING HOSPITALS NHS FOUNDATION TRUST",null,null,null,"RJL","LUTON AND DUNSTABLE UNIVERSITY HOSPITAL NHS FOUNDATION TRUST"]
[null,null,null,null,null,null,null,null,null,null,null,null,null,null,null,null,null,null,null,null,"Q76","RX1","NOTTINGHAM UNIVERSITY HOSPITALS NHS TRUST",null,null,null,"RJN","MAIDSTONE AND TUNBRIDGE WELLS NHS TRUST"]
[null,null,null,null,null,null,null,null,null,null,null,null,null,null,null,null,null,null,null,null,"Q76","RK5","SHERWOOD FOREST HOSPITALS NHS FOUNDATION TRUST",null,null,null,"RJR","MEDWAY NHS FOUNDATION TRUST"]
[null,null,null,null,null,null,null,null,null,null,null,null,null,null,null,null,null,null,null,null,"Q76","RXW","SHREWSBURY AND TELFORD HOSPITAL NHS TRUST",null,null,null,"RJZ","MID CHESHIRE HOSPITALS NHS FOUNDATION TRUST"]
[null,null,null,null,null,null,null,null,null,null,null,null,null,null,null,null,null,null,null,null,"Q76","RJE","UNIVERSITY HOSPITALS OF NORTH MIDLANDS NHS TRUST",null,null,null,"RK5","MID ESSEX HOSPITAL SERVICES NHS TRUST"]
[null,null,null,null,null,null,null,null,null,null,null,null,null,null,null,null,null,null,null,null,"Q77","RQ3","BIRMINGHAM WOMEN'S AND CHILDREN'S NHS FOUNDATION TRUST",null,null,null,"RK9","MID YORKSHIRE HOSPITALS NHS TRUST"]
[null,null,null,null,null,null,null,null,null,null,null,null,null,null,null,null,null,null,null,null,"Q77","RLT","GEORGE ELIOT HOSPITAL NHS TRUST",null,null,null,"RKB","MILTON KEYNES UNIVERSITY HOSPITAL NHS FOUNDATION TRUST"]
[null,null,null,null,null,null,null,null,null,null,null,null,null,null,null,null,null,null,null,null,"Q77","RR1","HEART OF ENGLAND NHS FOUNDATION TRUST",null,null,null,"RKE","NORFOLK AND NORWICH UNIVERSITY HOSPITALS NHS FOUNDATION TRUST"]
[null,null,null,null,null,null,null,null,null,null,null,null,null,null,null,null,null,null,null,null,"Q77","RXK","SANDWELL AND WEST BIRMINGHAM HOSPITALS NHS TRUST",null,null,null,"RL4","NORTH BRISTOL NHS TRUST"]
[null,null,null,null,null,null,null,null,null,null,null,null,null,null,null,null,null,null,null,null,"Q77","RJC","SOUTH WARWICKSHIRE NHS FOUNDATION TRUST",null,null,null,"RLN","NORTH CUMBRIA UNIVERSITY HOSPITALS NHS TRUST"]
[null,null,null,null,null,null,null,null,null,null,null,null,null,null,null,null,null,null,null,null,"Q77","RNA","THE DUDLEY GROUP NHS FOUNDATION TRUST",null,null,null,"RLQ","NORTH MIDDLESEX UNIVERSITY HOSPITAL NHS TRUST"]
[null,null,null,null,null,null,null,null,null,null,null,null,null,null,null,null,null,null,null,null,"Q77","RL4","THE ROYAL WOLVERHAMPTON NHS TRUST",null,null,null,"RLT","NORTH TEES AND HARTLEPOOL NHS FOUNDATION TRUST"]
[null,null,null,null,null,null,null,null,null,null,null,null,null,null,null,null,null,null,null,null,"Q77","RKB","UNIVERSITY HOSPITALS COVENTRY AND WARWICKSHIRE NHS TRUST",null,null,null,"RM1","NORTH WEST ANGLIA NHS FOUNDATION TRUST"]
[null,null,null,null,null,null,null,null,null,null,null,null,null,null,null,null,null,null,null,null,"Q77","RBK","WALSALL HEALTHCARE NHS TRUST",null,null,null,"RM2","NORTHAMPTON GENERAL HOSPITAL NHS TRUST"]
[null,null,null,null,null,null,null,null,null,null,null,null,null,null,null,null,null,null,null,null,"Q77","RWP","WORCESTERSHIRE ACUTE HOSPITALS NHS TRUST",null,null,null,"RMC","NORTHERN DEVON HEALTHCARE NHS TRUST"]
[null,null,null,null,null,null,null,null,null,null,null,null,null,null,null,null,null,null,null,null,"Q77","RLQ","WYE VALLEY NHS TRUST",null,null,null,"RMP","NORTHERN LINCOLNSHIRE AND GOOLE NHS FOUNDATION TRUST"]
[null,null,null,null,null,null,null,null,null,null,null,null,null,null,null,null,null,null,null,null,"Q78","RC1","BEDFORD HOSPITAL NHS TRUST",null,null,null,"RN3","NORTHUMBRIA HEALTHCARE NHS FOUNDATION TRUST"]
[null,null,null,null,null,null,null,null,null,null,null,null,null,null,null,null,null,null,null,null,"Q78","RWH","EAST AND NORTH HERTFORDSHIRE NHS TRUST",null,null,null,"RN5","NOTTINGHAM UNIVERSITY HOSPITALS NHS TRUST"]
[null,null,null,null,null,null,null,null,null,null,null,null,null,null,null,null,null,null,null,null,"Q78","RNQ","KETTERING GENERAL HOSPITAL NHS FOUNDATION TRUST",null,null,null,"RN7","OXFORD UNIVERSITY HOSPITALS NHS FOUNDATION TRUST"]
[null,null,null,null,null,null,null,null,null,null,null,null,null,null,null,null,null,null,null,null,"Q78","RC9","LUTON AND DUNSTABLE UNIVERSITY HOSPITAL NHS FOUNDATION TRUST",null,null,null,"RNA","PENNINE ACUTE HOSPITALS NHS TRUST"]
[null,null,null,null,null,null,null,null,null,null,null,null,null,null,null,null,null,null,null,null,"Q78","RD8","MILTON KEYNES UNIVERSITY HOSPITAL NHS FOUNDATION TRUST",null,null,null,"RNL","PLYMOUTH HOSPITALS NHS TRUST"]
[null,null,null,null,null,null,null,null,null,null,null,null,null,null,null,null,null,null,null,null,"Q78","RNS","NORTHAMPTON GENERAL HOSPITAL NHS TRUST",null,null,null,"RNQ","POOLE HOSPITAL NHS FOUNDATION TRUST"]
[null,null,null,null,null,null,null,null,null,null,null,null,null,null,null,null,null,null,null,null,"Q78","RWD","UNITED LINCOLNSHIRE HOSPITALS NHS TRUST",null,null,null,"RNS","PORTSMOUTH HOSPITALS NHS TRUST"]
[null,null,null,null,null,null,null,null,null,null,null,null,null,null,null,null,null,null,null,null,"Q78","RWE","UNIVERSITY HOSPITALS OF LEICESTER NHS TRUST",null,null,null,"RNZ","ROYAL BERKSHIRE NHS FOUNDATION TRUST"]
[null,null,null,null,null,null,null,null,null,null,null,null,null,null,null,null,null,null,null,null,"Q78","RWG","WEST HERTFORDSHIRE HOSPITALS NHS TRUST",null,null,null,"RP5","ROYAL CORNWALL HOSPITALS NHS TRUST"]
[null,null,null,null,null,null,null,null,null,null,null,null,null,null,null,null,null,null,null,null,"Q79","RDD","BASILDON AND THURROCK UNIVERSITY HOSPITALS NHS FOUNDATION TRUST",null,null,null,"RPA","ROYAL DEVON AND EXETER NHS FOUNDATION TRUST"]
[null,null,null,null,null,null,null,null,null,null,null,null,null,null,null,null,null,null,null,null,"Q79","RGT","CAMBRIDGE UNIVERSITY HOSPITALS NHS FOUNDATION TRUST",null,null,null,"RQ3","ROYAL FREE LONDON NHS FOUNDATION TRUST"]
[null,null,null,null,null,null,null,null,null,null,null,null,null,null,null,null,null,null,null,null,"Q79","RDE","COLCHESTER HOSPITAL UNIVERSITY NHS FOUNDATION TRUST",null,null,null,"RQ8","ROYAL SURREY COUNTY HOSPITAL NHS FOUNDATION TRUST"]
[null,null,null,null,null,null,null,null,null,null,null,null,null,null,null,null,null,null,null,null,"Q79","RGQ","IPSWICH HOSPITAL NHS TRUST",null,null,null,"RQM","ROYAL UNITED HOSPITALS BATH NHS FOUNDATION TRUST"]
[null,null,null,null,null,null,null,null,null,null,null,null,null,null,null,null,null,null,null,null,"Q79","RGP","JAMES PAGET UNIVERSITY HOSPITALS NHS FOUNDATION TRUST",null,null,null,"RQW","SALISBURY NHS FOUNDATION TRUST"]
[null,null,null,null,null,null,null,null,null,null,null,null,null,null,null,null,null,null,null,null,"Q79","RQ8","MID ESSEX HOSPITAL SERVICES NHS TRUST",null,null,null,"RQX","SANDWELL AND WEST BIRMINGHAM HOSPITALS NHS TRUST"]
[null,null,null,null,null,null,null,null,null,null,null,null,null,null,null,null,null,null,null,null,"Q79","RM1","NORFOLK AND NORWICH UNIVERSITY HOSPITALS NHS FOUNDATION TRUST",null,null,null,"RR1","SHEFFIELD TEACHING HOSPITALS NHS FOUNDATION TRUST"]
[null,null,null,null,null,null,null,null,null,null,null,null,null,null,null,null,null,null,null,null,"Q79","RGN","NORTH WEST ANGLIA NHS FOUNDATION TRUST",null,null,null,"RR7","SHERWOOD FOREST HOSPITALS NHS FOUNDATION TRUST"]
[null,null,null,null,null,null,null,null,null,null,null,null,null,null,null,null,null,null,null,null,"Q79","RAJ","SOUTHEND UNIVERSITY HOSPITAL NHS FOUNDATION TRUST",null,null,null,"RR8","SHREWSBURY AND TELFORD HOSPITAL NHS TRUST"]
[null,null,null,null,null,null,null,null,null,null,null,null,null,null,null,null,null,null,null,null,"Q79","RQW","THE PRINCESS ALEXANDRA HOSPITAL NHS TRUST",null,null,null,"RRF","SOUTH TEES HOSPITALS NHS FOUNDATION TRUST"]
[null,null,null,null,null,null,null,null,null,null,null,null,null,null,null,null,null,null,null,null,"Q79","RCX","THE QUEEN ELIZABETH HOSPITAL, KING'S LYNN, NHS FOUNDATION TRUST",null,null,null,"RRV","SOUTH TYNESIDE NHS FOUNDATION TRUST"]
[null,null,null,null,null,null,null,null,null,null,null,null,null,null,null,null,null,null,null,null,"Q79","RGR","WEST SUFFOLK NHS FOUNDATION TRUST",null,null,null,"RTD","SOUTH WARWICKSHIRE NHS FOUNDATION TRUST"]
[null,null,null,null,null,null,null,null,null,null,null,null,null,null,null,null,null,null,null,null,"Q80","RVJ","NORTH BRISTOL NHS TRUST",null,null,null,"RTE","SOUTHEND UNIVERSITY HOSPITAL NHS FOUNDATION TRUST"]
[null,null,null,null,null,null,null,null,null,null,null,null,null,null,null,null,null,null,null,null,"Q80","RBZ","NORTHERN DEVON HEALTHCARE NHS TRUST",null,null,null,"RTF","SOUTHPORT AND ORMSKIRK HOSPITAL NHS TRUST"]
[null,null,null,null,null,null,null,null,null,null,null,null,null,null,null,null,null,null,null,null,"Q80","RK9","PLYMOUTH HOSPITALS NHS TRUST",null,null,null,"RTG","ST GEORGE'S UNIVERSITY HOSPITALS NHS FOUNDATION TRUST"]
[null,null,null,null,null,null,null,null,null,null,null,null,null,null,null,null,null,null,null,null,"Q80","REF","ROYAL CORNWALL HOSPITALS NHS TRUST",null,null,null,"RTH","ST HELENS AND KNOWSLEY HOSPITAL SERVICES NHS TRUST"]
[null,null,null,null,null,null,null,null,null,null,null,null,null,null,null,null,null,null,null,null,"Q80","RH8","ROYAL DEVON AND EXETER NHS FOUNDATION TRUST",null,null,null,"RTK","STOCKPORT NHS FOUNDATION TRUST"]
[null,null,null,null,null,null,null,null,null,null,null,null,null,null,null,null,null,null,null,null,"Q80","RBA","TAUNTON AND SOMERSET NHS FOUNDATION TRUST",null,null,null,"RTP","SURREY AND SUSSEX HEALTHCARE NHS TRUST"]
[null,null,null,null,null,null,null,null,null,null,null,null,null,null,null,null,null,null,null,null,"Q80","RA9","TORBAY AND SOUTH DEVON NHS FOUNDATION TRUST",null,null,null,"RTR","TAMESIDE AND GLOSSOP INTEGRATED CARE NHS FOUNDATION TRUST"]
[null,null,null,null,null,null,null,null,null,null,null,null,null,null,null,null,null,null,null,null,"Q80","RA7","UNIVERSITY HOSPITALS BRISTOL NHS FOUNDATION TRUST",null,null,null,"RTX","TAUNTON AND SOMERSET NHS FOUNDATION TRUST"]
[null,null,null,null,null,null,null,null,null,null,null,null,null,null,null,null,null,null,null,null,"Q80","RA3","WESTON AREA HEALTH NHS TRUST",null,null,null,"RVJ","THE DUDLEY GROUP NHS FOUNDATION TRUST"]
[null,null,null,null,null,null,null,null,null,null,null,null,null,null,null,null,null,null,null,null,"Q80","RA4","YEOVIL DISTRICT HOSPITAL NHS FOUNDATION TRUST",null,null,null,"RVR","THE HILLINGDON HOSPITALS NHS FOUNDATION TRUST"]
[null,null,null,null,null,null,null,null,null,null,null,null,null,null,null,null,null,null,null,null,"Q81","RTK","ASHFORD AND ST PETER'S HOSPITALS NHS FOUNDATION TRUST",null,null,null,"RVV","THE NEWCASTLE UPON TYNE HOSPITALS NHS FOUNDATION TRUST"]
[null,null,null,null,null,null,null,null,null,null,null,null,null,null,null,null,null,null,null,null,"Q81","RXH","BRIGHTON AND SUSSEX UNIVERSITY HOSPITALS NHS TRUST",null,null,null,"RVW","THE PRINCESS ALEXANDRA HOSPITAL NHS TRUST"]
[null,null,null,null,null,null,null,null,null,null,null,null,null,null,null,null,null,null,null,null,"Q81","RN7","DARTFORD AND GRAVESHAM NHS TRUST",null,null,null,"RVY","THE QUEEN ELIZABETH HOSPITAL, KING'S LYNN, NHS FOUNDATION TRUST"]
[null,null,null,null,null,null,null,null,null,null,null,null,null,null,null,null,null,null,null,null,"Q81","RVV","EAST KENT HOSPITALS UNIVERSITY NHS FOUNDATION TRUST",null,null,null,"RW3","THE ROTHERHAM NHS FOUNDATION TRUST"]
[null,null,null,null,null,null,null,null,null,null,null,null,null,null,null,null,null,null,null,null,"Q81","RXC","EAST SUSSEX HEALTHCARE NHS TRUST",null,null,null,"RW6","THE ROYAL BOURNEMOUTH AND CHRISTCHURCH HOSPITALS NHS FOUNDATION TRUST"]
[null,null,null,null,null,null,null,null,null,null,null,null,null,null,null,null,null,null,null,null,"Q81","RDU","FRIMLEY HEALTH NHS FOUNDATION TRUST",null,null,null,"RWA","THE ROYAL WOLVERHAMPTON NHS TRUST"]
[null,null,null,null,null,null,null,null,null,null,null,null,null,null,null,null,null,null,null,null,"Q81","RWF","MAIDSTONE AND TUNBRIDGE WELLS NHS TRUST",null,null,null,"RWD","THE WHITTINGTON HOSPITAL NHS TRUST"]
[null,null,null,null,null,null,null,null,null,null,null,null,null,null,null,null,null,null,null,null,"Q81","RPA","MEDWAY NHS FOUNDATION TRUST",null,null,null,"RWE","TORBAY AND SOUTH DEVON NHS FOUNDATION TRUST"]
[null,null,null,null,null,null,null,null,null,null,null,null,null,null,null,null,null,null,null,null,"Q81","RA2","ROYAL SURREY COUNTY HOSPITAL NHS FOUNDATION TRUST",null,null,null,"RWF","UNITED LINCOLNSHIRE HOSPITALS NHS TRUST"]
[null,null,null,null,null,null,null,null,null,null,null,null,null,null,null,null,null,null,null,null,"Q81","RTP","SURREY AND SUSSEX HEALTHCARE NHS TRUST",null,null,null,"RWG","UNIVERSITY COLLEGE LONDON HOSPITALS NHS FOUNDATION TRUST"]
[null,null,null,null,null,null,null,null,null,null,null,null,null,null,null,null,null,null,null,null,"Q81","RYR","WESTERN SUSSEX HOSPITALS NHS FOUNDATION TRUST",null,null,null,"RWH","UNIVERSITY HOSPITAL OF SOUTH MANCHESTER NHS FOUNDATION TRUST"]
[null,null,null,null,null,null,null,null,null,null,null,null,null,null,null,null,null,null,null,null,"Q82","RXQ","BUCKINGHAMSHIRE HEALTHCARE NHS TRUST",null,null,null,"RWJ","UNIVERSITY HOSPITAL SOUTHAMPTON NHS FOUNDATION TRUST"]
[null,null,null,null,null,null,null,null,null,null,null,null,null,null,null,null,null,null,null,null,"Q82","RTE","GLOUCESTERSHIRE HOSPITALS NHS FOUNDATION TRUST",null,null,null,"RWP","UNIVERSITY HOSPITALS BRISTOL NHS FOUNDATION TRUST"]
[null,null,null,null,null,null,null,null,null,null,null,null,null,null,null,null,null,null,null,null,"Q82","RN3","GREAT WESTERN HOSPITALS NHS FOUNDATION TRUST",null,null,null,"RWW","UNIVERSITY HOSPITALS COVENTRY AND WARWICKSHIRE NHS TRUST"]
[null,null,null,null,null,null,null,null,null,null,null,null,null,null,null,null,null,null,null,null,"Q82","RTH","OXFORD UNIVERSITY HOSPITALS NHS FOUNDATION TRUST",null,null,null,"RWY","UNIVERSITY HOSPITALS OF LEICESTER NHS TRUST"]
[null,null,null,null,null,null,null,null,null,null,null,null,null,null,null,null,null,null,null,null,"Q82","RHW","ROYAL BERKSHIRE NHS FOUNDATION TRUST",null,null,null,"RX1","UNIVERSITY HOSPITALS OF MORECAMBE BAY NHS FOUNDATION TRUST"]
[null,null,null,null,null,null,null,null,null,null,null,null,null,null,null,null,null,null,null,null,"Q82","RD1","ROYAL UNITED HOSPITALS BATH NHS FOUNDATION TRUST",null,null,null,"RXC","UNIVERSITY HOSPITALS OF NORTH MIDLANDS NHS TRUST"]
[null,null,null,null,null,null,null,null,null,null,null,null,null,null,null,null,null,null,null,null,"Q82","RNZ","SALISBURY NHS FOUNDATION TRUST",null,null,null,"RXF","WALSALL HEALTHCARE NHS TRUST"]
[null,null,null,null,null,null,null,null,null,null,null,null,null,null,null,null,null,null,null,null,"Q83","RMC","BOLTON NHS FOUNDATION TRUST",null,null,null,"RXH","WARRINGTON AND HALTON HOSPITALS NHS FOUNDATION TRUST"]
[null,null,null,null,null,null,null,null,null,null,null,null,null,null,null,null,null,null,null,null,"Q83","RY2","BRIDGEWATER COMMUNITY HEALTHCARE NHS FOUNDATION TRUST",null,null,null,"RXK","WEST HERTFORDSHIRE HOSPITALS NHS TRUST"]
[null,null,null,null,null,null,null,null,null,null,null,null,null,null,null,null,null,null,null,null,"Q83","RW3","CENTRAL MANCHESTER UNIVERSITY HOSPITALS NHS FOUNDATION TRUST",null,null,null,"RXL","WEST SUFFOLK NHS FOUNDATION TRUST"]
[null,null,null,null,null,null,null,null,null,null,null,null,null,null,null,null,null,null,null,null,"Q83","RW6","PENNINE ACUTE HOSPITALS NHS TRUST",null,null,null,"RXN","WESTERN SUSSEX HOSPITALS NHS FOUNDATION TRUST"]
[null,null,null,null,null,null,null,null,null,null,null,null,null,null,null,null,null,null,null,null,"Q83","RWJ","STOCKPORT NHS FOUNDATION TRUST",null,null,null,"RXP","WESTON AREA HEALTH NHS TRUST"]
[null,null,null,null,null,null,null,null,null,null,null,null,null,null,null,null,null,null,null,null,"Q83","RMP","TAMESIDE AND GLOSSOP INTEGRATED CARE NHS FOUNDATION TRUST",null,null,null,"RXQ","WIRRAL UNIVERSITY TEACHING HOSPITAL NHS FOUNDATION TRUST"]
[null,null,null,null,null,null,null,null,null,null,null,null,null,null,null,null,null,null,null,null,"Q83","RM2","UNIVERSITY HOSPITAL OF SOUTH MANCHESTER NHS FOUNDATION TRUST",null,null,null,"RXR","WORCESTERSHIRE ACUTE HOSPITALS NHS TRUST"]
[null,null,null,null,null,null,null,null,null,null,null,null,null,null,null,null,null,null,null,null,"Q83","RRF","WRIGHTINGTON, WIGAN AND LEIGH NHS FOUNDATION TRUST",null,null,null,"RXW","WRIGHTINGTON, WIGAN AND LEIGH NHS FOUNDATION TRUST"]
[null,null,null,null,null,null,null,null,null,null,null,null,null,null,null,null,null,null,null,null,"Q84","RXL","BLACKPOOL TEACHING HOSPITALS NHS FOUNDATION TRUST",null,null,null,"RY2","WYE VALLEY NHS TRUST"]
[null,null,null,null,null,null,null,null,null,null,null,null,null,null,null,null,null,null,null,null,"Q84","RXR","EAST LANCASHIRE HOSPITALS NHS TRUST",null,null,null,"RYJ","YEOVIL DISTRICT HOSPITAL NHS FOUNDATION TRUST"]
[null,null,null,null,null,null,null,null,null,null,null,null,null,null,null,null,null,null,null,null,"Q84","RXN","LANCASHIRE TEACHING HOSPITALS NHS FOUNDATION TRUST",null,null,null,"RYR","YORK TEACHING HOSPITAL NHS FOUNDATION TRUST"]